Workbook

Sheet T-Übersicht (hidden)
B2: =ParameterDatei!D188 -> • Hauptmenu •
C4: Tabellenblattübersicht zum BAB Rettungsdienst in Niedersachsen*)
C7: OZ | D7: Tabellenblattbezeichnung | E7: Erläuterung der Funktio | F7: US | G7: KZ | H7: Hilfskostenstellen
C8: 1 | D8: 22 | E8: 23 | F8: 4 | G8: 5 | H8: 10 | I8: 11 | J8: 12 | K8: 13 | L8: 14 | M8: 15 | N8: 16 | O8: 17 | P8: 18
C10: 1 | D10: T-Übersicht | E10: Auflistung aller Tabellenblätter im System
C11: 2 | D11: Hauptmenu | E11: Startmaske und Auswahlmenu für alle Funktionen
C12: =IF(D12="","",C11+1) -> 3 | D12: Basis-Daten | E12: Menu zur Auswahl verschiedener Grundeinstellungen, insbesondere Auswahl Rettungsdienstbereich, Auswahl Berichtszeitraum, Festlegung der Scallierung der Ausdrucke, Festlegung der Bildschirmscalierung und Auswahlmöglichkeit für "Sonstige" Hilfskostenstellen.
C13: 4 | D13: LE-Stamm | E13: Eingabe der Namen der Leistungserbringer
C14: 5 | D14: RW-Stamm 1 | E14: Eingabe der Rettungswachennamen und Zuordnung der jeweiligen Leistungserbringer (Rettungswache 1 - 10)
C15: 6 | D15: RW-Stamm 2 | E15: Eingabe der Rettungswachennamen und Zuordnung der jeweiligen Leistungserbringer (Rettungswache 11 - 20)
C16: 7 | D16: RW-Stamm 3 | E16: Eingabe der Rettungswachennamen und Zuordnung der jeweiligen Leistungserbringer (Rettungswache 11 - 20)
C17: 8 | D17: RW-Ebene | E17: Eingabetabelle für den BAB auf Rettungswachenebene
C18: 9 | D18: Traeger-Ebene | E18: Eingabetabelle für den BAB auf Träger-Ebene
C19: 10 | D19: LE-Ebene | E19: Aggregationsebene für den BAB Leistungserbringer
C20: 11 | D20: RDB-Ebene | E20: Aggregationsebene für den BAB Rettungsdienstbereich
C21: 12 | D21: RW-Statistik | E21: Eingabetabelle für die Statistik auf Rettungswachenebene
C22: 13 | D22: Traeger-Statistik | E22: Eingabetabelle für die Statistik auf Träger-Ebene (Leitstelle)
C23: 14 | D23: LE-Statistik | E23: Aggregationsebene für die Statistik Leistungserbringer
C24: 15 | D24: RDB-Statistik | E24: Aggregationsebene für die Statistik Rettungsdienstbereich
C25: 16 | D25: Verdichtung 1 | E25: Rangierebene für den BAB
C26: 17 | D26: Verdichtung 2 | E26: Rangierebene für die Statistik
C27: 18 | D27: Verdichtung LE | E27: Rangierebene für den BAB Leistungserbringer
C43: =IF(D43="","",C42+1) -> 
C75: =IF(D75="","",C74+1) -> 

Sheet Titel

Sheet ParameterDatei
B2: Programm-Versionsnummer
B3: 2010-05-13 | C3: BAB-Tool RD Nds - Version | D3: 2_26 | E3: Einblenden | F3: Ausblenden | G3: Hauptmenu
B4: Lizenz: | D4: =SUBSTITUTE(D3,"_",".") -> 2.26
B6: Parameter-Datei | F6: Berichts-Zeitraum
B7: Wert | C7: Beschreibung | F7: Zeitraum | G7: Jahr
B8: 18 | C8: Berichtszeitraum | D8: =INDEX(G9:G26,B8) -> 2_26
B9: 51 | C9: Rettungsdienstbereich | F9: 01.01. - 31.12.2009 | G9: 2009
B10: =IF('Basis-Daten'!C14="X","True","False") -> False | C10: Spalte Sonstige 2 | D10: =IF(B10=TRUE,1,0) -> 0 | F10: 01.01. - 31.12.2010 | G10: 2010
B11: =IF('Basis-Daten'!C16="X","True","False") -> False | C11: Spalte Sonstige 3 | D11: =IF(B11=TRUE,1,0) -> 0 | F11: 01.01. - 31.12.2011 | G11: 2011
B12: =IF('Basis-Daten'!C18="X","True","False") -> False | C12: Spalte Sonstige 4 | D12: =IF(B12=TRUE,1,0) -> 0 | F12: 01.01. - 31.12.2012 | G12: 2012
B13: =IF('Basis-Daten'!C20="X","True","False") -> False | C13: Spalte Sonstige 5 | D13: =IF(B13=TRUE,1,0) -> 0 | F13: 01.01. - 31.12.2013 | G13: 2013
B14: TRUE | C14: Ganzer Bildschirm | D14: =SUM(D10:D13) -> 0 | F14: 01.01. - 31.12.2014 | G14: 2014
B15: =IF('Basis-Daten'!C12="X","True","False") -> False | C15: Spalte Sonstige 1 | D15: =IF(B15=TRUE,1,0) -> 0 | F15: 01.01. - 31.12.2015 | G15: 2015
B16: 68 | C16: RW / LE BAB - Standard | D16: 4 | F16: 01.01. - 31.12.2016 | G16: 2016
B17: 62 | C17: RDB BAB - Standard | D17: 4 | F17: 01.01. - 31.12.2017 | G17: 2017
B18: 80 | C18: RW / LE / RDB Statistik - Standard | D18: 6 | F18: 01.01. - 31.12.2018 | G18: 2018
B19: 80 | C19: Träger Statstik / Standard | D19: 0 | F19: 01.01. - 31.12.2019 | G19: 2019
B20: 75 | C20: Kennzahlen | D20: 0 | F20: 01.01. - 31.12.2020 | G20: 2020
B21: 100 | C21: Anmerkungen | D21: 0 | F21: 01.01. - 31.12.2021 | G21: 2021
B22: 72 | C22: Träger BAB - Standard | D22: 0 | F22: 01.01. - 31.12.2022 | G22: 2022
F23: 01.01. - 31.12.2023 | G23: 2023
B24: 0 | C24: Initialisierungs-Kenner für das Rücksetzen der Tabelleneintragungen | F24: 01.01. - 31.12.2024 | G24: 2024
F25: 01.01. - 31.12.2025 | G25: 2025
B26: TRUE | C26: Programm | D26: 0 | F26: Leerfeld | G26: =D3 -> 2_26
B27: 0 | C27: Juergen Huber | F27: =B8 -> 18 | G27: BAB-Zeitraum
B28: Pfad | C28: Macintosh HD:Users:jhuber:Desktop: | F28: 1 | G28: Ist-Leistungs-Zeitraum
B29: =IF('Basis-Daten'!C22="X","True","False") -> False | C29: Spalte LE-ÖEL | D29: =IF(B29=TRUE,1,0) -> 0
B30: =IF('Basis-Daten'!C24="X","True","False") -> False | C30: Spalte LE-GSE | D30: =IF(B30=TRUE,1,0) -> 0
B31: =SUBSTITUTE(D3,"_",",")*1 -> 2.26 | C31: aktuelle Versionsnummer (dezimal)
B32: =SUBSTITUTE(D32,"_",",")*1 -> 1.13 | C32: Quelldatei Versionsnummer (dezimal) | D32: 1_13
B34: Liste der Rettungsdienstbereiche
B35: Lfd. Nr. | C35: Art | D35: Name | E35: Auswahl-Beschriftung | F35: Einwohnerzahl | G35: Größe in qm | H35: Iternetadresse
B37: 1 | C37: Landkreis | D37: Ammerland | E37: ="LK-"&D37 -> LK-Ammerland | H37: WST
B38: =B37+1 -> 2 | C38: Landkreis | D38: Aurich | E38: LK-Aurich | H38: AUR
B39: =B38+1 -> 3 | C39: Landkreis | D39: Celle | E39: LK-Celle | H39: CE
B40: 4 | C40: Landkreis | D40: Cloppenburg | E40: LK-Cloppenburg | H40: CLP
B41: 5 | C41: Landkreis | D41: Cuxhaven | E41: LK-Cuxhaven | H41: LCUX
B42: 6 | C42: Landkreis | D42: Diepholz | E42: LK-Diepholz | H42: DH
B43: 7 | C43: Landkreis | D43: Emsland | E43: LK-Emsland | H43: EL
B44: 8 | C44: Landkreis | D44: Friesland | E44: LK-Friesland | H44: FRI
B45: 9 | C45: Landkreis | D45: Gifhorn | E45: LK-Gifhorn | H45: GF
B46: 10 | C46: Landkreis | D46: Goslar | E46: LK-Goslar | H46: GS
B47: 11 | C47: Landkreis | D47: Grafschaft Bentheim | E47: LK-Grafschaft Bentheim | H47: NOH
B48: 12 | C48: Landkreis | D48: Hameln-Pyrmont | E48: LK-Hameln-Pyrmont | H48: LHM
B49: 13 | C49: Landkreis | D49: Harburg | E49: LK-Harburg | H49: WL
B50: 14 | C50: Landkreis | D50: Helmstedt | E50: ="LK-"&D50 -> LK-Helmstedt | H50: HE
B51: 15 | C51: Landkreis | D51: Hildesheim | E51: LK-Hildesheim | H51: HI
B52: 16 | C52: Landkreis | D52: Holzminden | E52: LK-Holzminden | H52: HOL
B53: 17 | C53: Landkreis | D53: Leer | E53: LK-Leer | H53: LER
B54: 18 | C54: Landkreis | D54: Lüchow-Dannenberg | E54: LK-Lüchow-Dannenberg | H54: DAN
B55: 19 | C55: Landkreis | D55: Lüneburg | E55: LK-Lüneburg | H55: LG
B56: 20 | C56: Landkreis | D56: Nienburg | E56: LK-Nienburg | H56: NI
B57: 21 | C57: Landkreis | D57: Northeim | E57: LK-Northeim | H57: NOM
B58: 22 | C58: Landkreis | D58: Oldenburg | E58: LK-Oldenburg | H58: LOL
B59: 23 | C59: Landkreis | D59: Osnabrück | E59: LK-Osnabrück | H59: LOS
B60: 24 | C60: Landkreis | D60: Osterholz | E60: LK-Osterholz | H60: OHZ
B61: 25 | C61: Landkreis | D61: Osterode | E61: LK-Osterode | H61: OHA
B62: 26 | C62: Landkreis | D62: Peine | E62: LK-Peine | H62: PE
B63: 27 | C63: Landkreis | D63: Rotenburg (Wümme) | E63: LK-Rotenburg (Wümme) | H63: ROW
B64: 28 | C64: Landkreis | D64: Schaumburg | E64: LK-Schaumburg | H64: SHG
B65: 29 | C65: Landkreis | D65: Heidekreis | E65: LK-Heidekreis | H65: SFA
B66: 30 | C66: Landkreis | D66: Stade | E66: LK-Stade | H66: STD
B67: 31 | C67: Landkreis | D67: Uelzen | E67: LK-Uelzen | H67: UE
B68: 32 | C68: Landkreis | D68: Vechta | E68: LK-Vechta | H68: VEC
B69: 33 | C69: Landkreis | D69: Verden | E69: LK-Verden | H69: VER
B70: 34 | C70: Landkreis | D70: Wesermarsch | E70: LK-Wesermarsch | H70: BRA
B71: 35 | C71: Landkreis | D71: Wittmund | E71: LK-Wittmund | H71: WTM
B72: 36 | C72: Landkreis | D72: Wolfenbüttel | E72: LK-Wolfenbüttel | H72: WF
B73: 37 | C73: Region | D73: Hannover | E73: ="Region-"&D73 -> Region-Hannover | H73: RH
B74: 38 | C74: Stadt | D74: Braunschweig | E74: ="Stadt "&D74 -> Stadt Braunschweig | H74: BS
B75: 39 | C75: Stadt | D75: Cuxhaven | E75: Stadt Cuxhaven | H75: SCUX
B76: 40 | C76: Stadt | D76: Delmenhorst | E76: ="Stadt "&D76 -> Stadt Delmenhorst | H76: DEL
B77: 41 | C77: Stadt | D77: Emden | E77: ="Stadt "&D77 -> Stadt Emden | H77: EMD
B78: 42 | C78: Stadt | D78: Hameln | E78: Stadt Hameln | H78: SHM
B79: 43 | C79: Stadt | D79: Hannover | E79: Stadt Hannover | H79: SH
B80: 44 | C80: Stadt | D80: Hildesheim | E80: Stadt Hildesheim | H80: SHI
B81: 45 | C81: Stadt | D81: Oldenburg | E81: Stadt Oldenburg | H81: SOL
B82: 46 | C82: Stadt | D82: Osnabrück | E82: ="Stadt "&D82 -> Stadt Osnabrück | H82: OS
B83: 47 | C83: Stadt | D83: Salzgitter | E83: ="Stadt "&D83 -> Stadt Salzgitter | H83: SZ
B84: 48 | C84: Stadt | D84: Wilhelmshaven | E84: ="Stadt "&D84 -> Stadt Wilhelmshaven | H84: WHV
B85: 49 | C85: Stadt | D85: Wolfsburg | E85: ="Stadt "&D85 -> Stadt Wolfsburg | H85: WOB
B86: 50 | C86: Landkreis | D86: Göttingen | E86: Stadt/LK Göttingen | H86: GOE
B87: 51 | C87: Leerfeld | D87: Leerfeld | E87: Leerfeld | H87: Stamm
B88: =B9 -> 51
B90: Liste der Leistungserbringer
B91: Lfd. Nr. | C91: Name
B93: 1 | C93: ='LE-Stamm'!D6 -> LE 01
B94: =B93+1 -> 2 | C94: ='LE-Stamm'!D8 -> LE 02
B95: =B94+1 -> 3 | C95: ='LE-Stamm'!D10 -> LE 03
B96: 4 | C96: ='LE-Stamm'!D12 -> LE 04
B97: 5 | C97: ='LE-Stamm'!D14 -> LE 05
B98: 6 | C98: ='LE-Stamm'!D16 -> LE 06
B99: 7 | C99: ='LE-Stamm'!D18 -> LE 07
B100: 8 | C100: ='LE-Stamm'!D20 -> LE 08
B101: 9 | C101: ='LE-Stamm'!D22 -> LE 09
B102: 10 | C102: ='LE-Stamm'!D24 -> LE 10
B103: 11 | C103: ='LE-Stamm'!H6 -> LE 11
B104: 12 | C104: ='LE-Stamm'!H8 -> LE 12
B105: 13 | C105: ='LE-Stamm'!H10 -> LE 13
B106: 14 | C106: ='LE-Stamm'!H12 -> LE 14
B107: 15 | C107: ='LE-Stamm'!H14 -> LE 15
B108: 16 | C108: ='LE-Stamm'!H16 -> LE 16
B109: 17 | C109: ='LE-Stamm'!H18 -> LE 17
B110: 18 | C110: ='LE-Stamm'!H20 -> LE 18
B111: 19 | C111: ='LE-Stamm'!H22 -> LE 19
B112: 20 | C112: ='LE-Stamm'!H24 -> LE 20
B113: 0 | C113: Träger
B114: =INDEX(D119:D148,B150) -> 1
B116: Liste der Rettungswachen
B117: Lfd. Nr. | C117: Name | D117: Leistungserbringer | E117: Anmerkungen
B119: 1 | C119: ='RW-Stamm 1'!$D$6 -> RW 01 | D119: 1 | E119: ='RW-Anmerkungen'!T195 -> 0
B120: =B119+1 -> 2 | C120: ='RW-Stamm 1'!D8 -> RW 02 | D120: 2 | E120: ='RW-Anmerkungen'!T295 -> 0
B121: =B120+1 -> 3 | C121: ='RW-Stamm 1'!D10 -> RW 03 | D121: 3 | E121: ='RW-Anmerkungen'!T395 -> 0
B122: 4 | C122: ='RW-Stamm 1'!D12 -> RW 04 | D122: 20 | E122: ='RW-Anmerkungen'!T495 -> 0
B123: 5 | C123: ='RW-Stamm 1'!D14 -> RW 05 | D123: 20 | E123: ='RW-Anmerkungen'!T595 -> 0
B124: 6 | C124: ='RW-Stamm 1'!D16 -> RW 06 | D124: 20 | E124: ='RW-Anmerkungen'!T695 -> 0
B125: 7 | C125: ='RW-Stamm 1'!D18 -> RW 07 | D125: 20 | E125: ='RW-Anmerkungen'!T795 -> 0
B126: 8 | C126: ='RW-Stamm 1'!D20 -> RW 08 | D126: 20 | E126: ='RW-Anmerkungen'!T895 -> 0
B127: 9 | C127: ='RW-Stamm 1'!D22 -> RW 09 | D127: 20 | E127: ='RW-Anmerkungen'!T995 -> 0
B128: 10 | C128: ='RW-Stamm 1'!D24 -> RW 10 | D128: 20 | E128: ='RW-Anmerkungen'!T1095 -> 0
B129: 11 | C129: ='RW-Stamm 2'!D6 -> RW 11 | D129: 20 | E129: ='RW-Anmerkungen'!T1195 -> 0
B130: 12 | C130: ='RW-Stamm 2'!D8 -> RW 12 | D130: 20 | E130: ='RW-Anmerkungen'!T1295 -> 0
B131: 13 | C131: ='RW-Stamm 2'!D10 -> RW 13 | D131: 20 | E131: ='RW-Anmerkungen'!T1395 -> 0
B132: 14 | C132: ='RW-Stamm 2'!D12 -> RW 14 | D132: 20 | E132: ='RW-Anmerkungen'!T1495 -> 0
B133: 15 | C133: ='RW-Stamm 2'!D14 -> RW 15 | D133: 20 | E133: ='RW-Anmerkungen'!T1595 -> 0
B134: 16 | C134: ='RW-Stamm 2'!D16 -> RW 16 | D134: 20 | E134: ='RW-Anmerkungen'!T1695 -> 0
B135: 17 | C135: ='RW-Stamm 2'!D18 -> RW 17 | D135: 20 | E135: ='RW-Anmerkungen'!T1795 -> 0
B136: 18 | C136: ='RW-Stamm 2'!D20 -> RW 18 | D136: 20 | E136: ='RW-Anmerkungen'!T1895 -> 0
B137: 19 | C137: ='RW-Stamm 2'!D22 -> RW 19 | D137: 20 | E137: ='RW-Anmerkungen'!T1995 -> 0
B138: 20 | C138: ='RW-Stamm 2'!D24 -> RW 20 | D138: 20 | E138: ='RW-Anmerkungen'!T2095 -> 0
B139: 21 | C139: ='RW-Stamm 3'!D6 -> RW 21 | D139: 20 | E139: ='RW-Anmerkungen'!T2195 -> 0
B140: 22 | C140: ='RW-Stamm 3'!D8 -> RW 22 | D140: 20 | E140: ='RW-Anmerkungen'!T2295 -> 0
B141: 23 | C141: ='RW-Stamm 3'!D10 -> RW 23 | D141: 20 | E141: ='RW-Anmerkungen'!T2395 -> 0
B142: 24 | C142: ='RW-Stamm 3'!D12 -> RW 24 | D142: 20 | E142: ='RW-Anmerkungen'!T2495 -> 0
B143: 25 | C143: ='RW-Stamm 3'!D14 -> RW 25 | D143: 20 | E143: ='RW-Anmerkungen'!T2595 -> 0
B144: 26 | C144: ='RW-Stamm 3'!D16 -> RW 26 | D144: 20 | E144: ='RW-Anmerkungen'!T2695 -> 0
B145: 27 | C145: ='RW-Stamm 3'!D18 -> RW 27 | D145: 20 | E145: ='RW-Anmerkungen'!T2795 -> 0
B146: 28 | C146: ='RW-Stamm 3'!D20 -> RW 28 | D146: 20 | E146: ='RW-Anmerkungen'!T12895 -> 0
B147: 29 | C147: ='RW-Stamm 3'!D22 -> RW 29 | D147: 20 | E147: ='RW-Anmerkungen'!T2995 -> 0
B148: 30 | C148: ='RW-Stamm 3'!D24 -> RW 30 | D148: 20 | E148: ='RW-Anmerkungen'!T3095 -> 0
B150: 1
B152: Namen für Datei, Pfad, Ex- und Import
B153: Lfd. Nr. | C153: Aufgabe | D153: Namen | F153: Aufgabe | G153: Namen
C154: Exportnamen für RW-BAB-Export | D154: ="EP-BAB-Nds-"&D8&"-"&INDEX(H37:H87,B88)&"-"&B150&".xls" -> EP-BAB-Nds-2_26-Stamm-1.xls | F154: Exportnamen für Kennz.-Export | G154: ="EP-BAB-Nds-Kennz-"&D8&"-"&INDEX(H37:H87,B88)&".xls" -> EP-BAB-Nds-Kennz-2_26-Stamm.xls
C155: Importname für RW-BAB-Import | D155: =D154 -> EP-BAB-Nds-2_26-Stamm-1.xls | F155: Exportnamen für Kalkulationsblatt | G155: ="EP-BAB-Nds-Kalku-"&D8&"-"&INDEX(H37:H87,B88)&".xls" -> EP-BAB-Nds-Kalku-2_26-Stamm.xls
C156: Import-Kontrolle RW-BAB | D156: ="Rettungswache "&INDEX(ParameterDatei!C119:C148,'RW-Ebene'!E5)&" ("&INDEX(ParameterDatei!C93:C112,INDEX(ParameterDatei!D119:D148,'RW-Ebene'!E5))&")" -> Rettungswache RW 01 (LE 01) | E156: Juergen Huber | F156: Exportnamen für KBQA-Datei | G156: ="KBQA-BAB-Nds-"&INDEX(H37:H87,B88)&"-"&INDEX(G9:G26,F27) -> KBQA-BAB-Nds-Stamm-2_26
C157: Dateinamen für RW/LE Datei | D157: ="RW-LE-Transfer-"&INDEX(H37:H87,B88)&".dat" -> RW-LE-Transfer-Stamm.dat | F157: Name der Quelldatei | G157: ="Q-"&D159 -> Q-BAB-NDS-Stamm-2_26.xlsm
C158: Servicecodeeingabe | D158: 576679824
C159: Name dieser Datei Ist / Soll / Dateiart | D159: BAB-NDS-Stamm-2_26.xlsm | E159: ="BAB-NDS-"&INDEX(H37:H87,B9)&"-"&INDEX(G9:G26,B8)&"."&F159 -> BAB-NDS-Stamm-2_26.xlsm | F159: =IF(RIGHT(D159,1)="m","xlsm","XLS") -> xlsm
C160: Name kompletter Pfad | D160: Macintosh HD:Users:jhuber:Desktop:BAB-NDS-Stamm-2_26.xlsm
C161: Name des Pfads ohne Dateinamen | D161: =LEFT(D160,(FIND(D159,D160)-1)) -> Macintosh HD:Users:jhuber:Desktop:
B163: Liste der Tabellenmenus
B164: 153 | C164: Hauptmenu | D164: Betriebsabrechnungsbogen für den Rettungsdienst in Niedersachsen
B165: =B164+1 -> 154 | C165: Basis-Daten | D165: Sichern • Hauptmenu • System Daten
B166: =B165+1 -> 155 | C166: LE-Stamm | D166: Sichern • RW Stamm • Hauptmenu • Export • Import
B167: 156 | C167: RW-Stamm 1 | D167: < Blättern • Sichern • LE Stamm • Hauptmenu • Export • Import • Blättern >
B168: 157 | C168: RW-Stamm 2 | D168: < Blättern • Sichern • LE Stamm • Hauptmenu • Export • Import • Blättern >
B169: 158 | C169: RW-Stamm 3 | D169: < Blättern • Sichern • LE Stamm • Hauptmenu • Export • Import • Blättern >
B170: 159 | C170: RDB-Ebene | D170: Drucken • Export • Anmerkungen • RDB Statistik • RDB Entgelte • Hauptmenu • RDB Kennzahlen • Träger BAB • LE BAB • RW BAB
B171: 160 | C171: RW-Ebene | D171: Drucken • Sichern • Import • Export • Hauptmenu • RW Statistik • RW Anmerkungen • LE BAB
B172: 161 | C172: LE-Ebene | D172: Drucken • RW BAB • Hauptmenu • LE Statistik • RDB BAB
B173: 162 | C173: Traeger-Ebene | D173: Drucken • Sichern • Träger Statistik • Hauptmenu • Träger Anmerkungen • RDB BAB
B174: 163 | C174: RW-Statistik | D174: Drucken • Sichern • Export • Hauptmenu • RW BAB • RW Anmerkungen
B175: 164 | C175: LE-Statistik | D175: Drucken • LE BAB • Hauptmenu • RW Statistik • RDB Statistik
B176: 165 | C176: Traeger-Statistik | D176: Sichern • Träger BAB • Hauptmenu • Träger Anmerkungen • RDB BAB
B177: 166 | C177: RDB-Statistik | D177: Drucken • RDB BAB • RDB Entgelte • Hauptmenu • RW Statistik • LE Statistik
B178: 167 | C178: Verdichtung 1 | D178: • RW BAB •
B179: 168 | C179: Verdichtung 2 | D179: • RW Statistik •
B180: 169 | C180: Verdichtung LE | D180: • LE BAB •
B181: 170 | C181: Verdichtung LE-StA | D181: • LE Statistik •
B182: 171 | C182: RW-Drucken | D182: • Hauptmenu •
B183: 172 | C183: LE-Drucken | D183: • Hauptmenu •
B184: =B183+1 -> 173 | C184: TR-Drucken | D184: • Hauptmenu •
B185: =B184+1 -> 174 | C185: RDB-S-Drucken | D185: • Hauptmenu •
B186: 175 | C186: RDB-Anmerkungen | D186: Drucken • Sichern • RDB BAB • Hauptmenu • RDB Statistik • LE BAB • RW BAB
B187: 176 | C187: RW-Export
B188: 177 | C188: Tabellenblattübersicht | D188: • Hauptmenu •
B189: 178 | C189: RW-S-Export
B190: 179 | C190: Versionshinweise | D190: • Hauptmenu •
B191: 180 | C191: System-Daten | D191: Speichern • Hauptmenu • Basis Daten
B192: 181 | C192: RW-Anmerkungen | D192: Drucken • Sichern • Export • Hauptmenu • RW BAB • RW Statistik
B193: 182 | C193: RDB-Kennzahlen | D193: Drucken • LE BAB • RW BAB • Hauptmenu • RDB BAB • RDB Statistik
B194: 183 | C194: Träger-Anmerkungen | D194: Drucken • Sichern • Hauptmenu • Träger BAB • Träger Statistik
B195: 184 | C195: RDB Kennzahlen | D195: Drucken • Export • RDB BAB • Hauptmenu • RDB Statistik • RDB Anmerkungen
B196: 185 | C196: Anmerkungen drucken | D196: • Hauptmenu •
B197: =B196+1 -> 186 | C197: RW-Plan | D197: Drucken • Sichern • Import • Export • Hauptmenu • RW BAB • RW Anmerkungen
B198: =B197+1 -> 187 | C198: LE-Plan | D198: Drucken • LE BAB • Hauptmenu • RW Plan Lstg • RDB Plan Lstg
B199: =B198+1 -> 188 | C199: Traeger-Plan | D199: Drucken • Sichern • Träger BAB • Hauptmenu • Träger Kennzahlen • Anmerkungen
B200: =B199+1 -> 189 | C200: Entgelte | D200: Drucken • Sichern • RDB BAB • Hauptmenu • RDB Statistik • RDB Kennzahlen • Anmerkungen

Sheet Hauptmenu
B2: =ParameterDatei!D164 -> Betriebsabrechnungsbogen für den Rettungsdienst in Niedersachsen
B4: • Hauptmenu •
B6: RDB BAB | D6: Leistungserbringer BAB | F6: Rettungswachen BAB | H6: Träger BAB
B8: RDB Statistik | D8: LE Statistik | F8: RW Statistik | H8: Träger Statistik
B10: RDB Anmerkungen | F10: RW Anmerkungen | H10: Träger Anmerkungen
B12: RDB Kennzahlen
B14: RDB Entgelte
B16: KBQA-Datei erzeugen
B18: Basis Daten | D18: Leistungserbringer Stamm | F18: Rettungswachen Stamm | H18: Alles Sichern
B20: System Daten | D20: Versions-Download | F20: Versionshinweise | H20: Beenden
B23: =ParameterDatei!C3&" "&ParameterDatei!D4&" - Lizenz-Nr.: "&ParameterDatei!C4 -> BAB-Tool RD Nds - Version 2.26 - Lizenz-Nr.: | H23: © ORGAKOM:

Sheet Basis-Daten
B2: =ParameterDatei!D165 -> Sichern • Hauptmenu • System Daten
B4: • Basis Daten •
B6: RD-Bereich | F6: Einwohner im RDB | H6: 0
B8: Berichtszeitraum | F8: Größe des RDB in qKm | H8: 0
B10: Zusätzliche Kostenstellen:
B12: Sonstige 1 | D12: Sonstige 1 | F12: =IF(('Verdichtung 1'!E576+'Verdichtung 2'!E538)<>0,"bebucht !","") -> 
B14: Sonstige 2 | D14: Sonstige 2 | F14: =IF(('Verdichtung 1'!E676+'Verdichtung 2'!E638)<>0,"bebucht !","") -> 
B16: Sonstige 3 | D16: Sonstige 3 | F16: =IF(('Verdichtung 1'!E776+'Verdichtung 2'!E738)<>0,"bebucht !","") -> 
B18: Sonstige 4 | D18: Sonstige 4 | F18: =IF(('Verdichtung 1'!E876+'Verdichtung 2'!E838)<>0,"bebucht !","") -> 
B20: Sonstige 5 | D20: Sonstige 5 | F20: =IF(('Verdichtung 1'!E976+'Verdichtung 2'!E938)<>0,"bebucht !","") -> 
B22: LE-ÖEL | D22: LE-ÖEL | F22: =IF(('Verdichtung 1'!E1076)<>0,"bebucht !","") -> 
B24: LE-GSE | D24: LE-Großschadensereignis | F24: =IF(('Verdichtung 1'!E1176)<>0,"bebucht !","") -> 
B27: =ParameterDatei!C3&" "&ParameterDatei!D3 -> BAB-Tool RD Nds - Version 2_26 | H27: © ORGAKOM:

Sheet System-Daten
B2: =ParameterDatei!D191 -> Speichern • Hauptmenu • Basis Daten
B4: • System Daten •
H5: Drucker-Skalierung in %
B6: Datei-Pfad | D6: Macintosh HD:Users:jhuber:Desktop: | F6: RW / LE BAB | H6: 68
B8: Ganzer Bildschirm | F8: Träger BAB | H8: 72
B10: Menu Zoom-Faktor % | D10: 100 | F10: RDB BAB | H10: 62
B12: Tabellen Zoom-Faktor % | D12: 100 | F12: RW / LE / RDB Statistik | H12: 80
F14: Träger Statistik | H14: 80
B16: Update von Quelldatei | D16: Daten-Update von Quelldatei | F16: Entgelte / Kennzahlen | H16: 75
B18: Quelldatei erzeugen | D18: Quelldatei erzeugen | F18: Anmerkungen | H18: 100
B20: Dateninhalte löschen | D20: Daten komplett löschen | F20: Standard-Werte | H20: Rücksetzen
B23: =ParameterDatei!C3&" "&ParameterDatei!D3 -> BAB-Tool RD Nds - Version 2_26 | H23: © ORGAKOM:

Sheet LE-Stamm
D1: x | H1: x
B2: =ParameterDatei!D166 -> Sichern • RW Stamm • Hauptmenu • Export • Import
E4: • Leistungserbringer Stammdaten •
A6: x | B6: LE 01 | D6: LE 01 | F6: LE 11 | H6: LE 11
A8: x | B8: LE 02 | D8: LE 02 | F8: LE 12 | H8: LE 12
A10: x | B10: LE 03 | D10: LE 03 | F10: LE 13 | H10: LE 13
A12: x | B12: LE 04 | D12: LE 04 | F12: LE 14 | H12: LE 14
A14: x | B14: LE 05 | D14: LE 05 | F14: LE 15 | H14: LE 15
A16: x | B16: LE 06 | D16: LE 06 | F16: LE 16 | H16: LE 16
A18: x | B18: LE 07 | D18: LE 07 | F18: LE 17 | H18: LE 17
A20: x | B20: LE 08 | D20: LE 08 | F20: LE 18 | H20: LE 18
A22: x | B22: LE 09 | D22: LE 09 | F22: LE 19 | H22: LE 19
A24: x | B24: LE 10 | D24: LE 10 | F24: LE 20 | H24: LE 20
B27: =ParameterDatei!C3&" "&ParameterDatei!D3 -> BAB-Tool RD Nds - Version 2_26 | H27: © ORGAKOM:

Sheet RW-Stamm 1
B2: =ParameterDatei!D167 -> < Blättern • Sichern • LE Stamm • Hauptmenu • Export • Import • Blättern >
B4: • Rettungswachen Stammdaten 1 •
A6: x | B6: RW 01 | D6: RW 01 | F6: Leistungserbringer:
A8: x | B8: RW 02 | D8: RW 02 | F8: Leistungserbringer:
A10: x | B10: RW 03 | D10: RW 03 | F10: Leistungserbringer:
A12: x | B12: RW 04 | D12: RW 04 | F12: Leistungserbringer:
A14: x | B14: RW 05 | D14: RW 05 | F14: Leistungserbringer:
A16: x | B16: RW 06 | D16: RW 06 | F16: Leistungserbringer:
A18: x | B18: RW 07 | D18: RW 07 | F18: Leistungserbringer:
A20: x | B20: RW 08 | D20: RW 08 | F20: Leistungserbringer:
A22: x | B22: RW 09 | D22: RW 09 | F22: Leistungserbringer:
A24: x | B24: RW 10 | D24: RW 10 | F24: Leistungserbringer:
B27: =ParameterDatei!C3&" "&ParameterDatei!D3 -> BAB-Tool RD Nds - Version 2_26 | H27: © ORGAKOM:

Sheet RW-Stamm 2
D1: x
B2: =ParameterDatei!D168 -> < Blättern • Sichern • LE Stamm • Hauptmenu • Export • Import • Blättern >
B4: • Rettungswachen Stammdaten 2 •
A6: x | B6: RW 11 | D6: RW 11 | F6: Leistungserbringer: | H6: 1
A8: x | B8: RW 12 | D8: RW 12 | F8: Leistungserbringer: | H8: 4
A10: x | B10: RW 13 | D10: RW 13 | F10: Leistungserbringer:
A12: x | B12: RW 14 | D12: RW 14 | F12: Leistungserbringer:
A14: x | B14: RW 15 | D14: RW 15 | F14: Leistungserbringer:
A16: x | B16: RW 16 | D16: RW 16 | F16: Leistungserbringer:
A18: x | B18: RW 17 | D18: RW 17 | F18: Leistungserbringer:
A20: x | B20: RW 18 | D20: RW 18 | F20: Leistungserbringer:
A22: x | B22: RW 19 | D22: RW 19 | F22: Leistungserbringer:
A24: x | B24: RW 20 | D24: RW 20 | F24: Leistungserbringer:
B27: =ParameterDatei!C3&" "&ParameterDatei!D3 -> BAB-Tool RD Nds - Version 2_26 | H27: © ORGAKOM:

Sheet RW-Stamm 3
D1: x
B2: =ParameterDatei!D169 -> < Blättern • Sichern • LE Stamm • Hauptmenu • Export • Import • Blättern >
B4: • Rettungswachen Stammdaten 3 •
A6: x | B6: RW 21 | D6: RW 21 | F6: Leistungserbringer: | H6: 1
A8: x | B8: RW 22 | D8: RW 22 | F8: Leistungserbringer: | H8: 4
A10: x | B10: RW 23 | D10: RW 23 | F10: Leistungserbringer:
A12: x | B12: RW 24 | D12: RW 24 | F12: Leistungserbringer:
A14: x | B14: RW 25 | D14: RW 25 | F14: Leistungserbringer:
A16: x | B16: RW 26 | D16: RW 26 | F16: Leistungserbringer:
A18: x | B18: RW 27 | D18: RW 27 | F18: Leistungserbringer:
A20: x | B20: RS 28 | D20: RW 28 | F20: Leistungserbringer:
A22: x | B22: RW 29 | D22: RW 29 | F22: Leistungserbringer:
A24: x | B24: RW 30 | D24: RW 30 | F24: Leistungserbringer:
B27: =ParameterDatei!C3&" "&ParameterDatei!D3 -> BAB-Tool RD Nds - Version 2_26 | H27: © ORGAKOM:

Sheet RDB-Ebene
H1: x | I1: x | J1: x | K1: x
B2: =ParameterDatei!D170 -> Drucken • Export • Anmerkungen • RDB Statistik • RDB Entgelte • Hauptmenu • RDB Kennzahlen • Träger BAB • LE BAB • RW BAB
C4: Betriebsabrechnungsbogen für den Rettungsdienst in Niedersachsen*)
C5: =" Rettungsdienstbereich "&INDEX(ParameterDatei!C37:C86,ParameterDatei!B9)&" "&INDEX(ParameterDatei!D37:D86,ParameterDatei!B9)&" für den Berichtszeitraum "&INDEX(ParameterDatei!F9:F26,ParameterDatei!B8) -> 
C7: Zeile | D7: Kostenarten | E7: Summe | F7: US | G7: KZ | H7: Hauptkostenstellen | P7: Hilfskostenstellen | T7: Allgemeine Kostenstellen
G8: =IF('RDB-Anmerkungen'!T95>0,"A","") ->  | H8: Notfall-rettung | I8: Qualifizierter KTP | J8: Notarzt-dienst | K8: ='Basis-Daten'!D12 -> Sonstige 1 | L8: ='Basis-Daten'!D14 -> Sonstige 2 | M8: ='Basis-Daten'!D16 -> Sonstige 3 | N8: ='Basis-Daten'!D18 -> Sonstige 4 | O8: ='Basis-Daten'!D20 -> Sonstige 5 | P8: RTW | Q8: KTW | R8: NEF | S8: MZF | T8: Ausbildung NotfallSan | U8: Verwaltung | V8: Rettungs-leitstelle | W8: ÖEL | X8: Groß-schadens-ereignis | Y8: Träger- Verwaltung
C9: 1 | D9: 2 | E9: 3 | F9: 4 | G9: 5 | H9: 6 | I9: 7 | J9: 8 | K9: 9 | L9: 10 | M9: 11 | N9: 12 | O9: 13 | P9: 14 | Q9: 15 | R9: 16 | S9: 17 | T9: 33 | U9: 18 | V9: 19 | W9: 20 | X9: 21 | Y9: 22
C11: 1 | D11: Personalkosten hauptamtlich | E11: =SUM(K11:Y11) -> 0 | F11: 1 | K11: ='Verdichtung 1'!$E511 -> 0 | L11: ='Verdichtung 1'!$E611 -> 0 | M11: ='Verdichtung 1'!$E711 -> 0 | N11: ='Verdichtung 1'!$E811 -> 0 | O11: ='Verdichtung 1'!$E911 -> 0 | P11: ='Verdichtung 1'!$E111 -> 0 | Q11: ='Verdichtung 1'!$E211 -> 0 | R11: ='Verdichtung 1'!$E311 -> 0 | S11: ='Verdichtung 1'!$E411 -> 0 | T11: ='Verdichtung 1'!E1311 -> 0 | U11: ='Verdichtung 1'!$E1211 -> 0 | V11: ='Verdichtung 1'!F1429 -> 0 | W11: ='Verdichtung 1'!G1429 -> 0 | X11: ='Verdichtung 1'!H1429 -> 0 | Y11: ='Verdichtung 1'!I1429 -> 0
C12: 2 | D12: Personalkosten nebenamtlich | E12: =SUM(K12:Y12) -> 0 | F12: 1 | K12: ='Verdichtung 1'!$E512 -> 0 | L12: ='Verdichtung 1'!$E612 -> 0 | M12: ='Verdichtung 1'!$E712 -> 0 | N12: ='Verdichtung 1'!$E812 -> 0 | O12: ='Verdichtung 1'!$E912 -> 0 | P12: ='Verdichtung 1'!$E112 -> 0 | Q12: ='Verdichtung 1'!$E212 -> 0 | R12: ='Verdichtung 1'!$E312 -> 0 | S12: ='Verdichtung 1'!$E412 -> 0 | T12: ='Verdichtung 1'!E1312 -> 0 | U12: ='Verdichtung 1'!$E1212 -> 0 | V12: ='Verdichtung 1'!F1430 -> 0 | W12: ='Verdichtung 1'!G1430 -> 0 | X12: ='Verdichtung 1'!H1430 -> 0 | Y12: ='Verdichtung 1'!I1430 -> 0
C13: 3 | D13: Personalkosten ehrenamtlich | E13: 0 | F13: 1 | K13: ='Verdichtung 1'!$E513 -> 0 | L13: ='Verdichtung 1'!$E613 -> 0 | M13: ='Verdichtung 1'!$E713 -> 0 | N13: ='Verdichtung 1'!$E813 -> 0 | O13: ='Verdichtung 1'!$E913 -> 0 | P13: ='Verdichtung 1'!$E113 -> 0 | Q13: ='Verdichtung 1'!$E213 -> 0 | R13: ='Verdichtung 1'!$E313 -> 0 | S13: ='Verdichtung 1'!$E413 -> 0 | T13: ='Verdichtung 1'!E1313 -> 0 | U13: ='Verdichtung 1'!$E1213 -> 0 | V13: ='Verdichtung 1'!F1431 -> 0 | W13: ='Verdichtung 1'!G1431 -> 0 | X13: ='Verdichtung 1'!H1431 -> 0 | Y13: ='Verdichtung 1'!I1431 -> 0
C14: 4 | D14: Personalkosten FSJ & Bundesfreiw.-D | E14: 0 | F14: 1 | K14: ='Verdichtung 1'!$E514 -> 0 | L14: ='Verdichtung 1'!$E614 -> 0 | M14: ='Verdichtung 1'!$E714 -> 0 | N14: ='Verdichtung 1'!$E814 -> 0 | O14: ='Verdichtung 1'!$E914 -> 0 | P14: ='Verdichtung 1'!$E114 -> 0 | Q14: ='Verdichtung 1'!$E214 -> 0 | R14: ='Verdichtung 1'!$E314 -> 0 | S14: ='Verdichtung 1'!$E414 -> 0 | T14: ='Verdichtung 1'!E1314 -> 0 | U14: ='Verdichtung 1'!$E1214 -> 0 | V14: ='Verdichtung 1'!F1432 -> 0 | W14: ='Verdichtung 1'!G1432 -> 0 | X14: ='Verdichtung 1'!H1432 -> 0 | Y14: ='Verdichtung 1'!I1432 -> 0
C15: 5 | D15: Personalkosten Notarzt | E15: 0 | F15: 1 | K15: ='Verdichtung 1'!$E515 -> 0 | L15: ='Verdichtung 1'!$E615 -> 0 | M15: ='Verdichtung 1'!$E715 -> 0 | N15: ='Verdichtung 1'!$E815 -> 0 | O15: ='Verdichtung 1'!$E915 -> 0 | P15: ='Verdichtung 1'!$E115 -> 0 | Q15: ='Verdichtung 1'!$E215 -> 0 | R15: ='Verdichtung 1'!$E315 -> 0 | S15: ='Verdichtung 1'!$E415 -> 0 | T15: ='Verdichtung 1'!E1315 -> 0 | U15: ='Verdichtung 1'!$E1215 -> 0 | V15: ='Verdichtung 1'!F1433 -> 0 | W15: ='Verdichtung 1'!G1433 -> 0 | X15: ='Verdichtung 1'!H1433 -> 0 | Y15: ='Verdichtung 1'!I1433 -> 0
C16: 6 | D16: Personalkosten "fiktive Verwaltung" | E16: 0 | K16: ='Verdichtung 1'!$E516 -> 0 | L16: ='Verdichtung 1'!$E616 -> 0 | M16: ='Verdichtung 1'!$E716 -> 0 | N16: ='Verdichtung 1'!$E816 -> 0 | O16: ='Verdichtung 1'!$E916 -> 0 | P16: ='Verdichtung 1'!$E116 -> 0 | Q16: ='Verdichtung 1'!$E216 -> 0 | R16: ='Verdichtung 1'!$E316 -> 0 | S16: ='Verdichtung 1'!$E416 -> 0 | T16: ='Verdichtung 1'!E1316 -> 0 | U16: ='Verdichtung 1'!$E1216 -> 0 | V16: ='Verdichtung 1'!F1434 -> 0 | W16: ='Verdichtung 1'!G1434 -> 0 | X16: ='Verdichtung 1'!H1434 -> 0 | Y16: ='Verdichtung 1'!I1434 -> 0
C17: 7 | D17: Personalkosten Reinigungspersonal | E17: 0 | F17: 2 | K17: ='Verdichtung 1'!$E517 -> 0 | L17: ='Verdichtung 1'!$E617 -> 0 | M17: ='Verdichtung 1'!$E717 -> 0 | N17: ='Verdichtung 1'!$E817 -> 0 | O17: ='Verdichtung 1'!$E917 -> 0 | P17: ='Verdichtung 1'!$E117 -> 0 | Q17: ='Verdichtung 1'!$E217 -> 0 | R17: ='Verdichtung 1'!$E317 -> 0 | S17: ='Verdichtung 1'!$E417 -> 0 | T17: ='Verdichtung 1'!E1317 -> 0 | U17: ='Verdichtung 1'!$E1217 -> 0 | V17: ='Verdichtung 1'!F1435 -> 0 | W17: ='Verdichtung 1'!G1435 -> 0 | X17: ='Verdichtung 1'!H1435 -> 0 | Y17: ='Verdichtung 1'!I1435 -> 0
C18: 8 | D18: Summe Personalkosten | E18: 0 | G18: ZS | K18: ='Verdichtung 1'!$E518 -> 0 | L18: ='Verdichtung 1'!$E618 -> 0 | M18: ='Verdichtung 1'!$E718 -> 0 | N18: ='Verdichtung 1'!$E818 -> 0 | O18: ='Verdichtung 1'!$E918 -> 0 | P18: ='Verdichtung 1'!$E118 -> 0 | Q18: ='Verdichtung 1'!$E218 -> 0 | R18: ='Verdichtung 1'!$E318 -> 0 | S18: ='Verdichtung 1'!$E418 -> 0 | T18: ='Verdichtung 1'!E1318 -> 0 | U18: ='Verdichtung 1'!$E1218 -> 0 | V18: ='Verdichtung 1'!F1436 -> 0 | W18: ='Verdichtung 1'!G1436 -> 0 | X18: ='Verdichtung 1'!H1436 -> 0 | Y18: ='Verdichtung 1'!I1436 -> 0
E19: 0 | T19: ='Verdichtung 1'!E1319 -> 0
C20: 9 | D20: Aus- und Fortbildungskosten | E20: 0 | F20: 1 | K20: ='Verdichtung 1'!$E520 -> 0 | L20: ='Verdichtung 1'!$E620 -> 0 | M20: ='Verdichtung 1'!$E720 -> 0 | N20: ='Verdichtung 1'!$E820 -> 0 | O20: ='Verdichtung 1'!$E920 -> 0 | P20: ='Verdichtung 1'!$E120 -> 0 | Q20: ='Verdichtung 1'!$E220 -> 0 | R20: ='Verdichtung 1'!$E320 -> 0 | S20: ='Verdichtung 1'!$E420 -> 0 | T20: ='Verdichtung 1'!E1320 -> 0 | U20: ='Verdichtung 1'!$E1220 -> 0 | V20: ='Verdichtung 1'!F1438 -> 0 | W20: ='Verdichtung 1'!G1438 -> 0 | X20: ='Verdichtung 1'!H1438 -> 0 | Y20: ='Verdichtung 1'!I1438 -> 0
C21: 10 | D21: sonstige Sach-/Nebenkosten Personal | E21: 0 | F21: 1 | K21: ='Verdichtung 1'!$E521 -> 0 | L21: ='Verdichtung 1'!$E621 -> 0 | M21: ='Verdichtung 1'!$E721 -> 0 | N21: ='Verdichtung 1'!$E821 -> 0 | O21: ='Verdichtung 1'!$E921 -> 0 | P21: ='Verdichtung 1'!$E121 -> 0 | Q21: ='Verdichtung 1'!$E221 -> 0 | R21: ='Verdichtung 1'!$E321 -> 0 | S21: ='Verdichtung 1'!$E421 -> 0 | T21: ='Verdichtung 1'!E1321 -> 0 | U21: ='Verdichtung 1'!$E1221 -> 0 | V21: ='Verdichtung 1'!F1439 -> 0 | W21: ='Verdichtung 1'!G1439 -> 0 | X21: ='Verdichtung 1'!H1439 -> 0 | Y21: ='Verdichtung 1'!I1439 -> 0
C22: 11 | D22: Gesamt Personalnebenkosten | E22: 0 | G22: S | K22: ='Verdichtung 1'!$E522 -> 0 | L22: ='Verdichtung 1'!$E622 -> 0 | M22: ='Verdichtung 1'!$E722 -> 0 | N22: ='Verdichtung 1'!$E822 -> 0 | O22: ='Verdichtung 1'!$E922 -> 0 | P22: ='Verdichtung 1'!$E122 -> 0 | Q22: ='Verdichtung 1'!$E222 -> 0 | R22: ='Verdichtung 1'!$E322 -> 0 | S22: ='Verdichtung 1'!$E422 -> 0 | T22: ='Verdichtung 1'!E1322 -> 0 | U22: ='Verdichtung 1'!$E1222 -> 0 | V22: ='Verdichtung 1'!F1440 -> 0 | W22: ='Verdichtung 1'!G1440 -> 0 | X22: ='Verdichtung 1'!H1440 -> 0 | Y22: ='Verdichtung 1'!I1440 -> 0
C23: 12 | D23: Mieten, Pachten | E23: 0 | F23: 3 | K23: ='Verdichtung 1'!$E523 -> 0 | L23: ='Verdichtung 1'!$E623 -> 0 | M23: ='Verdichtung 1'!$E723 -> 0 | N23: ='Verdichtung 1'!$E823 -> 0 | O23: ='Verdichtung 1'!$E923 -> 0 | P23: ='Verdichtung 1'!$E123 -> 0 | Q23: ='Verdichtung 1'!$E223 -> 0 | R23: ='Verdichtung 1'!$E323 -> 0 | S23: ='Verdichtung 1'!$E423 -> 0 | T23: ='Verdichtung 1'!E1323 -> 0 | U23: ='Verdichtung 1'!$E1223 -> 0 | V23: ='Verdichtung 1'!F1441 -> 0 | W23: ='Verdichtung 1'!G1441 -> 0 | X23: ='Verdichtung 1'!H1441 -> 0 | Y23: ='Verdichtung 1'!I1441 -> 0
C24: 13 | D24: Nebenkosten / Energie | E24: 0 | F24: 2 | K24: ='Verdichtung 1'!$E524 -> 0 | L24: ='Verdichtung 1'!$E624 -> 0 | M24: ='Verdichtung 1'!$E724 -> 0 | N24: ='Verdichtung 1'!$E824 -> 0 | O24: ='Verdichtung 1'!$E924 -> 0 | P24: ='Verdichtung 1'!$E124 -> 0 | Q24: ='Verdichtung 1'!$E224 -> 0 | R24: ='Verdichtung 1'!$E324 -> 0 | S24: ='Verdichtung 1'!$E424 -> 0 | T24: ='Verdichtung 1'!E1324 -> 0 | U24: ='Verdichtung 1'!$E1224 -> 0 | V24: ='Verdichtung 1'!F1442 -> 0 | W24: ='Verdichtung 1'!G1442 -> 0 | X24: ='Verdichtung 1'!H1442 -> 0 | Y24: ='Verdichtung 1'!I1442 -> 0
C25: 14 | D25: Fremdreinigung / Reinigungsmaterial | E25: 0 | F25: 2 | K25: ='Verdichtung 1'!$E525 -> 0 | L25: ='Verdichtung 1'!$E625 -> 0 | M25: ='Verdichtung 1'!$E725 -> 0 | N25: ='Verdichtung 1'!$E825 -> 0 | O25: ='Verdichtung 1'!$E925 -> 0 | P25: ='Verdichtung 1'!$E125 -> 0 | Q25: ='Verdichtung 1'!$E225 -> 0 | R25: ='Verdichtung 1'!$E325 -> 0 | S25: ='Verdichtung 1'!$E425 -> 0 | T25: ='Verdichtung 1'!E1325 -> 0 | U25: ='Verdichtung 1'!$E1225 -> 0 | V25: ='Verdichtung 1'!F1443 -> 0 | W25: ='Verdichtung 1'!G1443 -> 0 | X25: ='Verdichtung 1'!H1443 -> 0 | Y25: ='Verdichtung 1'!I1443 -> 0
C26: 15 | D26: Gebäudeversicherung / Steuer | E26: 0 | F26: 3 | K26: ='Verdichtung 1'!$E526 -> 0 | L26: ='Verdichtung 1'!$E626 -> 0 | M26: ='Verdichtung 1'!$E726 -> 0 | N26: ='Verdichtung 1'!$E826 -> 0 | O26: ='Verdichtung 1'!$E926 -> 0 | P26: ='Verdichtung 1'!$E126 -> 0 | Q26: ='Verdichtung 1'!$E226 -> 0 | R26: ='Verdichtung 1'!$E326 -> 0 | S26: ='Verdichtung 1'!$E426 -> 0 | T26: ='Verdichtung 1'!E1326 -> 0 | U26: ='Verdichtung 1'!$E1226 -> 0 | V26: ='Verdichtung 1'!F1444 -> 0 | W26: ='Verdichtung 1'!G1444 -> 0 | X26: ='Verdichtung 1'!H1444 -> 0 | Y26: ='Verdichtung 1'!I1444 -> 0
C27: 16 | D27: Gesamt Sachkosten Betriebsräume | E27: 0 | G27: S | K27: ='Verdichtung 1'!$E527 -> 0 | L27: ='Verdichtung 1'!$E627 -> 0 | M27: ='Verdichtung 1'!$E727 -> 0 | N27: ='Verdichtung 1'!$E827 -> 0 | O27: ='Verdichtung 1'!$E927 -> 0 | P27: ='Verdichtung 1'!$E127 -> 0 | Q27: ='Verdichtung 1'!$E227 -> 0 | R27: ='Verdichtung 1'!$E327 -> 0 | S27: ='Verdichtung 1'!$E427 -> 0 | T27: ='Verdichtung 1'!E1327 -> 0 | U27: ='Verdichtung 1'!$E1227 -> 0 | V27: ='Verdichtung 1'!F1445 -> 0 | W27: ='Verdichtung 1'!G1445 -> 0 | X27: ='Verdichtung 1'!H1445 -> 0 | Y27: ='Verdichtung 1'!I1445 -> 0
C28: 17 | D28: Grundstücksanlagen Instandhaltung | E28: 0 | F28: 3 | K28: ='Verdichtung 1'!$E528 -> 0 | L28: ='Verdichtung 1'!$E628 -> 0 | M28: ='Verdichtung 1'!$E728 -> 0 | N28: ='Verdichtung 1'!$E828 -> 0 | O28: ='Verdichtung 1'!$E928 -> 0 | P28: ='Verdichtung 1'!$E128 -> 0 | Q28: ='Verdichtung 1'!$E228 -> 0 | R28: ='Verdichtung 1'!$E328 -> 0 | S28: ='Verdichtung 1'!$E428 -> 0 | T28: ='Verdichtung 1'!E1328 -> 0 | U28: ='Verdichtung 1'!$E1228 -> 0 | V28: ='Verdichtung 1'!F1446 -> 0 | W28: ='Verdichtung 1'!G1446 -> 0 | X28: ='Verdichtung 1'!H1446 -> 0 | Y28: ='Verdichtung 1'!I1446 -> 0
C29: 18 | D29: Betriebsräume Instandhaltung | E29: 0 | F29: 3 | K29: ='Verdichtung 1'!$E529 -> 0 | L29: ='Verdichtung 1'!$E629 -> 0 | M29: ='Verdichtung 1'!$E729 -> 0 | N29: ='Verdichtung 1'!$E829 -> 0 | O29: ='Verdichtung 1'!$E929 -> 0 | P29: ='Verdichtung 1'!$E129 -> 0 | Q29: ='Verdichtung 1'!$E229 -> 0 | R29: ='Verdichtung 1'!$E329 -> 0 | S29: ='Verdichtung 1'!$E429 -> 0 | T29: ='Verdichtung 1'!E1329 -> 0 | U29: ='Verdichtung 1'!$E1229 -> 0 | V29: ='Verdichtung 1'!F1447 -> 0 | W29: ='Verdichtung 1'!G1447 -> 0 | X29: ='Verdichtung 1'!H1447 -> 0 | Y29: ='Verdichtung 1'!I1447 -> 0
C30: 19 | D30: Techn. Betriebsanlagen Instandhaltung | E30: 0 | F30: 3 | K30: ='Verdichtung 1'!$E530 -> 0 | L30: ='Verdichtung 1'!$E630 -> 0 | M30: ='Verdichtung 1'!$E730 -> 0 | N30: ='Verdichtung 1'!$E830 -> 0 | O30: ='Verdichtung 1'!$E930 -> 0 | P30: ='Verdichtung 1'!$E130 -> 0 | Q30: ='Verdichtung 1'!$E230 -> 0 | R30: ='Verdichtung 1'!$E330 -> 0 | S30: ='Verdichtung 1'!$E430 -> 0 | T30: ='Verdichtung 1'!E1330 -> 0 | U30: ='Verdichtung 1'!$E1230 -> 0 | V30: ='Verdichtung 1'!F1448 -> 0 | W30: ='Verdichtung 1'!G1448 -> 0 | X30: ='Verdichtung 1'!H1448 -> 0 | Y30: ='Verdichtung 1'!I1448 -> 0
C31: 20 | D31: Gesamt Instandhaltung | E31: 0 | G31: S | K31: ='Verdichtung 1'!$E531 -> 0 | L31: ='Verdichtung 1'!$E631 -> 0 | M31: ='Verdichtung 1'!$E731 -> 0 | N31: ='Verdichtung 1'!$E831 -> 0 | O31: ='Verdichtung 1'!$E931 -> 0 | P31: ='Verdichtung 1'!$E131 -> 0 | Q31: ='Verdichtung 1'!$E231 -> 0 | R31: ='Verdichtung 1'!$E331 -> 0 | S31: ='Verdichtung 1'!$E431 -> 0 | T31: ='Verdichtung 1'!E1331 -> 0 | U31: ='Verdichtung 1'!$E1231 -> 0 | V31: ='Verdichtung 1'!F1449 -> 0 | W31: ='Verdichtung 1'!G1449 -> 0 | X31: ='Verdichtung 1'!H1449 -> 0 | Y31: ='Verdichtung 1'!I1449 -> 0
C32: 21 | D32: Betriebsstoffe | E32: 0 | F32: 4 | K32: ='Verdichtung 1'!$E532 -> 0 | L32: ='Verdichtung 1'!$E632 -> 0 | M32: ='Verdichtung 1'!$E732 -> 0 | N32: ='Verdichtung 1'!$E832 -> 0 | O32: ='Verdichtung 1'!$E932 -> 0 | P32: ='Verdichtung 1'!$E132 -> 0 | Q32: ='Verdichtung 1'!$E232 -> 0 | R32: ='Verdichtung 1'!$E332 -> 0 | S32: ='Verdichtung 1'!$E432 -> 0 | T32: ='Verdichtung 1'!E1332 -> 0 | U32: ='Verdichtung 1'!$E1232 -> 0 | V32: ='Verdichtung 1'!F1450 -> 0 | W32: ='Verdichtung 1'!G1450 -> 0 | X32: ='Verdichtung 1'!H1450 -> 0 | Y32: ='Verdichtung 1'!I1450 -> 0
C33: 22 | D33: Reparatur / Wartung KFZ | E33: 0 | F33: 4 | K33: ='Verdichtung 1'!$E533 -> 0 | L33: ='Verdichtung 1'!$E633 -> 0 | M33: ='Verdichtung 1'!$E733 -> 0 | N33: ='Verdichtung 1'!$E833 -> 0 | O33: ='Verdichtung 1'!$E933 -> 0 | P33: ='Verdichtung 1'!$E133 -> 0 | Q33: ='Verdichtung 1'!$E233 -> 0 | R33: ='Verdichtung 1'!$E333 -> 0 | S33: ='Verdichtung 1'!$E433 -> 0 | T33: ='Verdichtung 1'!E1333 -> 0 | U33: ='Verdichtung 1'!$E1233 -> 0 | V33: ='Verdichtung 1'!F1451 -> 0 | W33: ='Verdichtung 1'!G1451 -> 0 | X33: ='Verdichtung 1'!H1451 -> 0 | Y33: ='Verdichtung 1'!I1451 -> 0
C34: 23 | D34: Reparatur Unfallschaden | E34: 0 | F34: 4 | K34: ='Verdichtung 1'!$E534 -> 0 | L34: ='Verdichtung 1'!$E634 -> 0 | M34: ='Verdichtung 1'!$E734 -> 0 | N34: ='Verdichtung 1'!$E834 -> 0 | O34: ='Verdichtung 1'!$E934 -> 0 | P34: ='Verdichtung 1'!$E134 -> 0 | Q34: ='Verdichtung 1'!$E234 -> 0 | R34: ='Verdichtung 1'!$E334 -> 0 | S34: ='Verdichtung 1'!$E434 -> 0 | T34: ='Verdichtung 1'!E1334 -> 0 | U34: ='Verdichtung 1'!$E1234 -> 0 | V34: ='Verdichtung 1'!F1452 -> 0 | W34: ='Verdichtung 1'!G1452 -> 0 | X34: ='Verdichtung 1'!H1452 -> 0 | Y34: ='Verdichtung 1'!I1452 -> 0
C35: 24 | D35: Versicherung / Steuer KFZ | E35: 0 | F35: 3 | K35: ='Verdichtung 1'!$E535 -> 0 | L35: ='Verdichtung 1'!$E635 -> 0 | M35: ='Verdichtung 1'!$E735 -> 0 | N35: ='Verdichtung 1'!$E835 -> 0 | O35: ='Verdichtung 1'!$E935 -> 0 | P35: ='Verdichtung 1'!$E135 -> 0 | Q35: ='Verdichtung 1'!$E235 -> 0 | R35: ='Verdichtung 1'!$E335 -> 0 | S35: ='Verdichtung 1'!$E435 -> 0 | T35: ='Verdichtung 1'!E1335 -> 0 | U35: ='Verdichtung 1'!$E1235 -> 0 | V35: ='Verdichtung 1'!F1453 -> 0 | W35: ='Verdichtung 1'!G1453 -> 0 | X35: ='Verdichtung 1'!H1453 -> 0 | Y35: ='Verdichtung 1'!I1453 -> 0
C36: 25 | D36: Reparaturen KFZ-Funk / Telekomm. | E36: 0 | F36: 5 | K36: ='Verdichtung 1'!$E536 -> 0 | L36: ='Verdichtung 1'!$E636 -> 0 | M36: ='Verdichtung 1'!$E736 -> 0 | N36: ='Verdichtung 1'!$E836 -> 0 | O36: ='Verdichtung 1'!$E936 -> 0 | P36: ='Verdichtung 1'!$E136 -> 0 | Q36: ='Verdichtung 1'!$E236 -> 0 | R36: ='Verdichtung 1'!$E336 -> 0 | S36: ='Verdichtung 1'!$E436 -> 0 | T36: ='Verdichtung 1'!E1336 -> 0 | U36: ='Verdichtung 1'!$E1236 -> 0 | V36: ='Verdichtung 1'!F1454 -> 0 | W36: ='Verdichtung 1'!G1454 -> 0 | X36: ='Verdichtung 1'!H1454 -> 0 | Y36: ='Verdichtung 1'!I1454 -> 0
C37: 26 | D37: Miete / Leasing | E37: 0 | F37: 3 | K37: ='Verdichtung 1'!$E537 -> 0 | L37: ='Verdichtung 1'!$E637 -> 0 | M37: ='Verdichtung 1'!$E737 -> 0 | N37: ='Verdichtung 1'!$E837 -> 0 | O37: ='Verdichtung 1'!$E937 -> 0 | P37: ='Verdichtung 1'!$E137 -> 0 | Q37: ='Verdichtung 1'!$E237 -> 0 | R37: ='Verdichtung 1'!$E337 -> 0 | S37: ='Verdichtung 1'!$E437 -> 0 | T37: ='Verdichtung 1'!E1337 -> 0 | U37: ='Verdichtung 1'!$E1237 -> 0 | V37: ='Verdichtung 1'!F1455 -> 0 | W37: ='Verdichtung 1'!G1455 -> 0 | X37: ='Verdichtung 1'!H1455 -> 0 | Y37: ='Verdichtung 1'!I1455 -> 0
C38: 27 | D38: Gesamt Fahrzeuge | E38: 0 | G38: S | K38: ='Verdichtung 1'!$E538 -> 0 | L38: ='Verdichtung 1'!$E638 -> 0 | M38: ='Verdichtung 1'!$E738 -> 0 | N38: ='Verdichtung 1'!$E838 -> 0 | O38: ='Verdichtung 1'!$E938 -> 0 | P38: ='Verdichtung 1'!$E138 -> 0 | Q38: ='Verdichtung 1'!$E238 -> 0 | R38: ='Verdichtung 1'!$E338 -> 0 | S38: ='Verdichtung 1'!$E438 -> 0 | T38: ='Verdichtung 1'!E1338 -> 0 | U38: ='Verdichtung 1'!$E1238 -> 0 | V38: ='Verdichtung 1'!F1456 -> 0 | W38: ='Verdichtung 1'!G1456 -> 0 | X38: ='Verdichtung 1'!H1456 -> 0 | Y38: ='Verdichtung 1'!I1456 -> 0
C39: 28 | D39: Schutzbekleidung Beschaffg. / Reinigung | E39: 0 | F39: 5 | K39: ='Verdichtung 1'!$E539 -> 0 | L39: ='Verdichtung 1'!$E639 -> 0 | M39: ='Verdichtung 1'!$E739 -> 0 | N39: ='Verdichtung 1'!$E839 -> 0 | O39: ='Verdichtung 1'!$E939 -> 0 | P39: ='Verdichtung 1'!$E139 -> 0 | Q39: ='Verdichtung 1'!$E239 -> 0 | R39: ='Verdichtung 1'!$E339 -> 0 | S39: ='Verdichtung 1'!$E439 -> 0 | T39: ='Verdichtung 1'!E1339 -> 0 | U39: ='Verdichtung 1'!$E1239 -> 0 | V39: ='Verdichtung 1'!F1457 -> 0 | W39: ='Verdichtung 1'!G1457 -> 0 | X39: ='Verdichtung 1'!H1457 -> 0 | Y39: ='Verdichtung 1'!I1457 -> 0
C40: 29 | D40: Med. Gerät Wartung / Reparatur | E40: 0 | F40: 5 | K40: ='Verdichtung 1'!$E540 -> 0 | L40: ='Verdichtung 1'!$E640 -> 0 | M40: ='Verdichtung 1'!$E740 -> 0 | N40: ='Verdichtung 1'!$E840 -> 0 | O40: ='Verdichtung 1'!$E940 -> 0 | P40: ='Verdichtung 1'!$E140 -> 0 | Q40: ='Verdichtung 1'!$E240 -> 0 | R40: ='Verdichtung 1'!$E340 -> 0 | S40: ='Verdichtung 1'!$E440 -> 0 | T40: ='Verdichtung 1'!E1340 -> 0 | U40: ='Verdichtung 1'!$E1240 -> 0 | V40: ='Verdichtung 1'!F1458 -> 0 | W40: ='Verdichtung 1'!G1458 -> 0 | X40: ='Verdichtung 1'!H1458 -> 0 | Y40: ='Verdichtung 1'!I1458 -> 0
C41: 30 | D41: Arzneimittel / med. Sauerstoff | E41: 0 | F41: 5 | K41: ='Verdichtung 1'!$E541 -> 0 | L41: ='Verdichtung 1'!$E641 -> 0 | M41: ='Verdichtung 1'!$E741 -> 0 | N41: ='Verdichtung 1'!$E841 -> 0 | O41: ='Verdichtung 1'!$E941 -> 0 | P41: ='Verdichtung 1'!$E141 -> 0 | Q41: ='Verdichtung 1'!$E241 -> 0 | R41: ='Verdichtung 1'!$E341 -> 0 | S41: ='Verdichtung 1'!$E441 -> 0 | T41: ='Verdichtung 1'!E1341 -> 0 | U41: ='Verdichtung 1'!$E1241 -> 0 | V41: ='Verdichtung 1'!F1459 -> 0 | W41: ='Verdichtung 1'!G1459 -> 0 | X41: ='Verdichtung 1'!H1459 -> 0 | Y41: ='Verdichtung 1'!I1459 -> 0
C42: 31 | D42: Med. Sachbedarf / Einwegmat. | E42: 0 | F42: 5 | K42: ='Verdichtung 1'!$E542 -> 0 | L42: ='Verdichtung 1'!$E642 -> 0 | M42: ='Verdichtung 1'!$E742 -> 0 | N42: ='Verdichtung 1'!$E842 -> 0 | O42: ='Verdichtung 1'!$E942 -> 0 | P42: ='Verdichtung 1'!$E142 -> 0 | Q42: ='Verdichtung 1'!$E242 -> 0 | R42: ='Verdichtung 1'!$E342 -> 0 | S42: ='Verdichtung 1'!$E442 -> 0 | T42: ='Verdichtung 1'!E1342 -> 0 | U42: ='Verdichtung 1'!$E1242 -> 0 | V42: ='Verdichtung 1'!F1460 -> 0 | W42: ='Verdichtung 1'!G1460 -> 0 | X42: ='Verdichtung 1'!H1460 -> 0 | Y42: ='Verdichtung 1'!I1460 -> 0
C43: 32 | D43: Gesamt Einsatzkosten | E43: 0 | F43: 5 | G43: S | K43: ='Verdichtung 1'!$E543 -> 0 | L43: ='Verdichtung 1'!$E643 -> 0 | M43: ='Verdichtung 1'!$E743 -> 0 | N43: ='Verdichtung 1'!$E843 -> 0 | O43: ='Verdichtung 1'!$E943 -> 0 | P43: ='Verdichtung 1'!$E143 -> 0 | Q43: ='Verdichtung 1'!$E243 -> 0 | R43: ='Verdichtung 1'!$E343 -> 0 | S43: ='Verdichtung 1'!$E443 -> 0 | T43: ='Verdichtung 1'!E1343 -> 0 | U43: ='Verdichtung 1'!$E1243 -> 0 | V43: ='Verdichtung 1'!F1461 -> 0 | W43: ='Verdichtung 1'!G1461 -> 0 | X43: ='Verdichtung 1'!H1461 -> 0 | Y43: ='Verdichtung 1'!I1461 -> 0
C44: 33 | D44: Büro- / Verwaltungsbedarf | E44: 0 | F44: 5 | K44: ='Verdichtung 1'!$E544 -> 0 | L44: ='Verdichtung 1'!$E644 -> 0 | M44: ='Verdichtung 1'!$E744 -> 0 | N44: ='Verdichtung 1'!$E844 -> 0 | O44: ='Verdichtung 1'!$E944 -> 0 | P44: ='Verdichtung 1'!$E144 -> 0 | Q44: ='Verdichtung 1'!$E244 -> 0 | R44: ='Verdichtung 1'!$E344 -> 0 | S44: ='Verdichtung 1'!$E444 -> 0 | T44: ='Verdichtung 1'!E1344 -> 0 | U44: ='Verdichtung 1'!$E1244 -> 0 | V44: ='Verdichtung 1'!F1462 -> 0 | W44: ='Verdichtung 1'!G1462 -> 0 | X44: ='Verdichtung 1'!H1462 -> 0 | Y44: ='Verdichtung 1'!I1462 -> 0
C45: 34 | D45: Telekommunikation | E45: 0 | F45: 5 | K45: ='Verdichtung 1'!$E545 -> 0 | L45: ='Verdichtung 1'!$E645 -> 0 | M45: ='Verdichtung 1'!$E745 -> 0 | N45: ='Verdichtung 1'!$E845 -> 0 | O45: ='Verdichtung 1'!$E945 -> 0 | P45: ='Verdichtung 1'!$E145 -> 0 | Q45: ='Verdichtung 1'!$E245 -> 0 | R45: ='Verdichtung 1'!$E345 -> 0 | S45: ='Verdichtung 1'!$E445 -> 0 | T45: ='Verdichtung 1'!E1345 -> 0 | U45: ='Verdichtung 1'!$E1245 -> 0 | V45: ='Verdichtung 1'!F1463 -> 0 | W45: ='Verdichtung 1'!G1463 -> 0 | X45: ='Verdichtung 1'!H1463 -> 0 | Y45: ='Verdichtung 1'!I1463 -> 0
C46: 35 | D46: EDV-Kosten | E46: 0 | F46: 5 | K46: ='Verdichtung 1'!$E546 -> 0 | L46: ='Verdichtung 1'!$E646 -> 0 | M46: ='Verdichtung 1'!$E746 -> 0 | N46: ='Verdichtung 1'!$E846 -> 0 | O46: ='Verdichtung 1'!$E946 -> 0 | P46: ='Verdichtung 1'!$E146 -> 0 | Q46: ='Verdichtung 1'!$E246 -> 0 | R46: ='Verdichtung 1'!$E346 -> 0 | S46: ='Verdichtung 1'!$E446 -> 0 | T46: ='Verdichtung 1'!E1346 -> 0 | U46: ='Verdichtung 1'!$E1246 -> 0 | V46: ='Verdichtung 1'!F1464 -> 0 | W46: ='Verdichtung 1'!G1464 -> 0 | X46: ='Verdichtung 1'!H1464 -> 0 | Y46: ='Verdichtung 1'!I1464 -> 0
C47: 36 | D47: Rechts- und Beratungskosten | E47: 0 | F47: 5 | K47: ='Verdichtung 1'!$E547 -> 0 | L47: ='Verdichtung 1'!$E647 -> 0 | M47: ='Verdichtung 1'!$E747 -> 0 | N47: ='Verdichtung 1'!$E847 -> 0 | O47: ='Verdichtung 1'!$E947 -> 0 | P47: ='Verdichtung 1'!$E147 -> 0 | Q47: ='Verdichtung 1'!$E247 -> 0 | R47: ='Verdichtung 1'!$E347 -> 0 | S47: ='Verdichtung 1'!$E447 -> 0 | T47: ='Verdichtung 1'!E1347 -> 0 | U47: ='Verdichtung 1'!$E1247 -> 0 | V47: ='Verdichtung 1'!F1465 -> 0 | W47: ='Verdichtung 1'!G1465 -> 0 | X47: ='Verdichtung 1'!H1465 -> 0 | Y47: ='Verdichtung 1'!I1465 -> 0
C48: 37 | D48: Aufklärung | E48: 0 | F48: 5 | K48: ='Verdichtung 1'!$E548 -> 0 | L48: ='Verdichtung 1'!$E648 -> 0 | M48: ='Verdichtung 1'!$E748 -> 0 | N48: ='Verdichtung 1'!$E848 -> 0 | O48: ='Verdichtung 1'!$E948 -> 0 | P48: ='Verdichtung 1'!$E148 -> 0 | Q48: ='Verdichtung 1'!$E248 -> 0 | R48: ='Verdichtung 1'!$E348 -> 0 | S48: ='Verdichtung 1'!$E448 -> 0 | T48: ='Verdichtung 1'!E1348 -> 0 | U48: ='Verdichtung 1'!$E1248 -> 0 | V48: ='Verdichtung 1'!F1466 -> 0 | W48: ='Verdichtung 1'!G1466 -> 0 | X48: ='Verdichtung 1'!H1466 -> 0 | Y48: ='Verdichtung 1'!I1466 -> 0
C49: 38 | D49: Inkasso | E49: 0 | F49: 5 | K49: ='Verdichtung 1'!$E549 -> 0 | L49: ='Verdichtung 1'!$E649 -> 0 | M49: ='Verdichtung 1'!$E749 -> 0 | N49: ='Verdichtung 1'!$E849 -> 0 | O49: ='Verdichtung 1'!$E949 -> 0 | P49: ='Verdichtung 1'!$E149 -> 0 | Q49: ='Verdichtung 1'!$E249 -> 0 | R49: ='Verdichtung 1'!$E349 -> 0 | S49: ='Verdichtung 1'!$E449 -> 0 | T49: ='Verdichtung 1'!E1349 -> 0 | U49: ='Verdichtung 1'!$E1249 -> 0 | V49: ='Verdichtung 1'!F1467 -> 0 | W49: ='Verdichtung 1'!G1467 -> 0 | X49: ='Verdichtung 1'!H1467 -> 0 | Y49: ='Verdichtung 1'!I1467 -> 0
C50: 39 | D50: Sonstige Versicherungen | E50: 0 | F50: 5 | K50: ='Verdichtung 1'!$E550 -> 0 | L50: ='Verdichtung 1'!$E650 -> 0 | M50: ='Verdichtung 1'!$E750 -> 0 | N50: ='Verdichtung 1'!$E850 -> 0 | O50: ='Verdichtung 1'!$E950 -> 0 | P50: ='Verdichtung 1'!$E150 -> 0 | Q50: ='Verdichtung 1'!$E250 -> 0 | R50: ='Verdichtung 1'!$E350 -> 0 | S50: ='Verdichtung 1'!$E450 -> 0 | T50: ='Verdichtung 1'!E1350 -> 0 | U50: ='Verdichtung 1'!$E1250 -> 0 | V50: ='Verdichtung 1'!F1468 -> 0 | W50: ='Verdichtung 1'!G1468 -> 0 | X50: ='Verdichtung 1'!H1468 -> 0 | Y50: ='Verdichtung 1'!I1468 -> 0
C51: 40 | D51: Sachkosten "fiktive Verwaltung" | E51: 0 | K51: ='Verdichtung 1'!$E551 -> 0 | L51: ='Verdichtung 1'!$E651 -> 0 | M51: ='Verdichtung 1'!$E751 -> 0 | N51: ='Verdichtung 1'!$E851 -> 0 | O51: ='Verdichtung 1'!$E951 -> 0 | P51: ='Verdichtung 1'!$E151 -> 0 | Q51: ='Verdichtung 1'!$E251 -> 0 | R51: ='Verdichtung 1'!$E351 -> 0 | S51: ='Verdichtung 1'!$E451 -> 0 | T51: ='Verdichtung 1'!E1351 -> 0 | U51: ='Verdichtung 1'!$E1251 -> 0 | V51: ='Verdichtung 1'!F1469 -> 0 | W51: ='Verdichtung 1'!G1469 -> 0 | X51: ='Verdichtung 1'!H1469 -> 0 | Y51: ='Verdichtung 1'!I1469 -> 0
C52: 41 | D52: Gesamt Allgemeinkosten | E52: 0 | G52: S | K52: ='Verdichtung 1'!$E552 -> 0 | L52: ='Verdichtung 1'!$E652 -> 0 | M52: ='Verdichtung 1'!$E752 -> 0 | N52: ='Verdichtung 1'!$E852 -> 0 | O52: ='Verdichtung 1'!$E952 -> 0 | P52: ='Verdichtung 1'!$E152 -> 0 | Q52: ='Verdichtung 1'!$E252 -> 0 | R52: ='Verdichtung 1'!$E352 -> 0 | S52: ='Verdichtung 1'!$E452 -> 0 | T52: ='Verdichtung 1'!E1352 -> 0 | U52: ='Verdichtung 1'!$E1252 -> 0 | V52: ='Verdichtung 1'!F1470 -> 0 | W52: ='Verdichtung 1'!G1470 -> 0 | X52: ='Verdichtung 1'!H1470 -> 0 | Y52: ='Verdichtung 1'!I1470 -> 0
C53: 42 | D53: Verzinsung Eigenkapital | E53: 0 | F53: 2 | K53: ='Verdichtung 1'!$E553 -> 0 | L53: ='Verdichtung 1'!$E653 -> 0 | M53: ='Verdichtung 1'!$E753 -> 0 | N53: ='Verdichtung 1'!$E853 -> 0 | O53: ='Verdichtung 1'!$E953 -> 0 | P53: ='Verdichtung 1'!$E153 -> 0 | Q53: ='Verdichtung 1'!$E253 -> 0 | R53: ='Verdichtung 1'!$E353 -> 0 | S53: ='Verdichtung 1'!$E453 -> 0 | T53: ='Verdichtung 1'!E1353 -> 0 | U53: ='Verdichtung 1'!$E1253 -> 0 | V53: ='Verdichtung 1'!F1471 -> 0 | W53: ='Verdichtung 1'!G1471 -> 0 | X53: ='Verdichtung 1'!H1471 -> 0 | Y53: ='Verdichtung 1'!I1471 -> 0
C54: 43 | D54: Zinsen für Fremdkapital | E54: 0 | F54: 2 | K54: ='Verdichtung 1'!$E554 -> 0 | L54: ='Verdichtung 1'!$E654 -> 0 | M54: ='Verdichtung 1'!$E754 -> 0 | N54: ='Verdichtung 1'!$E854 -> 0 | O54: ='Verdichtung 1'!$E954 -> 0 | P54: ='Verdichtung 1'!$E154 -> 0 | Q54: ='Verdichtung 1'!$E254 -> 0 | R54: ='Verdichtung 1'!$E354 -> 0 | S54: ='Verdichtung 1'!$E454 -> 0 | T54: ='Verdichtung 1'!E1354 -> 0 | U54: ='Verdichtung 1'!$E1254 -> 0 | V54: ='Verdichtung 1'!F1472 -> 0 | W54: ='Verdichtung 1'!G1472 -> 0 | X54: ='Verdichtung 1'!H1472 -> 0 | Y54: ='Verdichtung 1'!I1472 -> 0
C55: 44 | D55: Kontokorrentzinsen / Bankgebühren | E55: 0 | F55: 2 | K55: ='Verdichtung 1'!$E555 -> 0 | L55: ='Verdichtung 1'!$E655 -> 0 | M55: ='Verdichtung 1'!$E755 -> 0 | N55: ='Verdichtung 1'!$E855 -> 0 | O55: ='Verdichtung 1'!$E955 -> 0 | P55: ='Verdichtung 1'!$E155 -> 0 | Q55: ='Verdichtung 1'!$E255 -> 0 | R55: ='Verdichtung 1'!$E355 -> 0 | S55: ='Verdichtung 1'!$E455 -> 0 | T55: ='Verdichtung 1'!E1355 -> 0 | U55: ='Verdichtung 1'!$E1255 -> 0 | V55: ='Verdichtung 1'!F1473 -> 0 | W55: ='Verdichtung 1'!G1473 -> 0 | X55: ='Verdichtung 1'!H1473 -> 0 | Y55: ='Verdichtung 1'!I1473 -> 0
C56: 45 | D56: Gesamt Zinsen | E56: 0 | G56: S | K56: ='Verdichtung 1'!$E556 -> 0 | L56: ='Verdichtung 1'!$E656 -> 0 | M56: ='Verdichtung 1'!$E756 -> 0 | N56: ='Verdichtung 1'!$E856 -> 0 | O56: ='Verdichtung 1'!$E956 -> 0 | P56: ='Verdichtung 1'!$E156 -> 0 | Q56: ='Verdichtung 1'!$E256 -> 0 | R56: ='Verdichtung 1'!$E356 -> 0 | S56: ='Verdichtung 1'!$E456 -> 0 | T56: ='Verdichtung 1'!E1356 -> 0 | U56: ='Verdichtung 1'!$E1256 -> 0 | V56: ='Verdichtung 1'!F1474 -> 0 | W56: ='Verdichtung 1'!G1474 -> 0 | X56: ='Verdichtung 1'!H1474 -> 0 | Y56: ='Verdichtung 1'!I1474 -> 0
C57: 46 | D57: Summe Sachkosten | E57: 0 | G57: ZS | K57: ='Verdichtung 1'!$E557 -> 0 | L57: ='Verdichtung 1'!$E657 -> 0 | M57: ='Verdichtung 1'!$E757 -> 0 | N57: ='Verdichtung 1'!$E857 -> 0 | O57: ='Verdichtung 1'!$E957 -> 0 | P57: ='Verdichtung 1'!$E157 -> 0 | Q57: ='Verdichtung 1'!$E257 -> 0 | R57: ='Verdichtung 1'!$E357 -> 0 | S57: ='Verdichtung 1'!$E457 -> 0 | T57: ='Verdichtung 1'!E1357 -> 0 | U57: ='Verdichtung 1'!$E1257 -> 0 | V57: ='Verdichtung 1'!F1475 -> 0 | W57: ='Verdichtung 1'!G1475 -> 0 | X57: ='Verdichtung 1'!H1475 -> 0 | Y57: ='Verdichtung 1'!I1475 -> 0
E58: 0 | T58: ='Verdichtung 1'!E1358 -> 0
C59: 47 | D59: AfA Außenanlagen | E59: 0 | F59: 3 | K59: ='Verdichtung 1'!$E559 -> 0 | L59: ='Verdichtung 1'!$E659 -> 0 | M59: ='Verdichtung 1'!$E759 -> 0 | N59: ='Verdichtung 1'!$E859 -> 0 | O59: ='Verdichtung 1'!$E959 -> 0 | P59: ='Verdichtung 1'!$E159 -> 0 | Q59: ='Verdichtung 1'!$E259 -> 0 | R59: ='Verdichtung 1'!$E359 -> 0 | S59: ='Verdichtung 1'!$E459 -> 0 | T59: ='Verdichtung 1'!E1359 -> 0 | U59: ='Verdichtung 1'!$E1259 -> 0 | V59: ='Verdichtung 1'!F1477 -> 0 | W59: ='Verdichtung 1'!G1477 -> 0 | X59: ='Verdichtung 1'!H1477 -> 0 | Y59: ='Verdichtung 1'!I1477 -> 0
C60: 48 | D60: AfA Gebäude | E60: 0 | F60: 3 | K60: ='Verdichtung 1'!$E560 -> 0 | L60: ='Verdichtung 1'!$E660 -> 0 | M60: ='Verdichtung 1'!$E760 -> 0 | N60: ='Verdichtung 1'!$E860 -> 0 | O60: ='Verdichtung 1'!$E960 -> 0 | P60: ='Verdichtung 1'!$E160 -> 0 | Q60: ='Verdichtung 1'!$E260 -> 0 | R60: ='Verdichtung 1'!$E360 -> 0 | S60: ='Verdichtung 1'!$E460 -> 0 | T60: ='Verdichtung 1'!E1360 -> 0 | U60: ='Verdichtung 1'!$E1260 -> 0 | V60: ='Verdichtung 1'!F1478 -> 0 | W60: ='Verdichtung 1'!G1478 -> 0 | X60: ='Verdichtung 1'!H1478 -> 0 | Y60: ='Verdichtung 1'!I1478 -> 0
C61: 49 | D61: AfA techn. Bauanlagen, Heizung / Klima | E61: 0 | F61: 3 | K61: ='Verdichtung 1'!$E561 -> 0 | L61: ='Verdichtung 1'!$E661 -> 0 | M61: ='Verdichtung 1'!$E761 -> 0 | N61: ='Verdichtung 1'!$E861 -> 0 | O61: ='Verdichtung 1'!$E961 -> 0 | P61: ='Verdichtung 1'!$E161 -> 0 | Q61: ='Verdichtung 1'!$E261 -> 0 | R61: ='Verdichtung 1'!$E361 -> 0 | S61: ='Verdichtung 1'!$E461 -> 0 | T61: ='Verdichtung 1'!E1361 -> 0 | U61: ='Verdichtung 1'!$E1261 -> 0 | V61: ='Verdichtung 1'!F1479 -> 0 | W61: ='Verdichtung 1'!G1479 -> 0 | X61: ='Verdichtung 1'!H1479 -> 0 | Y61: ='Verdichtung 1'!I1479 -> 0
C62: 50 | D62: AfA Inventar, Maschinen und Geräte | E62: 0 | F62: 3 | K62: ='Verdichtung 1'!$E562 -> 0 | L62: ='Verdichtung 1'!$E662 -> 0 | M62: ='Verdichtung 1'!$E762 -> 0 | N62: ='Verdichtung 1'!$E862 -> 0 | O62: ='Verdichtung 1'!$E962 -> 0 | P62: ='Verdichtung 1'!$E162 -> 0 | Q62: ='Verdichtung 1'!$E262 -> 0 | R62: ='Verdichtung 1'!$E362 -> 0 | S62: ='Verdichtung 1'!$E462 -> 0 | T62: ='Verdichtung 1'!E1362 -> 0 | U62: ='Verdichtung 1'!$E1262 -> 0 | V62: ='Verdichtung 1'!F1480 -> 0 | W62: ='Verdichtung 1'!G1480 -> 0 | X62: ='Verdichtung 1'!H1480 -> 0 | Y62: ='Verdichtung 1'!I1480 -> 0
C63: 51 | D63: AfA Fahrzeuge | E63: 0 | F63: 3 | K63: ='Verdichtung 1'!$E563 -> 0 | L63: ='Verdichtung 1'!$E663 -> 0 | M63: ='Verdichtung 1'!$E763 -> 0 | N63: ='Verdichtung 1'!$E863 -> 0 | O63: ='Verdichtung 1'!$E963 -> 0 | P63: ='Verdichtung 1'!$E163 -> 0 | Q63: ='Verdichtung 1'!$E263 -> 0 | R63: ='Verdichtung 1'!$E363 -> 0 | S63: ='Verdichtung 1'!$E463 -> 0 | T63: ='Verdichtung 1'!E1363 -> 0 | U63: ='Verdichtung 1'!$E1263 -> 0 | V63: ='Verdichtung 1'!F1481 -> 0 | W63: ='Verdichtung 1'!G1481 -> 0 | X63: ='Verdichtung 1'!H1481 -> 0 | Y63: ='Verdichtung 1'!I1481 -> 0
C64: 52 | D64: AfA Funk / Kommunikation | E64: 0 | F64: 3 | K64: ='Verdichtung 1'!$E564 -> 0 | L64: ='Verdichtung 1'!$E664 -> 0 | M64: ='Verdichtung 1'!$E764 -> 0 | N64: ='Verdichtung 1'!$E864 -> 0 | O64: ='Verdichtung 1'!$E964 -> 0 | P64: ='Verdichtung 1'!$E164 -> 0 | Q64: ='Verdichtung 1'!$E264 -> 0 | R64: ='Verdichtung 1'!$E364 -> 0 | S64: ='Verdichtung 1'!$E464 -> 0 | T64: ='Verdichtung 1'!E1364 -> 0 | U64: ='Verdichtung 1'!$E1264 -> 0 | V64: ='Verdichtung 1'!F1482 -> 0 | W64: ='Verdichtung 1'!G1482 -> 0 | X64: ='Verdichtung 1'!H1482 -> 0 | Y64: ='Verdichtung 1'!I1482 -> 0
C65: 53 | D65: AfA medizinisches Gerät | E65: 0 | F65: 3 | K65: ='Verdichtung 1'!$E565 -> 0 | L65: ='Verdichtung 1'!$E665 -> 0 | M65: ='Verdichtung 1'!$E765 -> 0 | N65: ='Verdichtung 1'!$E865 -> 0 | O65: ='Verdichtung 1'!$E965 -> 0 | P65: ='Verdichtung 1'!$E165 -> 0 | Q65: ='Verdichtung 1'!$E265 -> 0 | R65: ='Verdichtung 1'!$E365 -> 0 | S65: ='Verdichtung 1'!$E465 -> 0 | T65: ='Verdichtung 1'!E1365 -> 0 | U65: ='Verdichtung 1'!$E1265 -> 0 | V65: ='Verdichtung 1'!F1483 -> 0 | W65: ='Verdichtung 1'!G1483 -> 0 | X65: ='Verdichtung 1'!H1483 -> 0 | Y65: ='Verdichtung 1'!I1483 -> 0
C66: 54 | D66: AfA für GWG | E66: 0 | F66: 3 | K66: ='Verdichtung 1'!$E566 -> 0 | L66: ='Verdichtung 1'!$E666 -> 0 | M66: ='Verdichtung 1'!$E766 -> 0 | N66: ='Verdichtung 1'!$E866 -> 0 | O66: ='Verdichtung 1'!$E966 -> 0 | P66: ='Verdichtung 1'!$E166 -> 0 | Q66: ='Verdichtung 1'!$E266 -> 0 | R66: ='Verdichtung 1'!$E366 -> 0 | S66: ='Verdichtung 1'!$E466 -> 0 | T66: ='Verdichtung 1'!E1366 -> 0 | U66: ='Verdichtung 1'!$E1266 -> 0 | V66: ='Verdichtung 1'!F1484 -> 0 | W66: ='Verdichtung 1'!G1484 -> 0 | X66: ='Verdichtung 1'!H1484 -> 0 | Y66: ='Verdichtung 1'!I1484 -> 0
C67: 55 | D67: Gesamt Abschreibungen (AfA) | E67: 0 | G67: S | K67: ='Verdichtung 1'!$E567 -> 0 | L67: ='Verdichtung 1'!$E667 -> 0 | M67: ='Verdichtung 1'!$E767 -> 0 | N67: ='Verdichtung 1'!$E867 -> 0 | O67: ='Verdichtung 1'!$E967 -> 0 | P67: ='Verdichtung 1'!$E167 -> 0 | Q67: ='Verdichtung 1'!$E267 -> 0 | R67: ='Verdichtung 1'!$E367 -> 0 | S67: ='Verdichtung 1'!$E467 -> 0 | T67: ='Verdichtung 1'!E1367 -> 0 | U67: ='Verdichtung 1'!$E1267 -> 0 | V67: ='Verdichtung 1'!F1485 -> 0 | W67: ='Verdichtung 1'!G1485 -> 0 | X67: ='Verdichtung 1'!H1485 -> 0 | Y67: ='Verdichtung 1'!I1485 -> 0
C68: 56 | D68: Bruttogesamtkosten | E68: 0 | G68: ZS | K68: ='Verdichtung 1'!$E568 -> 0 | L68: ='Verdichtung 1'!$E668 -> 0 | M68: ='Verdichtung 1'!$E768 -> 0 | N68: ='Verdichtung 1'!$E868 -> 0 | O68: ='Verdichtung 1'!$E968 -> 0 | P68: ='Verdichtung 1'!$E168 -> 0 | Q68: ='Verdichtung 1'!$E268 -> 0 | R68: ='Verdichtung 1'!$E368 -> 0 | S68: ='Verdichtung 1'!$E468 -> 0 | T68: ='Verdichtung 1'!E1368 -> 0 | U68: ='Verdichtung 1'!$E1268 -> 0 | V68: ='Verdichtung 1'!F1486 -> 0 | W68: ='Verdichtung 1'!G1486 -> 0 | X68: ='Verdichtung 1'!H1486 -> 0 | Y68: ='Verdichtung 1'!I1486 -> 0
E69: 0 | T69: ='Verdichtung 1'!E1369 -> 0
C70: 57 | D70: Zuschüsse / Zuweisungen | E70: 0 | F70: 2 | K70: ='Verdichtung 1'!$E570 -> 0 | L70: ='Verdichtung 1'!$E670 -> 0 | M70: ='Verdichtung 1'!$E770 -> 0 | N70: ='Verdichtung 1'!$E870 -> 0 | O70: ='Verdichtung 1'!$E970 -> 0 | P70: ='Verdichtung 1'!$E170 -> 0 | Q70: ='Verdichtung 1'!$E270 -> 0 | R70: ='Verdichtung 1'!$E370 -> 0 | S70: ='Verdichtung 1'!$E470 -> 0 | T70: ='Verdichtung 1'!E1370 -> 0 | U70: ='Verdichtung 1'!$E1270 -> 0 | V70: ='Verdichtung 1'!F1488 -> 0 | W70: ='Verdichtung 1'!G1488 -> 0 | X70: ='Verdichtung 1'!H1488 -> 0 | Y70: ='Verdichtung 1'!I1488 -> 0
C71: 58 | D71: Finanzerträge | E71: 0 | F71: 2 | K71: ='Verdichtung 1'!$E571 -> 0 | L71: ='Verdichtung 1'!$E671 -> 0 | M71: ='Verdichtung 1'!$E771 -> 0 | N71: ='Verdichtung 1'!$E871 -> 0 | O71: ='Verdichtung 1'!$E971 -> 0 | P71: ='Verdichtung 1'!$E171 -> 0 | Q71: ='Verdichtung 1'!$E271 -> 0 | R71: ='Verdichtung 1'!$E371 -> 0 | S71: ='Verdichtung 1'!$E471 -> 0 | T71: ='Verdichtung 1'!E1371 -> 0 | U71: ='Verdichtung 1'!$E1271 -> 0 | V71: ='Verdichtung 1'!F1489 -> 0 | W71: ='Verdichtung 1'!G1489 -> 0 | X71: ='Verdichtung 1'!H1489 -> 0 | Y71: ='Verdichtung 1'!I1489 -> 0
C72: 59 | D72: Versicherungsleistungen | E72: 0 | F72: 4 | K72: ='Verdichtung 1'!$E572 -> 0 | L72: ='Verdichtung 1'!$E672 -> 0 | M72: ='Verdichtung 1'!$E772 -> 0 | N72: ='Verdichtung 1'!$E872 -> 0 | O72: ='Verdichtung 1'!$E972 -> 0 | P72: ='Verdichtung 1'!$E172 -> 0 | Q72: ='Verdichtung 1'!$E272 -> 0 | R72: ='Verdichtung 1'!$E372 -> 0 | S72: ='Verdichtung 1'!$E472 -> 0 | T72: ='Verdichtung 1'!E1372 -> 0 | U72: ='Verdichtung 1'!$E1272 -> 0 | V72: ='Verdichtung 1'!F1490 -> 0 | W72: ='Verdichtung 1'!G1490 -> 0 | X72: ='Verdichtung 1'!H1490 -> 0 | Y72: ='Verdichtung 1'!I1490 -> 0
C73: 60 | D73: Sonstige Einnahmen | E73: 0 | F73: 2 | K73: ='Verdichtung 1'!$E573 -> 0 | L73: ='Verdichtung 1'!$E673 -> 0 | M73: ='Verdichtung 1'!$E773 -> 0 | N73: ='Verdichtung 1'!$E873 -> 0 | O73: ='Verdichtung 1'!$E973 -> 0 | P73: ='Verdichtung 1'!$E173 -> 0 | Q73: ='Verdichtung 1'!$E273 -> 0 | R73: ='Verdichtung 1'!$E373 -> 0 | S73: ='Verdichtung 1'!$E473 -> 0 | T73: ='Verdichtung 1'!E1373 -> 0 | U73: ='Verdichtung 1'!$E1273 -> 0 | V73: ='Verdichtung 1'!F1491 -> 0 | W73: ='Verdichtung 1'!G1491 -> 0 | X73: ='Verdichtung 1'!H1491 -> 0 | Y73: ='Verdichtung 1'!I1491 -> 0
C74: 61 | D74: Verkaufserlöse aus Anlagenabgang | E74: 0 | F74: 3 | K74: ='Verdichtung 1'!$E574 -> 0 | L74: ='Verdichtung 1'!$E674 -> 0 | M74: ='Verdichtung 1'!$E774 -> 0 | N74: ='Verdichtung 1'!$E874 -> 0 | O74: ='Verdichtung 1'!$E974 -> 0 | P74: ='Verdichtung 1'!$E174 -> 0 | Q74: ='Verdichtung 1'!$E274 -> 0 | R74: ='Verdichtung 1'!$E374 -> 0 | S74: ='Verdichtung 1'!$E474 -> 0 | T74: ='Verdichtung 1'!E1374 -> 0 | U74: ='Verdichtung 1'!$E1274 -> 0 | V74: ='Verdichtung 1'!F1492 -> 0 | W74: ='Verdichtung 1'!G1492 -> 0 | X74: ='Verdichtung 1'!H1492 -> 0 | Y74: ='Verdichtung 1'!I1492 -> 0
C75: 62 | D75: Gesamt Abzüge | E75: 0 | G75: S | K75: ='Verdichtung 1'!$E575 -> 0 | L75: ='Verdichtung 1'!$E675 -> 0 | M75: ='Verdichtung 1'!$E775 -> 0 | N75: ='Verdichtung 1'!$E875 -> 0 | O75: ='Verdichtung 1'!$E975 -> 0 | P75: ='Verdichtung 1'!$E175 -> 0 | Q75: ='Verdichtung 1'!$E275 -> 0 | R75: ='Verdichtung 1'!$E375 -> 0 | S75: ='Verdichtung 1'!$E475 -> 0 | T75: ='Verdichtung 1'!E1375 -> 0 | U75: ='Verdichtung 1'!$E1275 -> 0 | V75: ='Verdichtung 1'!F1493 -> 0 | W75: ='Verdichtung 1'!G1493 -> 0 | X75: ='Verdichtung 1'!H1493 -> 0 | Y75: ='Verdichtung 1'!I1493 -> 0
C76: 63 | D76: Gesamtkosten RD gem. § 15 NRettDG | E76: =SUM(K76:Y76) -> 0 | K76: ='Verdichtung 1'!$E576 -> 0 | L76: ='Verdichtung 1'!$E676 -> 0 | M76: ='Verdichtung 1'!$E776 -> 0 | N76: ='Verdichtung 1'!$E876 -> 0 | O76: ='Verdichtung 1'!$E976 -> 0 | P76: ='Verdichtung 1'!$E176 -> 0 | Q76: ='Verdichtung 1'!$E276 -> 0 | R76: ='Verdichtung 1'!$E376 -> 0 | S76: ='Verdichtung 1'!$E476 -> 0 | T76: ='Verdichtung 1'!E1376 -> 0 | U76: ='Verdichtung 1'!$E1276 -> 0 | V76: ='Verdichtung 1'!F1494 -> 0 | W76: ='Verdichtung 1'!G1494 -> 0 | X76: ='Verdichtung 1'!H1494 -> 0 | Y76: ='Verdichtung 1'!I1494 -> 0
C78: 64 | D78: Zuordnung zur H-Kst Notfallrettung | E78: =SUM(H78:Y78) -> 0 | H78: =P76+'Verdichtung 2'!E1225+T76 -> 0 | P78: =-P76 -> 0 | S78: =-'Verdichtung 2'!E1225 -> 0 | T78: =-T76 -> 0
C79: 65 | D79: Zuordnung zur H-Kst Qual. KTP | E79: =SUM(H79:Y79) -> 0 | I79: =Q76+'Verdichtung 2'!E1224 -> 0 | Q79: =-Q76 -> 0 | S79: =-'Verdichtung 2'!E1224 -> 0
C80: 66 | D80: Zuordnung zur H-Kst Notarztdienst | E80: 0 | J80: =R76 -> 0 | R80: =-R76 -> 0
C81: 67 | D81: Verrechnung Notfallrettung durch KTW | E81: 0 | H81: ='Verdichtung 2'!E1271 -> 0 | I81: =-H81 -> 0
C82: 68 | D82: Verrechnung KTP durch RTW | E82: 0 | H82: =-I82 -> 0 | I82: ='Verdichtung 2'!E1272 -> 0
C83: 69 | D83: Aufteilung Verwaltung | E83: 0 | H83: =U76-SUM(I83:O83) -> 0 | I83: ='Verdichtung 2'!E1328 -> 0 | J83: ='Verdichtung 2'!E1329 -> 0 | K83: ='Verdichtung 2'!H1330 -> 0 | L83: ='Verdichtung 2'!I1330 -> 0 | M83: ='Verdichtung 2'!J1330 -> 0 | N83: ='Verdichtung 2'!K1330 -> 0 | O83: ='Verdichtung 2'!L1330 -> 0 | U83: =-'Verdichtung 2'!E1310 -> 0
C84: 70 | D84: Aufteilung Rettungsleitstelle | E84: 0 | H84: =V76-SUM(I84:O84) -> 0 | I84: ='Verdichtung 2'!E1369 -> 0 | J84: ='Verdichtung 2'!E1370 -> 0 | K84: ='Verdichtung 2'!J1371 -> 0 | L84: ='Verdichtung 2'!K1371 -> 0 | M84: ='Verdichtung 2'!L1371 -> 0 | N84: ='Verdichtung 2'!M1371 -> 0 | O84: ='Verdichtung 2'!N1371 -> 0 | V84: =-'Verdichtung 2'!E1360 -> 0
C85: 71 | D85: Aufteilung ÖEL | E85: 0 | H85: ='Verdichtung 2'!E1415 -> 0 | I85: 0 | J85: ='Verdichtung 2'!E1416 -> 0 | K85: 0 | L85: 0 | M85: 0 | N85: 0 | O85: 0 | W85: =-'Verdichtung 2'!E1410 -> 0
C86: 72 | D86: Aufteilung Großschadensereignis | E86: 0 | H86: ='Verdichtung 2'!E1438 -> 0 | I86: 0 | J86: ='Verdichtung 2'!E1439 -> 0 | K86: 0 | L86: 0 | M86: 0 | N86: 0 | O86: 0 | X86: =-'Verdichtung 2'!E1433 -> 0
C87: 73 | D87: Aufteilung Trägerverwaltung | E87: 0 | H87: =Y76-SUM(I87:O87) -> 0 | I87: ='Verdichtung 2'!E1478 -> 0 | J87: ='Verdichtung 2'!E1479 -> 0 | K87: ='Verdichtung 2'!H1480 -> 0 | L87: ='Verdichtung 2'!I1480 -> 0 | M87: ='Verdichtung 2'!J1480 -> 0 | N87: ='Verdichtung 2'!K1480 -> 0 | O87: ='Verdichtung 2'!L1480 -> 0 | Y87: =-'Verdichtung 2'!E1460 -> 0
C88: 74 | D88: Gesamtkosten RD gem. § 15 NRettDG | E88: =SUM(H88:O88) -> 0 | H88: =SUM(H76:H87) -> 0 | I88: 0 | J88: 0 | K88: 0 | L88: 0 | M88: 0 | N88: 0 | O88: 0 | P88: 0 | Q88: 0 | R88: 0 | S88: 0 | T88: =T76+T78 -> 0 | U88: 0 | V88: =SUM(V76:V87) -> 0 | W88: =SUM(W76:W87) -> 0 | X88: =SUM(X76:X87) -> 0 | Y88: =SUM(Y76:Y87) -> 0
A89: x | C89: 75 | D89: Vortragbares Betriebsergebnis | E89: =SUM(H89:O89) -> 0 | H89: 0 | I89: 0 | J89: 0 | K89: 0 | L89: 0 | M89: 0 | N89: 0 | O89: 0
C90: 76 | D90: Aus Entgelten zu decken: | E90: =SUM(H90:O90) -> 0 | H90: =H88+H89 -> 0 | I90: 0 | J90: 0 | K90: 0 | L90: 0 | M90: 0 | N90: 0 | O90: 0
D91: * Gemäß Kostenrichtlinien

Sheet RW-Ebene
H1: x | I1: x | J1: x | K1: x | L1: x | M1: x | N1: x | O1: x | P1: x | Q1: x | R1: x | S1: x | T1: x
B2: =ParameterDatei!D171 -> Drucken • Sichern • Import • Export • Hauptmenu • RW Statistik • RW Anmerkungen • LE BAB
C4: Betriebsabrechnungsbogen für den Rettungsdienst in Niedersachsen*)
C5: Rettungswache | E5: =ParameterDatei!B150 -> 1 | H5: =" für den Berichtszeitraum "&INDEX(ParameterDatei!F9:F26,ParameterDatei!F27) -> für den Berichtszeitraum Leerfeld
C7: Zeile | D7: Kostenarten | E7: Summe | F7: US | G7: KZ | H7: Hilfs-Kostenstellen | L7: Sonst-Kst | Q7: A-Kostenstellen
H8: RTW | I8: KTW | J8: NEF | K8: MZF | L8: ='Basis-Daten'!D12 -> Sonstige 1 | M8: ='Basis-Daten'!D14 -> Sonstige 2 | N8: ='Basis-Daten'!D16 -> Sonstige 3 | O8: ='Basis-Daten'!D18 -> Sonstige 4 | P8: ='Basis-Daten'!D20 -> Sonstige 5 | Q8: Ausbildung NotfallSan | R8: Verwaltung | S8: LE-ÖEL | T8: LE-GSE
C9: 1 | D9: 2 | E9: 3 | F9: 4 | G9: 5 | H9: 14 | I9: 15 | J9: 16 | K9: 17 | L9: 9 | M9: 10 | N9: 11 | O9: 12 | P9: 13 | Q9: 33 | R9: 18 | S9: 20 | T9: 21
A111: x | C111: 1 | D111: Personalkosten hauptamtlich | E111: =SUM(H111:T111) -> 0 | F111: 1 | H111: 0 | I111: 0 | J111: 0 | K111: 0 | L111: 0 | M111: 0 | N111: 0 | O111: 0 | P111: 0 | Q111: 0 | R111: 0 | S111: 0 | T111: 0
A112: x | C112: 2 | D112: Personalkosten nebenamtlich | E112: 0 | F112: 1 | H112: 0 | I112: 0 | J112: 0 | K112: 0 | L112: 0 | M112: 0 | N112: 0 | O112: 0 | P112: 0 | Q112: 0 | R112: 0 | S112: 0 | T112: 0
A113: x | C113: 3 | D113: Personalkosten ehrenamtlich | E113: 0 | F113: 1 | H113: 0 | I113: 0 | J113: 0 | K113: 0 | L113: 0 | M113: 0 | N113: 0 | O113: 0 | P113: 0 | Q113: 0 | R113: 0 | S113: 0 | T113: 0
A114: x | C114: 4 | D114: Personalkosten FSJ & Bundesfreiw.-D | E114: 0 | F114: 1 | H114: 0 | I114: 0 | J114: 0 | K114: 0 | L114: 0 | M114: 0 | N114: 0 | O114: 0 | P114: 0 | Q114: 0 | R114: 0 | S114: 0 | T114: 0
A115: x | C115: 5 | D115: Personalkosten Notarzt | E115: 0 | F115: 0 | H115: 0 | I115: 0 | J115: 0 | K115: 0 | L115: 0 | M115: 0 | N115: 0 | O115: 0 | P115: 0 | Q115: 0 | R115: 0 | S115: 0 | T115: 0
A116: x | C116: 6 | D116: Personalkosten "fiktive Verwaltung" | E116: 0 | F116: 0 | H116: 0 | I116: 0 | J116: 0 | K116: 0 | L116: 0 | M116: 0 | N116: 0 | O116: 0 | P116: 0 | Q116: 0 | R116: 0 | S116: 0 | T116: 0
A117: x | C117: 7 | D117: Personalkosten Reinigungspersonal | E117: 0 | F117: 2 | H117: 0 | I117: 0 | J117: 0 | K117: 0 | L117: 0 | M117: 0 | N117: 0 | O117: 0 | P117: 0 | Q117: 0 | R117: 0 | S117: 0 | T117: 0
C118: 8 | D118: Summe Personalkosten | E118: =SUM(E111:E117) -> 0 | G118: ZS | H118: =SUM(H111:H117) -> 0 | I118: 0 | J118: 0 | K118: 0 | L118: 0 | M118: 0 | N118: 0 | O118: 0 | P118: 0 | Q118: =SUM(Q111:Q117) -> 0 | R118: =SUM(R111:R117) -> 0 | S118: =SUM(S111:S117) -> 0 | T118: 0
A120: x | C120: 9 | D120: Aus- und Fortbildungskosten | E120: =SUM(H120:T120) -> 0 | F120: 1 | H120: 0 | I120: 0 | J120: 0 | K120: 0 | L120: 0 | M120: 0 | N120: 0 | O120: 0 | P120: 0 | Q120: 0 | R120: 0 | S120: 0 | T120: 0
A121: x | C121: 10 | D121: sonstige Sach-/Nebenkosten Personal | E121: =SUM(H121:T121) -> 0 | F121: 1 | H121: 0 | I121: 0 | J121: 0 | K121: 0 | L121: 0 | M121: 0 | N121: 0 | O121: 0 | P121: 0 | Q121: 0 | R121: 0 | S121: 0 | T121: 0
C122: 11 | D122: Gesamt Personalnebenkosten | E122: =SUM(E120:E121) -> 0 | G122: S | H122: =SUM(H120:H121) -> 0 | I122: 0 | J122: 0 | K122: 0 | L122: 0 | M122: 0 | N122: 0 | O122: 0 | P122: 0 | Q122: =SUM(Q120:Q121) -> 0 | R122: =SUM(R120:R121) -> 0 | S122: =SUM(S120:S121) -> 0 | T122: 0
A123: x | C123: 12 | D123: Mieten, Pachten | E123: =SUM(H123:T123) -> 0 | F123: 3 | H123: 0 | I123: 0 | J123: 0 | K123: 0 | L123: 0 | M123: 0 | N123: 0 | O123: 0 | P123: 0 | Q123: 0 | R123: 0 | S123: 0 | T123: 0
A124: x | C124: 13 | D124: Nebenkosten / Energie | E124: =SUM(H124:T124) -> 0 | F124: 2 | H124: 0 | I124: 0 | J124: 0 | K124: 0 | L124: 0 | M124: 0 | N124: 0 | O124: 0 | P124: 0 | Q124: 0 | R124: 0 | S124: 0 | T124: 0
A125: x | C125: 14 | D125: Fremdreinigung / Reinigungsmaterial | E125: =SUM(H125:T125) -> 0 | F125: 2 | H125: 0 | I125: 0 | J125: 0 | K125: 0 | L125: 0 | M125: 0 | N125: 0 | O125: 0 | P125: 0 | Q125: 0 | R125: 0 | S125: 0 | T125: 0
A126: x | C126: 15 | D126: Gebäudeversicherung / Steuer | E126: =SUM(H126:T126) -> 0 | F126: 3 | H126: 0 | I126: 0 | J126: 0 | K126: 0 | L126: 0 | M126: 0 | N126: 0 | O126: 0 | P126: 0 | Q126: 0 | R126: 0 | S126: 0 | T126: 0
C127: 16 | D127: Gesamt Sachkosten Betriebsräume | E127: =SUM(E123:E126) -> 0 | G127: S | H127: =SUM(H123:H126) -> 0 | I127: 0 | J127: 0 | K127: 0 | L127: 0 | M127: 0 | N127: 0 | O127: 0 | P127: 0 | Q127: =SUM(Q123:Q126) -> 0 | R127: =SUM(R123:R126) -> 0 | S127: =SUM(S123:S126) -> 0 | T127: 0
A128: x | C128: 17 | D128: Grundstücksanlagen Instandhaltung | E128: =SUM(H128:T128) -> 0 | F128: 3 | H128: 0 | I128: 0 | J128: 0 | K128: 0 | L128: 0 | M128: 0 | N128: 0 | O128: 0 | P128: 0 | Q128: 0 | R128: 0 | S128: 0 | T128: 0
A129: x | C129: 18 | D129: Betriebsräume Instandhaltung | E129: =SUM(H129:T129) -> 0 | F129: 3 | H129: 0 | I129: 0 | J129: 0 | K129: 0 | L129: 0 | M129: 0 | N129: 0 | O129: 0 | P129: 0 | Q129: 0 | R129: 0 | S129: 0 | T129: 0
A130: x | C130: 19 | D130: Techn. Betriebsanlagen Instandhaltung | E130: =SUM(H130:T130) -> 0 | F130: 3 | H130: 0 | I130: 0 | J130: 0 | K130: 0 | L130: 0 | M130: 0 | N130: 0 | O130: 0 | P130: 0 | Q130: 0 | R130: 0 | S130: 0 | T130: 0
C131: 20 | D131: Gesamt Instandhaltung | E131: =SUM(E128:E130) -> 0 | G131: S | H131: =SUM(H128:H130) -> 0 | I131: 0 | J131: 0 | K131: 0 | L131: 0 | M131: 0 | N131: 0 | O131: 0 | P131: 0 | Q131: =SUM(Q128:Q130) -> 0 | R131: =SUM(R128:R130) -> 0 | S131: =SUM(S128:S130) -> 0 | T131: 0
A132: x | C132: 21 | D132: Betriebsstoffe | E132: =SUM(H132:T132) -> 0 | F132: 4 | H132: 0 | I132: 0 | J132: 0 | K132: 0 | L132: 0 | M132: 0 | N132: 0 | O132: 0 | P132: 0 | Q132: 0 | R132: 0 | S132: 0 | T132: 0
A133: x | C133: 22 | D133: Reparatur / Wartung KFZ | E133: 0 | F133: 4 | H133: 0 | I133: 0 | J133: 0 | K133: 0 | L133: 0 | M133: 0 | N133: 0 | O133: 0 | P133: 0 | Q133: 0 | R133: 0 | S133: 0 | T133: 0
A134: x | C134: 23 | D134: Reparatur Unfallschaden | E134: 0 | F134: 4 | H134: 0 | I134: 0 | J134: 0 | K134: 0 | L134: 0 | M134: 0 | N134: 0 | O134: 0 | P134: 0 | Q134: 0 | R134: 0 | S134: 0 | T134: 0
A135: x | C135: 24 | D135: Versicherung / Steuer KFZ | E135: 0 | F135: 3 | H135: 0 | I135: 0 | J135: 0 | K135: 0 | L135: 0 | M135: 0 | N135: 0 | O135: 0 | P135: 0 | Q135: 0 | R135: 0 | S135: 0 | T135: 0
A136: x | C136: 25 | D136: Reparaturen KFZ-Funk / Telekomm. | E136: 0 | F136: 5 | H136: 0 | I136: 0 | J136: 0 | K136: 0 | L136: 0 | M136: 0 | N136: 0 | O136: 0 | P136: 0 | Q136: 0 | R136: 0 | S136: 0 | T136: 0
A137: x | C137: 26 | D137: Miete / Leasing | E137: 0 | F137: 3 | H137: 0 | I137: 0 | J137: 0 | K137: 0 | L137: 0 | M137: 0 | N137: 0 | O137: 0 | P137: 0 | Q137: 0 | R137: 0 | S137: 0 | T137: 0
C138: 27 | D138: Gesamt Fahrzeuge | E138: =SUM(E132:E137) -> 0 | G138: S | H138: =SUM(H132:H137) -> 0 | I138: 0 | J138: 0 | K138: 0 | L138: 0 | M138: 0 | N138: 0 | O138: 0 | P138: 0 | Q138: =SUM(Q132:Q137) -> 0 | R138: =SUM(R132:R137) -> 0 | S138: =SUM(S132:S137) -> 0 | T138: 0
A139: x | C139: 28 | D139: Schutzbekleidung Beschaffg. / Reinigung | E139: =SUM(H139:T139) -> 0 | F139: 5 | H139: 0 | I139: 0 | J139: 0 | K139: 0 | L139: 0 | M139: 0 | N139: 0 | O139: 0 | P139: 0 | Q139: 0 | R139: 0 | S139: 0 | T139: 0
A140: x | C140: 29 | D140: Med. Gerät Wartung / Reparatur | E140: =SUM(H140:T140) -> 0 | F140: 5 | H140: 0 | I140: 0 | J140: 0 | K140: 0 | L140: 0 | M140: 0 | N140: 0 | O140: 0 | P140: 0 | Q140: 0 | R140: 0 | S140: 0 | T140: 0
A141: x | C141: 30 | D141: Arzneimittel / med. Sauerstoff | E141: =SUM(H141:T141) -> 0 | F141: 5 | H141: 0 | I141: 0 | J141: 0 | K141: 0 | L141: 0 | M141: 0 | N141: 0 | O141: 0 | P141: 0 | Q141: 0 | R141: 0 | S141: 0 | T141: 0
A142: x | C142: 31 | D142: Med. Sachbedarf / Einwegmat. | E142: =SUM(H142:T142) -> 0 | F142: 5 | H142: 0 | I142: 0 | J142: 0 | K142: 0 | L142: 0 | M142: 0 | N142: 0 | O142: 0 | P142: 0 | Q142: 0 | R142: 0 | S142: 0 | T142: 0
C143: 32 | D143: Gesamt Einsatzkosten | E143: =SUM(E139:E142) -> 0 | F143: 5 | G143: S | H143: =SUM(H139:H142) -> 0 | I143: 0 | J143: 0 | K143: 0 | L143: 0 | M143: 0 | N143: 0 | O143: 0 | P143: 0 | Q143: =SUM(Q139:Q142) -> 0 | R143: =SUM(R139:R142) -> 0 | S143: =SUM(S139:S142) -> 0 | T143: 0
A144: x | C144: 33 | D144: Büro- / Verwaltungsbedarf | E144: =SUM(H144:T144) -> 0 | F144: 5 | H144: 0 | I144: 0 | J144: 0 | K144: 0 | L144: 0 | M144: 0 | N144: 0 | O144: 0 | P144: 0 | Q144: 0 | R144: 0 | S144: 0 | T144: 0
A145: x | C145: 34 | D145: Telekommunikation | E145: 0 | F145: 5 | H145: 0 | I145: 0 | J145: 0 | K145: 0 | L145: 0 | M145: 0 | N145: 0 | O145: 0 | P145: 0 | Q145: 0 | R145: 0 | S145: 0 | T145: 0
A146: x | C146: 35 | D146: EDV-Kosten | E146: 0 | F146: 5 | H146: 0 | I146: 0 | J146: 0 | K146: 0 | L146: 0 | M146: 0 | N146: 0 | O146: 0 | P146: 0 | Q146: 0 | R146: 0 | S146: 0 | T146: 0
A147: x | C147: 36 | D147: Rechts- und Beratungskosten | E147: 0 | F147: 5 | H147: 0 | I147: 0 | J147: 0 | K147: 0 | L147: 0 | M147: 0 | N147: 0 | O147: 0 | P147: 0 | Q147: 0 | R147: 0 | S147: 0 | T147: 0
A148: x | C148: 37 | D148: Aufklärung | E148: 0 | F148: 5 | H148: 0 | I148: 0 | J148: 0 | K148: 0 | L148: 0 | M148: 0 | N148: 0 | O148: 0 | P148: 0 | Q148: 0 | R148: 0 | S148: 0 | T148: 0
A149: x | C149: 38 | D149: Inkasso | E149: 0 | F149: 5 | H149: 0 | I149: 0 | J149: 0 | K149: 0 | L149: 0 | M149: 0 | N149: 0 | O149: 0 | P149: 0 | Q149: 0 | R149: 0 | S149: 0 | T149: 0
A150: x | C150: 39 | D150: Sonstige Versicherungen | E150: 0 | F150: 5 | H150: 0 | I150: 0 | J150: 0 | K150: 0 | L150: 0 | M150: 0 | N150: 0 | O150: 0 | P150: 0 | Q150: 0 | R150: 0 | S150: 0 | T150: 0
C151: 40 | D151: Sachkosten "fiktive Verwaltung" | E151: 0 | F151: 0 | H151: 0 | I151: 0 | J151: 0 | K151: 0 | L151: 0 | M151: 0 | N151: 0 | O151: 0 | P151: 0 | Q151: 0 | R151: 0 | S151: 0 | T151: 0
C152: 41 | D152: Gesamt Allgemeinkosten | E152: =SUM(E144:E151) -> 0 | G152: S | H152: =SUM(H144:H151) -> 0 | I152: 0 | J152: 0 | K152: 0 | L152: 0 | M152: 0 | N152: 0 | O152: 0 | P152: 0 | Q152: =SUM(Q144:Q151) -> 0 | R152: =SUM(R144:R151) -> 0 | S152: =SUM(S144:S151) -> 0 | T152: 0
A153: x | C153: 42 | D153: Verzinsung Eigenkapital | E153: =SUM(H153:T153) -> 0 | F153: 2 | H153: 0 | I153: 0 | J153: 0 | K153: 0 | L153: 0 | M153: 0 | N153: 0 | O153: 0 | P153: 0 | Q153: 0 | R153: 0 | S153: 0 | T153: 0
A154: x | C154: 43 | D154: Zinsen für Fremdkapital | E154: =SUM(H154:T154) -> 0 | F154: 2 | H154: 0 | I154: 0 | J154: 0 | K154: 0 | L154: 0 | M154: 0 | N154: 0 | O154: 0 | P154: 0 | Q154: 0 | R154: 0 | S154: 0 | T154: 0
A155: x | C155: 44 | D155: Kontokorrentzinsen / Bankgebühren | E155: =SUM(H155:T155) -> 0 | F155: 2 | H155: 0 | I155: 0 | J155: 0 | K155: 0 | L155: 0 | M155: 0 | N155: 0 | O155: 0 | P155: 0 | Q155: 0 | R155: 0 | S155: 0 | T155: 0
C156: 45 | D156: Gesamt Zinsen | E156: =SUM(E153:E155) -> 0 | G156: S | H156: =SUM(H153:H155) -> 0 | I156: 0 | J156: 0 | K156: 0 | L156: 0 | M156: 0 | N156: 0 | O156: 0 | P156: 0 | Q156: =SUM(Q153:Q155) -> 0 | R156: =SUM(R153:R155) -> 0 | S156: =SUM(S153:S155) -> 0 | T156: 0
C157: 46 | D157: Summe Sachkosten | E157: =SUM(E122+E127+E131+E138+E143+E152+E156) -> 0 | G157: ZS | H157: =SUM(H122+H127+H131+H138+H143+H152+H156) -> 0 | I157: 0 | J157: 0 | K157: 0 | L157: 0 | M157: 0 | N157: 0 | O157: 0 | P157: 0 | Q157: =SUM(Q122+Q127+Q131+Q138+Q143+Q152+Q156) -> 0 | R157: =SUM(R122+R127+R131+R138+R143+R152+R156) -> 0 | S157: =SUM(S122+S127+S131+S138+S143+S152+S156) -> 0 | T157: 0
A159: x | C159: 47 | D159: AfA Außenanlagen | E159: =SUM(H159:T159) -> 0 | F159: 3 | H159: 0 | I159: 0 | J159: 0 | K159: 0 | L159: 0 | M159: 0 | N159: 0 | O159: 0 | P159: 0 | Q159: 0 | R159: 0 | S159: 0 | T159: 0
A160: x | C160: 48 | D160: AfA Gebäude | E160: 0 | F160: 3 | H160: 0 | I160: 0 | J160: 0 | K160: 0 | L160: 0 | M160: 0 | N160: 0 | O160: 0 | P160: 0 | Q160: 0 | R160: 0 | S160: 0 | T160: 0
A161: x | C161: 49 | D161: AfA techn. Bauanlagen, Heizung / Klima | E161: 0 | F161: 3 | H161: 0 | I161: 0 | J161: 0 | K161: 0 | L161: 0 | M161: 0 | N161: 0 | O161: 0 | P161: 0 | Q161: 0 | R161: 0 | S161: 0 | T161: 0
A162: x | C162: 50 | D162: AfA Inventar, Maschinen und Geräte | E162: 0 | F162: 3 | H162: 0 | I162: 0 | J162: 0 | K162: 0 | L162: 0 | M162: 0 | N162: 0 | O162: 0 | P162: 0 | Q162: 0 | R162: 0 | S162: 0 | T162: 0
A163: x | C163: 51 | D163: AfA Fahrzeuge | E163: 0 | F163: 3 | H163: 0 | I163: 0 | J163: 0 | K163: 0 | L163: 0 | M163: 0 | N163: 0 | O163: 0 | P163: 0 | Q163: 0 | R163: 0 | S163: 0 | T163: 0
A164: x | C164: 52 | D164: AfA Funk / Kommunikation | E164: 0 | F164: 3 | H164: 0 | I164: 0 | J164: 0 | K164: 0 | L164: 0 | M164: 0 | N164: 0 | O164: 0 | P164: 0 | Q164: 0 | R164: 0 | S164: 0 | T164: 0
A165: x | C165: 53 | D165: AfA medizinisches Gerät | E165: 0 | F165: 3 | H165: 0 | I165: 0 | J165: 0 | K165: 0 | L165: 0 | M165: 0 | N165: 0 | O165: 0 | P165: 0 | Q165: 0 | R165: 0 | S165: 0 | T165: 0
A166: x | C166: 54 | D166: AfA für GWG | E166: 0 | F166: 3 | H166: 0 | I166: 0 | J166: 0 | K166: 0 | L166: 0 | M166: 0 | N166: 0 | O166: 0 | P166: 0 | Q166: 0 | R166: 0 | S166: 0 | T166: 0
C167: 55 | D167: Gesamt Abschreibungen (AfA) | E167: =SUM(E159:E166) -> 0 | G167: S | H167: =SUM(H159:H166) -> 0 | I167: 0 | J167: 0 | K167: 0 | L167: 0 | M167: 0 | N167: 0 | O167: 0 | P167: 0 | Q167: =SUM(Q159:Q166) -> 0 | R167: =SUM(R159:R166) -> 0 | S167: =SUM(S159:S166) -> 0 | T167: 0
C168: 56 | D168: Bruttogesamtkosten | E168: =E118+E157+E167 -> 0 | G168: ZS | H168: =H118+H157+H167 -> 0 | I168: 0 | J168: 0 | K168: 0 | L168: 0 | M168: 0 | N168: 0 | O168: 0 | P168: 0 | Q168: =Q118+Q157+Q167 -> 0 | R168: =R118+R157+R167 -> 0 | S168: =S118+S157+S167 -> 0 | T168: 0
A170: x | C170: 57 | D170: Zuschüsse / Zuweisungen | E170: =SUM(H170:T170) -> 0 | F170: 2 | H170: 0 | I170: 0 | J170: 0 | K170: 0 | L170: 0 | M170: 0 | N170: 0 | O170: 0 | P170: 0 | Q170: 0 | R170: 0 | S170: 0 | T170: 0
A171: x | C171: 58 | D171: Finanzerträge | E171: =SUM(H171:T171) -> 0 | F171: 2 | H171: 0 | I171: 0 | J171: 0 | K171: 0 | L171: 0 | M171: 0 | N171: 0 | O171: 0 | P171: 0 | Q171: 0 | R171: 0 | S171: 0 | T171: 0
A172: x | C172: 59 | D172: Versicherungsleistungen | E172: =SUM(H172:T172) -> 0 | F172: 4 | H172: 0 | I172: 0 | J172: 0 | K172: 0 | L172: 0 | M172: 0 | N172: 0 | O172: 0 | P172: 0 | Q172: 0 | R172: 0 | S172: 0 | T172: 0
A173: x | C173: 60 | D173: Sonstige Einnahmen | E173: =SUM(H173:T173) -> 0 | F173: 2 | H173: 0 | I173: 0 | J173: 0 | K173: 0 | L173: 0 | M173: 0 | N173: 0 | O173: 0 | P173: 0 | Q173: 0 | R173: 0 | S173: 0 | T173: 0
A174: x | C174: 61 | D174: Verkaufserlöse aus Anlagenabgang | E174: =SUM(H174:T174) -> 0 | F174: 3 | H174: 0 | I174: 0 | J174: 0 | K174: 0 | L174: 0 | M174: 0 | N174: 0 | O174: 0 | P174: 0 | Q174: 0 | R174: 0 | S174: 0 | T174: 0
C175: 62 | D175: Gesamt Abzüge | E175: =SUM(E170:E174) -> 0 | G175: S | H175: =SUM(H170:H174) -> 0 | I175: 0 | J175: 0 | K175: 0 | L175: 0 | M175: 0 | N175: 0 | O175: 0 | P175: 0 | Q175: =SUM(Q170:Q174) -> 0 | R175: =SUM(R170:R174) -> 0 | S175: =SUM(S170:S174) -> 0 | T175: 0
C176: 63 | D176: Gesamtkosten RD gem. § 15 NRettDG | E176: =E168-E175 -> 0 | H176: =H168-H175 -> 0 | I176: 0 | J176: 0 | K176: 0 | L176: 0 | M176: 0 | N176: 0 | O176: 0 | P176: 0 | Q176: =Q168-Q175 -> 0 | R176: =R168-R175 -> 0 | S176: =S168-S175 -> 0 | T176: 0
D177: * Gemäß Kostenrichtlinien
A211: x | C211: 1 | D211: Personalkosten hauptamtlich | E211: =SUM(H211:T211) -> 0 | F211: 1 | H211: 0 | I211: 0 | J211: 0 | K211: 0 | L211: 0 | M211: 0 | N211: 0 | O211: 0 | P211: 0 | Q211: 0 | R211: 0 | S211: 0 | T211: 0
A212: x | C212: 2 | D212: Personalkosten nebenamtlich | E212: 0 | F212: 1 | H212: 0 | I212: 0 | J212: 0 | K212: 0 | L212: 0 | M212: 0 | N212: 0 | O212: 0 | P212: 0 | Q212: 0 | R212: 0 | S212: 0 | T212: 0
A213: x | C213: 3 | D213: Personalkosten ehrenamtlich | E213: 0 | F213: 1 | H213: 0 | I213: 0 | J213: 0 | K213: 0 | L213: 0 | M213: 0 | N213: 0 | O213: 0 | P213: 0 | Q213: 0 | R213: 0 | S213: 0 | T213: 0
A214: x | C214: 4 | D214: Personalkosten FSJ & Bundesfreiw.-D | E214: 0 | F214: 1 | H214: 0 | I214: 0 | J214: 0 | K214: 0 | L214: 0 | M214: 0 | N214: 0 | O214: 0 | P214: 0 | Q214: 0 | R214: 0 | S214: 0 | T214: 0
A215: x | C215: 5 | D215: Personalkosten Notarzt | E215: 0 | F215: 0 | H215: 0 | I215: 0 | J215: 0 | K215: 0 | L215: 0 | M215: 0 | N215: 0 | O215: 0 | P215: 0 | Q215: 0 | R215: 0 | S215: 0 | T215: 0
A216: x | C216: 6 | D216: Personalkosten "fiktive Verwaltung" | E216: 0 | F216: 0 | H216: 0 | I216: 0 | J216: 0 | K216: 0 | L216: 0 | M216: 0 | N216: 0 | O216: 0 | P216: 0 | Q216: 0 | R216: 0 | S216: 0 | T216: 0
A217: x | C217: 7 | D217: Personalkosten Reinigungspersonal | E217: 0 | F217: 2 | H217: 0 | I217: 0 | J217: 0 | K217: 0 | L217: 0 | M217: 0 | N217: 0 | O217: 0 | P217: 0 | Q217: 0 | R217: 0 | S217: 0 | T217: 0
C218: 8 | D218: Summe Personalkosten | E218: =SUM(E211:E217) -> 0 | G218: ZS | H218: =SUM(H211:H217) -> 0 | I218: 0 | J218: 0 | K218: 0 | L218: 0 | M218: 0 | N218: 0 | O218: 0 | P218: 0 | Q218: =SUM(Q211:Q217) -> 0 | R218: 0 | S218: 0 | T218: 0
A220: x | C220: 9 | D220: Aus- und Fortbildungskosten | E220: =SUM(H220:T220) -> 0 | F220: 1 | H220: 0 | I220: 0 | J220: 0 | K220: 0 | L220: 0 | M220: 0 | N220: 0 | O220: 0 | P220: 0 | Q220: 0 | R220: 0 | S220: 0 | T220: 0
A221: x | C221: 10 | D221: sonstige Sach-/Nebenkosten Personal | E221: =SUM(H221:T221) -> 0 | F221: 1 | H221: 0 | I221: 0 | J221: 0 | K221: 0 | L221: 0 | M221: 0 | N221: 0 | O221: 0 | P221: 0 | Q221: 0 | R221: 0 | S221: 0 | T221: 0
C222: 11 | D222: Gesamt Personalnebenkosten | E222: =SUM(E220:E221) -> 0 | G222: S | H222: =SUM(H220:H221) -> 0 | I222: 0 | J222: 0 | K222: 0 | L222: 0 | M222: 0 | N222: 0 | O222: 0 | P222: 0 | Q222: =SUM(Q220:Q221) -> 0 | R222: 0 | S222: 0 | T222: 0
A223: x | C223: 12 | D223: Mieten, Pachten | E223: =SUM(H223:T223) -> 0 | F223: 3 | H223: 0 | I223: 0 | J223: 0 | K223: 0 | L223: 0 | M223: 0 | N223: 0 | O223: 0 | P223: 0 | Q223: 0 | R223: 0 | S223: 0 | T223: 0
A224: x | C224: 13 | D224: Nebenkosten / Energie | E224: =SUM(H224:T224) -> 0 | F224: 2 | H224: 0 | I224: 0 | J224: 0 | K224: 0 | L224: 0 | M224: 0 | N224: 0 | O224: 0 | P224: 0 | Q224: 0 | R224: 0 | S224: 0 | T224: 0
A225: x | C225: 14 | D225: Fremdreinigung / Reinigungsmaterial | E225: =SUM(H225:T225) -> 0 | F225: 2 | H225: 0 | I225: 0 | J225: 0 | K225: 0 | L225: 0 | M225: 0 | N225: 0 | O225: 0 | P225: 0 | Q225: 0 | R225: 0 | S225: 0 | T225: 0
A226: x | C226: 15 | D226: Gebäudeversicherung / Steuer | E226: =SUM(H226:T226) -> 0 | F226: 3 | H226: 0 | I226: 0 | J226: 0 | K226: 0 | L226: 0 | M226: 0 | N226: 0 | O226: 0 | P226: 0 | Q226: 0 | R226: 0 | S226: 0 | T226: 0
C227: 16 | D227: Gesamt Sachkosten Betriebsräume | E227: =SUM(E223:E226) -> 0 | G227: S | H227: =SUM(H223:H226) -> 0 | I227: 0 | J227: 0 | K227: 0 | L227: 0 | M227: 0 | N227: 0 | O227: 0 | P227: 0 | Q227: =SUM(Q223:Q226) -> 0 | R227: 0 | S227: 0 | T227: 0
A228: x | C228: 17 | D228: Grundstücksanlagen Instandhaltung | E228: =SUM(H228:T228) -> 0 | F228: 3 | H228: 0 | I228: 0 | J228: 0 | K228: 0 | L228: 0 | M228: 0 | N228: 0 | O228: 0 | P228: 0 | Q228: 0 | R228: 0 | S228: 0 | T228: 0
A229: x | C229: 18 | D229: Betriebsräume Instandhaltung | E229: =SUM(H229:T229) -> 0 | F229: 3 | H229: 0 | I229: 0 | J229: 0 | K229: 0 | L229: 0 | M229: 0 | N229: 0 | O229: 0 | P229: 0 | Q229: 0 | R229: 0 | S229: 0 | T229: 0
A230: x | C230: 19 | D230: Techn. Betriebsanlagen Instandhaltung | E230: =SUM(H230:T230) -> 0 | F230: 3 | H230: 0 | I230: 0 | J230: 0 | K230: 0 | L230: 0 | M230: 0 | N230: 0 | O230: 0 | P230: 0 | Q230: 0 | R230: 0 | S230: 0 | T230: 0
C231: 20 | D231: Gesamt Instandhaltung | E231: =SUM(E228:E230) -> 0 | G231: S | H231: =SUM(H228:H230) -> 0 | I231: 0 | J231: 0 | K231: 0 | L231: 0 | M231: 0 | N231: 0 | O231: 0 | P231: 0 | Q231: =SUM(Q228:Q230) -> 0 | R231: 0 | S231: 0 | T231: 0
A232: x | C232: 21 | D232: Betriebsstoffe | E232: =SUM(H232:T232) -> 0 | F232: 4 | H232: 0 | I232: 0 | J232: 0 | K232: 0 | L232: 0 | M232: 0 | N232: 0 | O232: 0 | P232: 0 | Q232: 0 | R232: 0 | S232: 0 | T232: 0
A233: x | C233: 22 | D233: Reparatur / Wartung KFZ | E233: 0 | F233: 4 | H233: 0 | I233: 0 | J233: 0 | K233: 0 | L233: 0 | M233: 0 | N233: 0 | O233: 0 | P233: 0 | Q233: 0 | R233: 0 | S233: 0 | T233: 0
A234: x | C234: 23 | D234: Reparatur Unfallschaden | E234: 0 | F234: 4 | H234: 0 | I234: 0 | J234: 0 | K234: 0 | L234: 0 | M234: 0 | N234: 0 | O234: 0 | P234: 0 | Q234: 0 | R234: 0 | S234: 0 | T234: 0
A235: x | C235: 24 | D235: Versicherung / Steuer KFZ | E235: 0 | F235: 3 | H235: 0 | I235: 0 | J235: 0 | K235: 0 | L235: 0 | M235: 0 | N235: 0 | O235: 0 | P235: 0 | Q235: 0 | R235: 0 | S235: 0 | T235: 0
A236: x | C236: 25 | D236: Reparaturen KFZ-Funk / Telekomm. | E236: 0 | F236: 5 | H236: 0 | I236: 0 | J236: 0 | K236: 0 | L236: 0 | M236: 0 | N236: 0 | O236: 0 | P236: 0 | Q236: 0 | R236: 0 | S236: 0 | T236: 0
A237: x | C237: 26 | D237: Miete / Leasing | E237: 0 | F237: 3 | H237: 0 | I237: 0 | J237: 0 | K237: 0 | L237: 0 | M237: 0 | N237: 0 | O237: 0 | P237: 0 | Q237: 0 | R237: 0 | S237: 0 | T237: 0
C238: 27 | D238: Gesamt Fahrzeuge | E238: =SUM(E232:E237) -> 0 | G238: S | H238: =SUM(H232:H237) -> 0 | I238: 0 | J238: 0 | K238: 0 | L238: 0 | M238: 0 | N238: 0 | O238: 0 | P238: 0 | Q238: =SUM(Q232:Q237) -> 0 | R238: 0 | S238: 0 | T238: 0
A239: x | C239: 28 | D239: Schutzbekleidung Beschaffg. / Reinigung | E239: =SUM(H239:T239) -> 0 | F239: 5 | H239: 0 | I239: 0 | J239: 0 | K239: 0 | L239: 0 | M239: 0 | N239: 0 | O239: 0 | P239: 0 | Q239: 0 | R239: 0 | S239: 0 | T239: 0
A240: x | C240: 29 | D240: Med. Gerät Wartung / Reparatur | E240: =SUM(H240:T240) -> 0 | F240: 5 | H240: 0 | I240: 0 | J240: 0 | K240: 0 | L240: 0 | M240: 0 | N240: 0 | O240: 0 | P240: 0 | Q240: 0 | R240: 0 | S240: 0 | T240: 0
A241: x | C241: 30 | D241: Arzneimittel / med. Sauerstoff | E241: =SUM(H241:T241) -> 0 | F241: 5 | H241: 0 | I241: 0 | J241: 0 | K241: 0 | L241: 0 | M241: 0 | N241: 0 | O241: 0 | P241: 0 | Q241: 0 | R241: 0 | S241: 0 | T241: 0
A242: x | C242: 31 | D242: Med. Sachbedarf / Einwegmat. | E242: =SUM(H242:T242) -> 0 | F242: 5 | H242: 0 | I242: 0 | J242: 0 | K242: 0 | L242: 0 | M242: 0 | N242: 0 | O242: 0 | P242: 0 | Q242: 0 | R242: 0 | S242: 0 | T242: 0
C243: 32 | D243: Gesamt Einsatzkosten | E243: =SUM(E239:E242) -> 0 | F243: 5 | G243: S | H243: =SUM(H239:H242) -> 0 | I243: 0 | J243: 0 | K243: 0 | L243: 0 | M243: 0 | N243: 0 | O243: 0 | P243: 0 | Q243: =SUM(Q239:Q242) -> 0 | R243: 0 | S243: 0 | T243: 0
A244: x | C244: 33 | D244: Büro- / Verwaltungsbedarf | E244: =SUM(H244:T244) -> 0 | F244: 5 | H244: 0 | I244: 0 | J244: 0 | K244: 0 | L244: 0 | M244: 0 | N244: 0 | O244: 0 | P244: 0 | Q244: 0 | R244: 0 | S244: 0 | T244: 0
A245: x | C245: 34 | D245: Telekommunikation | E245: 0 | F245: 5 | H245: 0 | I245: 0 | J245: 0 | K245: 0 | L245: 0 | M245: 0 | N245: 0 | O245: 0 | P245: 0 | Q245: 0 | R245: 0 | S245: 0 | T245: 0
A246: x | C246: 35 | D246: EDV-Kosten | E246: 0 | F246: 5 | H246: 0 | I246: 0 | J246: 0 | K246: 0 | L246: 0 | M246: 0 | N246: 0 | O246: 0 | P246: 0 | Q246: 0 | R246: 0 | S246: 0 | T246: 0
A247: x | C247: 36 | D247: Rechts- und Beratungskosten | E247: 0 | F247: 5 | H247: 0 | I247: 0 | J247: 0 | K247: 0 | L247: 0 | M247: 0 | N247: 0 | O247: 0 | P247: 0 | Q247: 0 | R247: 0 | S247: 0 | T247: 0
A248: x | C248: 37 | D248: Aufklärung | E248: 0 | F248: 5 | H248: 0 | I248: 0 | J248: 0 | K248: 0 | L248: 0 | M248: 0 | N248: 0 | O248: 0 | P248: 0 | Q248: 0 | R248: 0 | S248: 0 | T248: 0
A249: x | C249: 38 | D249: Inkasso | E249: 0 | F249: 5 | H249: 0 | I249: 0 | J249: 0 | K249: 0 | L249: 0 | M249: 0 | N249: 0 | O249: 0 | P249: 0 | Q249: 0 | R249: 0 | S249: 0 | T249: 0
A250: x | C250: 39 | D250: Sonstige Versicherungen | E250: 0 | F250: 5 | H250: 0 | I250: 0 | J250: 0 | K250: 0 | L250: 0 | M250: 0 | N250: 0 | O250: 0 | P250: 0 | Q250: 0 | R250: 0 | S250: 0 | T250: 0
C251: 40 | D251: Sachkosten "fiktive Verwaltung" | E251: 0 | F251: 0 | H251: 0 | I251: 0 | J251: 0 | K251: 0 | L251: 0 | M251: 0 | N251: 0 | O251: 0 | P251: 0 | Q251: 0 | R251: 0 | S251: 0 | T251: 0
C252: 41 | D252: Gesamt Allgemeinkosten | E252: =SUM(E244:E251) -> 0 | G252: S | H252: =SUM(H244:H251) -> 0 | I252: 0 | J252: 0 | K252: 0 | L252: 0 | M252: 0 | N252: 0 | O252: 0 | P252: 0 | Q252: =SUM(Q244:Q251) -> 0 | R252: 0 | S252: 0 | T252: 0
A253: x | C253: 42 | D253: Verzinsung Eigenkapital | E253: =SUM(H253:T253) -> 0 | F253: 2 | H253: 0 | I253: 0 | J253: 0 | K253: 0 | L253: 0 | M253: 0 | N253: 0 | O253: 0 | P253: 0 | Q253: 0 | R253: 0 | S253: 0 | T253: 0
A254: x | C254: 43 | D254: Zinsen für Fremdkapital | E254: =SUM(H254:T254) -> 0 | F254: 2 | H254: 0 | I254: 0 | J254: 0 | K254: 0 | L254: 0 | M254: 0 | N254: 0 | O254: 0 | P254: 0 | Q254: 0 | R254: 0 | S254: 0 | T254: 0
A255: x | C255: 44 | D255: Kontokorrentzinsen / Bankgebühren | E255: =SUM(H255:T255) -> 0 | F255: 2 | H255: 0 | I255: 0 | J255: 0 | K255: 0 | L255: 0 | M255: 0 | N255: 0 | O255: 0 | P255: 0 | Q255: 0 | R255: 0 | S255: 0 | T255: 0
C256: 45 | D256: Gesamt Zinsen | E256: =SUM(E253:E255) -> 0 | G256: S | H256: =SUM(H253:H255) -> 0 | I256: 0 | J256: 0 | K256: 0 | L256: 0 | M256: 0 | N256: 0 | O256: 0 | P256: 0 | Q256: =SUM(Q253:Q255) -> 0 | R256: 0 | S256: 0 | T256: 0
C257: 46 | D257: Summe Sachkosten | E257: =SUM(E222+E227+E231+E238+E243+E252+E256) -> 0 | G257: ZS | H257: =SUM(H222+H227+H231+H238+H243+H252+H256) -> 0 | I257: 0 | J257: 0 | K257: 0 | L257: 0 | M257: 0 | N257: 0 | O257: 0 | P257: 0 | Q257: =SUM(Q222+Q227+Q231+Q238+Q243+Q252+Q256) -> 0 | R257: 0 | S257: 0 | T257: 0
A259: x | C259: 47 | D259: AfA Außenanlagen | E259: =SUM(H259:T259) -> 0 | F259: 3 | H259: 0 | I259: 0 | J259: 0 | K259: 0 | L259: 0 | M259: 0 | N259: 0 | O259: 0 | P259: 0 | Q259: 0 | R259: 0 | S259: 0 | T259: 0
A260: x | C260: 48 | D260: AfA Gebäude | E260: 0 | F260: 3 | H260: 0 | I260: 0 | J260: 0 | K260: 0 | L260: 0 | M260: 0 | N260: 0 | O260: 0 | P260: 0 | Q260: 0 | R260: 0 | S260: 0 | T260: 0
A261: x | C261: 49 | D261: AfA techn. Bauanlagen, Heizung / Klima | E261: 0 | F261: 3 | H261: 0 | I261: 0 | J261: 0 | K261: 0 | L261: 0 | M261: 0 | N261: 0 | O261: 0 | P261: 0 | Q261: 0 | R261: 0 | S261: 0 | T261: 0
A262: x | C262: 50 | D262: AfA Inventar, Maschinen und Geräte | E262: 0 | F262: 3 | H262: 0 | I262: 0 | J262: 0 | K262: 0 | L262: 0 | M262: 0 | N262: 0 | O262: 0 | P262: 0 | Q262: 0 | R262: 0 | S262: 0 | T262: 0
A263: x | C263: 51 | D263: AfA Fahrzeuge | E263: 0 | F263: 3 | H263: 0 | I263: 0 | J263: 0 | K263: 0 | L263: 0 | M263: 0 | N263: 0 | O263: 0 | P263: 0 | Q263: 0 | R263: 0 | S263: 0 | T263: 0
A264: x | C264: 52 | D264: AfA Funk / Kommunikation | E264: 0 | F264: 3 | H264: 0 | I264: 0 | J264: 0 | K264: 0 | L264: 0 | M264: 0 | N264: 0 | O264: 0 | P264: 0 | Q264: 0 | R264: 0 | S264: 0 | T264: 0
A265: x | C265: 53 | D265: AfA medizinisches Gerät | E265: 0 | F265: 3 | H265: 0 | I265: 0 | J265: 0 | K265: 0 | L265: 0 | M265: 0 | N265: 0 | O265: 0 | P265: 0 | Q265: 0 | R265: 0 | S265: 0 | T265: 0
A266: x | C266: 54 | D266: AfA für GWG | E266: 0 | F266: 3 | H266: 0 | I266: 0 | J266: 0 | K266: 0 | L266: 0 | M266: 0 | N266: 0 | O266: 0 | P266: 0 | Q266: 0 | R266: 0 | S266: 0 | T266: 0
C267: 55 | D267: Gesamt Abschreibungen (AfA) | E267: =SUM(E259:E266) -> 0 | G267: S | H267: =SUM(H259:H266) -> 0 | I267: 0 | J267: 0 | K267: 0 | L267: 0 | M267: 0 | N267: 0 | O267: 0 | P267: 0 | Q267: =SUM(Q259:Q266) -> 0 | R267: 0 | S267: 0 | T267: 0
C268: 56 | D268: Bruttogesamtkosten | E268: =E218+E257+E267 -> 0 | G268: ZS | H268: =H218+H257+H267 -> 0 | I268: 0 | J268: 0 | K268: 0 | L268: 0 | M268: 0 | N268: 0 | O268: 0 | P268: 0 | Q268: =Q218+Q257+Q267 -> 0 | R268: 0 | S268: 0 | T268: 0
A270: x | C270: 57 | D270: Zuschüsse / Zuweisungen | E270: =SUM(H270:T270) -> 0 | F270: 2 | H270: 0 | I270: 0 | J270: 0 | K270: 0 | L270: 0 | M270: 0 | N270: 0 | O270: 0 | P270: 0 | Q270: 0 | R270: 0 | S270: 0 | T270: 0
A271: x | C271: 58 | D271: Finanzerträge | E271: =SUM(H271:T271) -> 0 | F271: 2 | H271: 0 | I271: 0 | J271: 0 | K271: 0 | L271: 0 | M271: 0 | N271: 0 | O271: 0 | P271: 0 | Q271: 0 | R271: 0 | S271: 0 | T271: 0
A272: x | C272: 59 | D272: Versicherungsleistungen | E272: =SUM(H272:T272) -> 0 | F272: 4 | H272: 0 | I272: 0 | J272: 0 | K272: 0 | L272: 0 | M272: 0 | N272: 0 | O272: 0 | P272: 0 | Q272: 0 | R272: 0 | S272: 0 | T272: 0
A273: x | C273: 60 | D273: Sonstige Einnahmen | E273: =SUM(H273:T273) -> 0 | F273: 2 | H273: 0 | I273: 0 | J273: 0 | K273: 0 | L273: 0 | M273: 0 | N273: 0 | O273: 0 | P273: 0 | Q273: 0 | R273: 0 | S273: 0 | T273: 0
A274: x | C274: 61 | D274: Verkaufserlöse aus Anlagenabgang | E274: =SUM(H274:T274) -> 0 | F274: 3 | H274: 0 | I274: 0 | J274: 0 | K274: 0 | L274: 0 | M274: 0 | N274: 0 | O274: 0 | P274: 0 | Q274: 0 | R274: 0 | S274: 0 | T274: 0
C275: 62 | D275: Gesamt Abzüge | E275: =SUM(E270:E274) -> 0 | G275: S | H275: =SUM(H270:H274) -> 0 | I275: 0 | J275: 0 | K275: 0 | L275: 0 | M275: 0 | N275: 0 | O275: 0 | P275: 0 | Q275: =SUM(Q270:Q274) -> 0 | R275: 0 | S275: 0 | T275: 0
C276: 63 | D276: Gesamtkosten RD gem. § 15 NRettDG | E276: =E268-E275 -> 0 | H276: =H268-H275 -> 0 | I276: 0 | J276: 0 | K276: 0 | L276: 0 | M276: 0 | N276: 0 | O276: 0 | P276: 0 | Q276: =Q268-Q275 -> 0 | R276: 0 | S276: 0 | T276: 0
D277: * Gemäß Kostenrichtlinien
A311: x | C311: 1 | D311: Personalkosten hauptamtlich | E311: =SUM(H311:T311) -> 0 | F311: 1 | H311: 0 | I311: 0 | J311: 0 | K311: 0 | L311: 0 | M311: 0 | N311: 0 | O311: 0 | P311: 0 | Q311: 0 | R311: 0 | S311: 0 | T311: 0
A312: x | C312: 2 | D312: Personalkosten nebenamtlich | E312: 0 | F312: 1 | H312: 0 | I312: 0 | J312: 0 | K312: 0 | L312: 0 | M312: 0 | N312: 0 | O312: 0 | P312: 0 | Q312: 0 | R312: 0 | S312: 0 | T312: 0
A313: x | C313: 3 | D313: Personalkosten ehrenamtlich | E313: 0 | F313: 1 | H313: 0 | I313: 0 | J313: 0 | K313: 0 | L313: 0 | M313: 0 | N313: 0 | O313: 0 | P313: 0 | Q313: 0 | R313: 0 | S313: 0 | T313: 0
A314: x | C314: 4 | D314: Personalkosten FSJ & Bundesfreiw.-D | E314: 0 | F314: 1 | H314: 0 | I314: 0 | J314: 0 | K314: 0 | L314: 0 | M314: 0 | N314: 0 | O314: 0 | P314: 0 | Q314: 0 | R314: 0 | S314: 0 | T314: 0
A315: x | C315: 5 | D315: Personalkosten Notarzt | E315: 0 | F315: 0 | H315: 0 | I315: 0 | J315: 0 | K315: 0 | L315: 0 | M315: 0 | N315: 0 | O315: 0 | P315: 0 | Q315: 0 | R315: 0 | S315: 0 | T315: 0
A316: x | C316: 6 | D316: Personalkosten "fiktive Verwaltung" | E316: 0 | F316: 0 | H316: 0 | I316: 0 | J316: 0 | K316: 0 | L316: 0 | M316: 0 | N316: 0 | O316: 0 | P316: 0 | Q316: 0 | R316: 0 | S316: 0 | T316: 0
A317: x | C317: 7 | D317: Personalkosten Reinigungspersonal | E317: 0 | F317: 2 | H317: 0 | I317: 0 | J317: 0 | K317: 0 | L317: 0 | M317: 0 | N317: 0 | O317: 0 | P317: 0 | Q317: 0 | R317: 0 | S317: 0 | T317: 0
C318: 8 | D318: Summe Personalkosten | E318: =SUM(E311:E317) -> 0 | G318: ZS | H318: =SUM(H311:H317) -> 0 | I318: 0 | J318: 0 | K318: 0 | L318: 0 | M318: 0 | N318: 0 | O318: 0 | P318: 0 | Q318: =SUM(Q311:Q317) -> 0 | R318: 0 | S318: 0 | T318: 0
A320: x | C320: 9 | D320: Aus- und Fortbildungskosten | E320: =SUM(H320:T320) -> 0 | F320: 1 | H320: 0 | I320: 0 | J320: 0 | K320: 0 | L320: 0 | M320: 0 | N320: 0 | O320: 0 | P320: 0 | Q320: 0 | R320: 0 | S320: 0 | T320: 0
A321: x | C321: 10 | D321: sonstige Sach-/Nebenkosten Personal | E321: =SUM(H321:T321) -> 0 | F321: 1 | H321: 0 | I321: 0 | J321: 0 | K321: 0 | L321: 0 | M321: 0 | N321: 0 | O321: 0 | P321: 0 | Q321: 0 | R321: 0 | S321: 0 | T321: 0
C322: 11 | D322: Gesamt Personalnebenkosten | E322: =SUM(E320:E321) -> 0 | G322: S | H322: =SUM(H320:H321) -> 0 | I322: 0 | J322: 0 | K322: 0 | L322: 0 | M322: 0 | N322: 0 | O322: 0 | P322: 0 | Q322: =SUM(Q320:Q321) -> 0 | R322: 0 | S322: 0 | T322: 0
A323: x | C323: 12 | D323: Mieten, Pachten | E323: =SUM(H323:T323) -> 0 | F323: 3 | H323: 0 | I323: 0 | J323: 0 | K323: 0 | L323: 0 | M323: 0 | N323: 0 | O323: 0 | P323: 0 | Q323: 0 | R323: 0 | S323: 0 | T323: 0
A324: x | C324: 13 | D324: Nebenkosten / Energie | E324: =SUM(H324:T324) -> 0 | F324: 2 | H324: 0 | I324: 0 | J324: 0 | K324: 0 | L324: 0 | M324: 0 | N324: 0 | O324: 0 | P324: 0 | Q324: 0 | R324: 0 | S324: 0 | T324: 0
A325: x | C325: 14 | D325: Fremdreinigung / Reinigungsmaterial | E325: =SUM(H325:T325) -> 0 | F325: 2 | H325: 0 | I325: 0 | J325: 0 | K325: 0 | L325: 0 | M325: 0 | N325: 0 | O325: 0 | P325: 0 | Q325: 0 | R325: 0 | S325: 0 | T325: 0
A326: x | C326: 15 | D326: Gebäudeversicherung / Steuer | E326: =SUM(H326:T326) -> 0 | F326: 3 | H326: 0 | I326: 0 | J326: 0 | K326: 0 | L326: 0 | M326: 0 | N326: 0 | O326: 0 | P326: 0 | Q326: 0 | R326: 0 | S326: 0 | T326: 0
C327: 16 | D327: Gesamt Sachkosten Betriebsräume | E327: =SUM(E323:E326) -> 0 | G327: S | H327: =SUM(H323:H326) -> 0 | I327: 0 | J327: 0 | K327: 0 | L327: 0 | M327: 0 | N327: 0 | O327: 0 | P327: 0 | Q327: =SUM(Q323:Q326) -> 0 | R327: 0 | S327: 0 | T327: 0
A328: x | C328: 17 | D328: Grundstücksanlagen Instandhaltung | E328: =SUM(H328:T328) -> 0 | F328: 3 | H328: 0 | I328: 0 | J328: 0 | K328: 0 | L328: 0 | M328: 0 | N328: 0 | O328: 0 | P328: 0 | Q328: 0 | R328: 0 | S328: 0 | T328: 0
A329: x | C329: 18 | D329: Betriebsräume Instandhaltung | E329: =SUM(H329:T329) -> 0 | F329: 3 | H329: 0 | I329: 0 | J329: 0 | K329: 0 | L329: 0 | M329: 0 | N329: 0 | O329: 0 | P329: 0 | Q329: 0 | R329: 0 | S329: 0 | T329: 0
A330: x | C330: 19 | D330: Techn. Betriebsanlagen Instandhaltung | E330: =SUM(H330:T330) -> 0 | F330: 3 | H330: 0 | I330: 0 | J330: 0 | K330: 0 | L330: 0 | M330: 0 | N330: 0 | O330: 0 | P330: 0 | Q330: 0 | R330: 0 | S330: 0 | T330: 0
C331: 20 | D331: Gesamt Instandhaltung | E331: =SUM(E328:E330) -> 0 | G331: S | H331: =SUM(H328:H330) -> 0 | I331: 0 | J331: 0 | K331: 0 | L331: 0 | M331: 0 | N331: 0 | O331: 0 | P331: 0 | Q331: =SUM(Q328:Q330) -> 0 | R331: 0 | S331: 0 | T331: 0
A332: x | C332: 21 | D332: Betriebsstoffe | E332: =SUM(H332:T332) -> 0 | F332: 4 | H332: 0 | I332: 0 | J332: 0 | K332: 0 | L332: 0 | M332: 0 | N332: 0 | O332: 0 | P332: 0 | Q332: 0 | R332: 0 | S332: 0 | T332: 0
A333: x | C333: 22 | D333: Reparatur / Wartung KFZ | E333: 0 | F333: 4 | H333: 0 | I333: 0 | J333: 0 | K333: 0 | L333: 0 | M333: 0 | N333: 0 | O333: 0 | P333: 0 | Q333: 0 | R333: 0 | S333: 0 | T333: 0
A334: x | C334: 23 | D334: Reparatur Unfallschaden | E334: 0 | F334: 4 | H334: 0 | I334: 0 | J334: 0 | K334: 0 | L334: 0 | M334: 0 | N334: 0 | O334: 0 | P334: 0 | Q334: 0 | R334: 0 | S334: 0 | T334: 0
A335: x | C335: 24 | D335: Versicherung / Steuer KFZ | E335: 0 | F335: 3 | H335: 0 | I335: 0 | J335: 0 | K335: 0 | L335: 0 | M335: 0 | N335: 0 | O335: 0 | P335: 0 | Q335: 0 | R335: 0 | S335: 0 | T335: 0
A336: x | C336: 25 | D336: Reparaturen KFZ-Funk / Telekomm. | E336: 0 | F336: 5 | H336: 0 | I336: 0 | J336: 0 | K336: 0 | L336: 0 | M336: 0 | N336: 0 | O336: 0 | P336: 0 | Q336: 0 | R336: 0 | S336: 0 | T336: 0
A337: x | C337: 26 | D337: Miete / Leasing | E337: 0 | F337: 3 | H337: 0 | I337: 0 | J337: 0 | K337: 0 | L337: 0 | M337: 0 | N337: 0 | O337: 0 | P337: 0 | Q337: 0 | R337: 0 | S337: 0 | T337: 0
C338: 27 | D338: Gesamt Fahrzeuge | E338: =SUM(E332:E337) -> 0 | G338: S | H338: =SUM(H332:H337) -> 0 | I338: 0 | J338: 0 | K338: 0 | L338: 0 | M338: 0 | N338: 0 | O338: 0 | P338: 0 | Q338: =SUM(Q332:Q337) -> 0 | R338: 0 | S338: 0 | T338: 0
A339: x | C339: 28 | D339: Schutzbekleidung Beschaffg. / Reinigung | E339: =SUM(H339:T339) -> 0 | F339: 5 | H339: 0 | I339: 0 | J339: 0 | K339: 0 | L339: 0 | M339: 0 | N339: 0 | O339: 0 | P339: 0 | Q339: 0 | R339: 0 | S339: 0 | T339: 0
A340: x | C340: 29 | D340: Med. Gerät Wartung / Reparatur | E340: =SUM(H340:T340) -> 0 | F340: 5 | H340: 0 | I340: 0 | J340: 0 | K340: 0 | L340: 0 | M340: 0 | N340: 0 | O340: 0 | P340: 0 | Q340: 0 | R340: 0 | S340: 0 | T340: 0
A341: x | C341: 30 | D341: Arzneimittel / med. Sauerstoff | E341: =SUM(H341:T341) -> 0 | F341: 5 | H341: 0 | I341: 0 | J341: 0 | K341: 0 | L341: 0 | M341: 0 | N341: 0 | O341: 0 | P341: 0 | Q341: 0 | R341: 0 | S341: 0 | T341: 0
A342: x | C342: 31 | D342: Med. Sachbedarf / Einwegmat. | E342: =SUM(H342:T342) -> 0 | F342: 5 | H342: 0 | I342: 0 | J342: 0 | K342: 0 | L342: 0 | M342: 0 | N342: 0 | O342: 0 | P342: 0 | Q342: 0 | R342: 0 | S342: 0 | T342: 0
C343: 32 | D343: Gesamt Einsatzkosten | E343: =SUM(E339:E342) -> 0 | F343: 5 | G343: S | H343: =SUM(H339:H342) -> 0 | I343: 0 | J343: 0 | K343: 0 | L343: 0 | M343: 0 | N343: 0 | O343: 0 | P343: 0 | Q343: =SUM(Q339:Q342) -> 0 | R343: 0 | S343: 0 | T343: 0
A344: x | C344: 33 | D344: Büro- / Verwaltungsbedarf | E344: =SUM(H344:T344) -> 0 | F344: 5 | H344: 0 | I344: 0 | J344: 0 | K344: 0 | L344: 0 | M344: 0 | N344: 0 | O344: 0 | P344: 0 | Q344: 0 | R344: 0 | S344: 0 | T344: 0
A345: x | C345: 34 | D345: Telekommunikation | E345: 0 | F345: 5 | H345: 0 | I345: 0 | J345: 0 | K345: 0 | L345: 0 | M345: 0 | N345: 0 | O345: 0 | P345: 0 | Q345: 0 | R345: 0 | S345: 0 | T345: 0
A346: x | C346: 35 | D346: EDV-Kosten | E346: 0 | F346: 5 | H346: 0 | I346: 0 | J346: 0 | K346: 0 | L346: 0 | M346: 0 | N346: 0 | O346: 0 | P346: 0 | Q346: 0 | R346: 0 | S346: 0 | T346: 0
A347: x | C347: 36 | D347: Rechts- und Beratungskosten | E347: 0 | F347: 5 | H347: 0 | I347: 0 | J347: 0 | K347: 0 | L347: 0 | M347: 0 | N347: 0 | O347: 0 | P347: 0 | Q347: 0 | R347: 0 | S347: 0 | T347: 0
A348: x | C348: 37 | D348: Aufklärung | E348: 0 | F348: 5 | H348: 0 | I348: 0 | J348: 0 | K348: 0 | L348: 0 | M348: 0 | N348: 0 | O348: 0 | P348: 0 | Q348: 0 | R348: 0 | S348: 0 | T348: 0
A349: x | C349: 38 | D349: Inkasso | E349: 0 | F349: 5 | H349: 0 | I349: 0 | J349: 0 | K349: 0 | L349: 0 | M349: 0 | N349: 0 | O349: 0 | P349: 0 | Q349: 0 | R349: 0 | S349: 0 | T349: 0
A350: x | C350: 39 | D350: Sonstige Versicherungen | E350: 0 | F350: 5 | H350: 0 | I350: 0 | J350: 0 | K350: 0 | L350: 0 | M350: 0 | N350: 0 | O350: 0 | P350: 0 | Q350: 0 | R350: 0 | S350: 0 | T350: 0
C351: 40 | D351: Sachkosten "fiktive Verwaltung" | E351: 0 | F351: 0 | H351: 0 | I351: 0 | J351: 0 | K351: 0 | L351: 0 | M351: 0 | N351: 0 | O351: 0 | P351: 0 | Q351: 0 | R351: 0 | S351: 0 | T351: 0
C352: 41 | D352: Gesamt Allgemeinkosten | E352: =SUM(E344:E351) -> 0 | G352: S | H352: =SUM(H344:H351) -> 0 | I352: 0 | J352: 0 | K352: 0 | L352: 0 | M352: 0 | N352: 0 | O352: 0 | P352: 0 | Q352: =SUM(Q344:Q351) -> 0 | R352: 0 | S352: 0 | T352: 0
A353: x | C353: 42 | D353: Verzinsung Eigenkapital | E353: =SUM(H353:T353) -> 0 | F353: 2 | H353: 0 | I353: 0 | J353: 0 | K353: 0 | L353: 0 | M353: 0 | N353: 0 | O353: 0 | P353: 0 | Q353: 0 | R353: 0 | S353: 0 | T353: 0
A354: x | C354: 43 | D354: Zinsen für Fremdkapital | E354: =SUM(H354:T354) -> 0 | F354: 2 | H354: 0 | I354: 0 | J354: 0 | K354: 0 | L354: 0 | M354: 0 | N354: 0 | O354: 0 | P354: 0 | Q354: 0 | R354: 0 | S354: 0 | T354: 0
A355: x | C355: 44 | D355: Kontokorrentzinsen / Bankgebühren | E355: =SUM(H355:T355) -> 0 | F355: 2 | H355: 0 | I355: 0 | J355: 0 | K355: 0 | L355: 0 | M355: 0 | N355: 0 | O355: 0 | P355: 0 | Q355: 0 | R355: 0 | S355: 0 | T355: 0
C356: 45 | D356: Gesamt Zinsen | E356: =SUM(E353:E355) -> 0 | G356: S | H356: =SUM(H353:H355) -> 0 | I356: 0 | J356: 0 | K356: 0 | L356: 0 | M356: 0 | N356: 0 | O356: 0 | P356: 0 | Q356: =SUM(Q353:Q355) -> 0 | R356: 0 | S356: 0 | T356: 0
C357: 46 | D357: Summe Sachkosten | E357: =SUM(E322+E327+E331+E338+E343+E352+E356) -> 0 | G357: ZS | H357: =SUM(H322+H327+H331+H338+H343+H352+H356) -> 0 | I357: 0 | J357: 0 | K357: 0 | L357: 0 | M357: 0 | N357: 0 | O357: 0 | P357: 0 | Q357: =SUM(Q322+Q327+Q331+Q338+Q343+Q352+Q356) -> 0 | R357: 0 | S357: 0 | T357: 0
A359: x | C359: 47 | D359: AfA Außenanlagen | E359: =SUM(H359:T359) -> 0 | F359: 3 | H359: 0 | I359: 0 | J359: 0 | K359: 0 | L359: 0 | M359: 0 | N359: 0 | O359: 0 | P359: 0 | Q359: 0 | R359: 0 | S359: 0 | T359: 0
A360: x | C360: 48 | D360: AfA Gebäude | E360: 0 | F360: 3 | H360: 0 | I360: 0 | J360: 0 | K360: 0 | L360: 0 | M360: 0 | N360: 0 | O360: 0 | P360: 0 | Q360: 0 | R360: 0 | S360: 0 | T360: 0
A361: x | C361: 49 | D361: AfA techn. Bauanlagen, Heizung / Klima | E361: 0 | F361: 3 | H361: 0 | I361: 0 | J361: 0 | K361: 0 | L361: 0 | M361: 0 | N361: 0 | O361: 0 | P361: 0 | Q361: 0 | R361: 0 | S361: 0 | T361: 0
A362: x | C362: 50 | D362: AfA Inventar, Maschinen und Geräte | E362: 0 | F362: 3 | H362: 0 | I362: 0 | J362: 0 | K362: 0 | L362: 0 | M362: 0 | N362: 0 | O362: 0 | P362: 0 | Q362: 0 | R362: 0 | S362: 0 | T362: 0
A363: x | C363: 51 | D363: AfA Fahrzeuge | E363: 0 | F363: 3 | H363: 0 | I363: 0 | J363: 0 | K363: 0 | L363: 0 | M363: 0 | N363: 0 | O363: 0 | P363: 0 | Q363: 0 | R363: 0 | S363: 0 | T363: 0
A364: x | C364: 52 | D364: AfA Funk / Kommunikation | E364: 0 | F364: 3 | H364: 0 | I364: 0 | J364: 0 | K364: 0 | L364: 0 | M364: 0 | N364: 0 | O364: 0 | P364: 0 | Q364: 0 | R364: 0 | S364: 0 | T364: 0
A365: x | C365: 53 | D365: AfA medizinisches Gerät | E365: 0 | F365: 3 | H365: 0 | I365: 0 | J365: 0 | K365: 0 | L365: 0 | M365: 0 | N365: 0 | O365: 0 | P365: 0 | Q365: 0 | R365: 0 | S365: 0 | T365: 0
A366: x | C366: 54 | D366: AfA für GWG | E366: 0 | F366: 3 | H366: 0 | I366: 0 | J366: 0 | K366: 0 | L366: 0 | M366: 0 | N366: 0 | O366: 0 | P366: 0 | Q366: 0 | R366: 0 | S366: 0 | T366: 0
C367: 55 | D367: Gesamt Abschreibungen (AfA) | E367: =SUM(E359:E366) -> 0 | G367: S | H367: =SUM(H359:H366) -> 0 | I367: 0 | J367: 0 | K367: 0 | L367: 0 | M367: 0 | N367: 0 | O367: 0 | P367: 0 | Q367: =SUM(Q359:Q366) -> 0 | R367: 0 | S367: 0 | T367: 0
C368: 56 | D368: Bruttogesamtkosten | E368: =E318+E357+E367 -> 0 | G368: ZS | H368: =H318+H357+H367 -> 0 | I368: 0 | J368: 0 | K368: 0 | L368: 0 | M368: 0 | N368: 0 | O368: 0 | P368: 0 | Q368: =Q318+Q357+Q367 -> 0 | R368: 0 | S368: 0 | T368: 0
A370: x | C370: 57 | D370: Zuschüsse / Zuweisungen | E370: =SUM(H370:T370) -> 0 | F370: 2 | H370: 0 | I370: 0 | J370: 0 | K370: 0 | L370: 0 | M370: 0 | N370: 0 | O370: 0 | P370: 0 | Q370: 0 | R370: 0 | S370: 0 | T370: 0
A371: x | C371: 58 | D371: Finanzerträge | E371: =SUM(H371:T371) -> 0 | F371: 2 | H371: 0 | I371: 0 | J371: 0 | K371: 0 | L371: 0 | M371: 0 | N371: 0 | O371: 0 | P371: 0 | Q371: 0 | R371: 0 | S371: 0 | T371: 0
A372: x | C372: 59 | D372: Versicherungsleistungen | E372: =SUM(H372:T372) -> 0 | F372: 4 | H372: 0 | I372: 0 | J372: 0 | K372: 0 | L372: 0 | M372: 0 | N372: 0 | O372: 0 | P372: 0 | Q372: 0 | R372: 0 | S372: 0 | T372: 0
A373: x | C373: 60 | D373: Sonstige Einnahmen | E373: =SUM(H373:T373) -> 0 | F373: 2 | H373: 0 | I373: 0 | J373: 0 | K373: 0 | L373: 0 | M373: 0 | N373: 0 | O373: 0 | P373: 0 | Q373: 0 | R373: 0 | S373: 0 | T373: 0
A374: x | C374: 61 | D374: Verkaufserlöse aus Anlagenabgang | E374: =SUM(H374:T374) -> 0 | F374: 3 | H374: 0 | I374: 0 | J374: 0 | K374: 0 | L374: 0 | M374: 0 | N374: 0 | O374: 0 | P374: 0 | Q374: 0 | R374: 0 | S374: 0 | T374: 0
C375: 62 | D375: Gesamt Abzüge | E375: =SUM(E370:E374) -> 0 | G375: S | H375: =SUM(H370:H374) -> 0 | I375: 0 | J375: 0 | K375: 0 | L375: 0 | M375: 0 | N375: 0 | O375: 0 | P375: 0 | Q375: =SUM(Q370:Q374) -> 0 | R375: 0 | S375: 0 | T375: 0
C376: 63 | D376: Gesamtkosten RD gem. § 15 NRettDG | E376: =E368-E375 -> 0 | H376: =H368-H375 -> 0 | I376: 0 | J376: 0 | K376: 0 | L376: 0 | M376: 0 | N376: 0 | O376: 0 | P376: 0 | Q376: =Q368-Q375 -> 0 | R376: 0 | S376: 0 | T376: 0
D377: * Gemäß Kostenrichtlinien
A411: x | C411: 1 | D411: Personalkosten hauptamtlich | E411: =SUM(H411:T411) -> 0 | F411: 1 | H411: 0 | I411: 0 | J411: 0 | K411: 0 | L411: 0 | M411: 0 | N411: 0 | O411: 0 | P411: 0 | Q411: 0 | R411: 0 | S411: 0 | T411: 0
... 1727 more rows

Sheet RW-Statistik
H1: x | I1: x | J1: x | K1: x | L1: x | M1: x | N1: x | O1: x | P1: x
B2: =ParameterDatei!D174 -> Drucken • Sichern • Export • Hauptmenu • RW BAB • RW Anmerkungen
C4: Leistungsdaten für den BAB Rettungsdienst in Niedersachsen*)
C5: Rettungswache | E5: =ParameterDatei!B150 -> 1 | F5: =INDEX(ParameterDatei!D119:D148,ParameterDatei!B150) -> 1 | K5: =" für den Berichtszeitraum "&INDEX(ParameterDatei!F9:F26,ParameterDatei!F27) -> für den Berichtszeitraum Leerfeld
C7: Zeile | E7: Summe | F7: US | G7: KZ | H7: Hilfs-Kostenstellen | L7: Sonst-Kst
E8: Insgesamt | H8: RTW | I8: KTW | J8: NEF | K8: MZF | L8: ='Basis-Daten'!D12 -> Sonstige 1 | M8: ='Basis-Daten'!D14 -> Sonstige 2 | N8: ='Basis-Daten'!D16 -> Sonstige 3 | O8: ='Basis-Daten'!D18 -> Sonstige 4 | P8: ='Basis-Daten'!D20 -> Sonstige 5
C9: 1 | D9: 2 | E9: 3 | F9: 4 | G9: 5 | H9: 14 | I9: 15 | J9: 16 | K9: 17 | L9: 9 | M9: 10 | N9: 11 | O9: 12 | P9: 13
D111: Rettungsdienststruktur
A113: x | C113: 101 | D113: Anzahl Rettungsmittel | E113: =SUM(H113:Q113) -> 0 | H113: 0 | I113: 0 | J113: 0 | K113: 0 | L113: 0 | M113: 0 | N113: 0 | O113: 0 | P113: 0
A114: x | C114: 103 | D114: Vorhaltestunden pro Jahr | E114: =SUM(H114:Q114) -> 0 | H114: 0 | I114: 0 | J114: 0 | K114: 0 | L114: 0 | M114: 0 | N114: 0 | O114: 0 | P114: 0
A115: x | C115: 105 | D115: Jahresstunden Einsatzpersonal | E115: =SUM(H115:Q115) -> 0 | H115: 0 | I115: 0 | J115: 0 | K115: 0 | L115: 0 | M115: 0 | N115: 0 | O115: 0 | P115: 0
A116: x | C116: 107 | D116: Jahresstunden Notärzte | E116: =SUM(H116:Q116) -> 0 | H116: 0 | I116: 0 | J116: 0 | K116: 0 | L116: 0 | M116: 0 | N116: 0 | O116: 0 | P116: 0
D119: Leistungsdaten
C121: 109 | D121: Gesamteinsätze (117+120+123) | E121: =SUM(H121:Q121) -> 0 | H121: =SUM(H124:H126) -> 0 | I121: =SUM(I124:I126) -> 0 | J121: 0 | K121: 0 | L121: 0 | M121: 0 | N121: 0 | O121: 0 | P121: 0
A122: x | C122: 111 | D122: Davon Fehleinsätze | E122: 0 | H122: 0 | I122: 0 | J122: 0 | K122: 0 | L122: 0 | M122: 0 | N122: 0 | O122: 0 | P122: 0
A123: x | C123: 114 | D123: Einsätze abrechenbar für Entgeltkalk. | E123: 0 | H123: 0 | I123: 0 | J123: 0 | K123: 0 | L123: 0 | M123: 0 | N123: 0 | O123: 0 | P123: 0
A124: x | C124: 117 | D124: Gesameinsätze Notfallrettung | E124: 0 | H124: 0 | I124: 0 | J124: 0 | K124: 0 | L124: 0 | M124: 0 | N124: 0 | O124: 0 | P124: 0
A125: x | C125: 120 | D125: Gesamteinsätze Krankentransport | E125: 0 | H125: 0 | I125: 0 | J125: 0 | K125: 0 | L125: 0 | M125: 0 | N125: 0 | O125: 0 | P125: 0
A126: x | C126: 123 | D126: Gesamteinsätze Notarztdienst | E126: 0 | H126: 0 | I126: 0 | J126: 0 | K126: 0 | L126: 0 | M126: 0 | N126: 0 | O126: 0 | P126: 0
C128: 126 | D128: Kilometer (131+134+137) | E128: =SUM(H128:Q128) -> 0 | H128: =SUM(H130:H132) -> 0 | I128: =SUM(I130:I132) -> 0 | J128: 0 | K128: 0 | L128: 0 | M128: 0 | N128: 0 | O128: 0 | P128: 0
A129: x | C129: 128 | D129: Einsatz-Km abrechenbar für Entgeltkalk. | E129: =SUM(H129:Q129) -> 0 | H129: 0 | I129: 0 | J129: 0 | K129: 0 | L129: 0 | M129: 0 | N129: 0 | O129: 0 | P129: 0
A130: x | C130: 131 | D130: Kilometer Notfallrettung | E130: =SUM(H130:Q130) -> 0 | H130: 0 | I130: 0 | J130: 0 | K130: 0 | L130: 0 | M130: 0 | N130: 0 | O130: 0 | P130: 0
A131: x | C131: 134 | D131: Kilometer Krankentransport | E131: =SUM(H131:Q131) -> 0 | H131: 0 | I131: 0 | J131: 0 | K131: 0 | L131: 0 | M131: 0 | N131: 0 | O131: 0 | P131: 0
A132: x | C132: 137 | D132: Kilometer Notarztdienst | E132: =SUM(H132:Q132) -> 0 | H132: 0 | I132: 0 | J132: 0 | K132: 0 | L132: 0 | M132: 0 | N132: 0 | O132: 0 | P132: 0
A134: x | C134: 140 | D134: Einsatzdauer in Minuten ø pro Einsatz | E134: =IF(E121=0,0,((H134*H121)+(I134*I121)+(J134*J121)+(K134*K121)+(L134*L121)+(M134*M121)+(N134*N121)+(O134*O121)+(P134*P121))/E121) -> 0 | H134: 0 | I134: 0 | J134: 0 | K134: 0 | L134: 0 | M134: 0 | N134: 0 | O134: 0 | P134: 0
D211: Rettungsdienststruktur
A213: x | C213: 101 | D213: Anzahl Rettungsmittel | E213: =SUM(H213:Q213) -> 0 | H213: 0 | I213: 0 | J213: 0 | K213: 0 | L213: 0 | M213: 0 | N213: 0 | O213: 0 | P213: 0
A214: x | C214: 103 | D214: Vorhaltestunden pro Jahr | E214: =SUM(H214:Q214) -> 0 | H214: 0 | I214: 0 | J214: 0 | K214: 0 | L214: 0 | M214: 0 | N214: 0 | O214: 0 | P214: 0
A215: x | C215: 105 | D215: Jahresstunden Einsatzpersonal | E215: =SUM(H215:Q215) -> 0 | H215: 0 | I215: 0 | J215: 0 | K215: 0 | L215: 0 | M215: 0 | N215: 0 | O215: 0 | P215: 0
A216: x | C216: 107 | D216: Jahresstunden Notärzte | E216: =SUM(H216:Q216) -> 0 | H216: 0 | I216: 0 | J216: 0 | K216: 0 | L216: 0 | M216: 0 | N216: 0 | O216: 0 | P216: 0
D219: Leistungsdaten
C221: 109 | D221: Einsätze insgesamt (117+120+123) | E221: =SUM(H221:Q221) -> 0 | H221: =SUM(H224:H226) -> 0 | I221: =SUM(I224:I226) -> 0 | J221: 0 | K221: 0 | L221: 0 | M221: 0 | N221: 0 | O221: 0 | P221: 0
A222: x | C222: 111 | D222: Fehleinsätze | E222: 0 | H222: 0 | I222: 0 | J222: 0 | K222: 0 | L222: 0 | M222: 0 | N222: 0 | O222: 0 | P222: 0
A223: x | C223: 114 | D223: Einsätze abrechenbar für Entgeltkalk. | E223: 0 | H223: 0 | I223: 0 | J223: 0 | K223: 0 | L223: 0 | M223: 0 | N223: 0 | O223: 0 | P223: 0
A224: x | C224: 117 | D224: Einsätze Notfallrettung | E224: 0 | H224: 0 | I224: 0 | J224: 0 | K224: 0 | L224: 0 | M224: 0 | N224: 0 | O224: 0 | P224: 0
A225: x | C225: 120 | D225: Einsätze Krankentransport | E225: 0 | H225: 0 | I225: 0 | J225: 0 | K225: 0 | L225: 0 | M225: 0 | N225: 0 | O225: 0 | P225: 0
A226: x | C226: 123 | D226: Einsätze Notarztdienst | E226: 0 | H226: 0 | I226: 0 | J226: 0 | K226: 0 | L226: 0 | M226: 0 | N226: 0 | O226: 0 | P226: 0
C228: 126 | D228: Kilometer (131+134+137) | E228: =SUM(H228:Q228) -> 0 | H228: =SUM(H230:H232) -> 0 | I228: =SUM(I230:I232) -> 0 | J228: 0 | K228: 0 | L228: 0 | M228: 0 | N228: 0 | O228: 0 | P228: 0
A229: x | C229: 128 | D229: Einsatz-Km abrechenbar für Entgeltkalk. | E229: =SUM(H229:Q229) -> 0 | H229: 0 | I229: 0 | J229: 0 | K229: 0 | L229: 0 | M229: 0 | N229: 0 | O229: 0 | P229: 0
A230: x | C230: 131 | D230: Kilometer Notfallrettung | E230: =SUM(H230:Q230) -> 0 | H230: 0 | I230: 0 | J230: 0 | K230: 0 | L230: 0 | M230: 0 | N230: 0 | O230: 0 | P230: 0
A231: x | C231: 134 | D231: Kilometer Krankentransport | E231: =SUM(H231:Q231) -> 0 | H231: 0 | I231: 0 | J231: 0 | K231: 0 | L231: 0 | M231: 0 | N231: 0 | O231: 0 | P231: 0
A232: x | C232: 137 | D232: Kilometer Notarztdienst | E232: =SUM(H232:Q232) -> 0 | H232: 0 | I232: 0 | J232: 0 | K232: 0 | L232: 0 | M232: 0 | N232: 0 | O232: 0 | P232: 0
A234: x | C234: 140 | D234: Einsatzdauer in Minuten ø pro Einsatz | E234: =IF(E221=0,0,((H234*H221)+(I234*I221)+(J234*J221)+(K234*K221)+(L234*L221)+(M234*M221)+(N234*N221)+(O234*O221)+(P234*P221))/E221) -> 0 | H234: 0 | I234: 0 | J234: 0 | K234: 0 | L234: 0 | M234: 0 | N234: 0 | O234: 0 | P234: 0
D311: Rettungsdienststruktur
A313: x | C313: 101 | D313: Anzahl Rettungsmittel | E313: =SUM(H313:Q313) -> 0 | H313: 0 | I313: 0 | J313: 0 | K313: 0 | L313: 0 | M313: 0 | N313: 0 | O313: 0 | P313: 0
A314: x | C314: 103 | D314: Vorhaltestunden pro Jahr | E314: =SUM(H314:Q314) -> 0 | H314: 0 | I314: 0 | J314: 0 | K314: 0 | L314: 0 | M314: 0 | N314: 0 | O314: 0 | P314: 0
A315: x | C315: 105 | D315: Jahresstunden Einsatzpersonal | E315: =SUM(H315:Q315) -> 0 | H315: 0 | I315: 0 | J315: 0 | K315: 0 | L315: 0 | M315: 0 | N315: 0 | O315: 0 | P315: 0
A316: x | C316: 107 | D316: Jahresstunden Notärzte | E316: =SUM(H316:Q316) -> 0 | H316: 0 | I316: 0 | J316: 0 | K316: 0 | L316: 0 | M316: 0 | N316: 0 | O316: 0 | P316: 0
D319: Leistungsdaten
C321: 109 | D321: Einsätze insgesamt (117+120+123) | E321: =SUM(H321:Q321) -> 0 | H321: =SUM(H324:H326) -> 0 | I321: =SUM(I324:I326) -> 0 | J321: 0 | K321: 0 | L321: 0 | M321: 0 | N321: 0 | O321: 0 | P321: 0
A322: x | C322: 111 | D322: Fehleinsätze | E322: 0 | H322: 0 | I322: 0 | J322: 0 | K322: 0 | L322: 0 | M322: 0 | N322: 0 | O322: 0 | P322: 0
A323: x | C323: 114 | D323: Einsätze abrechenbar für Entgeltkalk. | E323: 0 | H323: 0 | I323: 0 | J323: 0 | K323: 0 | L323: 0 | M323: 0 | N323: 0 | O323: 0 | P323: 0
A324: x | C324: 117 | D324: Einsätze Notfallrettung | E324: 0 | H324: 0 | I324: 0 | J324: 0 | K324: 0 | L324: 0 | M324: 0 | N324: 0 | O324: 0 | P324: 0
A325: x | C325: 120 | D325: Einsätze Krankentransport | E325: 0 | H325: 0 | I325: 0 | J325: 0 | K325: 0 | L325: 0 | M325: 0 | N325: 0 | O325: 0 | P325: 0
A326: x | C326: 123 | D326: Einsätze Notarztdienst | E326: 0 | H326: 0 | I326: 0 | J326: 0 | K326: 0 | L326: 0 | M326: 0 | N326: 0 | O326: 0 | P326: 0
C328: 126 | D328: Kilometer (131+134+137) | E328: =SUM(H328:Q328) -> 0 | H328: =SUM(H330:H332) -> 0 | I328: =SUM(I330:I332) -> 0 | J328: 0 | K328: 0 | L328: 0 | M328: 0 | N328: 0 | O328: 0 | P328: 0
A329: x | C329: 128 | D329: Einsatz-Km abrechenbar für Entgeltkalk. | E329: =SUM(H329:Q329) -> 0 | H329: 0 | I329: 0 | J329: 0 | K329: 0 | L329: 0 | M329: 0 | N329: 0 | O329: 0 | P329: 0
A330: x | C330: 131 | D330: Kilometer Notfallrettung | E330: =SUM(H330:Q330) -> 0 | H330: 0 | I330: 0 | J330: 0 | K330: 0 | L330: 0 | M330: 0 | N330: 0 | O330: 0 | P330: 0
A331: x | C331: 134 | D331: Kilometer Krankentransport | E331: =SUM(H331:Q331) -> 0 | H331: 0 | I331: 0 | J331: 0 | K331: 0 | L331: 0 | M331: 0 | N331: 0 | O331: 0 | P331: 0
A332: x | C332: 137 | D332: Kilometer Notarztdienst | E332: =SUM(H332:Q332) -> 0 | H332: 0 | I332: 0 | J332: 0 | K332: 0 | L332: 0 | M332: 0 | N332: 0 | O332: 0 | P332: 0
A334: x | C334: 140 | D334: Einsatzdauer in Minuten ø pro Einsatz | E334: =IF(E321=0,0,((H334*H321)+(I334*I321)+(J334*J321)+(K334*K321)+(L334*L321)+(M334*M321)+(N334*N321)+(O334*O321)+(P334*P321))/E321) -> 0 | H334: 0 | I334: 0 | J334: 0 | K334: 0 | L334: 0 | M334: 0 | N334: 0 | O334: 0 | P334: 0
D411: Rettungsdienststruktur
A413: x | C413: 101 | D413: Anzahl Rettungsmittel | E413: =SUM(H413:Q413) -> 0 | H413: 0 | I413: 0 | J413: 0 | K413: 0 | L413: 0 | M413: 0 | N413: 0 | O413: 0 | P413: 0
A414: x | C414: 103 | D414: Vorhaltestunden pro Jahr | E414: =SUM(H414:Q414) -> 0 | H414: 0 | I414: 0 | J414: 0 | K414: 0 | L414: 0 | M414: 0 | N414: 0 | O414: 0 | P414: 0
A415: x | C415: 105 | D415: Jahresstunden Einsatzpersonal | E415: =SUM(H415:Q415) -> 0 | H415: 0 | I415: 0 | J415: 0 | K415: 0 | L415: 0 | M415: 0 | N415: 0 | O415: 0 | P415: 0
A416: x | C416: 107 | D416: Jahresstunden Notärzte | E416: =SUM(H416:Q416) -> 0 | H416: 0 | I416: 0 | J416: 0 | K416: 0 | L416: 0 | M416: 0 | N416: 0 | O416: 0 | P416: 0
D419: Leistungsdaten
C421: 109 | D421: Einsätze insgesamt (117+120+123) | E421: =SUM(H421:Q421) -> 0 | H421: =SUM(H424:H426) -> 0 | I421: =SUM(I424:I426) -> 0 | J421: 0 | K421: 0 | L421: 0 | M421: 0 | N421: 0 | O421: 0 | P421: 0
A422: x | C422: 111 | D422: Fehleinsätze | E422: 0 | H422: 0 | I422: 0 | J422: 0 | K422: 0 | L422: 0 | M422: 0 | N422: 0 | O422: 0 | P422: 0
A423: x | C423: 114 | D423: Einsätze abrechenbar für Entgeltkalk. | E423: 0 | H423: 0 | I423: 0 | J423: 0 | K423: 0 | L423: 0 | M423: 0 | N423: 0 | O423: 0 | P423: 0
A424: x | C424: 117 | D424: Einsätze Notfallrettung | E424: 0 | H424: 0 | I424: 0 | J424: 0 | K424: 0 | L424: 0 | M424: 0 | N424: 0 | O424: 0 | P424: 0
A425: x | C425: 120 | D425: Einsätze Krankentransport | E425: 0 | H425: 0 | I425: 0 | J425: 0 | K425: 0 | L425: 0 | M425: 0 | N425: 0 | O425: 0 | P425: 0
A426: x | C426: 123 | D426: Einsätze Notarztdienst | E426: 0 | H426: 0 | I426: 0 | J426: 0 | K426: 0 | L426: 0 | M426: 0 | N426: 0 | O426: 0 | P426: 0
C428: 126 | D428: Kilometer (131+134+137) | E428: =SUM(H428:Q428) -> 0 | H428: =SUM(H430:H432) -> 0 | I428: =SUM(I430:I432) -> 0 | J428: 0 | K428: 0 | L428: 0 | M428: 0 | N428: 0 | O428: 0 | P428: 0
A429: x | C429: 128 | D429: Einsatz-Km abrechenbar für Entgeltkalk. | E429: =SUM(H429:Q429) -> 0 | H429: 0 | I429: 0 | J429: 0 | K429: 0 | L429: 0 | M429: 0 | N429: 0 | O429: 0 | P429: 0
A430: x | C430: 131 | D430: Kilometer Notfallrettung | E430: =SUM(H430:Q430) -> 0 | H430: 0 | I430: 0 | J430: 0 | K430: 0 | L430: 0 | M430: 0 | N430: 0 | O430: 0 | P430: 0
A431: x | C431: 134 | D431: Kilometer Krankentransport | E431: =SUM(H431:Q431) -> 0 | H431: 0 | I431: 0 | J431: 0 | K431: 0 | L431: 0 | M431: 0 | N431: 0 | O431: 0 | P431: 0
A432: x | C432: 137 | D432: Kilometer Notarztdienst | E432: =SUM(H432:Q432) -> 0 | H432: 0 | I432: 0 | J432: 0 | K432: 0 | L432: 0 | M432: 0 | N432: 0 | O432: 0 | P432: 0
A434: x | C434: 140 | D434: Einsatzdauer in Minuten ø pro Einsatz | E434: =IF(E421=0,0,((H434*H421)+(I434*I421)+(J434*J421)+(K434*K421)+(L434*L421)+(M434*M421)+(N434*N421)+(O434*O421)+(P434*P421))/E421) -> 0 | H434: 0 | I434: 0 | J434: 0 | K434: 0 | L434: 0 | M434: 0 | N434: 0 | O434: 0 | P434: 0
D511: Rettungsdienststruktur
A513: x | C513: 101 | D513: Anzahl Rettungsmittel | E513: =SUM(H513:Q513) -> 0 | H513: 0 | I513: 0 | J513: 0 | K513: 0 | L513: 0 | M513: 0 | N513: 0 | O513: 0 | P513: 0
A514: x | C514: 103 | D514: Vorhaltestunden pro Jahr | E514: =SUM(H514:Q514) -> 0 | H514: 0 | I514: 0 | J514: 0 | K514: 0 | L514: 0 | M514: 0 | N514: 0 | O514: 0 | P514: 0
A515: x | C515: 105 | D515: Jahresstunden Einsatzpersonal | E515: =SUM(H515:Q515) -> 0 | H515: 0 | I515: 0 | J515: 0 | K515: 0 | L515: 0 | M515: 0 | N515: 0 | O515: 0 | P515: 0
A516: x | C516: 107 | D516: Jahresstunden Notärzte | E516: =SUM(H516:Q516) -> 0 | H516: 0 | I516: 0 | J516: 0 | K516: 0 | L516: 0 | M516: 0 | N516: 0 | O516: 0 | P516: 0
D519: Leistungsdaten
C521: 109 | D521: Einsätze insgesamt (117+120+123) | E521: =SUM(H521:Q521) -> 0 | H521: =SUM(H524:H526) -> 0 | I521: =SUM(I524:I526) -> 0 | J521: 0 | K521: 0 | L521: 0 | M521: 0 | N521: 0 | O521: 0 | P521: 0
A522: x | C522: 111 | D522: Fehleinsätze | E522: 0 | H522: 0 | I522: 0 | J522: 0 | K522: 0 | L522: 0 | M522: 0 | N522: 0 | O522: 0 | P522: 0
A523: x | C523: 114 | D523: Einsätze abrechenbar für Entgeltkalk. | E523: 0 | H523: 0 | I523: 0 | J523: 0 | K523: 0 | L523: 0 | M523: 0 | N523: 0 | O523: 0 | P523: 0
A524: x | C524: 117 | D524: Einsätze Notfallrettung | E524: 0 | H524: 0 | I524: 0 | J524: 0 | K524: 0 | L524: 0 | M524: 0 | N524: 0 | O524: 0 | P524: 0
A525: x | C525: 120 | D525: Einsätze Krankentransport | E525: 0 | H525: 0 | I525: 0 | J525: 0 | K525: 0 | L525: 0 | M525: 0 | N525: 0 | O525: 0 | P525: 0
A526: x | C526: 123 | D526: Einsätze Notarztdienst | E526: 0 | H526: 0 | I526: 0 | J526: 0 | K526: 0 | L526: 0 | M526: 0 | N526: 0 | O526: 0 | P526: 0
C528: 126 | D528: Kilometer (131+134+137) | E528: =SUM(H528:Q528) -> 0 | H528: =SUM(H530:H532) -> 0 | I528: =SUM(I530:I532) -> 0 | J528: 0 | K528: 0 | L528: 0 | M528: 0 | N528: 0 | O528: 0 | P528: 0
A529: x | C529: 128 | D529: Einsatz-Km abrechenbar für Entgeltkalk. | E529: =SUM(H529:Q529) -> 0 | H529: 0 | I529: 0 | J529: 0 | K529: 0 | L529: 0 | M529: 0 | N529: 0 | O529: 0 | P529: 0
A530: x | C530: 131 | D530: Kilometer Notfallrettung | E530: =SUM(H530:Q530) -> 0 | H530: 0 | I530: 0 | J530: 0 | K530: 0 | L530: 0 | M530: 0 | N530: 0 | O530: 0 | P530: 0
A531: x | C531: 134 | D531: Kilometer Krankentransport | E531: =SUM(H531:Q531) -> 0 | H531: 0 | I531: 0 | J531: 0 | K531: 0 | L531: 0 | M531: 0 | N531: 0 | O531: 0 | P531: 0
A532: x | C532: 137 | D532: Kilometer Notarztdienst | E532: =SUM(H532:Q532) -> 0 | H532: 0 | I532: 0 | J532: 0 | K532: 0 | L532: 0 | M532: 0 | N532: 0 | O532: 0 | P532: 0
A534: x | C534: 140 | D534: Einsatzdauer in Minuten ø pro Einsatz | E534: =IF(E521=0,0,((H534*H521)+(I534*I521)+(J534*J521)+(K534*K521)+(L534*L521)+(M534*M521)+(N534*N521)+(O534*O521)+(P534*P521))/E521) -> 0 | H534: 0 | I534: 0 | J534: 0 | K534: 0 | L534: 0 | M534: 0 | N534: 0 | O534: 0 | P534: 0
D611: Rettungsdienststruktur
A613: x | C613: 101 | D613: Anzahl Rettungsmittel | E613: =SUM(H613:Q613) -> 0 | H613: 0 | I613: 0 | J613: 0 | K613: 0 | L613: 0 | M613: 0 | N613: 0 | O613: 0 | P613: 0
A614: x | C614: 103 | D614: Vorhaltestunden pro Jahr | E614: =SUM(H614:Q614) -> 0 | H614: 0 | I614: 0 | J614: 0 | K614: 0 | L614: 0 | M614: 0 | N614: 0 | O614: 0 | P614: 0
A615: x | C615: 105 | D615: Jahresstunden Einsatzpersonal | E615: =SUM(H615:Q615) -> 0 | H615: 0 | I615: 0 | J615: 0 | K615: 0 | L615: 0 | M615: 0 | N615: 0 | O615: 0 | P615: 0
A616: x | C616: 107 | D616: Jahresstunden Notärzte | E616: =SUM(H616:Q616) -> 0 | H616: 0 | I616: 0 | J616: 0 | K616: 0 | L616: 0 | M616: 0 | N616: 0 | O616: 0 | P616: 0
D619: Leistungsdaten
C621: 109 | D621: Einsätze insgesamt (117+120+123) | E621: =SUM(H621:Q621) -> 0 | H621: =SUM(H624:H626) -> 0 | I621: =SUM(I624:I626) -> 0 | J621: 0 | K621: 0 | L621: 0 | M621: 0 | N621: 0 | O621: 0 | P621: 0
A622: x | C622: 111 | D622: Fehleinsätze | E622: 0 | H622: 0 | I622: 0 | J622: 0 | K622: 0 | L622: 0 | M622: 0 | N622: 0 | O622: 0 | P622: 0
A623: x | C623: 114 | D623: Einsätze abrechenbar für Entgeltkalk. | E623: 0 | H623: 0 | I623: 0 | J623: 0 | K623: 0 | L623: 0 | M623: 0 | N623: 0 | O623: 0 | P623: 0
A624: x | C624: 117 | D624: Einsätze Notfallrettung | E624: 0 | H624: 0 | I624: 0 | J624: 0 | K624: 0 | L624: 0 | M624: 0 | N624: 0 | O624: 0 | P624: 0
A625: x | C625: 120 | D625: Einsätze Krankentransport | E625: 0 | H625: 0 | I625: 0 | J625: 0 | K625: 0 | L625: 0 | M625: 0 | N625: 0 | O625: 0 | P625: 0
A626: x | C626: 123 | D626: Einsätze Notarztdienst | E626: 0 | H626: 0 | I626: 0 | J626: 0 | K626: 0 | L626: 0 | M626: 0 | N626: 0 | O626: 0 | P626: 0
C628: 126 | D628: Kilometer (131+134+137) | E628: =SUM(H628:Q628) -> 0 | H628: =SUM(H630:H632) -> 0 | I628: =SUM(I630:I632) -> 0 | J628: 0 | K628: 0 | L628: 0 | M628: 0 | N628: 0 | O628: 0 | P628: 0
A629: x | C629: 128 | D629: Einsatz-Km abrechenbar für Entgeltkalk. | E629: =SUM(H629:Q629) -> 0 | H629: 0 | I629: 0 | J629: 0 | K629: 0 | L629: 0 | M629: 0 | N629: 0 | O629: 0 | P629: 0
A630: x | C630: 131 | D630: Kilometer Notfallrettung | E630: =SUM(H630:Q630) -> 0 | H630: 0 | I630: 0 | J630: 0 | K630: 0 | L630: 0 | M630: 0 | N630: 0 | O630: 0 | P630: 0
A631: x | C631: 134 | D631: Kilometer Krankentransport | E631: =SUM(H631:Q631) -> 0 | H631: 0 | I631: 0 | J631: 0 | K631: 0 | L631: 0 | M631: 0 | N631: 0 | O631: 0 | P631: 0
A632: x | C632: 137 | D632: Kilometer Notarztdienst | E632: =SUM(H632:Q632) -> 0 | H632: 0 | I632: 0 | J632: 0 | K632: 0 | L632: 0 | M632: 0 | N632: 0 | O632: 0 | P632: 0
A634: x | C634: 140 | D634: Einsatzdauer in Minuten ø pro Einsatz | E634: =IF(E621=0,0,((H634*H621)+(I634*I621)+(J634*J621)+(K634*K621)+(L634*L621)+(M634*M621)+(N634*N621)+(O634*O621)+(P634*P621))/E621) -> 0 | H634: 0 | I634: 0 | J634: 0 | K634: 0 | L634: 0 | M634: 0 | N634: 0 | O634: 0 | P634: 0
D711: Rettungsdienststruktur
A713: x | C713: 101 | D713: Anzahl Rettungsmittel | E713: =SUM(H713:Q713) -> 0 | H713: 0 | I713: 0 | J713: 0 | K713: 0 | L713: 0 | M713: 0 | N713: 0 | O713: 0 | P713: 0
A714: x | C714: 103 | D714: Vorhaltestunden pro Jahr | E714: =SUM(H714:Q714) -> 0 | H714: 0 | I714: 0 | J714: 0 | K714: 0 | L714: 0 | M714: 0 | N714: 0 | O714: 0 | P714: 0
A715: x | C715: 105 | D715: Jahresstunden Einsatzpersonal | E715: =SUM(H715:Q715) -> 0 | H715: 0 | I715: 0 | J715: 0 | K715: 0 | L715: 0 | M715: 0 | N715: 0 | O715: 0 | P715: 0
A716: x | C716: 107 | D716: Jahresstunden Notärzte | E716: =SUM(H716:Q716) -> 0 | H716: 0 | I716: 0 | J716: 0 | K716: 0 | L716: 0 | M716: 0 | N716: 0 | O716: 0 | P716: 0
D719: Leistungsdaten
C721: 109 | D721: Einsätze insgesamt (117+120+123) | E721: =SUM(H721:Q721) -> 0 | H721: =SUM(H724:H726) -> 0 | I721: =SUM(I724:I726) -> 0 | J721: 0 | K721: 0 | L721: 0 | M721: 0 | N721: 0 | O721: 0 | P721: 0
A722: x | C722: 111 | D722: Fehleinsätze | E722: 0 | H722: 0 | I722: 0 | J722: 0 | K722: 0 | L722: 0 | M722: 0 | N722: 0 | O722: 0 | P722: 0
A723: x | C723: 114 | D723: Einsätze abrechenbar für Entgeltkalk. | E723: 0 | H723: 0 | I723: 0 | J723: 0 | K723: 0 | L723: 0 | M723: 0 | N723: 0 | O723: 0 | P723: 0
A724: x | C724: 117 | D724: Einsätze Notfallrettung | E724: 0 | H724: 0 | I724: 0 | J724: 0 | K724: 0 | L724: 0 | M724: 0 | N724: 0 | O724: 0 | P724: 0
A725: x | C725: 120 | D725: Einsätze Krankentransport | E725: 0 | H725: 0 | I725: 0 | J725: 0 | K725: 0 | L725: 0 | M725: 0 | N725: 0 | O725: 0 | P725: 0
A726: x | C726: 123 | D726: Einsätze Notarztdienst | E726: 0 | H726: 0 | I726: 0 | J726: 0 | K726: 0 | L726: 0 | M726: 0 | N726: 0 | O726: 0 | P726: 0
C728: 126 | D728: Kilometer (131+134+137) | E728: =SUM(H728:Q728) -> 0 | H728: =SUM(H730:H732) -> 0 | I728: =SUM(I730:I732) -> 0 | J728: 0 | K728: 0 | L728: 0 | M728: 0 | N728: 0 | O728: 0 | P728: 0
A729: x | C729: 128 | D729: Einsatz-Km abrechenbar für Entgeltkalk. | E729: =SUM(H729:Q729) -> 0 | H729: 0 | I729: 0 | J729: 0 | K729: 0 | L729: 0 | M729: 0 | N729: 0 | O729: 0 | P729: 0
A730: x | C730: 131 | D730: Kilometer Notfallrettung | E730: =SUM(H730:Q730) -> 0 | H730: 0 | I730: 0 | J730: 0 | K730: 0 | L730: 0 | M730: 0 | N730: 0 | O730: 0 | P730: 0
A731: x | C731: 134 | D731: Kilometer Krankentransport | E731: =SUM(H731:Q731) -> 0 | H731: 0 | I731: 0 | J731: 0 | K731: 0 | L731: 0 | M731: 0 | N731: 0 | O731: 0 | P731: 0
A732: x | C732: 137 | D732: Kilometer Notarztdienst | E732: =SUM(H732:Q732) -> 0 | H732: 0 | I732: 0 | J732: 0 | K732: 0 | L732: 0 | M732: 0 | N732: 0 | O732: 0 | P732: 0
A734: x | C734: 140 | D734: Einsatzdauer in Minuten ø pro Einsatz | E734: =IF(E721=0,0,((H734*H721)+(I734*I721)+(J734*J721)+(K734*K721)+(L734*L721)+(M734*M721)+(N734*N721)+(O734*O721)+(P734*P721))/E721) -> 0 | H734: 0 | I734: 0 | J734: 0 | K734: 0 | L734: 0 | M734: 0 | N734: 0 | O734: 0 | P734: 0
D811: Rettungsdienststruktur
A813: x | C813: 101 | D813: Anzahl Rettungsmittel | E813: =SUM(H813:Q813) -> 0 | H813: 0 | I813: 0 | J813: 0 | K813: 0 | L813: 0 | M813: 0 | N813: 0 | O813: 0 | P813: 0
A814: x | C814: 103 | D814: Vorhaltestunden pro Jahr | E814: =SUM(H814:Q814) -> 0 | H814: 0 | I814: 0 | J814: 0 | K814: 0 | L814: 0 | M814: 0 | N814: 0 | O814: 0 | P814: 0
A815: x | C815: 105 | D815: Jahresstunden Einsatzpersonal | E815: =SUM(H815:Q815) -> 0 | H815: 0 | I815: 0 | J815: 0 | K815: 0 | L815: 0 | M815: 0 | N815: 0 | O815: 0 | P815: 0
A816: x | C816: 107 | D816: Jahresstunden Notärzte | E816: =SUM(H816:Q816) -> 0 | H816: 0 | I816: 0 | J816: 0 | K816: 0 | L816: 0 | M816: 0 | N816: 0 | O816: 0 | P816: 0
D819: Leistungsdaten
C821: 109 | D821: Einsätze insgesamt (117+120+123) | E821: =SUM(H821:Q821) -> 0 | H821: =SUM(H824:H826) -> 0 | I821: =SUM(I824:I826) -> 0 | J821: 0 | K821: 0 | L821: 0 | M821: 0 | N821: 0 | O821: 0 | P821: 0
A822: x | C822: 111 | D822: Fehleinsätze | E822: 0 | H822: 0 | I822: 0 | J822: 0 | K822: 0 | L822: 0 | M822: 0 | N822: 0 | O822: 0 | P822: 0
A823: x | C823: 114 | D823: Einsätze abrechenbar für Entgeltkalk. | E823: 0 | H823: 0 | I823: 0 | J823: 0 | K823: 0 | L823: 0 | M823: 0 | N823: 0 | O823: 0 | P823: 0
A824: x | C824: 117 | D824: Einsätze Notfallrettung | E824: 0 | H824: 0 | I824: 0 | J824: 0 | K824: 0 | L824: 0 | M824: 0 | N824: 0 | O824: 0 | P824: 0
A825: x | C825: 120 | D825: Einsätze Krankentransport | E825: 0 | H825: 0 | I825: 0 | J825: 0 | K825: 0 | L825: 0 | M825: 0 | N825: 0 | O825: 0 | P825: 0
A826: x | C826: 123 | D826: Einsätze Notarztdienst | E826: 0 | H826: 0 | I826: 0 | J826: 0 | K826: 0 | L826: 0 | M826: 0 | N826: 0 | O826: 0 | P826: 0
C828: 126 | D828: Kilometer (131+134+137) | E828: =SUM(H828:Q828) -> 0 | H828: =SUM(H830:H832) -> 0 | I828: =SUM(I830:I832) -> 0 | J828: 0 | K828: 0 | L828: 0 | M828: 0 | N828: 0 | O828: 0 | P828: 0
A829: x | C829: 128 | D829: Einsatz-Km abrechenbar für Entgeltkalk. | E829: =SUM(H829:Q829) -> 0 | H829: 0 | I829: 0 | J829: 0 | K829: 0 | L829: 0 | M829: 0 | N829: 0 | O829: 0 | P829: 0
A830: x | C830: 131 | D830: Kilometer Notfallrettung | E830: =SUM(H830:Q830) -> 0 | H830: 0 | I830: 0 | J830: 0 | K830: 0 | L830: 0 | M830: 0 | N830: 0 | O830: 0 | P830: 0
A831: x | C831: 134 | D831: Kilometer Krankentransport | E831: =SUM(H831:Q831) -> 0 | H831: 0 | I831: 0 | J831: 0 | K831: 0 | L831: 0 | M831: 0 | N831: 0 | O831: 0 | P831: 0
A832: x | C832: 137 | D832: Kilometer Notarztdienst | E832: =SUM(H832:Q832) -> 0 | H832: 0 | I832: 0 | J832: 0 | K832: 0 | L832: 0 | M832: 0 | N832: 0 | O832: 0 | P832: 0
A834: x | C834: 140 | D834: Einsatzdauer in Minuten ø pro Einsatz | E834: =IF(E821=0,0,((H834*H821)+(I834*I821)+(J834*J821)+(K834*K821)+(L834*L821)+(M834*M821)+(N834*N821)+(O834*O821)+(P834*P821))/E821) -> 0 | H834: 0 | I834: 0 | J834: 0 | K834: 0 | L834: 0 | M834: 0 | N834: 0 | O834: 0 | P834: 0
D911: Rettungsdienststruktur
A913: x | C913: 101 | D913: Anzahl Rettungsmittel | E913: =SUM(H913:Q913) -> 0 | H913: 0 | I913: 0 | J913: 0 | K913: 0 | L913: 0 | M913: 0 | N913: 0 | O913: 0 | P913: 0
A914: x | C914: 103 | D914: Vorhaltestunden pro Jahr | E914: =SUM(H914:Q914) -> 0 | H914: 0 | I914: 0 | J914: 0 | K914: 0 | L914: 0 | M914: 0 | N914: 0 | O914: 0 | P914: 0
A915: x | C915: 105 | D915: Jahresstunden Einsatzpersonal | E915: =SUM(H915:Q915) -> 0 | H915: 0 | I915: 0 | J915: 0 | K915: 0 | L915: 0 | M915: 0 | N915: 0 | O915: 0 | P915: 0
A916: x | C916: 107 | D916: Jahresstunden Notärzte | E916: =SUM(H916:Q916) -> 0 | H916: 0 | I916: 0 | J916: 0 | K916: 0 | L916: 0 | M916: 0 | N916: 0 | O916: 0 | P916: 0
D919: Leistungsdaten
C921: 109 | D921: Einsätze insgesamt (117+120+123) | E921: =SUM(H921:Q921) -> 0 | H921: =SUM(H924:H926) -> 0 | I921: =SUM(I924:I926) -> 0 | J921: 0 | K921: 0 | L921: 0 | M921: 0 | N921: 0 | O921: 0 | P921: 0
A922: x | C922: 111 | D922: Fehleinsätze | E922: 0 | H922: 0 | I922: 0 | J922: 0 | K922: 0 | L922: 0 | M922: 0 | N922: 0 | O922: 0 | P922: 0
A923: x | C923: 114 | D923: Einsätze abrechenbar für Entgeltkalk. | E923: 0 | H923: 0 | I923: 0 | J923: 0 | K923: 0 | L923: 0 | M923: 0 | N923: 0 | O923: 0 | P923: 0
A924: x | C924: 117 | D924: Einsätze Notfallrettung | E924: 0 | H924: 0 | I924: 0 | J924: 0 | K924: 0 | L924: 0 | M924: 0 | N924: 0 | O924: 0 | P924: 0
A925: x | C925: 120 | D925: Einsätze Krankentransport | E925: 0 | H925: 0 | I925: 0 | J925: 0 | K925: 0 | L925: 0 | M925: 0 | N925: 0 | O925: 0 | P925: 0
A926: x | C926: 123 | D926: Einsätze Notarztdienst | E926: 0 | H926: 0 | I926: 0 | J926: 0 | K926: 0 | L926: 0 | M926: 0 | N926: 0 | O926: 0 | P926: 0
C928: 126 | D928: Kilometer (131+134+137) | E928: =SUM(H928:Q928) -> 0 | H928: =SUM(H930:H932) -> 0 | I928: =SUM(I930:I932) -> 0 | J928: 0 | K928: 0 | L928: 0 | M928: 0 | N928: 0 | O928: 0 | P928: 0
A929: x | C929: 128 | D929: Einsatz-Km abrechenbar für Entgeltkalk. | E929: =SUM(H929:Q929) -> 0 | H929: 0 | I929: 0 | J929: 0 | K929: 0 | L929: 0 | M929: 0 | N929: 0 | O929: 0 | P929: 0
A930: x | C930: 131 | D930: Kilometer Notfallrettung | E930: =SUM(H930:Q930) -> 0 | H930: 0 | I930: 0 | J930: 0 | K930: 0 | L930: 0 | M930: 0 | N930: 0 | O930: 0 | P930: 0
A931: x | C931: 134 | D931: Kilometer Krankentransport | E931: =SUM(H931:Q931) -> 0 | H931: 0 | I931: 0 | J931: 0 | K931: 0 | L931: 0 | M931: 0 | N931: 0 | O931: 0 | P931: 0
A932: x | C932: 137 | D932: Kilometer Notarztdienst | E932: =SUM(H932:Q932) -> 0 | H932: 0 | I932: 0 | J932: 0 | K932: 0 | L932: 0 | M932: 0 | N932: 0 | O932: 0 | P932: 0
A934: x | C934: 140 | D934: Einsatzdauer in Minuten ø pro Einsatz | E934: =IF(E921=0,0,((H934*H921)+(I934*I921)+(J934*J921)+(K934*K921)+(L934*L921)+(M934*M921)+(N934*N921)+(O934*O921)+(P934*P921))/E921) -> 0 | H934: 0 | I934: 0 | J934: 0 | K934: 0 | L934: 0 | M934: 0 | N934: 0 | O934: 0 | P934: 0
D1011: Rettungsdienststruktur
A1013: x | C1013: 101 | D1013: Anzahl Rettungsmittel | E1013: =SUM(H1013:Q1013) -> 0 | H1013: 0 | I1013: 0 | J1013: 0 | K1013: 0 | L1013: 0 | M1013: 0 | N1013: 0 | O1013: 0 | P1013: 0
A1014: x | C1014: 103 | D1014: Vorhaltestunden pro Jahr | E1014: =SUM(H1014:Q1014) -> 0 | H1014: 0 | I1014: 0 | J1014: 0 | K1014: 0 | L1014: 0 | M1014: 0 | N1014: 0 | O1014: 0 | P1014: 0
A1015: x | C1015: 105 | D1015: Jahresstunden Einsatzpersonal | E1015: =SUM(H1015:Q1015) -> 0 | H1015: 0 | I1015: 0 | J1015: 0 | K1015: 0 | L1015: 0 | M1015: 0 | N1015: 0 | O1015: 0 | P1015: 0
A1016: x | C1016: 107 | D1016: Jahresstunden Notärzte | E1016: =SUM(H1016:Q1016) -> 0 | H1016: 0 | I1016: 0 | J1016: 0 | K1016: 0 | L1016: 0 | M1016: 0 | N1016: 0 | O1016: 0 | P1016: 0
D1019: Leistungsdaten
C1021: 109 | D1021: Einsätze insgesamt (117+120+123) | E1021: =SUM(H1021:Q1021) -> 0 | H1021: =SUM(H1024:H1026) -> 0 | I1021: =SUM(I1024:I1026) -> 0 | J1021: 0 | K1021: 0 | L1021: 0 | M1021: 0 | N1021: 0 | O1021: 0 | P1021: 0
A1022: x | C1022: 111 | D1022: Fehleinsätze | E1022: 0 | H1022: 0 | I1022: 0 | J1022: 0 | K1022: 0 | L1022: 0 | M1022: 0 | N1022: 0 | O1022: 0 | P1022: 0
A1023: x | C1023: 114 | D1023: Einsätze abrechenbar für Entgeltkalk. | E1023: 0 | H1023: 0 | I1023: 0 | J1023: 0 | K1023: 0 | L1023: 0 | M1023: 0 | N1023: 0 | O1023: 0 | P1023: 0
A1024: x | C1024: 117 | D1024: Einsätze Notfallrettung | E1024: 0 | H1024: 0 | I1024: 0 | J1024: 0 | K1024: 0 | L1024: 0 | M1024: 0 | N1024: 0 | O1024: 0 | P1024: 0
A1025: x | C1025: 120 | D1025: Einsätze Krankentransport | E1025: 0 | H1025: 0 | I1025: 0 | J1025: 0 | K1025: 0 | L1025: 0 | M1025: 0 | N1025: 0 | O1025: 0 | P1025: 0
A1026: x | C1026: 123 | D1026: Einsätze Notarztdienst | E1026: 0 | H1026: 0 | I1026: 0 | J1026: 0 | K1026: 0 | L1026: 0 | M1026: 0 | N1026: 0 | O1026: 0 | P1026: 0
C1028: 126 | D1028: Kilometer (131+134+137) | E1028: =SUM(H1028:Q1028) -> 0 | H1028: =SUM(H1030:H1032) -> 0 | I1028: =SUM(I1030:I1032) -> 0 | J1028: 0 | K1028: 0 | L1028: 0 | M1028: 0 | N1028: 0 | O1028: 0 | P1028: 0
A1029: x | C1029: 128 | D1029: Einsatz-Km abrechenbar für Entgeltkalk. | E1029: =SUM(H1029:Q1029) -> 0 | H1029: 0 | I1029: 0 | J1029: 0 | K1029: 0 | L1029: 0 | M1029: 0 | N1029: 0 | O1029: 0 | P1029: 0
A1030: x | C1030: 131 | D1030: Kilometer Notfallrettung | E1030: =SUM(H1030:Q1030) -> 0 | H1030: 0 | I1030: 0 | J1030: 0 | K1030: 0 | L1030: 0 | M1030: 0 | N1030: 0 | O1030: 0 | P1030: 0
A1031: x | C1031: 134 | D1031: Kilometer Krankentransport | E1031: =SUM(H1031:Q1031) -> 0 | H1031: 0 | I1031: 0 | J1031: 0 | K1031: 0 | L1031: 0 | M1031: 0 | N1031: 0 | O1031: 0 | P1031: 0
A1032: x | C1032: 137 | D1032: Kilometer Notarztdienst | E1032: =SUM(H1032:Q1032) -> 0 | H1032: 0 | I1032: 0 | J1032: 0 | K1032: 0 | L1032: 0 | M1032: 0 | N1032: 0 | O1032: 0 | P1032: 0
A1034: x | C1034: 140 | D1034: Einsatzdauer in Minuten ø pro Einsatz | E1034: =IF(E1021=0,0,((H1034*H1021)+(I1034*I1021)+(J1034*J1021)+(K1034*K1021)+(L1034*L1021)+(M1034*M1021)+(N1034*N1021)+(O1034*O1021)+(P1034*P1021))/E1021) -> 0 | H1034: 0 | I1034: 0 | J1034: 0 | K1034: 0 | L1034: 0 | M1034: 0 | N1034: 0 | O1034: 0 | P1034: 0
D1111: Rettungsdienststruktur
A1113: x | C1113: 101 | D1113: Anzahl Rettungsmittel | E1113: =SUM(H1113:Q1113) -> 0 | H1113: 0 | I1113: 0 | J1113: 0 | K1113: 0 | L1113: 0 | M1113: 0 | N1113: 0 | O1113: 0 | P1113: 0
A1114: x | C1114: 103 | D1114: Vorhaltestunden pro Jahr | E1114: =SUM(H1114:Q1114) -> 0 | H1114: 0 | I1114: 0 | J1114: 0 | K1114: 0 | L1114: 0 | M1114: 0 | N1114: 0 | O1114: 0 | P1114: 0
A1115: x | C1115: 105 | D1115: Jahresstunden Einsatzpersonal | E1115: =SUM(H1115:Q1115) -> 0 | H1115: 0 | I1115: 0 | J1115: 0 | K1115: 0 | L1115: 0 | M1115: 0 | N1115: 0 | O1115: 0 | P1115: 0
A1116: x | C1116: 107 | D1116: Jahresstunden Notärzte | E1116: =SUM(H1116:Q1116) -> 0 | H1116: 0 | I1116: 0 | J1116: 0 | K1116: 0 | L1116: 0 | M1116: 0 | N1116: 0 | O1116: 0 | P1116: 0
D1119: Leistungsdaten
C1121: 109 | D1121: Einsätze insgesamt (117+120+123) | E1121: =SUM(H1121:Q1121) -> 0 | H1121: =SUM(H1124:H1126) -> 0 | I1121: =SUM(I1124:I1126) -> 0 | J1121: 0 | K1121: 0 | L1121: 0 | M1121: 0 | N1121: 0 | O1121: 0 | P1121: 0
A1122: x | C1122: 111 | D1122: Fehleinsätze | E1122: 0 | H1122: 0 | I1122: 0 | J1122: 0 | K1122: 0 | L1122: 0 | M1122: 0 | N1122: 0 | O1122: 0 | P1122: 0
A1123: x | C1123: 114 | D1123: Einsätze abrechenbar für Entgeltkalk. | E1123: 0 | H1123: 0 | I1123: 0 | J1123: 0 | K1123: 0 | L1123: 0 | M1123: 0 | N1123: 0 | O1123: 0 | P1123: 0
A1124: x | C1124: 117 | D1124: Einsätze Notfallrettung | E1124: 0 | H1124: 0 | I1124: 0 | J1124: 0 | K1124: 0 | L1124: 0 | M1124: 0 | N1124: 0 | O1124: 0 | P1124: 0
A1125: x | C1125: 120 | D1125: Einsätze Krankentransport | E1125: 0 | H1125: 0 | I1125: 0 | J1125: 0 | K1125: 0 | L1125: 0 | M1125: 0 | N1125: 0 | O1125: 0 | P1125: 0
A1126: x | C1126: 123 | D1126: Einsätze Notarztdienst | E1126: 0 | H1126: 0 | I1126: 0 | J1126: 0 | K1126: 0 | L1126: 0 | M1126: 0 | N1126: 0 | O1126: 0 | P1126: 0
C1128: 126 | D1128: Kilometer (131+134+137) | E1128: =SUM(H1128:Q1128) -> 0 | H1128: =SUM(H1130:H1132) -> 0 | I1128: =SUM(I1130:I1132) -> 0 | J1128: 0 | K1128: 0 | L1128: 0 | M1128: 0 | N1128: 0 | O1128: 0 | P1128: 0
... 347 more rows

Sheet RDB-Export
C4: Betriebsabrechnungsbogen für den Rettungsdienst in Niedersachsen*)
C5: =" Rettungsdienstbereich "&INDEX(ParameterDatei!C37:C86,ParameterDatei!B9)&" "&INDEX(ParameterDatei!D37:D86,ParameterDatei!B9)&" für den Berichtszeitraum "&INDEX(ParameterDatei!F9:F26,ParameterDatei!B8) -> 
C7: Zeile | D7: Kostenarten | E7: Summe | F7: US | G7: KZ | H7: Hauptkostenstellen | P7: Hilfskostenstellen | T7: Allgemeine Kostenstellen
H8: Notfall-rettung | I8: Qualifizierter KTP | J8: Notarzt-dienst | K8: Sonstige 1 | L8: Sonstige 2 | M8: Sonstige 3 | N8: Sonstige 4 | O8: Sonstige 5 | P8: RTW | Q8: KTW | R8: NEF | S8: MZF | T8: Verwaltung | U8: Rettungs-leitstelle | V8: ÖEL | W8: Groß-schadens-ereignis | X8: Träger- Verwaltung
C9: 1 | D9: 2 | E9: 3 | F9: 4 | G9: 5 | H9: 6 | I9: 7 | J9: 8 | K9: 9 | L9: 10 | M9: 11 | N9: 12 | O9: 13 | P9: 14 | Q9: 15 | R9: 16 | S9: 17 | T9: 18 | U9: 19 | V9: 20 | W9: 21 | X9: 22
C11: 1 | D11: Personalkosten hauptamtlich | E11: 0 | F11: 1 | K11: 0 | L11: 0 | M11: 0 | N11: 0 | O11: 0 | P11: 0 | Q11: 0 | R11: 0 | S11: 0 | T11: 0 | U11: 0 | V11: 0 | W11: 0 | X11: 0
C12: 2 | D12: Personalkosten nebenamtlich | E12: 0 | F12: 1 | K12: 0 | L12: 0 | M12: 0 | N12: 0 | O12: 0 | P12: 0 | Q12: 0 | R12: 0 | S12: 0 | T12: 0 | U12: 0 | V12: 0 | W12: 0 | X12: 0
C13: 3 | D13: Personalkosten ehrenamtlich | E13: 0 | F13: 1 | K13: 0 | L13: 0 | M13: 0 | N13: 0 | O13: 0 | P13: 0 | Q13: 0 | R13: 0 | S13: 0 | T13: 0 | U13: 0 | V13: 0 | W13: 0 | X13: 0
C14: 4 | D14: Personalkosten FSJ & Bundesfreiw.-D | E14: 0 | F14: 1 | K14: 0 | L14: 0 | M14: 0 | N14: 0 | O14: 0 | P14: 0 | Q14: 0 | R14: 0 | S14: 0 | T14: 0 | U14: 0 | V14: 0 | W14: 0 | X14: 0
C15: 5 | D15: Personalkosten Notarzt | E15: 0 | F15: 1 | K15: 0 | L15: 0 | M15: 0 | N15: 0 | O15: 0 | P15: 0 | Q15: 0 | R15: 0 | S15: 0 | T15: 0 | U15: 0 | V15: 0 | W15: 0 | X15: 0
C16: 6 | D16: Personalkosten "fiktive Verwaltung" | E16: 0 | K16: 0 | L16: 0 | M16: 0 | N16: 0 | O16: 0 | P16: 0 | Q16: 0 | R16: 0 | S16: 0 | T16: 0 | U16: 0 | V16: 0 | W16: 0 | X16: 0
C17: 7 | D17: Personalkosten Reinigungspersonal | E17: 0 | F17: 2 | K17: 0 | L17: 0 | M17: 0 | N17: 0 | O17: 0 | P17: 0 | Q17: 0 | R17: 0 | S17: 0 | T17: 0 | U17: 0 | V17: 0 | W17: 0 | X17: 0
C18: 8 | D18: Summe Personalkosten | E18: 0 | G18: ZS | K18: 0 | L18: 0 | M18: 0 | N18: 0 | O18: 0 | P18: 0 | Q18: 0 | R18: 0 | S18: 0 | T18: 0 | U18: 0 | V18: 0 | W18: 0 | X18: 0
E19: 0
C20: 9 | D20: Aus- und Fortbildungskosten | E20: 0 | F20: 1 | K20: 0 | L20: 0 | M20: 0 | N20: 0 | O20: 0 | P20: 0 | Q20: 0 | R20: 0 | S20: 0 | T20: 0 | U20: 0 | V20: 0 | W20: 0 | X20: 0
C21: 10 | D21: sonstige Sach-/Nebenkosten Personal | E21: 0 | F21: 1 | K21: 0 | L21: 0 | M21: 0 | N21: 0 | O21: 0 | P21: 0 | Q21: 0 | R21: 0 | S21: 0 | T21: 0 | U21: 0 | V21: 0 | W21: 0 | X21: 0
C22: 11 | D22: Gesamt Personalnebenkosten | E22: 0 | G22: S | K22: 0 | L22: 0 | M22: 0 | N22: 0 | O22: 0 | P22: 0 | Q22: 0 | R22: 0 | S22: 0 | T22: 0 | U22: 0 | V22: 0 | W22: 0 | X22: 0
C23: 12 | D23: Mieten, Pachten | E23: 0 | F23: 3 | K23: 0 | L23: 0 | M23: 0 | N23: 0 | O23: 0 | P23: 0 | Q23: 0 | R23: 0 | S23: 0 | T23: 0 | U23: 0 | V23: 0 | W23: 0 | X23: 0
C24: 13 | D24: Nebenkosten / Energie | E24: 0 | F24: 2 | K24: 0 | L24: 0 | M24: 0 | N24: 0 | O24: 0 | P24: 0 | Q24: 0 | R24: 0 | S24: 0 | T24: 0 | U24: 0 | V24: 0 | W24: 0 | X24: 0
C25: 14 | D25: Fremdreinigung / Reinigungsmaterial | E25: 0 | F25: 2 | K25: 0 | L25: 0 | M25: 0 | N25: 0 | O25: 0 | P25: 0 | Q25: 0 | R25: 0 | S25: 0 | T25: 0 | U25: 0 | V25: 0 | W25: 0 | X25: 0
C26: 15 | D26: Gebäudeversicherung / Steuer | E26: 0 | F26: 3 | K26: 0 | L26: 0 | M26: 0 | N26: 0 | O26: 0 | P26: 0 | Q26: 0 | R26: 0 | S26: 0 | T26: 0 | U26: 0 | V26: 0 | W26: 0 | X26: 0
C27: 16 | D27: Gesamt Sachkosten Betriebsräume | E27: 0 | G27: S | K27: 0 | L27: 0 | M27: 0 | N27: 0 | O27: 0 | P27: 0 | Q27: 0 | R27: 0 | S27: 0 | T27: 0 | U27: 0 | V27: 0 | W27: 0 | X27: 0
C28: 17 | D28: Grundstücksanlagen Instandhaltung | E28: 0 | F28: 3 | K28: 0 | L28: 0 | M28: 0 | N28: 0 | O28: 0 | P28: 0 | Q28: 0 | R28: 0 | S28: 0 | T28: 0 | U28: 0 | V28: 0 | W28: 0 | X28: 0
C29: 18 | D29: Betriebsräume Instandhaltung | E29: 0 | F29: 3 | K29: 0 | L29: 0 | M29: 0 | N29: 0 | O29: 0 | P29: 0 | Q29: 0 | R29: 0 | S29: 0 | T29: 0 | U29: 0 | V29: 0 | W29: 0 | X29: 0
C30: 19 | D30: Techn. Betriebsanlagen Instandhaltung | E30: 0 | F30: 3 | K30: 0 | L30: 0 | M30: 0 | N30: 0 | O30: 0 | P30: 0 | Q30: 0 | R30: 0 | S30: 0 | T30: 0 | U30: 0 | V30: 0 | W30: 0 | X30: 0
C31: 20 | D31: Gesamt Instandhaltung | E31: 0 | G31: S | K31: 0 | L31: 0 | M31: 0 | N31: 0 | O31: 0 | P31: 0 | Q31: 0 | R31: 0 | S31: 0 | T31: 0 | U31: 0 | V31: 0 | W31: 0 | X31: 0
C32: 21 | D32: Betriebsstoffe | E32: 0 | F32: 4 | K32: 0 | L32: 0 | M32: 0 | N32: 0 | O32: 0 | P32: 0 | Q32: 0 | R32: 0 | S32: 0 | T32: 0 | U32: 0 | V32: 0 | W32: 0 | X32: 0
C33: 22 | D33: Reparatur / Wartung KFZ | E33: 0 | F33: 4 | K33: 0 | L33: 0 | M33: 0 | N33: 0 | O33: 0 | P33: 0 | Q33: 0 | R33: 0 | S33: 0 | T33: 0 | U33: 0 | V33: 0 | W33: 0 | X33: 0
C34: 23 | D34: Reparatur Unfallschaden | E34: 0 | F34: 4 | K34: 0 | L34: 0 | M34: 0 | N34: 0 | O34: 0 | P34: 0 | Q34: 0 | R34: 0 | S34: 0 | T34: 0 | U34: 0 | V34: 0 | W34: 0 | X34: 0
C35: 24 | D35: Versicherung / Steuer KFZ | E35: 0 | F35: 3 | K35: 0 | L35: 0 | M35: 0 | N35: 0 | O35: 0 | P35: 0 | Q35: 0 | R35: 0 | S35: 0 | T35: 0 | U35: 0 | V35: 0 | W35: 0 | X35: 0
C36: 25 | D36: Reparaturen KFZ-Funk / Telekomm. | E36: 0 | F36: 5 | K36: 0 | L36: 0 | M36: 0 | N36: 0 | O36: 0 | P36: 0 | Q36: 0 | R36: 0 | S36: 0 | T36: 0 | U36: 0 | V36: 0 | W36: 0 | X36: 0
C37: 26 | D37: Miete / Leasing | E37: 0 | F37: 3 | K37: 0 | L37: 0 | M37: 0 | N37: 0 | O37: 0 | P37: 0 | Q37: 0 | R37: 0 | S37: 0 | T37: 0 | U37: 0 | V37: 0 | W37: 0 | X37: 0
C38: 27 | D38: Gesamt Fahrzeuge | E38: 0 | G38: S | K38: 0 | L38: 0 | M38: 0 | N38: 0 | O38: 0 | P38: 0 | Q38: 0 | R38: 0 | S38: 0 | T38: 0 | U38: 0 | V38: 0 | W38: 0 | X38: 0
C39: 28 | D39: Schutzbekleidung Beschaffg. / Reinigung | E39: 0 | F39: 5 | K39: 0 | L39: 0 | M39: 0 | N39: 0 | O39: 0 | P39: 0 | Q39: 0 | R39: 0 | S39: 0 | T39: 0 | U39: 0 | V39: 0 | W39: 0 | X39: 0
C40: 29 | D40: Med. Gerät Wartung / Reparatur | E40: 0 | F40: 5 | K40: 0 | L40: 0 | M40: 0 | N40: 0 | O40: 0 | P40: 0 | Q40: 0 | R40: 0 | S40: 0 | T40: 0 | U40: 0 | V40: 0 | W40: 0 | X40: 0
C41: 30 | D41: Arzneimittel / med. Sauerstoff | E41: 0 | F41: 5 | K41: 0 | L41: 0 | M41: 0 | N41: 0 | O41: 0 | P41: 0 | Q41: 0 | R41: 0 | S41: 0 | T41: 0 | U41: 0 | V41: 0 | W41: 0 | X41: 0
C42: 31 | D42: Med. Sachbedarf / Einwegmat. | E42: 0 | F42: 5 | K42: 0 | L42: 0 | M42: 0 | N42: 0 | O42: 0 | P42: 0 | Q42: 0 | R42: 0 | S42: 0 | T42: 0 | U42: 0 | V42: 0 | W42: 0 | X42: 0
C43: 32 | D43: Gesamt Einsatzkosten | E43: 0 | F43: 5 | G43: S | K43: 0 | L43: 0 | M43: 0 | N43: 0 | O43: 0 | P43: 0 | Q43: 0 | R43: 0 | S43: 0 | T43: 0 | U43: 0 | V43: 0 | W43: 0 | X43: 0
C44: 33 | D44: Büro- / Verwaltungsbedarf | E44: 0 | F44: 5 | K44: 0 | L44: 0 | M44: 0 | N44: 0 | O44: 0 | P44: 0 | Q44: 0 | R44: 0 | S44: 0 | T44: 0 | U44: 0 | V44: 0 | W44: 0 | X44: 0
C45: 34 | D45: Telekommunikation | E45: 0 | F45: 5 | K45: 0 | L45: 0 | M45: 0 | N45: 0 | O45: 0 | P45: 0 | Q45: 0 | R45: 0 | S45: 0 | T45: 0 | U45: 0 | V45: 0 | W45: 0 | X45: 0
C46: 35 | D46: EDV-Kosten | E46: 0 | F46: 5 | K46: 0 | L46: 0 | M46: 0 | N46: 0 | O46: 0 | P46: 0 | Q46: 0 | R46: 0 | S46: 0 | T46: 0 | U46: 0 | V46: 0 | W46: 0 | X46: 0
C47: 36 | D47: Rechts- und Beratungskosten | E47: 0 | F47: 5 | K47: 0 | L47: 0 | M47: 0 | N47: 0 | O47: 0 | P47: 0 | Q47: 0 | R47: 0 | S47: 0 | T47: 0 | U47: 0 | V47: 0 | W47: 0 | X47: 0
C48: 37 | D48: Aufklärung | E48: 0 | F48: 5 | K48: 0 | L48: 0 | M48: 0 | N48: 0 | O48: 0 | P48: 0 | Q48: 0 | R48: 0 | S48: 0 | T48: 0 | U48: 0 | V48: 0 | W48: 0 | X48: 0
C49: 38 | D49: Inkasso | E49: 0 | F49: 5 | K49: 0 | L49: 0 | M49: 0 | N49: 0 | O49: 0 | P49: 0 | Q49: 0 | R49: 0 | S49: 0 | T49: 0 | U49: 0 | V49: 0 | W49: 0 | X49: 0
C50: 39 | D50: Sonstige Versicherungen | E50: 0 | F50: 5 | K50: 0 | L50: 0 | M50: 0 | N50: 0 | O50: 0 | P50: 0 | Q50: 0 | R50: 0 | S50: 0 | T50: 0 | U50: 0 | V50: 0 | W50: 0 | X50: 0
C51: 40 | D51: Sachkosten "fiktive Verwaltung" | E51: 0 | K51: 0 | L51: 0 | M51: 0 | N51: 0 | O51: 0 | P51: 0 | Q51: 0 | R51: 0 | S51: 0 | T51: 0 | U51: 0 | V51: 0 | W51: 0 | X51: 0
C52: 41 | D52: Gesamt Allgemeinkosten | E52: 0 | G52: S | K52: 0 | L52: 0 | M52: 0 | N52: 0 | O52: 0 | P52: 0 | Q52: 0 | R52: 0 | S52: 0 | T52: 0 | U52: 0 | V52: 0 | W52: 0 | X52: 0
C53: 42 | D53: Verzinsung Eigenkapital | E53: 0 | F53: 2 | K53: 0 | L53: 0 | M53: 0 | N53: 0 | O53: 0 | P53: 0 | Q53: 0 | R53: 0 | S53: 0 | T53: 0 | U53: 0 | V53: 0 | W53: 0 | X53: 0
C54: 43 | D54: Zinsen für Fremdkapital | E54: 0 | F54: 2 | K54: 0 | L54: 0 | M54: 0 | N54: 0 | O54: 0 | P54: 0 | Q54: 0 | R54: 0 | S54: 0 | T54: 0 | U54: 0 | V54: 0 | W54: 0 | X54: 0
C55: 44 | D55: Kontokorrentzinsen / Bankgebühren | E55: 0 | F55: 2 | K55: 0 | L55: 0 | M55: 0 | N55: 0 | O55: 0 | P55: 0 | Q55: 0 | R55: 0 | S55: 0 | T55: 0 | U55: 0 | V55: 0 | W55: 0 | X55: 0
C56: 45 | D56: Gesamt Zinsen | E56: 0 | G56: S | K56: 0 | L56: 0 | M56: 0 | N56: 0 | O56: 0 | P56: 0 | Q56: 0 | R56: 0 | S56: 0 | T56: 0 | U56: 0 | V56: 0 | W56: 0 | X56: 0
C57: 46 | D57: Summe Sachkosten | E57: 0 | G57: ZS | K57: 0 | L57: 0 | M57: 0 | N57: 0 | O57: 0 | P57: 0 | Q57: 0 | R57: 0 | S57: 0 | T57: 0 | U57: 0 | V57: 0 | W57: 0 | X57: 0
E58: 0
C59: 47 | D59: AfA Außenanlagen | E59: 0 | F59: 3 | K59: 0 | L59: 0 | M59: 0 | N59: 0 | O59: 0 | P59: 0 | Q59: 0 | R59: 0 | S59: 0 | T59: 0 | U59: 0 | V59: 0 | W59: 0 | X59: 0
C60: 48 | D60: AfA Gebäude | E60: 0 | F60: 3 | K60: 0 | L60: 0 | M60: 0 | N60: 0 | O60: 0 | P60: 0 | Q60: 0 | R60: 0 | S60: 0 | T60: 0 | U60: 0 | V60: 0 | W60: 0 | X60: 0
C61: 49 | D61: AfA techn. Bauanlagen, Heizung / Klima | E61: 0 | F61: 3 | K61: 0 | L61: 0 | M61: 0 | N61: 0 | O61: 0 | P61: 0 | Q61: 0 | R61: 0 | S61: 0 | T61: 0 | U61: 0 | V61: 0 | W61: 0 | X61: 0
C62: 50 | D62: AfA Inventar, Maschinen und Geräte | E62: 0 | F62: 3 | K62: 0 | L62: 0 | M62: 0 | N62: 0 | O62: 0 | P62: 0 | Q62: 0 | R62: 0 | S62: 0 | T62: 0 | U62: 0 | V62: 0 | W62: 0 | X62: 0
C63: 51 | D63: AfA Fahrzeuge | E63: 0 | F63: 3 | K63: 0 | L63: 0 | M63: 0 | N63: 0 | O63: 0 | P63: 0 | Q63: 0 | R63: 0 | S63: 0 | T63: 0 | U63: 0 | V63: 0 | W63: 0 | X63: 0
C64: 52 | D64: AfA Funk / Kommunikation | E64: 0 | F64: 3 | K64: 0 | L64: 0 | M64: 0 | N64: 0 | O64: 0 | P64: 0 | Q64: 0 | R64: 0 | S64: 0 | T64: 0 | U64: 0 | V64: 0 | W64: 0 | X64: 0
C65: 53 | D65: AfA medizinisches Gerät | E65: 0 | F65: 3 | K65: 0 | L65: 0 | M65: 0 | N65: 0 | O65: 0 | P65: 0 | Q65: 0 | R65: 0 | S65: 0 | T65: 0 | U65: 0 | V65: 0 | W65: 0 | X65: 0
C66: 54 | D66: AfA für GWG | E66: 0 | F66: 3 | K66: 0 | L66: 0 | M66: 0 | N66: 0 | O66: 0 | P66: 0 | Q66: 0 | R66: 0 | S66: 0 | T66: 0 | U66: 0 | V66: 0 | W66: 0 | X66: 0
C67: 55 | D67: Gesamt Abschreibungen (AfA) | E67: 0 | G67: S | K67: 0 | L67: 0 | M67: 0 | N67: 0 | O67: 0 | P67: 0 | Q67: 0 | R67: 0 | S67: 0 | T67: 0 | U67: 0 | V67: 0 | W67: 0 | X67: 0
C68: 56 | D68: Bruttogesamtkosten | E68: 0 | G68: ZS | K68: 0 | L68: 0 | M68: 0 | N68: 0 | O68: 0 | P68: 0 | Q68: 0 | R68: 0 | S68: 0 | T68: 0 | U68: 0 | V68: 0 | W68: 0 | X68: 0
E69: 0
C70: 57 | D70: Zuschüsse / Zuweisungen | E70: 0 | F70: 2 | K70: 0 | L70: 0 | M70: 0 | N70: 0 | O70: 0 | P70: 0 | Q70: 0 | R70: 0 | S70: 0 | T70: 0 | U70: 0 | V70: 0 | W70: 0 | X70: 0
C71: 58 | D71: Finanzerträge | E71: 0 | F71: 2 | K71: 0 | L71: 0 | M71: 0 | N71: 0 | O71: 0 | P71: 0 | Q71: 0 | R71: 0 | S71: 0 | T71: 0 | U71: 0 | V71: 0 | W71: 0 | X71: 0
C72: 59 | D72: Versicherungsleistungen | E72: 0 | F72: 4 | K72: 0 | L72: 0 | M72: 0 | N72: 0 | O72: 0 | P72: 0 | Q72: 0 | R72: 0 | S72: 0 | T72: 0 | U72: 0 | V72: 0 | W72: 0 | X72: 0
C73: 60 | D73: Sonstige Einnahmen | E73: 0 | F73: 2 | K73: 0 | L73: 0 | M73: 0 | N73: 0 | O73: 0 | P73: 0 | Q73: 0 | R73: 0 | S73: 0 | T73: 0 | U73: 0 | V73: 0 | W73: 0 | X73: 0
C74: 61 | D74: Verkaufserlöse aus Anlagenabgang | E74: 0 | F74: 3 | K74: 0 | L74: 0 | M74: 0 | N74: 0 | O74: 0 | P74: 0 | Q74: 0 | R74: 0 | S74: 0 | T74: 0 | U74: 0 | V74: 0 | W74: 0 | X74: 0
C75: 62 | D75: Gesamt Abzüge | E75: 0 | G75: S | K75: 0 | L75: 0 | M75: 0 | N75: 0 | O75: 0 | P75: 0 | Q75: 0 | R75: 0 | S75: 0 | T75: 0 | U75: 0 | V75: 0 | W75: 0 | X75: 0
C76: 63 | D76: Gesamtkosten RD gem. § 15 NRettDG | E76: 0 | K76: 0 | L76: 0 | M76: 0 | N76: 0 | O76: 0 | P76: 0 | Q76: 0 | R76: 0 | S76: 0 | T76: 0 | U76: 0 | V76: 0 | W76: 0 | X76: 0
C78: 64 | D78: Zuordnung zur H-Kst Notfallrettung | E78: 0 | H78: 0 | P78: 0 | S78: 0
C79: 65 | D79: Zuordnung zur H-Kst Qual. KTP | E79: 0 | I79: 0 | Q79: 0 | S79: 0
C80: 66 | D80: Zuordnung zur H-Kst Notarztdienst | E80: 0 | J80: 0 | R80: 0
C81: 67 | D81: Verrechnung Notfallrettung durch KTW | E81: 0 | H81: 0 | I81: 0
C82: 68 | D82: Verrechnung KTP durch RTW | E82: 0 | H82: 0 | I82: 0
C83: 69 | D83: Aufteilung Verwaltung | E83: 0 | H83: 0 | I83: 0 | J83: 0 | K83: 0 | L83: 0 | M83: 0 | N83: 0 | O83: 0 | T83: 0
C84: 70 | D84: Aufteilung Rettungsleitstelle | E84: 0 | H84: 0 | I84: 0 | J84: 0 | K84: 0 | L84: 0 | M84: 0 | N84: 0 | O84: 0 | U84: 0
C85: 71 | D85: Aufteilung ÖEL | E85: 0 | H85: 0 | I85: 0 | J85: 0 | K85: 0 | L85: 0 | M85: 0 | N85: 0 | O85: 0 | V85: 0
C86: 72 | D86: Aufteilung Großschadensereignis | E86: 0 | H86: 0 | I86: 0 | J86: 0 | K86: 0 | L86: 0 | M86: 0 | N86: 0 | O86: 0 | W86: 0
C87: 73 | D87: Aufteilung Trägerverwaltung | E87: 0 | H87: 0 | I87: 0 | J87: 0 | K87: 0 | L87: 0 | M87: 0 | N87: 0 | O87: 0 | X87: 0
C88: 74 | D88: Gesamtkosten RD gem. § 15 NRettDG | E88: 0 | H88: 0 | I88: 0 | J88: 0 | K88: 0 | L88: 0 | M88: 0 | N88: 0 | O88: 0 | P88: 0 | Q88: 0 | R88: 0 | S88: 0 | T88: 0 | U88: 0 | V88: 0 | W88: 0 | X88: 0
C89: 75 | D89: Vortragbares Betriebsergebnis | E89: 0 | H89: 0 | I89: 0 | J89: 0 | K89: 0 | L89: 0 | M89: 0 | N89: 0 | O89: 0
C90: 76 | D90: Aus Entgelten zu decken: | E90: 0 | H90: 0 | I90: 0 | J90: 0 | K90: 0 | L90: 0 | M90: 0 | N90: 0 | O90: 0
D91: * Gemäß Kostenrichtlinien

Sheet RDB-Drucken
H1: x | I1: x | J1: x
B2: =ParameterDatei!D170 -> Drucken • Export • Anmerkungen • RDB Statistik • RDB Entgelte • Hauptmenu • RDB Kennzahlen • Träger BAB • LE BAB • RW BAB
C4: Betriebsabrechnungsbogen für den Rettungsdienst in Niedersachsen*)
C5: =" Rettungsdienstbereich "&INDEX(ParameterDatei!C37:C86,ParameterDatei!B9)&" "&INDEX(ParameterDatei!D37:D86,ParameterDatei!B9)&" für den Berichtszeitraum "&INDEX(ParameterDatei!F9:F26,ParameterDatei!B8) -> 
C7: Zeile | D7: Kostenarten | E7: Summe | F7: US | G7: KZ | H7: Hauptkostenstellen | P7: Hilfskostenstellen | T7: Allgemeine Kostenstellen
G8: =IF('RDB-Anmerkungen'!T95>0,"A","") ->  | H8: Notfall-rettung | I8: Qualifizierter KTP | J8: Notarzt-dienst | K8: ='Basis-Daten'!D12 -> Sonstige 1 | L8: ='Basis-Daten'!D14 -> Sonstige 2 | M8: ='Basis-Daten'!D16 -> Sonstige 3 | N8: ='Basis-Daten'!D18 -> Sonstige 4 | O8: ='Basis-Daten'!D20 -> Sonstige 5 | P8: RTW | Q8: KTW | R8: NEF | S8: MZF | T8: Ausbildung NotfallSan | U8: Verwaltung | V8: Rettungs-leitstelle | W8: ÖEL | X8: Groß-schadens-ereignis | Y8: Träger- Verwaltung
C9: 1 | D9: 2 | E9: 3 | F9: 4 | G9: 5 | H9: 6 | I9: 7 | J9: 8 | K9: 9 | L9: 10 | M9: 11 | N9: 12 | O9: 13 | P9: 14 | Q9: 15 | R9: 16 | S9: 17 | T9: 33 | U9: 18 | V9: 19 | W9: 20 | X9: 21 | Y9: 22
C11: 1 | D11: Personalkosten hauptamtlich | E11: 0 | F11: 1 | K11: 0 | L11: 0 | M11: 0 | N11: 0 | O11: 0 | P11: 0 | Q11: 0 | R11: 0 | S11: 0 | T11: 0 | U11: 0 | V11: 0 | W11: 0 | X11: 0 | Y11: 0
C12: 2 | D12: Personalkosten nebenamtlich | E12: 0 | F12: 1 | K12: 0 | L12: 0 | M12: 0 | N12: 0 | O12: 0 | P12: 0 | Q12: 0 | R12: 0 | S12: 0 | T12: 0 | U12: 0 | V12: 0 | W12: 0 | X12: 0 | Y12: 0
C13: 3 | D13: Personalkosten ehrenamtlich | E13: 0 | F13: 1 | K13: 0 | L13: 0 | M13: 0 | N13: 0 | O13: 0 | P13: 0 | Q13: 0 | R13: 0 | S13: 0 | T13: 0 | U13: 0 | V13: 0 | W13: 0 | X13: 0 | Y13: 0
C14: 4 | D14: Personalkosten FSJ & Bundesfreiw.-D | E14: 0 | F14: 1 | K14: 0 | L14: 0 | M14: 0 | N14: 0 | O14: 0 | P14: 0 | Q14: 0 | R14: 0 | S14: 0 | T14: 0 | U14: 0 | V14: 0 | W14: 0 | X14: 0 | Y14: 0
C15: 5 | D15: Personalkosten Notarzt | E15: 0 | F15: 1 | K15: 0 | L15: 0 | M15: 0 | N15: 0 | O15: 0 | P15: 0 | Q15: 0 | R15: 0 | S15: 0 | T15: 0 | U15: 0 | V15: 0 | W15: 0 | X15: 0 | Y15: 0
C16: 6 | D16: Personalkosten "fiktive Verwaltung" | E16: 0 | K16: 0 | L16: 0 | M16: 0 | N16: 0 | O16: 0 | P16: 0 | Q16: 0 | R16: 0 | S16: 0 | T16: 0 | U16: 0 | V16: 0 | W16: 0 | X16: 0 | Y16: 0
C17: 7 | D17: Personalkosten Reinigungspersonal | E17: 0 | F17: 2 | K17: 0 | L17: 0 | M17: 0 | N17: 0 | O17: 0 | P17: 0 | Q17: 0 | R17: 0 | S17: 0 | T17: 0 | U17: 0 | V17: 0 | W17: 0 | X17: 0 | Y17: 0
C18: 8 | D18: Summe Personalkosten | E18: 0 | G18: ZS | K18: 0 | L18: 0 | M18: 0 | N18: 0 | O18: 0 | P18: 0 | Q18: 0 | R18: 0 | S18: 0 | T18: 0 | U18: 0 | V18: 0 | W18: 0 | X18: 0 | Y18: 0
E19: 0 | T19: 0
C20: 9 | D20: Aus- und Fortbildungskosten | E20: 0 | F20: 1 | K20: 0 | L20: 0 | M20: 0 | N20: 0 | O20: 0 | P20: 0 | Q20: 0 | R20: 0 | S20: 0 | T20: 0 | U20: 0 | V20: 0 | W20: 0 | X20: 0 | Y20: 0
C21: 10 | D21: sonstige Sach-/Nebenkosten Personal | E21: 0 | F21: 1 | K21: 0 | L21: 0 | M21: 0 | N21: 0 | O21: 0 | P21: 0 | Q21: 0 | R21: 0 | S21: 0 | T21: 0 | U21: 0 | V21: 0 | W21: 0 | X21: 0 | Y21: 0
C22: 11 | D22: Gesamt Personalnebenkosten | E22: 0 | G22: S | K22: 0 | L22: 0 | M22: 0 | N22: 0 | O22: 0 | P22: 0 | Q22: 0 | R22: 0 | S22: 0 | T22: 0 | U22: 0 | V22: 0 | W22: 0 | X22: 0 | Y22: 0
C23: 12 | D23: Mieten, Pachten | E23: 0 | F23: 3 | K23: 0 | L23: 0 | M23: 0 | N23: 0 | O23: 0 | P23: 0 | Q23: 0 | R23: 0 | S23: 0 | T23: 0 | U23: 0 | V23: 0 | W23: 0 | X23: 0 | Y23: 0
C24: 13 | D24: Nebenkosten / Energie | E24: 0 | F24: 2 | K24: 0 | L24: 0 | M24: 0 | N24: 0 | O24: 0 | P24: 0 | Q24: 0 | R24: 0 | S24: 0 | T24: 0 | U24: 0 | V24: 0 | W24: 0 | X24: 0 | Y24: 0
C25: 14 | D25: Fremdreinigung / Reinigungsmaterial | E25: 0 | F25: 2 | K25: 0 | L25: 0 | M25: 0 | N25: 0 | O25: 0 | P25: 0 | Q25: 0 | R25: 0 | S25: 0 | T25: 0 | U25: 0 | V25: 0 | W25: 0 | X25: 0 | Y25: 0
C26: 15 | D26: Gebäudeversicherung / Steuer | E26: 0 | F26: 3 | K26: 0 | L26: 0 | M26: 0 | N26: 0 | O26: 0 | P26: 0 | Q26: 0 | R26: 0 | S26: 0 | T26: 0 | U26: 0 | V26: 0 | W26: 0 | X26: 0 | Y26: 0
C27: 16 | D27: Gesamt Sachkosten Betriebsräume | E27: 0 | G27: S | K27: 0 | L27: 0 | M27: 0 | N27: 0 | O27: 0 | P27: 0 | Q27: 0 | R27: 0 | S27: 0 | T27: 0 | U27: 0 | V27: 0 | W27: 0 | X27: 0 | Y27: 0
C28: 17 | D28: Grundstücksanlagen Instandhaltung | E28: 0 | F28: 3 | K28: 0 | L28: 0 | M28: 0 | N28: 0 | O28: 0 | P28: 0 | Q28: 0 | R28: 0 | S28: 0 | T28: 0 | U28: 0 | V28: 0 | W28: 0 | X28: 0 | Y28: 0
C29: 18 | D29: Betriebsräume Instandhaltung | E29: 0 | F29: 3 | K29: 0 | L29: 0 | M29: 0 | N29: 0 | O29: 0 | P29: 0 | Q29: 0 | R29: 0 | S29: 0 | T29: 0 | U29: 0 | V29: 0 | W29: 0 | X29: 0 | Y29: 0
C30: 19 | D30: Techn. Betriebsanlagen Instandhaltung | E30: 0 | F30: 3 | K30: 0 | L30: 0 | M30: 0 | N30: 0 | O30: 0 | P30: 0 | Q30: 0 | R30: 0 | S30: 0 | T30: 0 | U30: 0 | V30: 0 | W30: 0 | X30: 0 | Y30: 0
C31: 20 | D31: Gesamt Instandhaltung | E31: 0 | G31: S | K31: 0 | L31: 0 | M31: 0 | N31: 0 | O31: 0 | P31: 0 | Q31: 0 | R31: 0 | S31: 0 | T31: 0 | U31: 0 | V31: 0 | W31: 0 | X31: 0 | Y31: 0
C32: 21 | D32: Betriebsstoffe | E32: 0 | F32: 4 | K32: 0 | L32: 0 | M32: 0 | N32: 0 | O32: 0 | P32: 0 | Q32: 0 | R32: 0 | S32: 0 | T32: 0 | U32: 0 | V32: 0 | W32: 0 | X32: 0 | Y32: 0
C33: 22 | D33: Reparatur / Wartung KFZ | E33: 0 | F33: 4 | K33: 0 | L33: 0 | M33: 0 | N33: 0 | O33: 0 | P33: 0 | Q33: 0 | R33: 0 | S33: 0 | T33: 0 | U33: 0 | V33: 0 | W33: 0 | X33: 0 | Y33: 0
C34: 23 | D34: Reparatur Unfallschaden | E34: 0 | F34: 4 | K34: 0 | L34: 0 | M34: 0 | N34: 0 | O34: 0 | P34: 0 | Q34: 0 | R34: 0 | S34: 0 | T34: 0 | U34: 0 | V34: 0 | W34: 0 | X34: 0 | Y34: 0
C35: 24 | D35: Versicherung / Steuer KFZ | E35: 0 | F35: 3 | K35: 0 | L35: 0 | M35: 0 | N35: 0 | O35: 0 | P35: 0 | Q35: 0 | R35: 0 | S35: 0 | T35: 0 | U35: 0 | V35: 0 | W35: 0 | X35: 0 | Y35: 0
C36: 25 | D36: Reparaturen KFZ-Funk / Telekomm. | E36: 0 | F36: 5 | K36: 0 | L36: 0 | M36: 0 | N36: 0 | O36: 0 | P36: 0 | Q36: 0 | R36: 0 | S36: 0 | T36: 0 | U36: 0 | V36: 0 | W36: 0 | X36: 0 | Y36: 0
C37: 26 | D37: Miete / Leasing | E37: 0 | F37: 3 | K37: 0 | L37: 0 | M37: 0 | N37: 0 | O37: 0 | P37: 0 | Q37: 0 | R37: 0 | S37: 0 | T37: 0 | U37: 0 | V37: 0 | W37: 0 | X37: 0 | Y37: 0
C38: 27 | D38: Gesamt Fahrzeuge | E38: 0 | G38: S | K38: 0 | L38: 0 | M38: 0 | N38: 0 | O38: 0 | P38: 0 | Q38: 0 | R38: 0 | S38: 0 | T38: 0 | U38: 0 | V38: 0 | W38: 0 | X38: 0 | Y38: 0
C39: 28 | D39: Schutzbekleidung Beschaffg. / Reinigung | E39: 0 | F39: 5 | K39: 0 | L39: 0 | M39: 0 | N39: 0 | O39: 0 | P39: 0 | Q39: 0 | R39: 0 | S39: 0 | T39: 0 | U39: 0 | V39: 0 | W39: 0 | X39: 0 | Y39: 0
C40: 29 | D40: Med. Gerät Wartung / Reparatur | E40: 0 | F40: 5 | K40: 0 | L40: 0 | M40: 0 | N40: 0 | O40: 0 | P40: 0 | Q40: 0 | R40: 0 | S40: 0 | T40: 0 | U40: 0 | V40: 0 | W40: 0 | X40: 0 | Y40: 0
C41: 30 | D41: Arzneimittel / med. Sauerstoff | E41: 0 | F41: 5 | K41: 0 | L41: 0 | M41: 0 | N41: 0 | O41: 0 | P41: 0 | Q41: 0 | R41: 0 | S41: 0 | T41: 0 | U41: 0 | V41: 0 | W41: 0 | X41: 0 | Y41: 0
C42: 31 | D42: Med. Sachbedarf / Einwegmat. | E42: 0 | F42: 5 | K42: 0 | L42: 0 | M42: 0 | N42: 0 | O42: 0 | P42: 0 | Q42: 0 | R42: 0 | S42: 0 | T42: 0 | U42: 0 | V42: 0 | W42: 0 | X42: 0 | Y42: 0
C43: 32 | D43: Gesamt Einsatzkosten | E43: 0 | F43: 5 | G43: S | K43: 0 | L43: 0 | M43: 0 | N43: 0 | O43: 0 | P43: 0 | Q43: 0 | R43: 0 | S43: 0 | T43: 0 | U43: 0 | V43: 0 | W43: 0 | X43: 0 | Y43: 0
C44: 33 | D44: Büro- / Verwaltungsbedarf | E44: 0 | F44: 5 | K44: 0 | L44: 0 | M44: 0 | N44: 0 | O44: 0 | P44: 0 | Q44: 0 | R44: 0 | S44: 0 | T44: 0 | U44: 0 | V44: 0 | W44: 0 | X44: 0 | Y44: 0
C45: 34 | D45: Telekommunikation | E45: 0 | F45: 5 | K45: 0 | L45: 0 | M45: 0 | N45: 0 | O45: 0 | P45: 0 | Q45: 0 | R45: 0 | S45: 0 | T45: 0 | U45: 0 | V45: 0 | W45: 0 | X45: 0 | Y45: 0
C46: 35 | D46: EDV-Kosten | E46: 0 | F46: 5 | K46: 0 | L46: 0 | M46: 0 | N46: 0 | O46: 0 | P46: 0 | Q46: 0 | R46: 0 | S46: 0 | T46: 0 | U46: 0 | V46: 0 | W46: 0 | X46: 0 | Y46: 0
C47: 36 | D47: Rechts- und Beratungskosten | E47: 0 | F47: 5 | K47: 0 | L47: 0 | M47: 0 | N47: 0 | O47: 0 | P47: 0 | Q47: 0 | R47: 0 | S47: 0 | T47: 0 | U47: 0 | V47: 0 | W47: 0 | X47: 0 | Y47: 0
C48: 37 | D48: Aufklärung | E48: 0 | F48: 5 | K48: 0 | L48: 0 | M48: 0 | N48: 0 | O48: 0 | P48: 0 | Q48: 0 | R48: 0 | S48: 0 | T48: 0 | U48: 0 | V48: 0 | W48: 0 | X48: 0 | Y48: 0
C49: 38 | D49: Inkasso | E49: 0 | F49: 5 | K49: 0 | L49: 0 | M49: 0 | N49: 0 | O49: 0 | P49: 0 | Q49: 0 | R49: 0 | S49: 0 | T49: 0 | U49: 0 | V49: 0 | W49: 0 | X49: 0 | Y49: 0
C50: 39 | D50: Sonstige Versicherungen | E50: 0 | F50: 5 | K50: 0 | L50: 0 | M50: 0 | N50: 0 | O50: 0 | P50: 0 | Q50: 0 | R50: 0 | S50: 0 | T50: 0 | U50: 0 | V50: 0 | W50: 0 | X50: 0 | Y50: 0
C51: 40 | D51: Sachkosten "fiktive Verwaltung" | E51: 0 | K51: 0 | L51: 0 | M51: 0 | N51: 0 | O51: 0 | P51: 0 | Q51: 0 | R51: 0 | S51: 0 | T51: 0 | U51: 0 | V51: 0 | W51: 0 | X51: 0 | Y51: 0
C52: 41 | D52: Gesamt Allgemeinkosten | E52: 0 | G52: S | K52: 0 | L52: 0 | M52: 0 | N52: 0 | O52: 0 | P52: 0 | Q52: 0 | R52: 0 | S52: 0 | T52: 0 | U52: 0 | V52: 0 | W52: 0 | X52: 0 | Y52: 0
C53: 42 | D53: Verzinsung Eigenkapital | E53: 0 | F53: 2 | K53: 0 | L53: 0 | M53: 0 | N53: 0 | O53: 0 | P53: 0 | Q53: 0 | R53: 0 | S53: 0 | T53: 0 | U53: 0 | V53: 0 | W53: 0 | X53: 0 | Y53: 0
C54: 43 | D54: Zinsen für Fremdkapital | E54: 0 | F54: 2 | K54: 0 | L54: 0 | M54: 0 | N54: 0 | O54: 0 | P54: 0 | Q54: 0 | R54: 0 | S54: 0 | T54: 0 | U54: 0 | V54: 0 | W54: 0 | X54: 0 | Y54: 0
C55: 44 | D55: Kontokorrentzinsen / Bankgebühren | E55: 0 | F55: 2 | K55: 0 | L55: 0 | M55: 0 | N55: 0 | O55: 0 | P55: 0 | Q55: 0 | R55: 0 | S55: 0 | T55: 0 | U55: 0 | V55: 0 | W55: 0 | X55: 0 | Y55: 0
C56: 45 | D56: Gesamt Zinsen | E56: 0 | G56: S | K56: 0 | L56: 0 | M56: 0 | N56: 0 | O56: 0 | P56: 0 | Q56: 0 | R56: 0 | S56: 0 | T56: 0 | U56: 0 | V56: 0 | W56: 0 | X56: 0 | Y56: 0
C57: 46 | D57: Summe Sachkosten | E57: 0 | G57: ZS | K57: 0 | L57: 0 | M57: 0 | N57: 0 | O57: 0 | P57: 0 | Q57: 0 | R57: 0 | S57: 0 | T57: 0 | U57: 0 | V57: 0 | W57: 0 | X57: 0 | Y57: 0
E58: 0 | T58: 0
C59: 47 | D59: AfA Außenanlagen | E59: 0 | F59: 3 | K59: 0 | L59: 0 | M59: 0 | N59: 0 | O59: 0 | P59: 0 | Q59: 0 | R59: 0 | S59: 0 | T59: 0 | U59: 0 | V59: 0 | W59: 0 | X59: 0 | Y59: 0
C60: 48 | D60: AfA Gebäude | E60: 0 | F60: 3 | K60: 0 | L60: 0 | M60: 0 | N60: 0 | O60: 0 | P60: 0 | Q60: 0 | R60: 0 | S60: 0 | T60: 0 | U60: 0 | V60: 0 | W60: 0 | X60: 0 | Y60: 0
C61: 49 | D61: AfA techn. Bauanlagen, Heizung / Klima | E61: 0 | F61: 3 | K61: 0 | L61: 0 | M61: 0 | N61: 0 | O61: 0 | P61: 0 | Q61: 0 | R61: 0 | S61: 0 | T61: 0 | U61: 0 | V61: 0 | W61: 0 | X61: 0 | Y61: 0
C62: 50 | D62: AfA Inventar, Maschinen und Geräte | E62: 0 | F62: 3 | K62: 0 | L62: 0 | M62: 0 | N62: 0 | O62: 0 | P62: 0 | Q62: 0 | R62: 0 | S62: 0 | T62: 0 | U62: 0 | V62: 0 | W62: 0 | X62: 0 | Y62: 0
C63: 51 | D63: AfA Fahrzeuge | E63: 0 | F63: 3 | K63: 0 | L63: 0 | M63: 0 | N63: 0 | O63: 0 | P63: 0 | Q63: 0 | R63: 0 | S63: 0 | T63: 0 | U63: 0 | V63: 0 | W63: 0 | X63: 0 | Y63: 0
C64: 52 | D64: AfA Funk / Kommunikation | E64: 0 | F64: 3 | K64: 0 | L64: 0 | M64: 0 | N64: 0 | O64: 0 | P64: 0 | Q64: 0 | R64: 0 | S64: 0 | T64: 0 | U64: 0 | V64: 0 | W64: 0 | X64: 0 | Y64: 0
C65: 53 | D65: AfA medizinisches Gerät | E65: 0 | F65: 3 | K65: 0 | L65: 0 | M65: 0 | N65: 0 | O65: 0 | P65: 0 | Q65: 0 | R65: 0 | S65: 0 | T65: 0 | U65: 0 | V65: 0 | W65: 0 | X65: 0 | Y65: 0
C66: 54 | D66: AfA für GWG | E66: 0 | F66: 3 | K66: 0 | L66: 0 | M66: 0 | N66: 0 | O66: 0 | P66: 0 | Q66: 0 | R66: 0 | S66: 0 | T66: 0 | U66: 0 | V66: 0 | W66: 0 | X66: 0 | Y66: 0
C67: 55 | D67: Gesamt Abschreibungen (AfA) | E67: 0 | G67: S | K67: 0 | L67: 0 | M67: 0 | N67: 0 | O67: 0 | P67: 0 | Q67: 0 | R67: 0 | S67: 0 | T67: 0 | U67: 0 | V67: 0 | W67: 0 | X67: 0 | Y67: 0
C68: 56 | D68: Bruttogesamtkosten | E68: 0 | G68: ZS | K68: 0 | L68: 0 | M68: 0 | N68: 0 | O68: 0 | P68: 0 | Q68: 0 | R68: 0 | S68: 0 | T68: 0 | U68: 0 | V68: 0 | W68: 0 | X68: 0 | Y68: 0
E69: 0 | T69: 0
C70: 57 | D70: Zuschüsse / Zuweisungen | E70: 0 | F70: 2 | K70: 0 | L70: 0 | M70: 0 | N70: 0 | O70: 0 | P70: 0 | Q70: 0 | R70: 0 | S70: 0 | T70: 0 | U70: 0 | V70: 0 | W70: 0 | X70: 0 | Y70: 0
C71: 58 | D71: Finanzerträge | E71: 0 | F71: 2 | K71: 0 | L71: 0 | M71: 0 | N71: 0 | O71: 0 | P71: 0 | Q71: 0 | R71: 0 | S71: 0 | T71: 0 | U71: 0 | V71: 0 | W71: 0 | X71: 0 | Y71: 0
C72: 59 | D72: Versicherungsleistungen | E72: 0 | F72: 4 | K72: 0 | L72: 0 | M72: 0 | N72: 0 | O72: 0 | P72: 0 | Q72: 0 | R72: 0 | S72: 0 | T72: 0 | U72: 0 | V72: 0 | W72: 0 | X72: 0 | Y72: 0
C73: 60 | D73: Sonstige Einnahmen | E73: 0 | F73: 2 | K73: 0 | L73: 0 | M73: 0 | N73: 0 | O73: 0 | P73: 0 | Q73: 0 | R73: 0 | S73: 0 | T73: 0 | U73: 0 | V73: 0 | W73: 0 | X73: 0 | Y73: 0
C74: 61 | D74: Verkaufserlöse aus Anlagenabgang | E74: 0 | F74: 3 | K74: 0 | L74: 0 | M74: 0 | N74: 0 | O74: 0 | P74: 0 | Q74: 0 | R74: 0 | S74: 0 | T74: 0 | U74: 0 | V74: 0 | W74: 0 | X74: 0 | Y74: 0
C75: 62 | D75: Gesamt Abzüge | E75: 0 | G75: S | K75: 0 | L75: 0 | M75: 0 | N75: 0 | O75: 0 | P75: 0 | Q75: 0 | R75: 0 | S75: 0 | T75: 0 | U75: 0 | V75: 0 | W75: 0 | X75: 0 | Y75: 0
C76: 63 | D76: Gesamtkosten RD gem. § 15 NRettDG | E76: 0 | K76: 0 | L76: 0 | M76: 0 | N76: 0 | O76: 0 | P76: 0 | Q76: 0 | R76: 0 | S76: 0 | T76: 0 | U76: 0 | V76: 0 | W76: 0 | X76: 0 | Y76: 0
C77: 63 | D77: Gesamtkosten RD gem. § 15 NRettDG | E77: 0 | K77: 0 | L77: 0 | M77: 0 | N77: 0 | O77: 0 | P77: 0 | Q77: 0 | R77: 0 | S77: 0 | T77: 0 | U77: 0 | V77: 0 | W77: 0 | X77: 0 | Y77: 0
C79: 64 | D79: Zuordnung zur H-Kst Notfallrettung | E79: 0 | H79: 0 | P79: 0 | S79: 0 | T79: 0
C80: 65 | D80: Zuordnung zur H-Kst Qual. KTP | E80: 0 | I80: 0 | Q80: 0 | S80: 0
C81: 66 | D81: Zuordnung zur H-Kst Notarztdienst | E81: 0 | J81: 0 | R81: 0
A82: x | C82: 67 | D82: Verrechnung Notfallrettung durch KTW | E82: 0 | H82: 0 | I82: 0
A83: x | C83: 68 | D83: Verrechnung KTP durch RTW | E83: 0 | H83: 0 | I83: 0
A84: x | C84: 69 | D84: Aufteilung Verwaltung | E84: 0 | H84: 0 | I84: 0 | J84: 0 | K84: 0 | L84: 0 | M84: 0 | N84: 0 | O84: 0 | U84: 0
A85: x | C85: 70 | D85: Aufteilung Rettungsleitstelle | E85: 0 | H85: 0 | I85: 0 | J85: 0 | K85: 0 | L85: 0 | M85: 0 | N85: 0 | O85: 0 | V85: 0
A86: x | C86: 71 | D86: Aufteilung ÖEL | E86: 0 | H86: 0 | I86: 0 | J86: 0 | K86: 0 | L86: 0 | M86: 0 | N86: 0 | O86: 0 | W86: 0
A87: x | C87: 72 | D87: Aufteilung Großschadensereignis | E87: 0 | H87: 0 | I87: 0 | J87: 0 | K87: 0 | L87: 0 | M87: 0 | N87: 0 | O87: 0 | X87: 0
A88: x | C88: 73 | D88: Aufteilung Trägerverwaltung | E88: 0 | H88: 0 | I88: 0 | J88: 0 | K88: 0 | L88: 0 | M88: 0 | N88: 0 | O88: 0 | Y88: 0
C89: 74 | D89: Gesamtkosten RD gem. § 15 NRettDG | E89: 0 | H89: 0 | I89: 0 | J89: 0 | K89: 0 | L89: 0 | M89: 0 | N89: 0 | O89: 0 | P89: 0 | Q89: 0 | R89: 0 | S89: 0 | T89: 0 | U89: 0 | V89: 0 | W89: 0 | X89: 0 | Y89: 0
C90: 75 | D90: Vortragbares Betriebsergebnis | E90: 0 | H90: 0 | I90: 0 | J90: 0 | K90: 0 | L90: 0 | M90: 0 | N90: 0 | O90: 0
C91: 76 | D91: Aus Entgelten zu decken: | E91: 0 | H91: 0 | I91: 0 | J91: 0 | K91: 0 | L91: 0 | M91: 0 | N91: 0 | O91: 0
D92: * Gemäß Kostenrichtlinien

Sheet RDB-Statistik
B2: =ParameterDatei!D177 -> Drucken • RDB BAB • RDB Entgelte • Hauptmenu • RW Statistik • LE Statistik
C4: Leistungsdaten für den BAB Rettungsdienst in Niedersachsen*)
C5: =" Rettungsdienstbereich "&INDEX(ParameterDatei!C37:C86,ParameterDatei!B9)&" "&INDEX(ParameterDatei!D37:D86,ParameterDatei!B9)&" für den Berichtszeitraum "&INDEX(ParameterDatei!F9:F26,ParameterDatei!F27) -> 
C7: Zeile | E7: Summe | F7: US | G7: KZ | H7: Hilfskostenstellen | L7: Sonst-Kst
E8: Insgesamt | H8: RTW | I8: KTW | J8: NEF | K8: MZF | L8: ='Basis-Daten'!D12 -> Sonstige 1 | M8: ='Basis-Daten'!D14 -> Sonstige 2 | N8: ='Basis-Daten'!D16 -> Sonstige 3 | O8: ='Basis-Daten'!D18 -> Sonstige 4 | P8: ='Basis-Daten'!D20 -> Sonstige 5
C9: 1 | D9: 2 | E9: 3 | F9: 4 | G9: 5 | H9: 14 | I9: 15 | J9: 16 | K9: 17 | L9: 9 | M9: 10 | N9: 11 | O9: 12 | P9: 13
D11: I. Rettungdienststruktur
C13: 101 | D13: Anzahl Rettungsmittel | E13: =SUM(H13:Q13) -> 0 | F13: 1 | H13: ='Verdichtung 2'!$E113 -> 0 | I13: ='Verdichtung 2'!$E213 -> 0 | J13: ='Verdichtung 2'!$E313 -> 0 | K13: ='Verdichtung 2'!$E413 -> 0 | L13: ='Verdichtung 2'!$E513 -> 0 | M13: ='Verdichtung 2'!$E613 -> 0 | N13: ='Verdichtung 2'!$E713 -> 0 | O13: ='Verdichtung 2'!$E813 -> 0 | P13: ='Verdichtung 2'!$E913 -> 0
C14: 102 | D14: Anteil in % | E14: =SUM(H14:Q14) -> 0 | H14: =IF(H13=0,0,H13/$E13) -> 0 | I14: 0 | J14: 0 | K14: 0 | L14: 0 | M14: 0 | N14: 0 | O14: 0 | P14: 0
C16: 103 | D16: RM-Vorhaltestunden | E16: =SUM(H16:Q16) -> 0 | F16: 1 | H16: ='Verdichtung 2'!$E114 -> 0 | I16: ='Verdichtung 2'!$E214 -> 0 | J16: ='Verdichtung 2'!$E314 -> 0 | K16: ='Verdichtung 2'!$E414 -> 0 | L16: ='Verdichtung 2'!$E514 -> 0 | M16: ='Verdichtung 2'!$E614 -> 0 | N16: ='Verdichtung 2'!$E714 -> 0 | O16: ='Verdichtung 2'!$E814 -> 0 | P16: ='Verdichtung 2'!$E914 -> 0
C17: 104 | D17: Anteil in % | E17: =SUM(H17:Q17) -> 0 | H17: =IF(H16=0,0,H16/$E16) -> 0 | I17: 0 | J17: 0 | K17: 0 | L17: 0 | M17: 0 | N17: 0 | O17: 0 | P17: 0
C19: 105 | D19: Jahresstunden Einsatzpersonal | E19: =SUM(H19:Q19) -> 0 | H19: ='Verdichtung 2'!$E115 -> 0 | I19: ='Verdichtung 2'!$E215 -> 0 | J19: ='Verdichtung 2'!$E315 -> 0 | K19: ='Verdichtung 2'!$E415 -> 0 | L19: ='Verdichtung 2'!$E515 -> 0 | M19: ='Verdichtung 2'!$E615 -> 0 | N19: ='Verdichtung 2'!$E715 -> 0 | O19: ='Verdichtung 2'!$E815 -> 0 | P19: ='Verdichtung 2'!$E915 -> 0
C20: 106 | D20: Anteil in % | E20: =SUM(H20:Q20) -> 0 | H20: =IF(H19=0,0,H19/$E19) -> 0 | I20: 0 | J20: 0 | K20: 0 | L20: 0 | M20: 0 | N20: 0 | O20: 0 | P20: 0
C22: 107 | D22: Jahresstunden Notärzte | E22: =SUM(H22:Q22) -> 0 | H22: ='Verdichtung 2'!$E116 -> 0 | I22: ='Verdichtung 2'!$E216 -> 0 | J22: ='Verdichtung 2'!$E316 -> 0 | K22: ='Verdichtung 2'!$E416 -> 0 | L22: ='Verdichtung 2'!$E516 -> 0 | M22: ='Verdichtung 2'!$E616 -> 0 | N22: ='Verdichtung 2'!$E716 -> 0 | O22: ='Verdichtung 2'!$E816 -> 0 | P22: ='Verdichtung 2'!$E916 -> 0
C23: 108 | D23: Anteil in % | E23: =SUM(H23:Q23) -> 0 | H23: =IF(H22=0,0,H22/$E22) -> 0 | I23: 0 | J23: 0 | K23: 0 | L23: 0 | M23: 0 | N23: 0 | O23: 0 | P23: 0
D26: II. Leistungsdaten
C28: 109 | D28: Gesamteinsätze | E28: =SUM(H28:Q28) -> 0 | H28: ='Verdichtung 2'!$E121 -> 0 | I28: ='Verdichtung 2'!$E221 -> 0 | J28: ='Verdichtung 2'!$E321 -> 0 | K28: ='Verdichtung 2'!$E421 -> 0 | L28: ='Verdichtung 2'!$E521 -> 0 | M28: ='Verdichtung 2'!$E621 -> 0 | N28: ='Verdichtung 2'!$E721 -> 0 | O28: ='Verdichtung 2'!$E821 -> 0 | P28: ='Verdichtung 2'!$E921 -> 0
C29: 110 | D29: Anteil in % | E29: =SUM(H29:Q29) -> 0 | H29: =IF(H28=0,0,H28/$E28) -> 0 | I29: 0 | J29: 0 | K29: 0 | L29: 0 | M29: 0 | N29: 0 | O29: 0 | P29: 0
C31: 111 | D31: Davon Fehleinsätze | E31: =SUM(H31:Q31) -> 0 | H31: ='Verdichtung 2'!$E122 -> 0 | I31: ='Verdichtung 2'!$E222 -> 0 | J31: ='Verdichtung 2'!$E322 -> 0 | K31: ='Verdichtung 2'!$E422 -> 0 | L31: ='Verdichtung 2'!$E522 -> 0 | M31: ='Verdichtung 2'!$E622 -> 0 | N31: ='Verdichtung 2'!$E722 -> 0 | O31: ='Verdichtung 2'!$E822 -> 0 | P31: ='Verdichtung 2'!$E922 -> 0
C32: 112 | D32: Anteil in % | E32: =SUM(H32:Q32) -> 0 | H32: =IF(H31=0,0,H31/$E31) -> 0 | I32: 0 | J32: 0 | K32: 0 | L32: 0 | M32: 0 | N32: 0 | O32: 0 | P32: 0
C33: 113 | D33: bezogen auf Einsätze insgesamt in % | E33: =IF(E31=0,0,E31/E28) -> 0 | H33: =IF(H31=0,0,H31/H28) -> 0 | I33: 0 | J33: 0 | K33: 0 | L33: 0 | M33: 0 | N33: 0 | O33: 0 | P33: 0
C35: 114 | D35: Einsätze abrechenbar für Entgeltkalk. | E35: =SUM(H35:Q35) -> 0 | H35: ='Verdichtung 2'!E123 -> 0 | I35: ='Verdichtung 2'!$E223 -> 0 | J35: ='Verdichtung 2'!$E323 -> 0 | K35: ='Verdichtung 2'!$E423 -> 0 | L35: ='Verdichtung 2'!$E523 -> 0 | M35: ='Verdichtung 2'!$E623 -> 0 | N35: ='Verdichtung 2'!$E723 -> 0 | O35: ='Verdichtung 2'!$E823 -> 0 | P35: ='Verdichtung 2'!$E923 -> 0
C36: 115 | D36: Aufteilung in % | E36: =SUM(H36:Q36) -> 0 | H36: =IF(H35=0,0,H35/$E35) -> 0 | I36: 0 | J36: 0 | K36: 0 | L36: 0 | M36: 0 | N36: 0 | O36: 0 | P36: 0
C37: 116 | D37: bezogen auf Einsätze insgesamt in % | E37: =IF(E35=0,0,E35/E28) -> 0 | H37: =IF(H35=0,0,H35/H28) -> 0 | I37: 0 | J37: 0 | K37: 0 | L37: 0 | M37: 0 | N37: 0 | O37: 0 | P37: 0
C39: 117 | D39: Gesamteinsätze Notfallrettung | E39: =SUM(H39:Q39) -> 0 | H39: ='Verdichtung 2'!$E124 -> 0 | I39: ='Verdichtung 2'!$E224 -> 0 | J39: ='Verdichtung 2'!$E324 -> 0 | K39: ='Verdichtung 2'!$E424 -> 0 | L39: ='Verdichtung 2'!$E524 -> 0 | M39: ='Verdichtung 2'!$E624 -> 0 | N39: ='Verdichtung 2'!$E724 -> 0 | O39: ='Verdichtung 2'!$E824 -> 0 | P39: ='Verdichtung 2'!$E924 -> 0
C40: 118 | D40: Aufteilung in % | E40: =SUM(H40:Q40) -> 0 | H40: =IF(H39=0,0,H39/$E39) -> 0 | I40: 0 | J40: 0 | K40: 0 | L40: 0 | M40: 0 | N40: 0 | O40: 0 | P40: 0
C41: 119 | D41: bezogen auf Einsätze insgesamt in % | E41: =IF(E39=0,0,E39/E28) -> 0 | H41: =IF(H39=0,0,H39/H28) -> 0 | I41: 0 | J41: 0 | K41: 0 | L41: 0 | M41: 0 | N41: 0 | O41: 0 | P41: 0
C43: 120 | D43: Gesamteinsätze Krankentransport | E43: =SUM(H43:Q43) -> 0 | H43: ='Verdichtung 2'!$E125 -> 0 | I43: ='Verdichtung 2'!$E225 -> 0 | J43: ='Verdichtung 2'!$E325 -> 0 | K43: ='Verdichtung 2'!$E425 -> 0 | L43: ='Verdichtung 2'!$E525 -> 0 | M43: ='Verdichtung 2'!$E625 -> 0 | N43: ='Verdichtung 2'!$E725 -> 0 | O43: ='Verdichtung 2'!$E825 -> 0 | P43: ='Verdichtung 2'!$E925 -> 0
C44: 121 | D44: Aufteilung in % | E44: =SUM(H44:Q44) -> 0 | H44: =IF(H43=0,0,H43/$E43) -> 0 | I44: 0 | J44: 0 | K44: 0 | L44: 0 | M44: 0 | N44: 0 | O44: 0 | P44: 0
C45: 122 | D45: bezogen auf Einsätze insgesamt in % | E45: =IF(E43=0,0,E43/E28) -> 0 | H45: =IF(H43=0,0,H43/H28) -> 0 | I45: 0 | J45: 0 | K45: 0 | L45: 0 | M45: 0 | N45: 0 | O45: 0 | P45: 0
C47: 123 | D47: Gesamteinsätze Notarztdienst | E47: =SUM(H47:Q47) -> 0 | H47: ='Verdichtung 2'!$E126 -> 0 | I47: ='Verdichtung 2'!$E226 -> 0 | J47: ='Verdichtung 2'!$E326 -> 0 | K47: ='Verdichtung 2'!$E426 -> 0 | L47: ='Verdichtung 2'!$E526 -> 0 | M47: ='Verdichtung 2'!$E626 -> 0 | N47: ='Verdichtung 2'!$E726 -> 0 | O47: ='Verdichtung 2'!$E826 -> 0 | P47: ='Verdichtung 2'!$E926 -> 0
C48: 124 | D48: Aufteilung in % | E48: =SUM(H48:Q48) -> 0 | H48: =IF(H47=0,0,H47/$E47) -> 0 | I48: 0 | J48: 0 | K48: 0 | L48: 0 | M48: 0 | N48: 0 | O48: 0 | P48: 0
C49: 125 | D49: bezogen auf Einsätze insgesamt in % | E49: =IF(E47=0,0,E47/E28) -> 0 | H49: =IF(H47=0,0,H47/H28) -> 0 | I49: 0 | J49: 0 | K49: 0 | L49: 0 | M49: 0 | N49: 0 | O49: 0 | P49: 0
C51: 126 | D51: Kilometer insgesamt | E51: =SUM(H51:Q51) -> 0 | H51: ='Verdichtung 2'!$E128 -> 0 | I51: ='Verdichtung 2'!$E228 -> 0 | J51: ='Verdichtung 2'!$E328 -> 0 | K51: ='Verdichtung 2'!$E428 -> 0 | L51: ='Verdichtung 2'!$E528 -> 0 | M51: ='Verdichtung 2'!$E628 -> 0 | N51: ='Verdichtung 2'!$E728 -> 0 | O51: ='Verdichtung 2'!$E828 -> 0 | P51: ='Verdichtung 2'!$E928 -> 0
C52: 127 | D52: Aufteilung in % | E52: =SUM(H52:Q52) -> 0 | H52: =IF(H51=0,0,H51/$E51) -> 0 | I52: 0 | J52: 0 | K52: 0 | L52: 0 | M52: 0 | N52: 0 | O52: 0 | P52: 0
C54: 128 | D54: Kilometer abrechenbar für Entgeltkalk. | E54: =SUM(H54:Q54) -> 0 | H54: ='Verdichtung 2'!$E129 -> 0 | I54: ='Verdichtung 2'!$E229 -> 0 | J54: ='Verdichtung 2'!$E329 -> 0 | K54: ='Verdichtung 2'!$E429 -> 0 | L54: ='Verdichtung 2'!$E529 -> 0 | M54: ='Verdichtung 2'!$E629 -> 0 | N54: ='Verdichtung 2'!$E729 -> 0 | O54: ='Verdichtung 2'!$E829 -> 0 | P54: ='Verdichtung 2'!$E929 -> 0
C55: 129 | D55: Aufteilung in % | E55: =SUM(H55:Q55) -> 0 | H55: =IF(H54=0,0,H54/$E54) -> 0 | I55: 0 | J55: 0 | K55: 0 | L55: 0 | M55: 0 | N55: 0 | O55: 0 | P55: 0
C56: 130 | D56: bezogen auf Kilometer insgesamt in % | E56: =IF(E54=0,0,E54/E51) -> 0 | H56: =IF(H54=0,0,H54/H51) -> 0 | I56: 0 | J56: 0 | K56: 0 | L56: 0 | M56: 0 | N56: 0 | O56: 0 | P56: 0
C58: 131 | D58: Kilometer Notfallrettung | E58: =SUM(H58:Q58) -> 0 | H58: ='Verdichtung 2'!$E130 -> 0 | I58: ='Verdichtung 2'!$E230 -> 0 | J58: ='Verdichtung 2'!$E330 -> 0 | K58: ='Verdichtung 2'!$E430 -> 0 | L58: ='Verdichtung 2'!$E530 -> 0 | M58: ='Verdichtung 2'!$E630 -> 0 | N58: ='Verdichtung 2'!$E730 -> 0 | O58: ='Verdichtung 2'!$E830 -> 0 | P58: ='Verdichtung 2'!$E930 -> 0
C59: 132 | D59: Aufteilung in % | E59: =SUM(H59:Q59) -> 0 | H59: =IF(H58=0,0,H58/$E58) -> 0 | I59: 0 | J59: 0 | K59: 0 | L59: 0 | M59: 0 | N59: 0 | O59: 0 | P59: 0
C60: 133 | D60: bezogen auf Kilometer insgesamt in % | E60: =IF(E58=0,0,E58/E51) -> 0 | H60: =IF(H58=0,0,H58/H51) -> 0 | I60: 0 | J60: 0 | K60: 0 | L60: 0 | M60: 0 | N60: 0 | O60: 0 | P60: 0
C62: 134 | D62: Kilometer Krankentransport | E62: =SUM(H62:Q62) -> 0 | H62: ='Verdichtung 2'!$E131 -> 0 | I62: ='Verdichtung 2'!$E231 -> 0 | J62: ='Verdichtung 2'!$E331 -> 0 | K62: ='Verdichtung 2'!$E431 -> 0 | L62: ='Verdichtung 2'!$E531 -> 0 | M62: ='Verdichtung 2'!$E631 -> 0 | N62: ='Verdichtung 2'!$E731 -> 0 | O62: ='Verdichtung 2'!$E831 -> 0 | P62: ='Verdichtung 2'!$E931 -> 0
C63: 135 | D63: Aufteilung in % | E63: =SUM(H63:Q63) -> 0 | H63: =IF(H62=0,0,H62/$E62) -> 0 | I63: 0 | J63: 0 | K63: 0 | L63: 0 | M63: 0 | N63: 0 | O63: 0 | P63: 0
C64: 136 | D64: bezogen auf Kilometer insgesamt in % | E64: =IF(E62=0,0,E62/E51) -> 0 | H64: =IF(H62=0,0,H62/H51) -> 0 | I64: 0 | J64: 0 | K64: 0 | L64: 0 | M64: 0 | N64: 0 | O64: 0 | P64: 0
C66: 137 | D66: Kilometer Notarztdienst | E66: =SUM(H66:Q66) -> 0 | H66: ='Verdichtung 2'!$E132 -> 0 | I66: ='Verdichtung 2'!$E232 -> 0 | J66: ='Verdichtung 2'!$E332 -> 0 | K66: ='Verdichtung 2'!$E432 -> 0 | L66: ='Verdichtung 2'!$E532 -> 0 | M66: ='Verdichtung 2'!$E632 -> 0 | N66: ='Verdichtung 2'!$E732 -> 0 | O66: ='Verdichtung 2'!$E832 -> 0 | P66: ='Verdichtung 2'!$E932 -> 0
C67: 138 | D67: Aufteilung in % | E67: =SUM(H67:Q67) -> 0 | H67: =IF(H66=0,0,H66/$E66) -> 0 | I67: 0 | J67: 0 | K67: 0 | L67: 0 | M67: 0 | N67: 0 | O67: 0 | P67: 0
C68: 139 | D68: bezogen auf Kilometer insgesamt in % | E68: =IF(E66=0,0,E66/E51) -> 0 | H68: =IF(H66=0,0,H66/H51) -> 0 | I68: 0 | J68: 0 | K68: 0 | L68: 0 | M68: 0 | N68: 0 | O68: 0 | P68: 0
C70: 140 | D70: Einsatzdauer in Minuten ø | E70: ='Verdichtung 2'!$E34 -> 0 | H70: ='Verdichtung 2'!$E134 -> 0 | I70: ='Verdichtung 2'!$E234 -> 0 | J70: ='Verdichtung 2'!$E334 -> 0 | K70: ='Verdichtung 2'!$E434 -> 0 | L70: ='Verdichtung 2'!$E534 -> 0 | M70: ='Verdichtung 2'!$E634 -> 0 | N70: ='Verdichtung 2'!$E734 -> 0 | O70: ='Verdichtung 2'!$E834 -> 0 | P70: ='Verdichtung 2'!$E934 -> 0
D73: III. Rettungsleitstelle
C75: 145 | D75: Einsätze Notfallrettung | E75: =SUM(H75:Q75) -> 0 | H75: =H39 -> 0 | I75: =I39 -> 0 | J75: 0 | K75: 0 | L75: 0 | M75: 0 | N75: 0 | O75: 0 | P75: 0
C76: 146 | D76: Anteil in % | E76: =E41 -> 0
C78: 147 | D78: Einsätze Krankentransport | E78: =SUM(H78:Q78) -> 0 | H78: =H43 -> 0 | I78: =I43 -> 0 | J78: 0 | K78: 0 | L78: 0 | M78: 0 | N78: 0 | O78: 0 | P78: 0
C79: 148 | D79: Anteil in % | E79: =E45 -> 0
C81: 149 | D81: Einsätze Notarztdienst | E81: =SUM(H81:Q81) -> 0 | H81: =H47 -> 0 | I81: =I47 -> 0 | J81: 0 | K81: 0 | L81: 0 | M81: 0 | N81: 0 | O81: 0 | P81: 0
C82: 150 | D82: Anteil in % | E82: =E49 -> 0
C84: 151 | D84: Personalstunden Anteil Rettungsdienst | E84: ='Traeger-Statistik'!E22 -> 0

Sheet KBQA-Datei
B2: =ParameterDatei!D177 -> Drucken • RDB BAB • RDB Entgelte • Hauptmenu • RW Statistik • LE Statistik
C4: KBQA-Daten für den Rettungsdienst in Niedersachsen
C5: =" Rettungsdienstbereich "&INDEX(ParameterDatei!C37:C86,ParameterDatei!B9)&" "&INDEX(ParameterDatei!D37:D86,ParameterDatei!B9)&" für den Berichtszeitraum "&INDEX(ParameterDatei!F9:F26,ParameterDatei!F27) -> 
C7: Zeile | E7: Summe | F7: US | G7: KZ | H7: Hilfskostenstellen | L7: Sonst-Kst
E8: Insgesamt | H8: RTW | I8: KTW | J8: NEF | K8: MZF | L8: ='Basis-Daten'!D12 -> Sonstige 1 | M8: ='Basis-Daten'!D14 -> Sonstige 2 | N8: ='Basis-Daten'!D16 -> Sonstige 3 | O8: ='Basis-Daten'!D18 -> Sonstige 4 | P8: ='Basis-Daten'!D20 -> Sonstige 5
C9: 1 | D9: 2 | E9: 3 | F9: 4 | G9: 5 | H9: 14 | I9: 15 | J9: 16 | K9: 17 | L9: 9 | M9: 10 | N9: 11 | O9: 12 | P9: 13
C11: 91 | D11: Einwohner im Rettungsdienstbereich | E11: ='Basis-Daten'!H6 -> 0
C12: 92 | D12: Größe Rettungsdienstbereich in qkm | E12: ='Basis-Daten'!H8 -> 0
C14: 101 | D14: Anzahl Rettungsmittel (ohne Reserve) | E14: =SUM(H14:P14) -> 0 | H14: ='Verdichtung 2'!$E113 -> 0 | I14: ='Verdichtung 2'!$E213 -> 0 | J14: ='Verdichtung 2'!$E313 -> 0 | K14: ='Verdichtung 2'!$E413 -> 0 | L14: ='Verdichtung 2'!$E513 -> 0 | M14: ='Verdichtung 2'!$E613 -> 0 | N14: ='Verdichtung 2'!$E713 -> 0 | O14: ='Verdichtung 2'!$E813 -> 0 | P14: ='Verdichtung 2'!$E913 -> 0
C15: 103 | D15: RM-Vorhaltestunden | E15: =SUM(H15:P15) -> 0 | H15: ='Verdichtung 2'!$E114 -> 0 | I15: ='Verdichtung 2'!$E214 -> 0 | J15: ='Verdichtung 2'!$E314 -> 0 | K15: ='Verdichtung 2'!$E414 -> 0 | L15: ='Verdichtung 2'!$E514 -> 0 | M15: ='Verdichtung 2'!$E614 -> 0 | N15: ='Verdichtung 2'!$E714 -> 0 | O15: ='Verdichtung 2'!$E814 -> 0 | P15: ='Verdichtung 2'!$E914 -> 0
C16: 105 | D16: Jahresstunden Einsatzpersonal | E16: =SUM(H16:P16) -> 0 | H16: ='Verdichtung 2'!$E115 -> 0 | I16: ='Verdichtung 2'!$E215 -> 0 | J16: ='Verdichtung 2'!$E315 -> 0 | K16: ='Verdichtung 2'!$E415 -> 0 | L16: ='Verdichtung 2'!$E515 -> 0 | M16: ='Verdichtung 2'!$E615 -> 0 | N16: ='Verdichtung 2'!$E715 -> 0 | O16: ='Verdichtung 2'!$E815 -> 0 | P16: ='Verdichtung 2'!$E915 -> 0
C17: 107 | D17: Jahresstunden Notärzte | E17: =SUM(H17:P17) -> 0 | H17: ='Verdichtung 2'!$E116 -> 0 | I17: ='Verdichtung 2'!$E216 -> 0 | J17: ='Verdichtung 2'!$E316 -> 0 | K17: ='Verdichtung 2'!$E416 -> 0 | L17: ='Verdichtung 2'!$E516 -> 0 | M17: ='Verdichtung 2'!$E616 -> 0 | N17: ='Verdichtung 2'!$E716 -> 0 | O17: ='Verdichtung 2'!$E816 -> 0 | P17: ='Verdichtung 2'!$E916 -> 0
C19: 109 | D19: Gesamteinsätze | E19: =SUM(H19:P19) -> 0 | H19: ='Verdichtung 2'!$E121 -> 0 | I19: ='Verdichtung 2'!$E221 -> 0 | J19: ='Verdichtung 2'!$E321 -> 0 | K19: ='Verdichtung 2'!$E421 -> 0 | L19: ='Verdichtung 2'!$E521 -> 0 | M19: ='Verdichtung 2'!$E621 -> 0 | N19: ='Verdichtung 2'!$E721 -> 0 | O19: ='Verdichtung 2'!$E821 -> 0 | P19: ='Verdichtung 2'!$E921 -> 0
C20: 111 | D20: Davon Fehleinsätze | E20: =SUM(H20:P20) -> 0 | H20: ='Verdichtung 2'!$E122 -> 0 | I20: ='Verdichtung 2'!$E222 -> 0 | J20: ='Verdichtung 2'!$E322 -> 0 | K20: ='Verdichtung 2'!$E422 -> 0 | L20: ='Verdichtung 2'!$E522 -> 0 | M20: ='Verdichtung 2'!$E622 -> 0 | N20: ='Verdichtung 2'!$E722 -> 0 | O20: ='Verdichtung 2'!$E822 -> 0 | P20: ='Verdichtung 2'!$E922 -> 0
C22: 114 | D22: Einsätze abrechenbar für Entgeltkalk. | E22: =SUM(H22:P22) -> 0 | H22: ='Verdichtung 2'!E123 -> 0 | I22: ='Verdichtung 2'!$E223 -> 0 | J22: ='Verdichtung 2'!$E323 -> 0 | K22: ='Verdichtung 2'!$E423 -> 0 | L22: ='Verdichtung 2'!$E523 -> 0 | M22: ='Verdichtung 2'!$E623 -> 0 | N22: ='Verdichtung 2'!$E723 -> 0 | O22: ='Verdichtung 2'!$E823 -> 0 | P22: ='Verdichtung 2'!$E923 -> 0
C24: 117 | D24: Gesamteinsätze Notfallrettung | E24: =SUM(H24:P24) -> 0 | H24: ='Verdichtung 2'!$E124 -> 0 | I24: ='Verdichtung 2'!$E224 -> 0 | J24: ='Verdichtung 2'!$E324 -> 0 | K24: ='Verdichtung 2'!$E424 -> 0 | L24: ='Verdichtung 2'!$E524 -> 0 | M24: ='Verdichtung 2'!$E624 -> 0 | N24: ='Verdichtung 2'!$E724 -> 0 | O24: ='Verdichtung 2'!$E824 -> 0 | P24: ='Verdichtung 2'!$E924 -> 0
C25: 120 | D25: Gesamteinsätze Krankentransport | E25: =SUM(H25:P25) -> 0 | H25: ='Verdichtung 2'!$E125 -> 0 | I25: ='Verdichtung 2'!$E225 -> 0 | J25: ='Verdichtung 2'!$E325 -> 0 | K25: ='Verdichtung 2'!$E425 -> 0 | L25: ='Verdichtung 2'!$E525 -> 0 | M25: ='Verdichtung 2'!$E625 -> 0 | N25: ='Verdichtung 2'!$E725 -> 0 | O25: ='Verdichtung 2'!$E825 -> 0 | P25: ='Verdichtung 2'!$E925 -> 0
C26: 123 | D26: Gesamteinsätze Notarztdienst | E26: =SUM(H26:P26) -> 0 | H26: ='Verdichtung 2'!$E126 -> 0 | I26: ='Verdichtung 2'!$E226 -> 0 | J26: ='Verdichtung 2'!$E326 -> 0 | K26: ='Verdichtung 2'!$E426 -> 0 | L26: ='Verdichtung 2'!$E526 -> 0 | M26: ='Verdichtung 2'!$E626 -> 0 | N26: ='Verdichtung 2'!$E726 -> 0 | O26: ='Verdichtung 2'!$E826 -> 0 | P26: ='Verdichtung 2'!$E926 -> 0
C28: 140 | D28: Einsatzdauer in Minuten ø | E28: ='Verdichtung 2'!$E34 -> 0 | H28: ='Verdichtung 2'!$E134 -> 0 | I28: ='Verdichtung 2'!$E234 -> 0 | J28: ='Verdichtung 2'!$E334 -> 0 | K28: ='Verdichtung 2'!$E434 -> 0 | L28: ='Verdichtung 2'!$E534 -> 0 | M28: ='Verdichtung 2'!$E634 -> 0 | N28: ='Verdichtung 2'!$E734 -> 0 | O28: ='Verdichtung 2'!$E834 -> 0 | P28: ='Verdichtung 2'!$E934 -> 0
C30: 151 | D30: Leitstelle Personalstunden Anteil RD | E30: ='Traeger-Statistik'!E22 -> 0
C34: Stand: | D34: =TODAY() -> 2014-07-08

Sheet KBQA-Export
C2: KBQA-Daten für den Rettungsdienst in Niedersachsen
C3: Rettungsdienstbereich Landkreis Verden für den Berichtszeitraum 01.01. - 31.12.2013
C5: Zeile | E5: Summe | F5: US | G5: KZ | H5: Hilfskostenstellen | L5: Sonst-Kst
E6: Insgesamt | H6: RTW | I6: KTW | J6: NEF | K6: MZF | L6: Sonstige 1 | M6: Sonstige 2 | N6: Sonstige 3 | O6: Sonstige 4 | P6: Sonstige 5
C7: 1 | D7: 2 | E7: 3 | F7: 4 | G7: 5 | H7: 14 | I7: 15 | J7: 16 | K7: 17 | L7: 9 | M7: 10 | N7: 11 | O7: 12 | P7: 13
C9: 91 | D9: Einwohner im Rettungsdienstbereich | E9: 0
C10: 92 | D10: Größe Rettungsdienstbereich in qkm | E10: 0
C12: 101 | D12: Anzahl Rettungsmittel (ohne Reserve) | E12: 0 | H12: 0 | I12: 0 | J12: 0 | K12: 0 | L12: 0 | M12: 0 | N12: 0 | O12: 0 | P12: 0
C13: 103 | D13: RM-Vorhaltestunden | E13: 0 | H13: 0 | I13: 0 | J13: 0 | K13: 0 | L13: 0 | M13: 0 | N13: 0 | O13: 0 | P13: 0
C14: 105 | D14: Jahresstunden Einsatzpersonal | E14: 0 | H14: 0 | I14: 0 | J14: 0 | K14: 0 | L14: 0 | M14: 0 | N14: 0 | O14: 0 | P14: 0
C15: 107 | D15: Jahresstunden Notärzte | E15: 0 | H15: 0 | I15: 0 | J15: 0 | K15: 0 | L15: 0 | M15: 0 | N15: 0 | O15: 0 | P15: 0
C17: 109 | D17: Gesamteinsätze | E17: 0 | H17: 0 | I17: 0 | J17: 0 | K17: 0 | L17: 0 | M17: 0 | N17: 0 | O17: 0 | P17: 0
C18: 111 | D18: Davon Fehleinsätze | E18: 0 | H18: 0 | I18: 0 | J18: 0 | K18: 0 | L18: 0 | M18: 0 | N18: 0 | O18: 0 | P18: 0
C20: 114 | D20: Einsätze abrechenbar für Entgeltkalk. | E20: 0 | H20: 0 | I20: 0 | J20: 0 | K20: 0 | L20: 0 | M20: 0 | N20: 0 | O20: 0 | P20: 0
C22: 117 | D22: Gesamteinsätze Notfallrettung | E22: 0 | H22: 0 | I22: 0 | J22: 0 | K22: 0 | L22: 0 | M22: 0 | N22: 0 | O22: 0 | P22: 0
C23: 120 | D23: Gesamteinsätze Krankentransport | E23: 0 | H23: 0 | I23: 0 | J23: 0 | K23: 0 | L23: 0 | M23: 0 | N23: 0 | O23: 0 | P23: 0
C24: 123 | D24: Gesamteinsätze Notarztdienst | E24: 0 | H24: 0 | I24: 0 | J24: 0 | K24: 0 | L24: 0 | M24: 0 | N24: 0 | O24: 0 | P24: 0
C26: 140 | D26: Einsatzdauer in Minuten ø | E26: 0 | H26: 0 | I26: 0 | J26: 0 | K26: 0 | L26: 0 | M26: 0 | N26: 0 | O26: 0 | P26: 0
C28: 151 | D28: Leitstelle Personalstunden Anteil RD | E28: 0
C32: Stand: | D32: =TODAY() -> 2014-07-08 | P32: © ORGAKOM 2017

Sheet RDB-S-Drucken
B2: =ParameterDatei!D185 -> • Hauptmenu •
C4: Statistikdaten für den BAB Rettungsdienst in Niedersachsen*)
C5: =" Rettungsdienstbereich "&INDEX(ParameterDatei!C37:C86,ParameterDatei!B9)&" "&INDEX(ParameterDatei!D37:D86,ParameterDatei!B9)&" für den Berichtszeitraum "&INDEX(ParameterDatei!F9:F26,ParameterDatei!B8) -> 
C7: Zeile | E7: Summe | F7: US | G7: KZ | H7: Hilfskostenstellen | L7: Sonst-Kst
E8: Insgesamt | H8: RTW | I8: KTW | J8: NEF | K8: MZF | L8: ='Basis-Daten'!D12 -> Sonstige 1 | M8: ='Basis-Daten'!D14 -> Sonstige 2 | N8: ='Basis-Daten'!D16 -> Sonstige 3 | O8: ='Basis-Daten'!D18 -> Sonstige 4 | P8: ='Basis-Daten'!D20 -> Sonstige 5
C9: 1 | D9: 2 | E9: 3 | F9: 4 | G9: 5 | H9: 14 | I9: 15 | J9: 16 | K9: 17 | L9: 9 | M9: 10 | N9: 11 | O9: 12 | P9: 13
D11: I. Rettungdienststruktur
C13: 101 | D13: Anzahl Rettungsmittel
C14: 102 | D14: Anteil in %
C16: 103 | D16: RM-Vorhaltestunden
C17: 104 | D17: Anteil in %
C19: 105 | D19: Jahresstunden Einsatzpersonal
C20: 106 | D20: Anteil in %
C22: 107 | D22: Jahresstunden Notärzte
C23: 108 | D23: Anteil in %
D26: II. Leistungsdaten
C28: 109 | D28: Gesamteinsätze
C29: 110 | D29: Anteil in %
C31: 111 | D31: Davon Fehleinsätze
C32: 112 | D32: Anteil in %
C33: 113 | D33: bezogen auf Einsätze insgesamt in %
C35: 114 | D35: Einsätze abrechenbar für Entgeltkalk.
C36: 115 | D36: Aufteilung in %
C37: 116 | D37: bezogen auf Einsätze insgesamt in %
C39: 117 | D39: Gesamteinsätze Notfallrettung
C40: 118 | D40: Aufteilung in %
C41: 119 | D41: bezogen auf Einsätze insgesamt in %
C43: 120 | D43: Gesamteinsätze Krankentransport
C44: 121 | D44: Aufteilung in %
C45: 122 | D45: bezogen auf Einsätze insgesamt in %
C47: 123 | D47: Gesmteinsätze Notarztdienst
C48: 124 | D48: Aufteilung in %
C49: 125 | D49: bezogen auf Einsätze insgesamt in %
C51: 126 | D51: Kilometer insgesamt
C52: 127 | D52: Aufteilung in %
C54: 128 | D54: Kilometer abrechenbar für Entgeltkalk.
C55: 129 | D55: Aufteilung in %
C56: 130 | D56: bezogen auf Kilometer insgesamt in %
C58: 131 | D58: Kilometer Notfallrettung
C59: 132 | D59: Aufteilung in %
C60: 133 | D60: bezogen auf Kilometer insgesamt in %
C62: 134 | D62: Kilometer Krankentransport
C63: 135 | D63: Aufteilung in %
C64: 136 | D64: bezogen auf Kilometer insgesamt in %
C66: 137 | D66: Kilometer Notarztdienst
C67: 138 | D67: Aufteilung in %
C68: 139 | D68: bezogen auf Kilometer insgesamt in %
C70: 140 | D70: Einsatzdauer in Minuten ø pro Einsatz
D73: III. Rettungsleitstelle
C75: 145 | D75: Einsätze Notfallrettung
C76: 146 | D76: Anteil in %
C78: 147 | D78: Einsätze Krankentransport
C79: 148 | D79: Anteil in %
C81: 149 | D81: Einsätze Notarztdienst
C82: 150 | D82: Anteil in %
C84: 151 | D84: Personalstunden Rettungsleitstelle

Sheet RDB-Kennzahlen
B2: =ParameterDatei!D195 -> Drucken • Export • RDB BAB • Hauptmenu • RDB Statistik • RDB Anmerkungen
C4: Kennzahlen für den Rettungsdienst in Niedersachsen*)
C5: =" Rettungsdienstbereich "&INDEX(ParameterDatei!C37:C86,ParameterDatei!B9)&" "&INDEX(ParameterDatei!D37:D86,ParameterDatei!B9)&" für den Berichtszeitraum "&INDEX(ParameterDatei!F9:F26,ParameterDatei!F27) -> 
C7: Zeile | E7: Summe | F7: Hauptkostenstellen | J7: Divident | O7: Divisor
E8: Insgesamt | F8: NFR | G8: KTP | H8: Notarzt- Dienst | I8: Sonstige | J8: Insgesamt | K8: NFR | L8: KTP | M8: Notarzt- Dienst | N8: Sonstige | O8: Insgesamt | P8: NFR | Q8: KTP | R8: Notarzt- Dienst | S8: Sonstige
C9: 1 | D9: 2 | E9: 3 | F9: 14 | G9: 15 | H9: 16 | I9: 17 | J9: 14 | K9: 15 | L9: 16 | M9: 17 | N9: 18 | O9: 15 | P9: 16 | Q9: 17 | R9: 18 | S9: 15
C11: 501 | D11: 1.1 Gesamtkosten / RM-Vorhaltestunden | E11: =J11/IF(O11=0,1,O11) -> 0 | F11: 0 | G11: 0 | H11: 0 | I11: 0 | J11: ='Verdichtung 2'!I1516 -> 0 | K11: ='Verdichtung 2'!E1516 -> 0 | L11: ='Verdichtung 2'!F1516 -> 0 | M11: ='Verdichtung 2'!G1516 -> 0 | N11: ='Verdichtung 2'!H1516 -> 0 | O11: =SUM(P11:S11) -> 0 | P11: ='Verdichtung 2'!E114+'Verdichtung 2'!E414-'Verdichtung 2'!E1222 -> 0 | Q11: ='Verdichtung 2'!E214+'Verdichtung 2'!E1222 -> 0 | R11: ='Verdichtung 2'!E314 -> 0 | S11: ='Verdichtung 2'!E514+'Verdichtung 2'!E614+'Verdichtung 2'!E714+'Verdichtung 2'!E814+'Verdichtung 2'!E914 -> 0
C12: 502 | D12: 1.2 Personalkosten / RM-Vorhaltestunden | E12: 0 | F12: 0 | G12: 0 | H12: 0 | I12: 0 | J12: ='Verdichtung 2'!I1518 -> 0 | K12: ='Verdichtung 2'!E1518 -> 0 | L12: ='Verdichtung 2'!F1518 -> 0 | M12: ='Verdichtung 2'!G1518 -> 0 | N12: ='Verdichtung 2'!H1518 -> 0 | O12: =O11 -> 0 | P12: =P11 -> 0 | Q12: =Q11 -> 0 | R12: =R11 -> 0 | S12: =S11 -> 0
C13: 503 | D13: 1.3 Sachkosten / RM-Vorhaltestunden | E13: 0 | F13: 0 | G13: 0 | H13: 0 | I13: 0 | J13: ='Verdichtung 2'!I1527 -> 0 | K13: ='Verdichtung 2'!E1527 -> 0 | L13: ='Verdichtung 2'!F1527 -> 0 | M13: ='Verdichtung 2'!G1527 -> 0 | N13: ='Verdichtung 2'!H1527 -> 0 | O13: =O11 -> 0 | P13: =P11 -> 0 | Q13: =Q11 -> 0 | R13: =R11 -> 0 | S13: =S11 -> 0
C14: 504 | D14: 1.4 Investitionskosten / RM-Vorhaltestunden | E14: 0 | F14: 0 | G14: 0 | H14: 0 | I14: 0 | J14: ='Verdichtung 2'!I1536 -> 0 | K14: ='Verdichtung 2'!E1536 -> 0 | L14: ='Verdichtung 2'!F1536 -> 0 | M14: ='Verdichtung 2'!G1536 -> 0 | N14: ='Verdichtung 2'!H1536 -> 0 | O14: =O11 -> 0 | P14: =P11 -> 0 | Q14: =Q11 -> 0 | R14: =R11 -> 0 | S14: =S11 -> 0
C16: 505 | D16: 1.5 Gesamtkosten / Gesamteinsätze | E16: =J16/IF(O16=0,1,O16) -> 0 | F16: 0 | G16: 0 | H16: 0 | I16: 0 | J16: =J11 -> 0 | K16: 0 | L16: 0 | M16: 0 | N16: 0 | O16: ='Verdichtung 2'!E21 -> 0 | P16: ='Verdichtung 2'!E24 -> 0 | Q16: ='Verdichtung 2'!E25 -> 0 | R16: ='Verdichtung 2'!E26 -> 0 | S16: ='Verdichtung 2'!E521+'Verdichtung 2'!E621+'Verdichtung 2'!E721+'Verdichtung 2'!E821+'Verdichtung 2'!E921 -> 0
C17: 506 | D17: 1.6 Personalkosten / Gesamteinsätze | E17: 0 | F17: 0 | G17: 0 | H17: 0 | I17: 0 | J17: 0 | K17: 0 | L17: 0 | M17: 0 | N17: 0 | O17: =O16 -> 0 | P17: =P16 -> 0 | Q17: =Q16 -> 0 | R17: =R16 -> 0 | S17: =S16 -> 0
C18: 507 | D18: 1.7 Sachkosten / Gesamteinsätze | E18: 0 | F18: 0 | G18: 0 | H18: 0 | I18: 0 | J18: =J13 -> 0 | K18: 0 | L18: 0 | M18: 0 | N18: 0 | O18: =O16 -> 0 | P18: =P16 -> 0 | Q18: =Q16 -> 0 | R18: =R16 -> 0 | S18: =S16 -> 0
C19: 508 | D19: 1.8 Investitionskosten / Gesamteinsätze | E19: 0 | F19: 0 | G19: 0 | H19: 0 | I19: 0 | J19: 0 | K19: 0 | L19: 0 | M19: 0 | N19: 0 | O19: =O16 -> 0 | P19: =P16 -> 0 | Q19: 0 | R19: 0 | S19: 0
C20: 509 | D20: 1.9 Variable Kosten / Gesamteinsätze | E20: 0 | F20: 0 | G20: 0 | H20: 0 | I20: 0 | J20: ='Verdichtung 2'!I1545 -> 0 | K20: ='Verdichtung 2'!E1545 -> 0 | L20: ='Verdichtung 2'!F1545 -> 0 | M20: ='Verdichtung 2'!G1545 -> 0 | N20: ='Verdichtung 2'!H1545 -> 0 | O20: =O17 -> 0 | P20: 0 | Q20: 0 | R20: 0 | S20: 0
C22: 510 | D22: 2.1 Gesamteinsätze / 1.000 EW | E22: =J22/IF(O22=0,1,O22) -> 0 | F22: =K22/IF(P22=0,1,P22) -> 0 | G22: =L22/IF(Q22=0,1,Q22) -> 0 | H22: =M22/IF(R22=0,1,R22) -> 0 | I22: =N22/IF(S22=0,1,S22) -> 0 | J22: =O16 -> 0 | K22: =P16 -> 0 | L22: =Q16 -> 0 | M22: =R16 -> 0 | N22: =S16 -> 0 | O22: ='Basis-Daten'!H6/1000 -> 0 | P22: =O22 -> 0 | Q22: =O22 -> 0 | R22: =O22 -> 0 | S22: =O22 -> 0
C24: 511 | D24: 2.2 Gesamteinsätze Jahr | E24: =J22 -> 0 | F24: =K22 -> 0 | G24: =L22 -> 0 | H24: =M22 -> 0 | I24: =S20 -> 0
C26: 512 | D26: 2.3 Zeit pro Einsatz in Minuten | E26: ='Verdichtung 2'!E34 -> 0 | F26: =('Verdichtung 2'!E135+'Verdichtung 2'!E435)/IF(('Verdichtung 2'!E121+'Verdichtung 2'!E421)=0,1,('Verdichtung 2'!E121+'Verdichtung 2'!E421)) -> 0 | G26: ='Verdichtung 2'!E234 -> 0 | H26: ='Verdichtung 2'!E334 -> 0 | I26: =('Verdichtung 2'!E535+'Verdichtung 2'!E635+'Verdichtung 2'!E735+'Verdichtung 2'!E835+'Verdichtung 2'!E935)/IF(('Verdichtung 2'!E521+'Verdichtung 2'!E621+'Verdichtung 2'!E721+'Verdichtung 2'!E821+'Verdichtung 2'!E921)=0,1,('Verdichtung 2'!E521+'Verdichtung 2'!E621+'Verdichtung 2'!E721+'Verdichtung 2'!E821+'Verdichtung 2'!E921)) -> 0
C28: 513 | D28: 2.4 RTW Einsatzzeit / Vorhaltezeit | E28: =J28/IF(O28=0,1,O28) -> 0 | J28: ='Verdichtung 2'!E135 -> 0 | O28: ='Verdichtung 2'!E114*60 -> 0
C29: 514 | D29: 2.4 RTW als KTW Einsatzzeit / Vorhaltezeit | E29: 0 | J29: ='Verdichtung 2'!E125*'Verdichtung 2'!E134 -> 0 | O29: =O28 -> 0
C30: 515 | D30: 2.4 MZF Einsatzzeit / Vorhaltezeit | E30: 0 | J30: ='Verdichtung 2'!E435 -> 0 | O30: ='Verdichtung 2'!E414*60 -> 0
C31: 516 | D31: 2.4 MZF als KTW Einsatzzeit / Vorhaltezeit | E31: 0 | J31: ='Verdichtung 2'!E425*'Verdichtung 2'!E434 -> 0 | O31: =O30 -> 0
C32: 517 | D32: 2.4 KTW als RTW Einsatzzeit / Vorhaltezeit | E32: 0 | J32: ='Verdichtung 2'!E224*'Verdichtung 2'!E234 -> 0 | O32: ='Verdichtung 2'!E214*60 -> 0
C33: 518 | D33: 2.4 KTW qual. KTP Einsatzzeit / Vorhaltezeit | E33: 0 | J33: ='Verdichtung 2'!E225*'Verdichtung 2'!E234 -> 0 | O33: ='Verdichtung 2'!E214*60 -> 0
C34: 519 | D34: 2.4 Notarzt Einsatzzeit / Vorhaltezeit | E34: 0 | J34: ='Verdichtung 2'!E335 -> 0 | O34: ='Verdichtung 2'!E314*60 -> 0
C36: 520 | D36: 3.1 Personalstunden RLS für RD | E36: ='Traeger-Statistik'!E22 -> 0
C37: 521 | D37: 3.2 Einsätze / Personalstunden RLS | E37: =J37/IF(O37=0,1,O37) -> 0 | J37: =O16 -> 0 | O37: =E36 -> 0
C38: 522 | D38: 3.3 Kosten RLS / Personalstunden RLS | E38: =J38/IF(O38=0,1,O38) -> 0 | J38: ='Verdichtung 1'!F1494 -> 0 | O38: =O37 -> 0
C39: 523 | D39: 3.4 Kosten RLS / Einwohner | E39: =J39/IF(O39=0,1,O39) -> 0 | J39: =J38 -> 0 | O39: ='Basis-Daten'!H6 -> 0
C40: 524 | D40: 3.5 Kosten RLS / Gesamt-Einsätze | E40: =J40/IF(O40=0,1,O40) -> 0 | J40: =J38 -> 0 | O40: =O16 -> 0
D43: * Gemäß Kostenrichtlinien
C64: Kennzahlen aus dem BAB Rettungsdienst in Niedersachsen*)
C65: =C5 -> 
E68: Gesamt- kosten / RM-Vorhalte- stunden | F68: Personal- kosten / RM-Vorhalte- stunden | G68: Sach- kosten / RM-Vorhalte- stunden | H68: Investitions- kosten / RM-Vorhalte- stunden | I68: Gesamt- kosten / Gesamt- einsätze | J68: Personal- kosten / Gesamt- einsätze | K68: Sach- kosten / Gesamt- einsätze | L68: Investitions- kosten / Gesamt- einsätze | M68: Variable Kosten / Gesamt- einsätze | N68: Gesamt- einsätze / 1.000 Einwohner | O68: Gesamt- einsätze pro Jahr | P68: Zeit pro Einsatz in Minuten | Q68: RTW Einsatzzeit / Vorhaltezeit | R68: RTW als KTW Einsatzzeit / Vorhaltezeit | S68: MZF Einsatzzeit / Vorhaltezeit | T68: MZF als KTW Einsatzzeit / Vorhaltezeit | U68: KTW als RTW Einsatzzeit / Vorhaltezeit | V68: KTW qual. KTP Einsatzzeit / Vorhaltezeit | W68: Notarzt Einsatzzeit / Vorhaltezeit | X68: Personal- stunden RLS für RD | Y68: Einsätze / Personal- stunden RLS | Z68: Kosten RLS / Personal- stunden RLS | AA68: Kosten RLS / Einwohner | AB68: Kosten RLS / Gesamt-Einsätze
C69: 1 | D69: 2 | E69: Z 501 | F69: Z 502 | G69: Z 503 | H69: Z 504 | I69: Z 505 | J69: Z 506 | K69: Z 507 | L69: Z 508 | M69: Z 509 | N69: Z 510 | O69: Z 511 | P69: Z 512 | Q69: Z 513 | R69: Z 514 | S69: Z 515 | T69: Z 516 | U69: Z 517 | V69: Z 518 | W69: Z 519 | X69: Z 520 | Y69: Z 521 | Z69: Z 522 | AA69: Z 523 | AB69: Z 524
D71: I. Insgesamt
A73: x | C73: S3 | D73: ="RDB "&INDEX(ParameterDatei!E37:E86,ParameterDatei!B9) ->  | E73: =E11 -> 0 | F73: =E12 -> 0 | G73: =E13 -> 0 | H73: =E14 -> 0 | I73: =E16 -> 0 | J73: =E17 -> 0 | K73: =E18 -> 0 | L73: =E19 -> 0 | M73: =E20 -> 0 | N73: =E22 -> 0 | O73: =E24 -> 0 | P73: =E26 -> 0 | Q73: =E28 -> 0 | R73: =E29 -> 0 | S73: =E30 -> 0 | T73: =E31 -> 0 | U73: =E32 -> 0 | V73: =E33 -> 0 | W73: =E34 -> 0 | X73: =E36 -> 0 | Y73: =E37 -> 0 | Z73: =E38 -> 0 | AA73: =E39 -> 0 | AB73: =E40 -> 0
D76: II. Nach Hauptkostenstellen
A78: x | C78: S10 | D78: Notfallrettung | E78: =$F11 -> 0 | F78: =$F12 -> 0 | G78: =$F13 -> 0 | H78: =$F14 -> 0 | I78: =$F16 -> 0 | J78: =$F17 -> 0 | K78: =$F18 -> 0 | L78: =$F19 -> 0 | M78: =$F20 -> 0 | N78: =$F22 -> 0 | O78: =$F24 -> 0 | P78: =$F26 -> 0
A79: x | C79: S11 | D79: Qualifizierter Krankentransport | E79: =$G11 -> 0 | F79: =$G12 -> 0 | G79: =$G13 -> 0 | H79: =$G14 -> 0 | I79: =$G16 -> 0 | J79: =$G17 -> 0 | K79: =$G18 -> 0 | L79: =$G19 -> 0 | M79: =$G20 -> 0 | N79: =$G22 -> 0 | O79: =$G24 -> 0 | P79: =$G26 -> 0
A80: x | C80: S12 | D80: Notarztdienst | E80: =$H11 -> 0 | F80: =$H12 -> 0 | G80: =$H13 -> 0 | H80: =$H14 -> 0 | I80: =$H16 -> 0 | J80: =$H17 -> 0 | K80: =$H18 -> 0 | L80: =$H19 -> 0 | M80: =$H20 -> 0 | N80: =$H22 -> 0 | O80: =$H24 -> 0 | P80: =$H26 -> 0
A81: x | C81: S13 | D81: Sonstige | E81: =$I11 -> 0 | F81: =$I12 -> 0 | G81: =$I13 -> 0 | H81: =$I14 -> 0 | I81: =$I16 -> 0 | J81: =$I17 -> 0 | K81: =$I18 -> 0 | L81: =$I19 -> 0 | M81: =$I20 -> 0 | N81: =$I22 -> 0 | O81: =$I24 -> 0 | P81: =$I26 -> 0
D84: * Gemäß Kostenrichtlinien

Sheet Kennzahlen-Drucken
B2: =ParameterDatei!D195 -> Drucken • Export • RDB BAB • Hauptmenu • RDB Statistik • RDB Anmerkungen
C4: Kennzahlen für den Rettungsdienst in Niedersachsen*)
C5: =" Rettungsdienstbereich "&INDEX(ParameterDatei!C37:C86,ParameterDatei!B9)&" "&INDEX(ParameterDatei!D37:D86,ParameterDatei!B9)&" für den Berichtszeitraum "&INDEX(ParameterDatei!F9:F26,ParameterDatei!F27) -> 
C7: Zeile | E7: Summe | F7: Hauptkostenstellen
E8: Insgesamt | F8: NFR | G8: KTP | H8: Notarzt- Dienst | I8: Sonstige
C9: 1 | D9: 2 | E9: 3 | F9: 14 | G9: 15 | H9: 16 | I9: 17
C11: 501 | D11: 1.1 Gesamtkosten / RM-Vorhaltestunden | E11: 0 | F11: 0 | G11: 0 | H11: 0 | I11: 0
C12: 502 | D12: 1.2 Personalkosten / RM-Vorhaltestunden | E12: 0 | F12: 0 | G12: 0 | H12: 0 | I12: 0
C13: 503 | D13: 1.3 Sachkosten / RM-Vorhaltestunden | E13: 0 | F13: 0 | G13: 0 | H13: 0 | I13: 0
C14: 504 | D14: 1.4 Investitionskosten / RM-Vorhaltestunden | E14: 0 | F14: 0 | G14: 0 | H14: 0 | I14: 0
C16: 505 | D16: 1.5 Gesamtkosten / Gesamteinsätze | E16: 0 | F16: 0 | G16: 0 | H16: 0 | I16: 0
C17: 506 | D17: 1.6 Personalkosten / Gesamteinsätze | E17: 0 | F17: 0 | G17: 0 | H17: 0 | I17: 0
C18: 507 | D18: 1.7 Sachkosten / Gesamteinsätze | E18: 0 | F18: 0 | G18: 0 | H18: 0 | I18: 0
C19: 508 | D19: 1.8 Investitionskosten / Gesamteinsätze | E19: 0 | F19: 0 | G19: 0 | H19: 0 | I19: 0
C20: 509 | D20: 1.9 Variable Kosten / Gesamteinsätze | E20: 0 | F20: 0 | G20: 0 | H20: 0 | I20: 0
C22: 510 | D22: 2.1 Gesamteinsätze / 1.000 EW | E22: 0 | F22: 0 | G22: 0 | H22: 0 | I22: 0
C24: 511 | D24: 2.2 Gesamteinsätze Jahr | E24: 0 | F24: 0 | G24: 0 | H24: 0 | I24: 0
C26: 512 | D26: 2.3 Zeit pro Einsatz in Minuten | E26: 0 | F26: 0 | G26: 0 | H26: 0 | I26: 0
C28: 513 | D28: 2.4 RTW Einsatzzeit / Vorhaltezeit | E28: 0
C29: 514 | D29: 2.4 RTW als KTW Einsatzzeit / Vorhaltezeit | E29: 0
C30: 515 | D30: 2.4 MZF Einsatzzeit / Vorhaltezeit | E30: 0
C31: 516 | D31: 2.4 MZF als KTW Einsatzzeit / Vorhaltezeit | E31: 0
C32: 517 | D32: 2.4 KTW als RTW Einsatzzeit / Vorhaltezeit | E32: 0
C33: 518 | D33: 2.4 KTW qual. KTP Einsatzzeit / Vorhaltezeit | E33: 0
C34: 519 | D34: 2.4 Notarzt Einsatzzeit / Vorhaltezeit | E34: 0
C36: 520 | D36: 3.1 Personalstunden RLS für RD | E36: 0
C37: 521 | D37: 3.2 Einsätze / Personalstunden RLS | E37: 0
C38: 522 | D38: 3.3 Kosten RLS / Personalstunden RLS | E38: 0
C39: 523 | D39: 3.4 Kosten RLS / Einwohner | E39: 0
C40: 524 | D40: 3.5 Kosten RLS / Gesamt-Einsätze | E40: 0
D43: * Gemäß Kostenrichtlinien

Sheet E-Kennzahlen
C4: Kennzahlen aus dem BAB Rettungsdienst in Niedersachsen*)
C5: =" Rettungsdienstbereich "&INDEX(ParameterDatei!C37:C86,ParameterDatei!B9)&" "&INDEX(ParameterDatei!D37:D86,ParameterDatei!B9)&" für den Berichtszeitraum "&INDEX(ParameterDatei!F9:F26,ParameterDatei!B8) -> 
E8: 1.1 Gesamt- kosten / RM-Vorhalte- stunden | F8: 1.2 Personal- kosten / RM-Vorhalte- stunden | G8: 1.3 Sach- kosten / RM-Vorhalte- stunden | H8: 1.4 Investitions- kosten / RM-Vorhalte- stunden | I8: 1.5 Gesamt- kosten / Gesamt- einsätze | J8: 1.6 Personal- kosten / Gesamt- einsätze | K8: 1.7 Sach- kosten / Gesamt- einsätze | L8: 1.8 Investitions- kosten / Gesamt- einsätze | M8: 1.9 Variable Kosten / Gesamt- einsätze | N8: 2.1 Gesamt- einsätze / 1.000 Einwohner | O8: 2.2 Gesamt- einsätze pro Jahr | P8: 2.3 Zeit pro Einsatz in Minuten | Q8: 2.4 RTW Einsatzzeit / Vorhaltezeit | R8: 2.4 RTW als KTW Einsatzzeit / Vorhaltezeit | S8: 2.4 MZF Einsatzzeit / Vorhaltezeit | T8: 2.4 MZF als KTW Einsatzzeit / Vorhaltezeit | U8: 2.4 KTW als RTW Einsatzzeit / Vorhaltezeit | V8: 2.4 KTW qual. KTP Einsatzzeit / Vorhaltezeit | W8: 2.4 Notarzt Einsatzzeit / Vorhaltezeit | X8: 3.1 Personal- stunden RLS für RD | Y8: 3.2 Einsätze / Personal- stunden RLS | Z8: 3.3 Kosten RLS / Personal- stunden RLS | AA8: 3.4 Kosten RLS / Einwohner | AB8: 3.5 Kosten RLS / Gesamt-Einsätze
C9: 1 | D9: 2 | E9: Z 501 | F9: Z 502 | G9: Z 503 | H9: Z 504 | I9: Z 505 | J9: Z 506 | K9: Z 507 | L9: Z 508 | M9: Z 509 | N9: Z 510 | O9: Z 511 | P9: Z 512 | Q9: Z 513 | R9: Z 514 | S9: Z 515 | T9: Z 516 | U9: Z 517 | V9: Z 518 | W9: Z 519 | X9: Z 520 | Y9: Z 521 | Z9: Z 522 | AA9: Z 523 | AB9: Z 524
D11: I. Insgesamt
A13: x | C13: S3 | D13: Werte insgesamt | E13: 0 | F13: 0 | G13: 0 | H13: 0 | I13: 0 | J13: 0 | K13: 0 | L13: 0 | M13: 0 | N13: 0 | O13: 0 | P13: 0 | Q13: 0 | R13: 0 | S13: 0 | T13: 0 | U13: 0 | V13: 0 | W13: 0 | X13: 0 | Y13: 0 | Z13: 0 | AA13: 0 | AB13: 0
D16: II. Nach Hauptkostenstellen
A18: x | C18: S10 | D18: Notfallrettung | E18: 0 | F18: 0 | G18: 0 | H18: 0 | I18: 0 | J18: 0 | K18: 0 | L18: 0 | M18: 0 | N18: 0 | O18: 0 | P18: 0
A19: x | C19: S11 | D19: Qualifizierter Krankentransport | E19: 0 | F19: 0 | G19: 0 | H19: 0 | I19: 0 | J19: 0 | K19: 0 | L19: 0 | M19: 0 | N19: 0 | O19: 0 | P19: 0
A20: x | C20: S12 | D20: Notarztdienst | E20: 0 | F20: 0 | G20: 0 | H20: 0 | I20: 0 | J20: 0 | K20: 0 | L20: 0 | M20: 0 | N20: 0 | O20: 0 | P20: 0
A21: x | C21: S13 | D21: Sonstige | E21: 0 | F21: 0 | G21: 0 | H21: 0 | I21: 0 | J21: 0 | K21: 0 | L21: 0 | M21: 0 | N21: 0 | O21: 0 | P21: 0
D24: * Gemäß Kostenrichtlinien

Sheet Entgelte
E1: x | G1: x
B2: =ParameterDatei!D200 -> Drucken • Sichern • RDB BAB • Hauptmenu • RDB Statistik • RDB Kennzahlen • Anmerkungen
C4: Entgeltberechnung für den BAB Rettungsdienst in Niedersachsen*)
C5: =" Träger "&INDEX(ParameterDatei!C37:C86,ParameterDatei!B9)&" "&INDEX(ParameterDatei!D37:D86,ParameterDatei!B9)&" für den Berichtszeitraum "&INDEX(ParameterDatei!F9:F26,ParameterDatei!F27) -> 
E7: Erwartete Einsatz-leistung | F7: Entgelt-berechnungs-grundlage | G7: errechnete Entgelte | H7: Entgelte zur Zeit | I7: Änderung | J7: Entgelte neu | K7: Geplante Entgelte insgesamt | L7: Anmerkungen
C8: 1 | D8: 2 | E8: 25 | F8: 26 | G8: 27 | H8: 28 | I8: 29 | J8: 30 | K8: 31 | L8: 32
C11: 200 | D11: Entgelt-Gesamtsumme | E11: ="--" -> -- | F11: ='RDB-Ebene'!E90 -> 0 | G11: ="--" -> -- | H11: ="--" -> -- | I11: ="--" -> -- | J11: ="--" -> -- | K11: =K20+K29+K36+K45+K54+K63+K72+K81 -> 0
D14: A. Notfallrettung
A16: x | C16: 201 | D16: Pauschale Notfallrettung | E16: 0 | F16: =('RDB-Ebene'!H$90)-K17-K18-K19 -> 0 | G16: =IF(E16=0,0,F16/E16) -> 0 | H16: 0 | I16: =G16-H16 -> 0 | J16: 0 | K16: =E16*J16 -> 0 | L16: 0
A17: x | C17: 202 | D17: KM zu KM-Satz I | E17: 0 | F17: =E17*J17 -> 0 | H17: 0 | I17: =J17-H17 -> 0 | J17: 0 | K17: =J17*E17 -> 0 | L17: 0
A18: x | C18: 203 | D18: KM zu KM-Satz II | E18: 0 | F18: =E18*J18 -> 0 | H18: 0 | I18: =J18-H18 -> 0 | J18: 0 | K18: =J18*E18 -> 0 | L18: 0
A19: x | C19: 204 | D19: KM zu KM-Satz III | E19: 0 | F19: =E19*J19 -> 0 | H19: 0 | I19: =J19-H19 -> 0 | J19: 0 | K19: =J19*E19 -> 0 | L19: 0
C20: 205 | D20: Notfallrettung insgesamt | F20: =F16+F17+F18+F19 -> 0 | K20: =K16+K17+K18+K19 -> 0
D23: B. Qual. Krankentransport
A25: x | C25: 206 | D25: Pauschale Qual. Krankentransport | E25: 0 | F25: =('RDB-Ebene'!I$90)-K26-K27-K28 -> 0 | G25: =IF(E25=0,0,F25/E25) -> 0 | H25: 0 | I25: =G25-H25 -> 0 | J25: 0 | K25: =E25*J25 -> 0 | L25: 0
A26: x | C26: 207 | D26: KM zu KM-Satz I | E26: 0 | F26: =E26*J26 -> 0 | H26: 0 | I26: =J26-H26 -> 0 | J26: 0 | K26: =J26*E26 -> 0 | L26: 0
A27: x | C27: 208 | D27: KM zu KM-Satz II | E27: 0 | F27: =E27*J27 -> 0 | H27: 0 | I27: =J27-H27 -> 0 | J27: 0 | K27: =J27*E27 -> 0 | L27: 0
A28: x | C28: 209 | D28: KM zu KM-Satz III | E28: 0 | F28: =E28*J28 -> 0 | H28: 0 | I28: =J28-H28 -> 0 | J28: 0 | K28: =J28*E28 -> 0 | L28: 0
C29: 210 | D29: Qual. Krankentransport insgesamt | F29: =F25+F26+F27+F28 -> 0 | K29: =K25+K26+K27+K28 -> 0
D32: C. Notarztdienst
A34: x | C34: 211 | D34: Pauschale Notarztdienst | E34: 0 | F34: =('RDB-Ebene'!J$90)-K35 -> 0 | G34: =IF(E34=0,0,F34/E34) -> 0 | H34: 0 | I34: =G34-H34 -> 0 | J34: 0 | K34: =E34*J34 -> 0 | L34: 0
A35: x | C35: 212 | D35: KM zu KM-Satz I | E35: 0 | F35: =E35*J35 -> 0 | H35: 0 | I35: =J35-H35 -> 0 | J35: 0 | K35: =J35*E35 -> 0 | L35: 0
C36: 213 | D36: Notarztdienst insgesamt | F36: =F34+F35 -> 0 | K36: =K34+K35 -> 0
D39: ="D. "&'Basis-Daten'!D12 -> D. Sonstige 1
A41: x | C41: 216 | D41: ="Pauschale "&'Basis-Daten'!D12 -> Pauschale Sonstige 1 | E41: 0 | F41: =('RDB-Ebene'!K90)-K42-K43-K44 -> 0 | G41: =IF(E41=0,0,F41/E41) -> 0 | H41: 0 | I41: =G41-H41 -> 0 | J41: 0 | K41: =E41*J41 -> 0 | L41: 0
A42: x | C42: 217 | D42: KM zu KM-Satz I | E42: 0 | F42: =E42*J42 -> 0 | H42: 0 | I42: =J42-H42 -> 0 | J42: 0 | K42: =J42*E42 -> 0 | L42: 0
A43: x | C43: 218 | D43: KM zu KM-Satz II | E43: 0 | F43: =E43*J43 -> 0 | H43: 0 | I43: =J43-H43 -> 0 | J43: 0 | K43: =J43*E43 -> 0 | L43: 0
A44: x | C44: 219 | D44: KM zu KM-Satz III | E44: 0 | F44: =E44*J44 -> 0 | H44: 0 | I44: =J44-H44 -> 0 | J44: 0 | K44: =J44*E44 -> 0 | L44: 0
C45: 220 | D45: ='Basis-Daten'!D12&" insgesamt" -> Sonstige 1 insgesamt | F45: =F41+F42+F43+F44 -> 0 | K45: =K41+K42+K43+K44 -> 0
D48: ="E. "&'Basis-Daten'!D14 -> E. Sonstige 2
A50: x | C50: 221 | D50: ="Pauschale "&'Basis-Daten'!D14 -> Pauschale Sonstige 2 | E50: 0 | F50: =('RDB-Drucken'!L91)-K51-K52-K53 -> 0 | G50: =IF(E50=0,0,F50/E50) -> 0 | H50: 0 | I50: =G50-H50 -> 0 | J50: 0 | K50: =E50*J50 -> 0 | L50: 0
A51: x | C51: 222 | D51: KM zu KM-Satz I | E51: 0 | F51: =E51*J51 -> 0 | H51: 0 | I51: =J51-H51 -> 0 | J51: 0 | K51: =J51*E51 -> 0 | L51: 0
A52: x | C52: 223 | D52: KM zu KM-Satz II | E52: 0 | F52: =E52*J52 -> 0 | H52: 0 | I52: =J52-H52 -> 0 | J52: 0 | K52: =J52*E52 -> 0 | L52: 0
A53: x | C53: 224 | D53: KM zu KM-Satz III | E53: 0 | F53: =E53*J53 -> 0 | H53: 0 | I53: =J53-H53 -> 0 | J53: 0 | K53: =J53*E53 -> 0 | L53: 0
C54: 225 | D54: ='Basis-Daten'!D14&" insgesamt" -> Sonstige 2 insgesamt | F54: =F50+F51+F52+F53 -> 0 | K54: =K50+K51+K52+K53 -> 0
D57: ="F. "&'Basis-Daten'!D16 -> F. Sonstige 3
A59: x | C59: 226 | D59: ="Pauschale "&'Basis-Daten'!D16 -> Pauschale Sonstige 3 | E59: 0 | F59: =('RDB-Ebene'!M90)-K60-K61-K62 -> 0 | G59: =IF(E590=0,0,F59/E59) -> 0 | H59: 0 | I59: =G59-H59 -> 0 | J59: 0 | K59: =E59*J59 -> 0 | L59: 0
A60: x | C60: 227 | D60: KM zu KM-Satz I | E60: 0 | F60: =E60*J60 -> 0 | H60: 0 | I60: =J60-H60 -> 0 | J60: 0 | K60: =J60*E60 -> 0 | L60: 0
A61: x | C61: 228 | D61: KM zu KM-Satz II | E61: 0 | F61: =E61*J61 -> 0 | H61: 0 | I61: =J61-H61 -> 0 | J61: 0 | K61: =J61*E61 -> 0 | L61: 0
A62: x | C62: 229 | D62: KM zu KM-Satz III | E62: 0 | F62: =E62*J62 -> 0 | H62: 0 | I62: =J62-H62 -> 0 | J62: 0 | K62: =J62*E62 -> 0 | L62: 0
C63: 230 | D63: ='Basis-Daten'!D16&" insgesamt" -> Sonstige 3 insgesamt | F63: =F59+F60+F61+F62 -> 0 | K63: =K59+K60+K61+K62 -> 0
D66: ="G. "&'Basis-Daten'!D18 -> G. Sonstige 4
A68: x | C68: 231 | D68: ="Pauschale "&'Basis-Daten'!D18 -> Pauschale Sonstige 4 | E68: 0 | F68: =('RDB-Ebene'!N90)-K69-K70-K71 -> 0 | G68: =IF(E68=0,0,F68/E68) -> 0 | H68: 0 | I68: =G68-H68 -> 0 | J68: 0 | K68: =E68*J68 -> 0 | L68: 0
A69: x | C69: 232 | D69: KM zu KM-Satz I | E69: 0 | F69: =E69*J69 -> 0 | H69: 0 | I69: =J69-H69 -> 0 | J69: 0 | K69: =J69*E69 -> 0 | L69: 0
A70: x | C70: 233 | D70: KM zu KM-Satz II | E70: 0 | F70: =E70*J70 -> 0 | H70: 0 | I70: =J70-H70 -> 0 | J70: 0 | K70: =J70*E70 -> 0 | L70: 0
A71: x | C71: 234 | D71: KM zu KM-Satz III | E71: 0 | F71: =E71*J71 -> 0 | H71: 0 | I71: =J71-H71 -> 0 | J71: 0 | K71: =J71*E71 -> 0 | L71: 0
C72: 235 | D72: ='Basis-Daten'!D18&" insgesamt" -> Sonstige 4 insgesamt | F72: =F68+F69+F70+F71 -> 0 | K72: =K68+K69+K70+K71 -> 0
D75: ="H. "&'Basis-Daten'!D20 -> H. Sonstige 5
A77: x | C77: 236 | D77: ="Pauschale "&'Basis-Daten'!D20 -> Pauschale Sonstige 5 | E77: 0 | F77: =('RDB-Ebene'!O90)-K78-K79-K80 -> 0 | G77: =IF(E77=0,0,F77/E77) -> 0 | H77: 0 | I77: =G77-H77 -> 0 | J77: 0 | K77: =E77*J77 -> 0 | L77: 0
A78: x | C78: 237 | D78: KM zu KM-Satz I | E78: 0 | F78: =E78*J78 -> 0 | H78: 0 | I78: =J78-H78 -> 0 | J78: 0 | K78: =J78*E78 -> 0 | L78: 0
A79: x | C79: 238 | D79: KM zu KM-Satz II | E79: 0 | F79: =E79*J79 -> 0 | H79: 0 | I79: =J79-H79 -> 0 | J79: 0 | K79: =J79*E79 -> 0 | L79: 0
A80: x | C80: 239 | D80: KM zu KM-Satz III | E80: 0 | F80: =E80*J80 -> 0 | H80: 0 | I80: =J80-H80 -> 0 | J80: 0 | K80: =J80*E80 -> 0 | L80: 0
C81: 240 | D81: ='Basis-Daten'!D20&" insgesamt" -> Sonstige 5 insgesamt | F81: =F77+F78+F79+F80 -> 0 | K81: =K77+K78+K79+K80 -> 0

Sheet Entgelte-Drucken
E1: x | G1: x
B2: =ParameterDatei!D196 -> • Hauptmenu •
C4: Entgeltberechnung für den BAB Rettungsdienst in Niedersachsen*)
C5: =" Träger "&INDEX(ParameterDatei!C37:C86,ParameterDatei!B9)&" "&INDEX(ParameterDatei!D37:D86,ParameterDatei!B9)&" für den Berichtszeitraum "&INDEX(ParameterDatei!F9:F26,ParameterDatei!F27) -> 
E7: Erwartete Einsatz- leistung | F7: Entgelt-berechnungs- grundlage | G7: errechnetes Entgelt | H7: Entgelte zur Zeit | I7: Änderung | J7: Entgelte neu | K7: Geplante Entgelte insgesamt | L7: Anmerkungen
C8: 1 | D8: 2 | E8: 25 | F8: 26 | G8: 27 | H8: 28 | I8: 29 | J8: 30 | K8: 31 | L8: 32
C11: 200 | D11: Entgelt-Gesamtsumme | E11: -- | F11: 0 | G11: -- | H11: -- | I11: -- | J11: -- | K11: 0
D14: A. Notfallrettung
C16: 201 | D16: Pauschale Notfallrettung | E16: 0 | F16: 0 | G16: 0 | H16: 0 | I16: 0 | J16: 0 | K16: 0 | L16: Das ist ein Test
C17: 202 | D17: KM zu KM-Satz I | E17: 0 | F17: 0 | H17: 0 | I17: 0 | J17: 0 | K17: 0 | L17: 0
C18: 203 | D18: KM zu KM-Satz II | E18: 0 | F18: 0 | H18: 0 | I18: 0 | J18: 0 | K18: 0 | L18: 0
C19: 204 | D19: KM zu KM-Satz III | E19: 0 | F19: 0 | H19: 0 | I19: 0 | J19: 0 | K19: 0 | L19: 0
C20: 205 | D20: Notfallrettung insgesamt | F20: 0 | K20: 0
D23: B. Qual. Krankentransport
C25: 206 | D25: Pauschale Qual. Krankentransport | E25: 0 | F25: 0 | G25: 0 | H25: 0 | I25: 0 | J25: 0 | K25: 0 | L25: 0
C26: 207 | D26: KM zu KM-Satz I | E26: 0 | F26: 0 | H26: 0 | I26: 0 | J26: 0 | K26: 0 | L26: 0
C27: 208 | D27: KM zu KM-Satz II | E27: 0 | F27: 0 | H27: 0 | I27: 0 | J27: 0 | K27: 0 | L27: 0
C28: 209 | D28: KM zu KM-Satz III | E28: 0 | F28: 0 | H28: 0 | I28: 0 | J28: 0 | K28: 0 | L28: 0
C29: 210 | D29: Qual. Krankentransport insgesamt | F29: 0 | K29: 0
D32: C. Notarztdienst
C34: 211 | D34: Pauschale Notarztdienst | E34: 0 | F34: 0 | G34: 0 | H34: 0 | I34: 0 | J34: 0 | K34: 0 | L34: 0
C35: 212 | D35: KM zu KM-Satz I | E35: 0 | F35: 0 | H35: 0 | I35: 0 | J35: 0 | K35: 0 | L35: 0
C36: 213 | D36: Notarztdienst insgesamt | F36: 0 | K36: 0
D39: D. Sonstige 1
C41: 216 | D41: Pauschale Sonstige 1 | E41: 0 | F41: 0 | G41: 0 | H41: 0 | I41: 0 | J41: 0 | K41: 0 | L41: 0
C42: 217 | D42: KM zu KM-Satz I | E42: 0 | F42: 0 | H42: 0 | I42: 0 | J42: 0 | K42: 0 | L42: 0
C43: 218 | D43: KM zu KM-Satz II | E43: 0 | F43: 0 | H43: 0 | I43: 0 | J43: 0 | K43: 0 | L43: 0
C44: 219 | D44: KM zu KM-Satz III | E44: 0 | F44: 0 | H44: 0 | I44: 0 | J44: 0 | K44: 0 | L44: 0
C45: 220 | D45: Sonstige 1 insgesamt | F45: 0 | K45: 0
D48: E. Sonstige 2
C50: 221 | D50: Pauschale Sonstige 2 | E50: 0 | F50: 0 | G50: 0 | H50: 0 | I50: 0 | J50: 0 | K50: 0 | L50: 0
C51: 222 | D51: KM zu KM-Satz I | E51: 0 | F51: 0 | H51: 0 | I51: 0 | J51: 0 | K51: 0 | L51: 0
C52: 223 | D52: KM zu KM-Satz II | E52: 0 | F52: 0 | H52: 0 | I52: 0 | J52: 0 | K52: 0 | L52: 0
C53: 224 | D53: KM zu KM-Satz III | E53: 0 | F53: 0 | H53: 0 | I53: 0 | J53: 0 | K53: 0 | L53: 0
C54: 225 | D54: Sonstige 2 insgesamt | F54: 0 | K54: 0
D57: F. Sonstige 3
C59: 226 | D59: Pauschale Sonstige 3 | E59: 0 | F59: 0 | G59: 0 | H59: 0 | I59: 0 | J59: 0 | K59: 0 | L59: 0
C60: 227 | D60: KM zu KM-Satz I | E60: 0 | F60: 0 | H60: 0 | I60: 0 | J60: 0 | K60: 0 | L60: 0
C61: 228 | D61: KM zu KM-Satz II | E61: 0 | F61: 0 | H61: 0 | I61: 0 | J61: 0 | K61: 0 | L61: 0
C62: 229 | D62: KM zu KM-Satz III | E62: 0 | F62: 0 | H62: 0 | I62: 0 | J62: 0 | K62: 0 | L62: 0
C63: 230 | D63: Sonstige 3 insgesamt | F63: 0 | K63: 0
D66: G. Sonstige 4
C68: 231 | D68: Pauschale Sonstige 4 | E68: 0 | F68: 0 | G68: 0 | H68: 0 | I68: 0 | J68: 0 | K68: 0 | L68: 0
C69: 232 | D69: KM zu KM-Satz I | E69: 0 | F69: 0 | H69: 0 | I69: 0 | J69: 0 | K69: 0 | L69: 0
C70: 233 | D70: KM zu KM-Satz II | E70: 0 | F70: 0 | H70: 0 | I70: 0 | J70: 0 | K70: 0 | L70: 0
C71: 234 | D71: KM zu KM-Satz III | E71: 0 | F71: 0 | H71: 0 | I71: 0 | J71: 0 | K71: 0 | L71: 0
C72: 235 | D72: Sonstige 4 insgesamt | F72: 0 | K72: 0
D75: H. Sonstige 5
C77: 236 | D77: Pauschale Sonstige 5 | E77: 0 | F77: 0 | G77: 0 | H77: 0 | I77: 0 | J77: 0 | K77: 0 | L77: 0
C78: 237 | D78: KM zu KM-Satz I | E78: 0 | F78: 0 | H78: 0 | I78: 0 | J78: 0 | K78: 0 | L78: 0
C79: 238 | D79: KM zu KM-Satz II | E79: 0 | F79: 0 | H79: 0 | I79: 0 | J79: 0 | K79: 0 | L79: 0
C80: 239 | D80: KM zu KM-Satz III | E80: 0 | F80: 0 | H80: 0 | I80: 0 | J80: 0 | K80: 0 | L80: 0
C81: 240 | D81: Sonstige 5 insgesamt | F81: 0 | K81: 0

Sheet RDB-Anmerkungen
C1: x | D1: x | E1: x
B2: =ParameterDatei!D186 -> Drucken • Sichern • RDB BAB • Hauptmenu • RDB Statistik • LE BAB • RW BAB
C4: Anmerkungen zum BAB Rettungsdienst in Niedersachsen
C5: =" Rettungsdienstbereich "&INDEX(ParameterDatei!C37:C86,ParameterDatei!B9)&" "&INDEX(ParameterDatei!D37:D86,ParameterDatei!B9)&" für den Berichtszeitraum "&INDEX(ParameterDatei!F9:F26,ParameterDatei!F27) -> 
C7: Zeile | D7: Betreff | E7: Text (Zeilenumbruch mit "Alt + Return oder "ctrl + alt + Return) | F7: US | G7: KZ | H7: Text (Zeilenumbruch mit "Alt + Return)
H8: Summe RTW | I8: Summe KTW | J8: Summe NEF | K8: Summe MZF | L8: ="Summe "&'Basis-Daten'!D12 -> Summe Sonstige 1 | M8: ="Summe "&'Basis-Daten'!D14 -> Summe Sonstige 2 | N8: ="Summe "&'Basis-Daten'!D16 -> Summe Sonstige 3 | O8: ="Summe "&'Basis-Daten'!D18 -> Summe Sonstige 4 | P8: ="Summe "&'Basis-Daten'!D20 -> Summe Sonstige 5 | Q8: Summe
C9: 1 | D9: 23 | E9: 24 | F9: 4 | G9: 5 | H9: 23 | I9: 11 | J9: 12 | K9: 13 | L9: 14 | M9: 15 | N9: 16 | O9: 17 | P9: 18 | Q9: 19
A11: x | C11: 401 | T11: =IF(E11="",0,1) -> 0
A12: x | C12: =IF(OR(D12="",E12="")=TRUE,"",C11+1) ->  | T12: =IF(E12="",0,1) -> 0
A13: x | C13: =IF(D13="","",LARGE(C$11:C12,1)+1) ->  | T13: 0
A14: x | C14: =IF(D14="","",LARGE(C$11:C13,1)+1) ->  | T14: 0
A15: x | C15: =IF(D15="","",LARGE(C$11:C14,1)+1) ->  | T15: 0
A16: x | C16: =IF(D16="","",LARGE(C$11:C15,1)+1) ->  | T16: 0
A17: x | C17: =IF(D17="","",LARGE(C$11:C16,1)+1) ->  | T17: 0
A18: x | C18: =IF(D18="","",LARGE(C$11:C17,1)+1) ->  | T18: 0
A19: x | C19: =IF(D19="","",LARGE(C$11:C18,1)+1) ->  | T19: 0
A20: x | C20: =IF(D20="","",LARGE(C$11:C19,1)+1) ->  | T20: 0
A21: x | C21: =IF(D21="","",LARGE(C$11:C20,1)+1) ->  | T21: 0
A22: x | C22: =IF(D22="","",LARGE(C$11:C21,1)+1) ->  | T22: 0
A23: x | C23: =IF(D23="","",LARGE(C$11:C22,1)+1) ->  | T23: 0
A24: x | C24: =IF(D24="","",LARGE(C$11:C23,1)+1) ->  | T24: 0
A25: x | C25: =IF(D25="","",LARGE(C$11:C24,1)+1) ->  | T25: 0
A26: x | C26: =IF(D26="","",LARGE(C$11:C25,1)+1) ->  | T26: 0
A27: x | C27: =IF(D27="","",LARGE(C$11:C26,1)+1) ->  | T27: 0
A28: x | C28: =IF(D28="","",LARGE(C$11:C27,1)+1) ->  | T28: 0
A29: x | C29: =IF(D29="","",LARGE(C$11:C28,1)+1) ->  | T29: 0
A30: x | C30: =IF(D30="","",LARGE(C$11:C29,1)+1) ->  | T30: 0
A31: x | C31: =IF(D31="","",LARGE(C$11:C30,1)+1) ->  | T31: 0
A32: x | C32: =IF(D32="","",LARGE(C$11:C31,1)+1) ->  | T32: 0
A33: x | C33: =IF(D33="","",LARGE(C$11:C32,1)+1) ->  | T33: 0
A34: x | C34: =IF(D34="","",LARGE(C$11:C33,1)+1) ->  | T34: 0
A35: x | C35: =IF(D35="","",LARGE(C$11:C34,1)+1) ->  | T35: 0
A36: x | C36: =IF(D36="","",LARGE(C$11:C35,1)+1) ->  | T36: 0
A37: x | C37: =IF(D37="","",LARGE(C$11:C36,1)+1) ->  | T37: 0
A38: x | C38: =IF(D38="","",LARGE(C$11:C37,1)+1) ->  | T38: 0
A39: x | C39: =IF(D39="","",LARGE(C$11:C38,1)+1) ->  | T39: 0
A40: x | C40: =IF(D40="","",LARGE(C$11:C39,1)+1) ->  | T40: 0
A41: x | C41: =IF(D41="","",LARGE(C$11:C40,1)+1) ->  | T41: 0
A42: x | C42: =IF(D42="","",LARGE(C$11:C41,1)+1) ->  | T42: 0
A43: x | C43: =IF(D43="","",LARGE(C$11:C42,1)+1) ->  | T43: 0
A44: x | C44: =IF(D44="","",LARGE(C$11:C43,1)+1) ->  | T44: 0
A45: x | C45: =IF(D45="","",LARGE(C$11:C44,1)+1) ->  | T45: 0
A46: x | C46: =IF(D46="","",LARGE(C$11:C45,1)+1) ->  | T46: 0
A47: x | C47: =IF(D47="","",LARGE(C$11:C46,1)+1) ->  | T47: 0
A48: x | C48: =IF(D48="","",LARGE(C$11:C47,1)+1) ->  | T48: 0
A49: x | C49: =IF(D49="","",LARGE(C$11:C48,1)+1) ->  | T49: 0
A50: x | C50: =IF(D50="","",LARGE(C$11:C49,1)+1) ->  | T50: 0
A51: x | C51: =IF(D51="","",LARGE(C$11:C50,1)+1) ->  | T51: 0
A52: x | C52: =IF(D52="","",LARGE(C$11:C51,1)+1) ->  | T52: 0
A53: x | C53: =IF(D53="","",LARGE(C$11:C52,1)+1) ->  | T53: 0
A54: x | C54: =IF(D54="","",LARGE(C$11:C53,1)+1) ->  | T54: 0
A55: x | C55: =IF(D55="","",LARGE(C$11:C54,1)+1) ->  | T55: 0
A56: x | C56: =IF(D56="","",LARGE(C$11:C55,1)+1) ->  | T56: 0
A57: x | C57: =IF(D57="","",LARGE(C$11:C56,1)+1) ->  | T57: 0
A58: x | C58: =IF(D58="","",LARGE(C$11:C57,1)+1) ->  | T58: 0
A59: x | C59: =IF(D59="","",LARGE(C$11:C58,1)+1) ->  | T59: 0
A60: x | C60: =IF(D60="","",LARGE(C$11:C59,1)+1) ->  | T60: 0
A61: x | C61: =IF(D61="","",LARGE(C$11:C60,1)+1) ->  | T61: 0
A62: x | C62: =IF(D62="","",LARGE(C$11:C61,1)+1) ->  | T62: 0
A63: x | C63: =IF(D63="","",LARGE(C$11:C62,1)+1) ->  | T63: 0
A64: x | C64: =IF(D64="","",LARGE(C$11:C63,1)+1) ->  | T64: 0
A65: x | C65: =IF(D65="","",LARGE(C$11:C64,1)+1) ->  | T65: 0
A66: x | C66: =IF(D66="","",LARGE(C$11:C65,1)+1) ->  | T66: 0
A67: x | C67: =IF(D67="","",LARGE(C$11:C66,1)+1) ->  | T67: 0
A68: x | C68: =IF(D68="","",LARGE(C$11:C67,1)+1) ->  | T68: 0
A69: x | C69: =IF(D69="","",LARGE(C$11:C68,1)+1) ->  | T69: 0
A70: x | C70: =IF(D70="","",LARGE(C$11:C69,1)+1) ->  | T70: 0
A71: x | C71: =IF(D71="","",LARGE(C$11:C70,1)+1) ->  | T71: 0
A72: x | C72: =IF(D72="","",LARGE(C$11:C71,1)+1) ->  | T72: 0
A73: x | C73: =IF(D73="","",LARGE(C$11:C72,1)+1) ->  | T73: 0
A74: x | C74: =IF(D74="","",LARGE(C$11:C73,1)+1) ->  | T74: 0
A75: x | C75: =IF(D75="","",LARGE(C$11:C74,1)+1) ->  | T75: 0
A76: x | C76: =IF(D76="","",LARGE(C$11:C75,1)+1) ->  | T76: =IF(E76="",0,1) -> 0
A77: x | C77: =IF(D77="","",LARGE(C$11:C76,1)+1) ->  | T77: 0
A78: x | C78: =IF(D78="","",LARGE(C$11:C77,1)+1) ->  | T78: 0
A79: x | C79: =IF(D79="","",LARGE(C$11:C78,1)+1) ->  | T79: 0
A80: x | C80: =IF(D80="","",LARGE(C$11:C79,1)+1) ->  | T80: 0
A81: x | C81: =IF(D81="","",LARGE(C$11:C80,1)+1) ->  | T81: 0
A82: x | C82: =IF(D82="","",LARGE(C$11:C81,1)+1) ->  | T82: 0
A83: x | C83: =IF(D83="","",LARGE(C$11:C82,1)+1) ->  | T83: 0
A84: x | C84: =IF(D84="","",LARGE(C$11:C83,1)+1) ->  | T84: 0
A85: x | C85: =IF(D85="","",LARGE(C$11:C84,1)+1) ->  | T85: 0
A86: x | C86: =IF(D86="","",LARGE(C$11:C85,1)+1) ->  | T86: 0
A87: x | C87: =IF(D87="","",LARGE(C$11:C86,1)+1) ->  | T87: 0
A88: x | C88: =IF(D88="","",LARGE(C$11:C87,1)+1) ->  | T88: 0
A89: x | C89: =IF(D89="","",LARGE(C$11:C88,1)+1) ->  | T89: 0
A90: x | C90: =IF(D90="","",LARGE(C$11:C89,1)+1) ->  | T90: 0
A91: x | C91: =IF(D91="","",LARGE(C$11:C90,1)+1) ->  | T91: 0
A92: x | C92: =IF(D92="","",LARGE(C$11:C91,1)+1) ->  | T92: 0
T95: =SUM(T11:T92) -> 0

Sheet Anmerkungen-Drucken
B2: =ParameterDatei!D196 -> • Hauptmenu •
C4: Anmerkungen zum BAB Rettungsdienst in Niedersachsen
C5: =" Rettungsdienstbereich "&INDEX(ParameterDatei!C37:C86,ParameterDatei!B9)&" "&INDEX(ParameterDatei!D37:D86,ParameterDatei!B9)&" für den Berichtszeitraum "&INDEX(ParameterDatei!F9:F26,ParameterDatei!F27) -> 
C7: Zeile | D7: Betreff | E7: Text | F7: US | G7: KZ | H7: Text (Zeilenumbruch mit "Alt + Return)
H8: Summe RTW | I8: Summe KTW | J8: Summe NEF | K8: Summe MZF | L8: ="Summe "&'Basis-Daten'!D12 -> Summe Sonstige 1 | M8: ="Summe "&'Basis-Daten'!D14 -> Summe Sonstige 2 | N8: ="Summe "&'Basis-Daten'!D16 -> Summe Sonstige 3 | O8: ="Summe "&'Basis-Daten'!D18 -> Summe Sonstige 4 | P8: ="Summe "&'Basis-Daten'!D20 -> Summe Sonstige 5 | Q8: Summe
C9: 1 | D9: 23 | E9: 24 | F9: 4 | G9: 5 | H9: 23 | I9: 11 | J9: 12 | K9: 13 | L9: 14 | M9: 15 | N9: 16 | O9: 17 | P9: 18 | Q9: 19
C11: 200 | D11: Entgelt-Gesamtsumme | E11: --
D14: A. Notfallrettung
C16: 201 | D16: Pauschale Notfallrettung | E16: 0
C17: 202 | D17: KM zu KM-Satz I | E17: 0
C18: 203 | D18: KM zu KM-Satz II | E18: 0
C19: 204 | D19: KM zu KM-Satz III | E19: 0
C20: 205 | D20: Notfallrettung insgesamt
D23: B. Qual. Krankentransport
C25: 206 | D25: Pauschale Qual. Krankentransport | E25: 0
C26: 207 | D26: KM zu KM-Satz I | E26: 0
C27: 208 | D27: KM zu KM-Satz II | E27: 0
C28: 209 | D28: KM zu KM-Satz III | E28: 0
C29: 210 | D29: Qual. Krankentransport insgesamt
D32: C. Notarztdienst
C34: 211 | D34: Pauschale Notarztdienst | E34: 0
C35: 212 | D35: KM zu KM-Satz I | E35: 0
C36: 213 | D36: Notarztdienst insgesamt
D39: D. Sonstige 1
C41: 216 | D41: Pauschale Sonstige 1 | E41: 0
C42: 217 | D42: KM zu KM-Satz I | E42: 0
C43: 218 | D43: KM zu KM-Satz II | E43: 0
C44: 219 | D44: KM zu KM-Satz III | E44: 0
C45: 220 | D45: Sonstige 1 insgesamt
D48: E. Sonstige 2
C50: 221 | D50: Pauschale Sonstige 2 | E50: 0
C51: 222 | D51: KM zu KM-Satz I | E51: 0
C52: 223 | D52: KM zu KM-Satz II | E52: 0
C53: 224 | D53: KM zu KM-Satz III | E53: 0
C54: 225 | D54: Sonstige 2 insgesamt
D57: F. Sonstige 3
C59: 226 | D59: Pauschale Sonstige 3 | E59: 0
C60: 227 | D60: KM zu KM-Satz I | E60: 0
C61: 228 | D61: KM zu KM-Satz II | E61: 0
C62: 229 | D62: KM zu KM-Satz III | E62: 0
C63: 230 | D63: Sonstige 3 insgesamt
D66: G. Sonstige 4
C68: 231 | D68: Pauschale Sonstige 4 | E68: 0
C69: 232 | D69: KM zu KM-Satz I | E69: 0
C70: 233 | D70: KM zu KM-Satz II | E70: 0
C71: 234 | D71: KM zu KM-Satz III | E71: 0
C72: 235 | D72: Sonstige 4 insgesamt
D75: H. Sonstige 5
C77: 236 | D77: Pauschale Sonstige 5 | E77: 0
C78: 237 | D78: KM zu KM-Satz I | E78: 0
C79: 238 | D79: KM zu KM-Satz II | E79: 0
C80: 239 | D80: KM zu KM-Satz III | E80: 0
C81: 240 | D81: Sonstige 5 insgesamt
C104: Anmerkungen zum BAB Rettungsdienst in Niedersachsen
C105: ="Träger "&INDEX(ParameterDatei!C37:C86,ParameterDatei!B9)&" "&INDEX(ParameterDatei!D37:D86,ParameterDatei!B9)&" für den Berichtszeitraum "&INDEX(ParameterDatei!F9:F26,ParameterDatei!B8) -> 
C107: Zeile | D107: Betreff | E107: Text | F107: US | G107: KZ | H107: Text (Zeilenumbruch mit "Alt + Return)
H108: Summe RTW | I108: Summe KTW | J108: Summe NEF | K108: Summe MZF | L108: ="Summe "&'Basis-Daten'!D116 -> Summe | M108: ="Summe "&'Basis-Daten'!D118 -> Summe | N108: ="Summe "&'Basis-Daten'!D120 -> Summe | O108: ="Summe "&'Basis-Daten'!D122 -> Summe | P108: ="Summe "&'Basis-Daten'!D124 -> Summe | Q108: Summe
C109: 1 | D109: 22 | E109: 23 | F109: 4 | G109: 5 | H109: 23 | I109: 11 | J109: 12 | K109: 13 | L109: 14 | M109: 15 | N109: 16 | O109: 17 | P109: 18 | Q109: 19
C111: 33401
C113: 33402
C115: 33403
C117: 33404
C204: Anmerkungen zum BAB Rettungsdienst in Niedersachsen
C205: ="Rettungsdienstbereich "&INDEX(ParameterDatei!C37:C86,ParameterDatei!B9)&" "&INDEX(ParameterDatei!D37:D86,ParameterDatei!B9)&" - für den Berichtszeitraum "&INDEX(ParameterDatei!F9:F26,ParameterDatei!B8) -> 
C206: ="Rettungswache "&INDEX(ParameterDatei!C119:C148,ParameterDatei!B150)&" ("&INDEX(ParameterDatei!C93:C112,ParameterDatei!B114)&")" -> Rettungswache RW 01 (LE 01)
C207: Zeile | D207: Betreff | E207: Text | F207: US | G207: KZ | H207: Text (Zeilenumbruch mit "Alt + Return)
H208: Summe RTW | I208: Summe KTW | J208: Summe NEF | K208: Summe MZF | L208: ="Summe "&'Basis-Daten'!D216 -> Summe | M208: ="Summe "&'Basis-Daten'!D218 -> Summe | N208: ="Summe "&'Basis-Daten'!D220 -> Summe | O208: ="Summe "&'Basis-Daten'!D222 -> Summe | P208: ="Summe "&'Basis-Daten'!D224 -> Summe | Q208: Summe
C209: 1 | D209: 22 | E209: 23 | F209: 4 | G209: 5 | H209: 23 | I209: 11 | J209: 12 | K209: 13 | L209: 14 | M209: 15 | N209: 16 | O209: 17 | P209: 18 | Q209: 19
C211: 15401

Sheet LE-Ebene
B2: =ParameterDatei!D172 -> Drucken • RW BAB • Hauptmenu • LE Statistik • RDB BAB
C4: Betriebsabrechnungsbogen für den Rettungsdienst in Niedersachsen*)
C5: Leistungserbringer: | K5: =" für den Berichtszeitraum "&INDEX(ParameterDatei!F9:F26,ParameterDatei!B8) -> für den Berichtszeitraum Leerfeld
C7: Zeile | D7: Kostenarten | E7: Summe | F7: US | G7: KZ | H7: Hilfs-Kostenstellen | L7: Sonst-Kst | Q7: A-Kst
G8: =IF(INDEX(ParameterDatei!$E$119:$E$148,ParameterDatei!$B$150)>0,"A","") ->  | H8: RTW | I8: KTW | J8: NEF | K8: MZF | L8: ='Basis-Daten'!D12 -> Sonstige 1 | M8: ='Basis-Daten'!D14 -> Sonstige 2 | N8: ='Basis-Daten'!D16 -> Sonstige 3 | O8: ='Basis-Daten'!D18 -> Sonstige 4 | P8: ='Basis-Daten'!D20 -> Sonstige 5 | Q8: Ausbildung NotfallSan | R8: Verwaltung | S8: LE-ÖEL | T8: LE-GSE
C9: 1 | D9: 2 | E9: 3 | F9: 4 | G9: 5 | H9: 14 | I9: 15 | J9: 16 | K9: 17 | L9: 9 | M9: 10 | N9: 11 | O9: 12 | P9: 13 | Q9: 23 | R9: 18 | S9: 20 | T9: 21
C11: 1 | D11: Personalkosten hauptamtlich | E11: =SUM(H11:T11) -> 0 | F11: 1 | H11: ='Verdichtung LE'!$E111 -> 0 | I11: ='Verdichtung LE'!$E211 -> 0 | J11: ='Verdichtung LE'!$E311 -> 0 | K11: ='Verdichtung LE'!$E411 -> 0 | L11: ='Verdichtung LE'!$E511 -> 0 | M11: ='Verdichtung LE'!$E611 -> 0 | N11: ='Verdichtung LE'!$E711 -> 0 | O11: ='Verdichtung LE'!$E811 -> 0 | P11: ='Verdichtung LE'!$E911 -> 0 | Q11: ='Verdichtung LE'!E1311 -> 0 | R11: ='Verdichtung LE'!$E1211 -> 0 | S11: ='Verdichtung LE'!$E1011 -> 0 | T11: ='Verdichtung LE'!$E1111 -> 0
C12: 2 | D12: Personalkosten nebenamtlich | E12: 0 | F12: 1 | H12: ='Verdichtung LE'!$E112 -> 0 | I12: ='Verdichtung LE'!$E212 -> 0 | J12: ='Verdichtung LE'!$E312 -> 0 | K12: ='Verdichtung LE'!$E412 -> 0 | L12: ='Verdichtung LE'!$E512 -> 0 | M12: ='Verdichtung LE'!$E612 -> 0 | N12: ='Verdichtung LE'!$E712 -> 0 | O12: ='Verdichtung LE'!$E812 -> 0 | P12: ='Verdichtung LE'!$E912 -> 0 | Q12: ='Verdichtung LE'!E1312 -> 0 | R12: ='Verdichtung LE'!$E1212 -> 0 | S12: ='Verdichtung LE'!$E1012 -> 0 | T12: ='Verdichtung LE'!$E1112 -> 0
C13: 3 | D13: Personalkosten ehrenamtlich | E13: 0 | F13: 1 | H13: ='Verdichtung LE'!$E113 -> 0 | I13: ='Verdichtung LE'!$E213 -> 0 | J13: ='Verdichtung LE'!$E313 -> 0 | K13: ='Verdichtung LE'!$E413 -> 0 | L13: ='Verdichtung LE'!$E513 -> 0 | M13: ='Verdichtung LE'!$E613 -> 0 | N13: ='Verdichtung LE'!$E713 -> 0 | O13: ='Verdichtung LE'!$E813 -> 0 | P13: ='Verdichtung LE'!$E913 -> 0 | Q13: ='Verdichtung LE'!E1313 -> 0 | R13: ='Verdichtung LE'!$E1213 -> 0 | S13: ='Verdichtung LE'!$E1013 -> 0 | T13: ='Verdichtung LE'!$E1113 -> 0
C14: 4 | D14: Personalkosten FSJ & Bundesfreiw.-D | E14: 0 | F14: 1 | H14: ='Verdichtung LE'!$E114 -> 0 | I14: ='Verdichtung LE'!$E214 -> 0 | J14: ='Verdichtung LE'!$E314 -> 0 | K14: ='Verdichtung LE'!$E414 -> 0 | L14: ='Verdichtung LE'!$E514 -> 0 | M14: ='Verdichtung LE'!$E614 -> 0 | N14: ='Verdichtung LE'!$E714 -> 0 | O14: ='Verdichtung LE'!$E814 -> 0 | P14: ='Verdichtung LE'!$E914 -> 0 | Q14: ='Verdichtung LE'!E1314 -> 0 | R14: ='Verdichtung LE'!$E1214 -> 0 | S14: ='Verdichtung LE'!$E1014 -> 0 | T14: ='Verdichtung LE'!$E1114 -> 0
C15: 5 | D15: Personalkosten Notarzt | E15: 0 | F15: 0 | H15: ='Verdichtung LE'!$E115 -> 0 | I15: ='Verdichtung LE'!$E215 -> 0 | J15: ='Verdichtung LE'!$E315 -> 0 | K15: ='Verdichtung LE'!$E415 -> 0 | L15: ='Verdichtung LE'!$E515 -> 0 | M15: ='Verdichtung LE'!$E615 -> 0 | N15: ='Verdichtung LE'!$E715 -> 0 | O15: ='Verdichtung LE'!$E815 -> 0 | P15: ='Verdichtung LE'!$E915 -> 0 | Q15: ='Verdichtung LE'!E1315 -> 0 | R15: ='Verdichtung LE'!$E1215 -> 0 | S15: ='Verdichtung LE'!$E1015 -> 0 | T15: ='Verdichtung LE'!$E1115 -> 0
C16: 6 | D16: Personalkosten "fiktive Verwaltung" | E16: 0 | F16: 0 | H16: ='Verdichtung LE'!$E116 -> 0 | I16: ='Verdichtung LE'!$E216 -> 0 | J16: ='Verdichtung LE'!$E316 -> 0 | K16: ='Verdichtung LE'!$E416 -> 0 | L16: ='Verdichtung LE'!$E516 -> 0 | M16: ='Verdichtung LE'!$E616 -> 0 | N16: ='Verdichtung LE'!$E716 -> 0 | O16: ='Verdichtung LE'!$E816 -> 0 | P16: ='Verdichtung LE'!$E916 -> 0 | Q16: ='Verdichtung LE'!E1316 -> 0 | R16: ='Verdichtung LE'!$E1216 -> 0 | S16: ='Verdichtung LE'!$E1016 -> 0 | T16: ='Verdichtung LE'!$E1116 -> 0
C17: 7 | D17: Personalkosten Reinigungspersonal | E17: 0 | F17: 2 | H17: ='Verdichtung LE'!$E117 -> 0 | I17: ='Verdichtung LE'!$E217 -> 0 | J17: ='Verdichtung LE'!$E317 -> 0 | K17: ='Verdichtung LE'!$E417 -> 0 | L17: ='Verdichtung LE'!$E517 -> 0 | M17: ='Verdichtung LE'!$E617 -> 0 | N17: ='Verdichtung LE'!$E717 -> 0 | O17: ='Verdichtung LE'!$E817 -> 0 | P17: ='Verdichtung LE'!$E917 -> 0 | Q17: ='Verdichtung LE'!E1317 -> 0 | R17: ='Verdichtung LE'!$E1217 -> 0 | S17: ='Verdichtung LE'!$E1017 -> 0 | T17: ='Verdichtung LE'!$E1117 -> 0
C18: 8 | D18: Summe Personalkosten | E18: =SUM(E11:E17) -> 0 | G18: ZS | H18: ='Verdichtung LE'!$E118 -> 0 | I18: ='Verdichtung LE'!$E218 -> 0 | J18: ='Verdichtung LE'!$E318 -> 0 | K18: ='Verdichtung LE'!$E418 -> 0 | L18: ='Verdichtung LE'!$E518 -> 0 | M18: ='Verdichtung LE'!$E618 -> 0 | N18: ='Verdichtung LE'!$E718 -> 0 | O18: ='Verdichtung LE'!$E818 -> 0 | P18: ='Verdichtung LE'!$E918 -> 0 | Q18: ='Verdichtung LE'!E1318 -> 0 | R18: ='Verdichtung LE'!$E1218 -> 0 | S18: ='Verdichtung LE'!$E1018 -> 0 | T18: ='Verdichtung LE'!$E1118 -> 0
Q19: ='Verdichtung LE'!E1319 -> 0
C20: 9 | D20: Aus- und Fortbildungskosten | E20: =SUM(H20:T20) -> 0 | F20: 1 | H20: ='Verdichtung LE'!$E120 -> 0 | I20: ='Verdichtung LE'!$E220 -> 0 | J20: ='Verdichtung LE'!$E320 -> 0 | K20: ='Verdichtung LE'!$E420 -> 0 | L20: ='Verdichtung LE'!$E520 -> 0 | M20: ='Verdichtung LE'!$E620 -> 0 | N20: ='Verdichtung LE'!$E720 -> 0 | O20: ='Verdichtung LE'!$E820 -> 0 | P20: ='Verdichtung LE'!$E920 -> 0 | Q20: ='Verdichtung LE'!E1320 -> 0 | R20: ='Verdichtung LE'!$E1220 -> 0 | S20: ='Verdichtung LE'!$E1020 -> 0 | T20: ='Verdichtung LE'!$E1120 -> 0
C21: 10 | D21: sonstige Sach-/Nebenkosten Personal | E21: =SUM(H21:T21) -> 0 | F21: 1 | H21: ='Verdichtung LE'!$E121 -> 0 | I21: ='Verdichtung LE'!$E221 -> 0 | J21: ='Verdichtung LE'!$E321 -> 0 | K21: ='Verdichtung LE'!$E421 -> 0 | L21: ='Verdichtung LE'!$E521 -> 0 | M21: ='Verdichtung LE'!$E621 -> 0 | N21: ='Verdichtung LE'!$E721 -> 0 | O21: ='Verdichtung LE'!$E821 -> 0 | P21: ='Verdichtung LE'!$E921 -> 0 | Q21: ='Verdichtung LE'!E1321 -> 0 | R21: ='Verdichtung LE'!$E1221 -> 0 | S21: ='Verdichtung LE'!$E1021 -> 0 | T21: ='Verdichtung LE'!$E1121 -> 0
C22: 11 | D22: Gesamt Personalnebenkosten | E22: =SUM(E20:E21) -> 0 | G22: S | H22: ='Verdichtung LE'!$E122 -> 0 | I22: ='Verdichtung LE'!$E222 -> 0 | J22: ='Verdichtung LE'!$E322 -> 0 | K22: ='Verdichtung LE'!$E422 -> 0 | L22: ='Verdichtung LE'!$E522 -> 0 | M22: ='Verdichtung LE'!$E622 -> 0 | N22: ='Verdichtung LE'!$E722 -> 0 | O22: ='Verdichtung LE'!$E822 -> 0 | P22: ='Verdichtung LE'!$E922 -> 0 | Q22: ='Verdichtung LE'!E1322 -> 0 | R22: ='Verdichtung LE'!$E1222 -> 0 | S22: ='Verdichtung LE'!$E1022 -> 0 | T22: ='Verdichtung LE'!$E1122 -> 0
C23: 12 | D23: Mieten, Pachten | E23: =SUM(H23:T23) -> 0 | F23: 3 | H23: ='Verdichtung LE'!$E123 -> 0 | I23: ='Verdichtung LE'!$E223 -> 0 | J23: ='Verdichtung LE'!$E323 -> 0 | K23: ='Verdichtung LE'!$E423 -> 0 | L23: ='Verdichtung LE'!$E523 -> 0 | M23: ='Verdichtung LE'!$E623 -> 0 | N23: ='Verdichtung LE'!$E723 -> 0 | O23: ='Verdichtung LE'!$E823 -> 0 | P23: ='Verdichtung LE'!$E923 -> 0 | Q23: ='Verdichtung LE'!E1323 -> 0 | R23: ='Verdichtung LE'!$E1223 -> 0 | S23: ='Verdichtung LE'!$E1023 -> 0 | T23: ='Verdichtung LE'!$E1123 -> 0
C24: 13 | D24: Nebenkosten / Energie | E24: =SUM(H24:T24) -> 0 | F24: 2 | H24: ='Verdichtung LE'!$E124 -> 0 | I24: ='Verdichtung LE'!$E224 -> 0 | J24: ='Verdichtung LE'!$E324 -> 0 | K24: ='Verdichtung LE'!$E424 -> 0 | L24: ='Verdichtung LE'!$E524 -> 0 | M24: ='Verdichtung LE'!$E624 -> 0 | N24: ='Verdichtung LE'!$E724 -> 0 | O24: ='Verdichtung LE'!$E824 -> 0 | P24: ='Verdichtung LE'!$E924 -> 0 | Q24: ='Verdichtung LE'!E1324 -> 0 | R24: ='Verdichtung LE'!$E1224 -> 0 | S24: ='Verdichtung LE'!$E1024 -> 0 | T24: ='Verdichtung LE'!$E1124 -> 0
C25: 14 | D25: Fremdreinigung / Reinigungsmaterial | E25: =SUM(H25:T25) -> 0 | F25: 2 | H25: ='Verdichtung LE'!$E125 -> 0 | I25: ='Verdichtung LE'!$E225 -> 0 | J25: ='Verdichtung LE'!$E325 -> 0 | K25: ='Verdichtung LE'!$E425 -> 0 | L25: ='Verdichtung LE'!$E525 -> 0 | M25: ='Verdichtung LE'!$E625 -> 0 | N25: ='Verdichtung LE'!$E725 -> 0 | O25: ='Verdichtung LE'!$E825 -> 0 | P25: ='Verdichtung LE'!$E925 -> 0 | Q25: ='Verdichtung LE'!E1325 -> 0 | R25: ='Verdichtung LE'!$E1225 -> 0 | S25: ='Verdichtung LE'!$E1025 -> 0 | T25: ='Verdichtung LE'!$E1125 -> 0
C26: 15 | D26: Gebäudeversicherung / Steuer | E26: =SUM(H26:T26) -> 0 | F26: 3 | H26: ='Verdichtung LE'!$E126 -> 0 | I26: ='Verdichtung LE'!$E226 -> 0 | J26: ='Verdichtung LE'!$E326 -> 0 | K26: ='Verdichtung LE'!$E426 -> 0 | L26: ='Verdichtung LE'!$E526 -> 0 | M26: ='Verdichtung LE'!$E626 -> 0 | N26: ='Verdichtung LE'!$E726 -> 0 | O26: ='Verdichtung LE'!$E826 -> 0 | P26: ='Verdichtung LE'!$E926 -> 0 | Q26: ='Verdichtung LE'!E1326 -> 0 | R26: ='Verdichtung LE'!$E1226 -> 0 | S26: ='Verdichtung LE'!$E1026 -> 0 | T26: ='Verdichtung LE'!$E1126 -> 0
C27: 16 | D27: Gesamt Sachkosten Betriebsräume | E27: =SUM(E23:E26) -> 0 | G27: S | H27: ='Verdichtung LE'!$E127 -> 0 | I27: ='Verdichtung LE'!$E227 -> 0 | J27: ='Verdichtung LE'!$E327 -> 0 | K27: ='Verdichtung LE'!$E427 -> 0 | L27: ='Verdichtung LE'!$E527 -> 0 | M27: ='Verdichtung LE'!$E627 -> 0 | N27: ='Verdichtung LE'!$E727 -> 0 | O27: ='Verdichtung LE'!$E827 -> 0 | P27: ='Verdichtung LE'!$E927 -> 0 | Q27: ='Verdichtung LE'!E1327 -> 0 | R27: ='Verdichtung LE'!$E1227 -> 0 | S27: ='Verdichtung LE'!$E1027 -> 0 | T27: ='Verdichtung LE'!$E1127 -> 0
C28: 17 | D28: Grundstücksanlagen Instandhaltung | E28: =SUM(H28:T28) -> 0 | F28: 3 | H28: ='Verdichtung LE'!$E128 -> 0 | I28: ='Verdichtung LE'!$E228 -> 0 | J28: ='Verdichtung LE'!$E328 -> 0 | K28: ='Verdichtung LE'!$E428 -> 0 | L28: ='Verdichtung LE'!$E528 -> 0 | M28: ='Verdichtung LE'!$E628 -> 0 | N28: ='Verdichtung LE'!$E728 -> 0 | O28: ='Verdichtung LE'!$E828 -> 0 | P28: ='Verdichtung LE'!$E928 -> 0 | Q28: ='Verdichtung LE'!E1328 -> 0 | R28: ='Verdichtung LE'!$E1228 -> 0 | S28: ='Verdichtung LE'!$E1028 -> 0 | T28: ='Verdichtung LE'!$E1128 -> 0
C29: 18 | D29: Betriebsräume Instandhaltung | E29: =SUM(H29:T29) -> 0 | F29: 3 | H29: ='Verdichtung LE'!$E129 -> 0 | I29: ='Verdichtung LE'!$E229 -> 0 | J29: ='Verdichtung LE'!$E329 -> 0 | K29: ='Verdichtung LE'!$E429 -> 0 | L29: ='Verdichtung LE'!$E529 -> 0 | M29: ='Verdichtung LE'!$E629 -> 0 | N29: ='Verdichtung LE'!$E729 -> 0 | O29: ='Verdichtung LE'!$E829 -> 0 | P29: ='Verdichtung LE'!$E929 -> 0 | Q29: ='Verdichtung LE'!E1329 -> 0 | R29: ='Verdichtung LE'!$E1229 -> 0 | S29: ='Verdichtung LE'!$E1029 -> 0 | T29: ='Verdichtung LE'!$E1129 -> 0
C30: 19 | D30: Techn. Betriebsanlagen Instandhaltung | E30: =SUM(H30:T30) -> 0 | F30: 3 | H30: ='Verdichtung LE'!$E130 -> 0 | I30: ='Verdichtung LE'!$E230 -> 0 | J30: ='Verdichtung LE'!$E330 -> 0 | K30: ='Verdichtung LE'!$E430 -> 0 | L30: ='Verdichtung LE'!$E530 -> 0 | M30: ='Verdichtung LE'!$E630 -> 0 | N30: ='Verdichtung LE'!$E730 -> 0 | O30: ='Verdichtung LE'!$E830 -> 0 | P30: ='Verdichtung LE'!$E930 -> 0 | Q30: ='Verdichtung LE'!E1330 -> 0 | R30: ='Verdichtung LE'!$E1230 -> 0 | S30: ='Verdichtung LE'!$E1030 -> 0 | T30: ='Verdichtung LE'!$E1130 -> 0
C31: 20 | D31: Gesamt Instandhaltung | E31: =SUM(E28:E30) -> 0 | G31: S | H31: ='Verdichtung LE'!$E131 -> 0 | I31: ='Verdichtung LE'!$E231 -> 0 | J31: ='Verdichtung LE'!$E331 -> 0 | K31: ='Verdichtung LE'!$E431 -> 0 | L31: ='Verdichtung LE'!$E531 -> 0 | M31: ='Verdichtung LE'!$E631 -> 0 | N31: ='Verdichtung LE'!$E731 -> 0 | O31: ='Verdichtung LE'!$E831 -> 0 | P31: ='Verdichtung LE'!$E931 -> 0 | Q31: ='Verdichtung LE'!E1331 -> 0 | R31: ='Verdichtung LE'!$E1231 -> 0 | S31: ='Verdichtung LE'!$E1031 -> 0 | T31: ='Verdichtung LE'!$E1131 -> 0
C32: 21 | D32: Betriebsstoffe | E32: =SUM(H32:T32) -> 0 | F32: 4 | H32: ='Verdichtung LE'!$E132 -> 0 | I32: ='Verdichtung LE'!$E232 -> 0 | J32: ='Verdichtung LE'!$E332 -> 0 | K32: ='Verdichtung LE'!$E432 -> 0 | L32: ='Verdichtung LE'!$E532 -> 0 | M32: ='Verdichtung LE'!$E632 -> 0 | N32: ='Verdichtung LE'!$E732 -> 0 | O32: ='Verdichtung LE'!$E832 -> 0 | P32: ='Verdichtung LE'!$E932 -> 0 | Q32: ='Verdichtung LE'!E1332 -> 0 | R32: ='Verdichtung LE'!$E1232 -> 0 | S32: ='Verdichtung LE'!$E1032 -> 0 | T32: ='Verdichtung LE'!$E1132 -> 0
C33: 22 | D33: Reparatur / Wartung KFZ | E33: 0 | F33: 4 | H33: ='Verdichtung LE'!$E133 -> 0 | I33: ='Verdichtung LE'!$E233 -> 0 | J33: ='Verdichtung LE'!$E333 -> 0 | K33: ='Verdichtung LE'!$E433 -> 0 | L33: ='Verdichtung LE'!$E533 -> 0 | M33: ='Verdichtung LE'!$E633 -> 0 | N33: ='Verdichtung LE'!$E733 -> 0 | O33: ='Verdichtung LE'!$E833 -> 0 | P33: ='Verdichtung LE'!$E933 -> 0 | Q33: ='Verdichtung LE'!E1333 -> 0 | R33: ='Verdichtung LE'!$E1233 -> 0 | S33: ='Verdichtung LE'!$E1033 -> 0 | T33: ='Verdichtung LE'!$E1133 -> 0
C34: 23 | D34: Reparatur Unfallschaden | E34: 0 | F34: 4 | H34: ='Verdichtung LE'!$E134 -> 0 | I34: ='Verdichtung LE'!$E234 -> 0 | J34: ='Verdichtung LE'!$E334 -> 0 | K34: ='Verdichtung LE'!$E434 -> 0 | L34: ='Verdichtung LE'!$E534 -> 0 | M34: ='Verdichtung LE'!$E634 -> 0 | N34: ='Verdichtung LE'!$E734 -> 0 | O34: ='Verdichtung LE'!$E834 -> 0 | P34: ='Verdichtung LE'!$E934 -> 0 | Q34: ='Verdichtung LE'!E1334 -> 0 | R34: ='Verdichtung LE'!$E1234 -> 0 | S34: ='Verdichtung LE'!$E1034 -> 0 | T34: ='Verdichtung LE'!$E1134 -> 0
C35: 24 | D35: Versicherung / Steuer KFZ | E35: 0 | F35: 3 | H35: ='Verdichtung LE'!$E135 -> 0 | I35: ='Verdichtung LE'!$E235 -> 0 | J35: ='Verdichtung LE'!$E335 -> 0 | K35: ='Verdichtung LE'!$E435 -> 0 | L35: ='Verdichtung LE'!$E535 -> 0 | M35: ='Verdichtung LE'!$E635 -> 0 | N35: ='Verdichtung LE'!$E735 -> 0 | O35: ='Verdichtung LE'!$E835 -> 0 | P35: ='Verdichtung LE'!$E935 -> 0 | Q35: ='Verdichtung LE'!E1335 -> 0 | R35: ='Verdichtung LE'!$E1235 -> 0 | S35: ='Verdichtung LE'!$E1035 -> 0 | T35: ='Verdichtung LE'!$E1135 -> 0
C36: 25 | D36: Reparaturen KFZ-Funk / Telekomm. | E36: 0 | F36: 5 | H36: ='Verdichtung LE'!$E136 -> 0 | I36: ='Verdichtung LE'!$E236 -> 0 | J36: ='Verdichtung LE'!$E336 -> 0 | K36: ='Verdichtung LE'!$E436 -> 0 | L36: ='Verdichtung LE'!$E536 -> 0 | M36: ='Verdichtung LE'!$E636 -> 0 | N36: ='Verdichtung LE'!$E736 -> 0 | O36: ='Verdichtung LE'!$E836 -> 0 | P36: ='Verdichtung LE'!$E936 -> 0 | Q36: ='Verdichtung LE'!E1336 -> 0 | R36: ='Verdichtung LE'!$E1236 -> 0 | S36: ='Verdichtung LE'!$E1036 -> 0 | T36: ='Verdichtung LE'!$E1136 -> 0
C37: 26 | D37: Miete / Leasing | E37: 0 | F37: 3 | H37: ='Verdichtung LE'!$E137 -> 0 | I37: ='Verdichtung LE'!$E237 -> 0 | J37: ='Verdichtung LE'!$E337 -> 0 | K37: ='Verdichtung LE'!$E437 -> 0 | L37: ='Verdichtung LE'!$E537 -> 0 | M37: ='Verdichtung LE'!$E637 -> 0 | N37: ='Verdichtung LE'!$E737 -> 0 | O37: ='Verdichtung LE'!$E837 -> 0 | P37: ='Verdichtung LE'!$E937 -> 0 | Q37: ='Verdichtung LE'!E1337 -> 0 | R37: ='Verdichtung LE'!$E1237 -> 0 | S37: ='Verdichtung LE'!$E1037 -> 0 | T37: ='Verdichtung LE'!$E1137 -> 0
C38: 27 | D38: Gesamt Fahrzeuge | E38: =SUM(E32:E37) -> 0 | G38: S | H38: ='Verdichtung LE'!$E138 -> 0 | I38: ='Verdichtung LE'!$E238 -> 0 | J38: ='Verdichtung LE'!$E338 -> 0 | K38: ='Verdichtung LE'!$E438 -> 0 | L38: ='Verdichtung LE'!$E538 -> 0 | M38: ='Verdichtung LE'!$E638 -> 0 | N38: ='Verdichtung LE'!$E738 -> 0 | O38: ='Verdichtung LE'!$E838 -> 0 | P38: ='Verdichtung LE'!$E938 -> 0 | Q38: ='Verdichtung LE'!E1338 -> 0 | R38: ='Verdichtung LE'!$E1238 -> 0 | S38: ='Verdichtung LE'!$E1038 -> 0 | T38: ='Verdichtung LE'!$E1138 -> 0
C39: 28 | D39: Schutzbekleidung Beschaffg. / Reinigung | E39: =SUM(H39:T39) -> 0 | F39: 5 | H39: ='Verdichtung LE'!$E139 -> 0 | I39: ='Verdichtung LE'!$E239 -> 0 | J39: ='Verdichtung LE'!$E339 -> 0 | K39: ='Verdichtung LE'!$E439 -> 0 | L39: ='Verdichtung LE'!$E539 -> 0 | M39: ='Verdichtung LE'!$E639 -> 0 | N39: ='Verdichtung LE'!$E739 -> 0 | O39: ='Verdichtung LE'!$E839 -> 0 | P39: ='Verdichtung LE'!$E939 -> 0 | Q39: ='Verdichtung LE'!E1339 -> 0 | R39: ='Verdichtung LE'!$E1239 -> 0 | S39: ='Verdichtung LE'!$E1039 -> 0 | T39: ='Verdichtung LE'!$E1139 -> 0
C40: 29 | D40: Med. Gerät Wartung / Reparatur | E40: =SUM(H40:T40) -> 0 | F40: 5 | H40: ='Verdichtung LE'!$E140 -> 0 | I40: ='Verdichtung LE'!$E240 -> 0 | J40: ='Verdichtung LE'!$E340 -> 0 | K40: ='Verdichtung LE'!$E440 -> 0 | L40: ='Verdichtung LE'!$E540 -> 0 | M40: ='Verdichtung LE'!$E640 -> 0 | N40: ='Verdichtung LE'!$E740 -> 0 | O40: ='Verdichtung LE'!$E840 -> 0 | P40: ='Verdichtung LE'!$E940 -> 0 | Q40: ='Verdichtung LE'!E1340 -> 0 | R40: ='Verdichtung LE'!$E1240 -> 0 | S40: ='Verdichtung LE'!$E1040 -> 0 | T40: ='Verdichtung LE'!$E1140 -> 0
C41: 30 | D41: Arzneimittel / med. Sauerstoff | E41: =SUM(H41:T41) -> 0 | F41: 5 | H41: ='Verdichtung LE'!$E141 -> 0 | I41: ='Verdichtung LE'!$E241 -> 0 | J41: ='Verdichtung LE'!$E341 -> 0 | K41: ='Verdichtung LE'!$E441 -> 0 | L41: ='Verdichtung LE'!$E541 -> 0 | M41: ='Verdichtung LE'!$E641 -> 0 | N41: ='Verdichtung LE'!$E741 -> 0 | O41: ='Verdichtung LE'!$E841 -> 0 | P41: ='Verdichtung LE'!$E941 -> 0 | Q41: ='Verdichtung LE'!E1341 -> 0 | R41: ='Verdichtung LE'!$E1241 -> 0 | S41: ='Verdichtung LE'!$E1041 -> 0 | T41: ='Verdichtung LE'!$E1141 -> 0
C42: 31 | D42: Med. Sachbedarf / Einwegmat. | E42: =SUM(H42:T42) -> 0 | F42: 5 | H42: ='Verdichtung LE'!$E142 -> 0 | I42: ='Verdichtung LE'!$E242 -> 0 | J42: ='Verdichtung LE'!$E342 -> 0 | K42: ='Verdichtung LE'!$E442 -> 0 | L42: ='Verdichtung LE'!$E542 -> 0 | M42: ='Verdichtung LE'!$E642 -> 0 | N42: ='Verdichtung LE'!$E742 -> 0 | O42: ='Verdichtung LE'!$E842 -> 0 | P42: ='Verdichtung LE'!$E942 -> 0 | Q42: ='Verdichtung LE'!E1342 -> 0 | R42: ='Verdichtung LE'!$E1242 -> 0 | S42: ='Verdichtung LE'!$E1042 -> 0 | T42: ='Verdichtung LE'!$E1142 -> 0
C43: 32 | D43: Gesamt Einsatzkosten | E43: =SUM(E39:E42) -> 0 | F43: 5 | G43: S | H43: ='Verdichtung LE'!$E143 -> 0 | I43: ='Verdichtung LE'!$E243 -> 0 | J43: ='Verdichtung LE'!$E343 -> 0 | K43: ='Verdichtung LE'!$E443 -> 0 | L43: ='Verdichtung LE'!$E543 -> 0 | M43: ='Verdichtung LE'!$E643 -> 0 | N43: ='Verdichtung LE'!$E743 -> 0 | O43: ='Verdichtung LE'!$E843 -> 0 | P43: ='Verdichtung LE'!$E943 -> 0 | Q43: ='Verdichtung LE'!E1343 -> 0 | R43: ='Verdichtung LE'!$E1243 -> 0 | S43: ='Verdichtung LE'!$E1043 -> 0 | T43: ='Verdichtung LE'!$E1143 -> 0
C44: 33 | D44: Büro- / Verwaltungsbedarf | E44: =SUM(H44:T44) -> 0 | F44: 5 | H44: ='Verdichtung LE'!$E144 -> 0 | I44: ='Verdichtung LE'!$E244 -> 0 | J44: ='Verdichtung LE'!$E344 -> 0 | K44: ='Verdichtung LE'!$E444 -> 0 | L44: ='Verdichtung LE'!$E544 -> 0 | M44: ='Verdichtung LE'!$E644 -> 0 | N44: ='Verdichtung LE'!$E744 -> 0 | O44: ='Verdichtung LE'!$E844 -> 0 | P44: ='Verdichtung LE'!$E944 -> 0 | Q44: ='Verdichtung LE'!E1344 -> 0 | R44: ='Verdichtung LE'!$E1244 -> 0 | S44: ='Verdichtung LE'!$E1044 -> 0 | T44: ='Verdichtung LE'!$E1144 -> 0
C45: 34 | D45: Telekommunikation | E45: 0 | F45: 5 | H45: ='Verdichtung LE'!$E145 -> 0 | I45: ='Verdichtung LE'!$E245 -> 0 | J45: ='Verdichtung LE'!$E345 -> 0 | K45: ='Verdichtung LE'!$E445 -> 0 | L45: ='Verdichtung LE'!$E545 -> 0 | M45: ='Verdichtung LE'!$E645 -> 0 | N45: ='Verdichtung LE'!$E745 -> 0 | O45: ='Verdichtung LE'!$E845 -> 0 | P45: ='Verdichtung LE'!$E945 -> 0 | Q45: ='Verdichtung LE'!E1345 -> 0 | R45: ='Verdichtung LE'!$E1245 -> 0 | S45: ='Verdichtung LE'!$E1045 -> 0 | T45: ='Verdichtung LE'!$E1145 -> 0
C46: 35 | D46: EDV-Kosten | E46: 0 | F46: 5 | H46: ='Verdichtung LE'!$E146 -> 0 | I46: ='Verdichtung LE'!$E246 -> 0 | J46: ='Verdichtung LE'!$E346 -> 0 | K46: ='Verdichtung LE'!$E446 -> 0 | L46: ='Verdichtung LE'!$E546 -> 0 | M46: ='Verdichtung LE'!$E646 -> 0 | N46: ='Verdichtung LE'!$E746 -> 0 | O46: ='Verdichtung LE'!$E846 -> 0 | P46: ='Verdichtung LE'!$E946 -> 0 | Q46: ='Verdichtung LE'!E1346 -> 0 | R46: ='Verdichtung LE'!$E1246 -> 0 | S46: ='Verdichtung LE'!$E1046 -> 0 | T46: ='Verdichtung LE'!$E1146 -> 0
C47: 36 | D47: Rechts- und Beratungskosten | E47: 0 | F47: 5 | H47: ='Verdichtung LE'!$E147 -> 0 | I47: ='Verdichtung LE'!$E247 -> 0 | J47: ='Verdichtung LE'!$E347 -> 0 | K47: ='Verdichtung LE'!$E447 -> 0 | L47: ='Verdichtung LE'!$E547 -> 0 | M47: ='Verdichtung LE'!$E647 -> 0 | N47: ='Verdichtung LE'!$E747 -> 0 | O47: ='Verdichtung LE'!$E847 -> 0 | P47: ='Verdichtung LE'!$E947 -> 0 | Q47: ='Verdichtung LE'!E1347 -> 0 | R47: ='Verdichtung LE'!$E1247 -> 0 | S47: ='Verdichtung LE'!$E1047 -> 0 | T47: ='Verdichtung LE'!$E1147 -> 0
C48: 37 | D48: Aufklärung | E48: 0 | F48: 5 | H48: ='Verdichtung LE'!$E148 -> 0 | I48: ='Verdichtung LE'!$E248 -> 0 | J48: ='Verdichtung LE'!$E348 -> 0 | K48: ='Verdichtung LE'!$E448 -> 0 | L48: ='Verdichtung LE'!$E548 -> 0 | M48: ='Verdichtung LE'!$E648 -> 0 | N48: ='Verdichtung LE'!$E748 -> 0 | O48: ='Verdichtung LE'!$E848 -> 0 | P48: ='Verdichtung LE'!$E948 -> 0 | Q48: ='Verdichtung LE'!E1348 -> 0 | R48: ='Verdichtung LE'!$E1248 -> 0 | S48: ='Verdichtung LE'!$E1048 -> 0 | T48: ='Verdichtung LE'!$E1148 -> 0
C49: 38 | D49: Inkasso | E49: 0 | F49: 5 | H49: ='Verdichtung LE'!$E149 -> 0 | I49: ='Verdichtung LE'!$E249 -> 0 | J49: ='Verdichtung LE'!$E349 -> 0 | K49: ='Verdichtung LE'!$E449 -> 0 | L49: ='Verdichtung LE'!$E549 -> 0 | M49: ='Verdichtung LE'!$E649 -> 0 | N49: ='Verdichtung LE'!$E749 -> 0 | O49: ='Verdichtung LE'!$E849 -> 0 | P49: ='Verdichtung LE'!$E949 -> 0 | Q49: ='Verdichtung LE'!E1349 -> 0 | R49: ='Verdichtung LE'!$E1249 -> 0 | S49: ='Verdichtung LE'!$E1049 -> 0 | T49: ='Verdichtung LE'!$E1149 -> 0
C50: 39 | D50: Sonstige Versicherungen | E50: 0 | F50: 5 | H50: ='Verdichtung LE'!$E150 -> 0 | I50: ='Verdichtung LE'!$E250 -> 0 | J50: ='Verdichtung LE'!$E350 -> 0 | K50: ='Verdichtung LE'!$E450 -> 0 | L50: ='Verdichtung LE'!$E550 -> 0 | M50: ='Verdichtung LE'!$E650 -> 0 | N50: ='Verdichtung LE'!$E750 -> 0 | O50: ='Verdichtung LE'!$E850 -> 0 | P50: ='Verdichtung LE'!$E950 -> 0 | Q50: ='Verdichtung LE'!E1350 -> 0 | R50: ='Verdichtung LE'!$E1250 -> 0 | S50: ='Verdichtung LE'!$E1050 -> 0 | T50: ='Verdichtung LE'!$E1150 -> 0
C51: 40 | D51: Sachkosten "fiktive Verwaltung" | E51: 0 | F51: 0 | H51: ='Verdichtung LE'!$E151 -> 0 | I51: ='Verdichtung LE'!$E251 -> 0 | J51: ='Verdichtung LE'!$E351 -> 0 | K51: ='Verdichtung LE'!$E451 -> 0 | L51: ='Verdichtung LE'!$E551 -> 0 | M51: ='Verdichtung LE'!$E651 -> 0 | N51: ='Verdichtung LE'!$E751 -> 0 | O51: ='Verdichtung LE'!$E851 -> 0 | P51: ='Verdichtung LE'!$E951 -> 0 | Q51: ='Verdichtung LE'!E1351 -> 0 | R51: ='Verdichtung LE'!$E1251 -> 0 | S51: ='Verdichtung LE'!$E1051 -> 0 | T51: ='Verdichtung LE'!$E1151 -> 0
C52: 41 | D52: Gesamt Allgemeinkosten | E52: =SUM(E44:E51) -> 0 | G52: S | H52: ='Verdichtung LE'!$E152 -> 0 | I52: ='Verdichtung LE'!$E252 -> 0 | J52: ='Verdichtung LE'!$E352 -> 0 | K52: ='Verdichtung LE'!$E452 -> 0 | L52: ='Verdichtung LE'!$E552 -> 0 | M52: ='Verdichtung LE'!$E652 -> 0 | N52: ='Verdichtung LE'!$E752 -> 0 | O52: ='Verdichtung LE'!$E852 -> 0 | P52: ='Verdichtung LE'!$E952 -> 0 | Q52: ='Verdichtung LE'!E1352 -> 0 | R52: ='Verdichtung LE'!$E1252 -> 0 | S52: ='Verdichtung LE'!$E1052 -> 0 | T52: ='Verdichtung LE'!$E1152 -> 0
C53: 42 | D53: Verzinsung Eigenkapital | E53: =SUM(H53:T53) -> 0 | F53: 2 | H53: ='Verdichtung LE'!$E153 -> 0 | I53: ='Verdichtung LE'!$E253 -> 0 | J53: ='Verdichtung LE'!$E353 -> 0 | K53: ='Verdichtung LE'!$E453 -> 0 | L53: ='Verdichtung LE'!$E553 -> 0 | M53: ='Verdichtung LE'!$E653 -> 0 | N53: ='Verdichtung LE'!$E753 -> 0 | O53: ='Verdichtung LE'!$E853 -> 0 | P53: ='Verdichtung LE'!$E953 -> 0 | Q53: ='Verdichtung LE'!E1353 -> 0 | R53: ='Verdichtung LE'!$E1253 -> 0 | S53: ='Verdichtung LE'!$E1053 -> 0 | T53: ='Verdichtung LE'!$E1153 -> 0
C54: 43 | D54: Zinsen für Fremdkapital | E54: =SUM(H54:T54) -> 0 | F54: 2 | H54: ='Verdichtung LE'!$E154 -> 0 | I54: ='Verdichtung LE'!$E254 -> 0 | J54: ='Verdichtung LE'!$E354 -> 0 | K54: ='Verdichtung LE'!$E454 -> 0 | L54: ='Verdichtung LE'!$E554 -> 0 | M54: ='Verdichtung LE'!$E654 -> 0 | N54: ='Verdichtung LE'!$E754 -> 0 | O54: ='Verdichtung LE'!$E854 -> 0 | P54: ='Verdichtung LE'!$E954 -> 0 | Q54: ='Verdichtung LE'!E1354 -> 0 | R54: ='Verdichtung LE'!$E1254 -> 0 | S54: ='Verdichtung LE'!$E1054 -> 0 | T54: ='Verdichtung LE'!$E1154 -> 0
C55: 44 | D55: Kontokorrentzinsen / Bankgebühren | E55: =SUM(H55:T55) -> 0 | F55: 2 | H55: ='Verdichtung LE'!$E155 -> 0 | I55: ='Verdichtung LE'!$E255 -> 0 | J55: ='Verdichtung LE'!$E355 -> 0 | K55: ='Verdichtung LE'!$E455 -> 0 | L55: ='Verdichtung LE'!$E555 -> 0 | M55: ='Verdichtung LE'!$E655 -> 0 | N55: ='Verdichtung LE'!$E755 -> 0 | O55: ='Verdichtung LE'!$E855 -> 0 | P55: ='Verdichtung LE'!$E955 -> 0 | Q55: ='Verdichtung LE'!E1355 -> 0 | R55: ='Verdichtung LE'!$E1255 -> 0 | S55: ='Verdichtung LE'!$E1055 -> 0 | T55: ='Verdichtung LE'!$E1155 -> 0
C56: 45 | D56: Gesamt Zinsen | E56: =SUM(E53:E55) -> 0 | G56: S | H56: ='Verdichtung LE'!$E156 -> 0 | I56: ='Verdichtung LE'!$E256 -> 0 | J56: ='Verdichtung LE'!$E356 -> 0 | K56: ='Verdichtung LE'!$E456 -> 0 | L56: ='Verdichtung LE'!$E556 -> 0 | M56: ='Verdichtung LE'!$E656 -> 0 | N56: ='Verdichtung LE'!$E756 -> 0 | O56: ='Verdichtung LE'!$E856 -> 0 | P56: ='Verdichtung LE'!$E956 -> 0 | Q56: ='Verdichtung LE'!E1356 -> 0 | R56: ='Verdichtung LE'!$E1256 -> 0 | S56: ='Verdichtung LE'!$E1056 -> 0 | T56: ='Verdichtung LE'!$E1156 -> 0
C57: 46 | D57: Summe Sachkosten | E57: =SUM(E22+E27+E31+E38+E43+E52+E56) -> 0 | G57: ZS | H57: ='Verdichtung LE'!$E157 -> 0 | I57: ='Verdichtung LE'!$E257 -> 0 | J57: ='Verdichtung LE'!$E357 -> 0 | K57: ='Verdichtung LE'!$E457 -> 0 | L57: ='Verdichtung LE'!$E557 -> 0 | M57: ='Verdichtung LE'!$E657 -> 0 | N57: ='Verdichtung LE'!$E757 -> 0 | O57: ='Verdichtung LE'!$E857 -> 0 | P57: ='Verdichtung LE'!$E957 -> 0 | Q57: ='Verdichtung LE'!E1357 -> 0 | R57: ='Verdichtung LE'!$E1257 -> 0 | S57: ='Verdichtung LE'!$E1057 -> 0 | T57: ='Verdichtung LE'!$E1157 -> 0
Q58: ='Verdichtung LE'!E1358 -> 0
C59: 47 | D59: AfA Außenanlagen | E59: =SUM(H59:T59) -> 0 | F59: 3 | H59: ='Verdichtung LE'!$E159 -> 0 | I59: ='Verdichtung LE'!$E259 -> 0 | J59: ='Verdichtung LE'!$E359 -> 0 | K59: ='Verdichtung LE'!$E459 -> 0 | L59: ='Verdichtung LE'!$E559 -> 0 | M59: ='Verdichtung LE'!$E659 -> 0 | N59: ='Verdichtung LE'!$E759 -> 0 | O59: ='Verdichtung LE'!$E859 -> 0 | P59: ='Verdichtung LE'!$E959 -> 0 | Q59: ='Verdichtung LE'!E1359 -> 0 | R59: ='Verdichtung LE'!$E1259 -> 0 | S59: ='Verdichtung LE'!$E1059 -> 0 | T59: ='Verdichtung LE'!$E1159 -> 0
C60: 48 | D60: AfA Gebäude | E60: 0 | F60: 3 | H60: ='Verdichtung LE'!$E160 -> 0 | I60: ='Verdichtung LE'!$E260 -> 0 | J60: ='Verdichtung LE'!$E360 -> 0 | K60: ='Verdichtung LE'!$E460 -> 0 | L60: ='Verdichtung LE'!$E560 -> 0 | M60: ='Verdichtung LE'!$E660 -> 0 | N60: ='Verdichtung LE'!$E760 -> 0 | O60: ='Verdichtung LE'!$E860 -> 0 | P60: ='Verdichtung LE'!$E960 -> 0 | Q60: ='Verdichtung LE'!E1360 -> 0 | R60: ='Verdichtung LE'!$E1260 -> 0 | S60: ='Verdichtung LE'!$E1060 -> 0 | T60: ='Verdichtung LE'!$E1160 -> 0
C61: 49 | D61: AfA techn. Bauanlagen, Heizung / Klima | E61: 0 | F61: 3 | H61: ='Verdichtung LE'!$E161 -> 0 | I61: ='Verdichtung LE'!$E261 -> 0 | J61: ='Verdichtung LE'!$E361 -> 0 | K61: ='Verdichtung LE'!$E461 -> 0 | L61: ='Verdichtung LE'!$E561 -> 0 | M61: ='Verdichtung LE'!$E661 -> 0 | N61: ='Verdichtung LE'!$E761 -> 0 | O61: ='Verdichtung LE'!$E861 -> 0 | P61: ='Verdichtung LE'!$E961 -> 0 | Q61: ='Verdichtung LE'!E1361 -> 0 | R61: ='Verdichtung LE'!$E1261 -> 0 | S61: ='Verdichtung LE'!$E1061 -> 0 | T61: ='Verdichtung LE'!$E1161 -> 0
C62: 50 | D62: AfA Inventar, Maschinen und Geräte | E62: 0 | F62: 3 | H62: ='Verdichtung LE'!$E162 -> 0 | I62: ='Verdichtung LE'!$E262 -> 0 | J62: ='Verdichtung LE'!$E362 -> 0 | K62: ='Verdichtung LE'!$E462 -> 0 | L62: ='Verdichtung LE'!$E562 -> 0 | M62: ='Verdichtung LE'!$E662 -> 0 | N62: ='Verdichtung LE'!$E762 -> 0 | O62: ='Verdichtung LE'!$E862 -> 0 | P62: ='Verdichtung LE'!$E962 -> 0 | Q62: ='Verdichtung LE'!E1362 -> 0 | R62: ='Verdichtung LE'!$E1262 -> 0 | S62: ='Verdichtung LE'!$E1062 -> 0 | T62: ='Verdichtung LE'!$E1162 -> 0
C63: 51 | D63: AfA Fahrzeuge | E63: 0 | F63: 3 | H63: ='Verdichtung LE'!$E163 -> 0 | I63: ='Verdichtung LE'!$E263 -> 0 | J63: ='Verdichtung LE'!$E363 -> 0 | K63: ='Verdichtung LE'!$E463 -> 0 | L63: ='Verdichtung LE'!$E563 -> 0 | M63: ='Verdichtung LE'!$E663 -> 0 | N63: ='Verdichtung LE'!$E763 -> 0 | O63: ='Verdichtung LE'!$E863 -> 0 | P63: ='Verdichtung LE'!$E963 -> 0 | Q63: ='Verdichtung LE'!E1363 -> 0 | R63: ='Verdichtung LE'!$E1263 -> 0 | S63: ='Verdichtung LE'!$E1063 -> 0 | T63: ='Verdichtung LE'!$E1163 -> 0
C64: 52 | D64: AfA Funk / Kommunikation | E64: 0 | F64: 3 | H64: ='Verdichtung LE'!$E164 -> 0 | I64: ='Verdichtung LE'!$E264 -> 0 | J64: ='Verdichtung LE'!$E364 -> 0 | K64: ='Verdichtung LE'!$E464 -> 0 | L64: ='Verdichtung LE'!$E564 -> 0 | M64: ='Verdichtung LE'!$E664 -> 0 | N64: ='Verdichtung LE'!$E764 -> 0 | O64: ='Verdichtung LE'!$E864 -> 0 | P64: ='Verdichtung LE'!$E964 -> 0 | Q64: ='Verdichtung LE'!E1364 -> 0 | R64: ='Verdichtung LE'!$E1264 -> 0 | S64: ='Verdichtung LE'!$E1064 -> 0 | T64: ='Verdichtung LE'!$E1164 -> 0
C65: 53 | D65: AfA medizinisches Gerät | E65: 0 | F65: 3 | H65: ='Verdichtung LE'!$E165 -> 0 | I65: ='Verdichtung LE'!$E265 -> 0 | J65: ='Verdichtung LE'!$E365 -> 0 | K65: ='Verdichtung LE'!$E465 -> 0 | L65: ='Verdichtung LE'!$E565 -> 0 | M65: ='Verdichtung LE'!$E665 -> 0 | N65: ='Verdichtung LE'!$E765 -> 0 | O65: ='Verdichtung LE'!$E865 -> 0 | P65: ='Verdichtung LE'!$E965 -> 0 | Q65: ='Verdichtung LE'!E1365 -> 0 | R65: ='Verdichtung LE'!$E1265 -> 0 | S65: ='Verdichtung LE'!$E1065 -> 0 | T65: ='Verdichtung LE'!$E1165 -> 0
C66: 54 | D66: AfA für GWG | E66: 0 | F66: 3 | H66: ='Verdichtung LE'!$E166 -> 0 | I66: ='Verdichtung LE'!$E266 -> 0 | J66: ='Verdichtung LE'!$E366 -> 0 | K66: ='Verdichtung LE'!$E466 -> 0 | L66: ='Verdichtung LE'!$E566 -> 0 | M66: ='Verdichtung LE'!$E666 -> 0 | N66: ='Verdichtung LE'!$E766 -> 0 | O66: ='Verdichtung LE'!$E866 -> 0 | P66: ='Verdichtung LE'!$E966 -> 0 | Q66: ='Verdichtung LE'!E1366 -> 0 | R66: ='Verdichtung LE'!$E1266 -> 0 | S66: ='Verdichtung LE'!$E1066 -> 0 | T66: ='Verdichtung LE'!$E1166 -> 0
C67: 55 | D67: Gesamt Abschreibungen (AfA) | E67: =SUM(E59:E66) -> 0 | G67: S | H67: ='Verdichtung LE'!$E167 -> 0 | I67: ='Verdichtung LE'!$E267 -> 0 | J67: ='Verdichtung LE'!$E367 -> 0 | K67: ='Verdichtung LE'!$E467 -> 0 | L67: ='Verdichtung LE'!$E567 -> 0 | M67: ='Verdichtung LE'!$E667 -> 0 | N67: ='Verdichtung LE'!$E767 -> 0 | O67: ='Verdichtung LE'!$E867 -> 0 | P67: ='Verdichtung LE'!$E967 -> 0 | Q67: ='Verdichtung LE'!E1367 -> 0 | R67: ='Verdichtung LE'!$E1267 -> 0 | S67: ='Verdichtung LE'!$E1067 -> 0 | T67: ='Verdichtung LE'!$E1167 -> 0
C68: 56 | D68: Bruttogesamtkosten | E68: =E18+E57+E67 -> 0 | G68: ZS | H68: ='Verdichtung LE'!$E168 -> 0 | I68: ='Verdichtung LE'!$E268 -> 0 | J68: ='Verdichtung LE'!$E368 -> 0 | K68: ='Verdichtung LE'!$E468 -> 0 | L68: ='Verdichtung LE'!$E568 -> 0 | M68: ='Verdichtung LE'!$E668 -> 0 | N68: ='Verdichtung LE'!$E768 -> 0 | O68: ='Verdichtung LE'!$E868 -> 0 | P68: ='Verdichtung LE'!$E968 -> 0 | Q68: ='Verdichtung LE'!E1368 -> 0 | R68: ='Verdichtung LE'!$E1268 -> 0 | S68: ='Verdichtung LE'!$E1068 -> 0 | T68: ='Verdichtung LE'!$E1168 -> 0
Q69: ='Verdichtung LE'!E1369 -> 0
C70: 57 | D70: Zuschüsse / Zuweisungen | E70: =SUM(H70:T70) -> 0 | F70: 2 | H70: ='Verdichtung LE'!$E170 -> 0 | I70: ='Verdichtung LE'!$E270 -> 0 | J70: ='Verdichtung LE'!$E370 -> 0 | K70: ='Verdichtung LE'!$E470 -> 0 | L70: ='Verdichtung LE'!$E570 -> 0 | M70: ='Verdichtung LE'!$E670 -> 0 | N70: ='Verdichtung LE'!$E770 -> 0 | O70: ='Verdichtung LE'!$E870 -> 0 | P70: ='Verdichtung LE'!$E970 -> 0 | Q70: ='Verdichtung LE'!E1370 -> 0 | R70: ='Verdichtung LE'!$E1270 -> 0 | S70: ='Verdichtung LE'!$E1070 -> 0 | T70: ='Verdichtung LE'!$E1170 -> 0
C71: 58 | D71: Finanzerträge | E71: =SUM(H71:T71) -> 0 | F71: 2 | H71: ='Verdichtung LE'!$E171 -> 0 | I71: ='Verdichtung LE'!$E271 -> 0 | J71: ='Verdichtung LE'!$E371 -> 0 | K71: ='Verdichtung LE'!$E471 -> 0 | L71: ='Verdichtung LE'!$E571 -> 0 | M71: ='Verdichtung LE'!$E671 -> 0 | N71: ='Verdichtung LE'!$E771 -> 0 | O71: ='Verdichtung LE'!$E871 -> 0 | P71: ='Verdichtung LE'!$E971 -> 0 | Q71: ='Verdichtung LE'!E1371 -> 0 | R71: ='Verdichtung LE'!$E1271 -> 0 | S71: ='Verdichtung LE'!$E1071 -> 0 | T71: ='Verdichtung LE'!$E1171 -> 0
C72: 59 | D72: Versicherungsleistungen | E72: =SUM(H72:T72) -> 0 | F72: 4 | H72: ='Verdichtung LE'!$E172 -> 0 | I72: ='Verdichtung LE'!$E272 -> 0 | J72: ='Verdichtung LE'!$E372 -> 0 | K72: ='Verdichtung LE'!$E472 -> 0 | L72: ='Verdichtung LE'!$E572 -> 0 | M72: ='Verdichtung LE'!$E672 -> 0 | N72: ='Verdichtung LE'!$E772 -> 0 | O72: ='Verdichtung LE'!$E872 -> 0 | P72: ='Verdichtung LE'!$E972 -> 0 | Q72: ='Verdichtung LE'!E1372 -> 0 | R72: ='Verdichtung LE'!$E1272 -> 0 | S72: ='Verdichtung LE'!$E1072 -> 0 | T72: ='Verdichtung LE'!$E1172 -> 0
C73: 60 | D73: Sonstige Einnahmen | E73: =SUM(H73:T73) -> 0 | F73: 2 | H73: ='Verdichtung LE'!$E173 -> 0 | I73: ='Verdichtung LE'!$E273 -> 0 | J73: ='Verdichtung LE'!$E373 -> 0 | K73: ='Verdichtung LE'!$E473 -> 0 | L73: ='Verdichtung LE'!$E573 -> 0 | M73: ='Verdichtung LE'!$E673 -> 0 | N73: ='Verdichtung LE'!$E773 -> 0 | O73: ='Verdichtung LE'!$E873 -> 0 | P73: ='Verdichtung LE'!$E973 -> 0 | Q73: ='Verdichtung LE'!E1373 -> 0 | R73: ='Verdichtung LE'!$E1273 -> 0 | S73: ='Verdichtung LE'!$E1073 -> 0 | T73: ='Verdichtung LE'!$E1173 -> 0
C74: 61 | D74: Verkaufserlöse aus Anlagenabgang | E74: =SUM(H74:T74) -> 0 | F74: 3 | H74: ='Verdichtung LE'!$E174 -> 0 | I74: ='Verdichtung LE'!$E274 -> 0 | J74: ='Verdichtung LE'!$E374 -> 0 | K74: ='Verdichtung LE'!$E474 -> 0 | L74: ='Verdichtung LE'!$E574 -> 0 | M74: ='Verdichtung LE'!$E674 -> 0 | N74: ='Verdichtung LE'!$E774 -> 0 | O74: ='Verdichtung LE'!$E874 -> 0 | P74: ='Verdichtung LE'!$E974 -> 0 | Q74: ='Verdichtung LE'!E1374 -> 0 | R74: ='Verdichtung LE'!$E1274 -> 0 | S74: ='Verdichtung LE'!$E1074 -> 0 | T74: ='Verdichtung LE'!$E1174 -> 0
C75: 62 | D75: Gesamt Abzüge | E75: =SUM(E70:E74) -> 0 | G75: S | H75: ='Verdichtung LE'!$E175 -> 0 | I75: ='Verdichtung LE'!$E275 -> 0 | J75: ='Verdichtung LE'!$E375 -> 0 | K75: ='Verdichtung LE'!$E475 -> 0 | L75: ='Verdichtung LE'!$E575 -> 0 | M75: ='Verdichtung LE'!$E675 -> 0 | N75: ='Verdichtung LE'!$E775 -> 0 | O75: ='Verdichtung LE'!$E875 -> 0 | P75: ='Verdichtung LE'!$E975 -> 0 | Q75: ='Verdichtung LE'!E1375 -> 0 | R75: ='Verdichtung LE'!$E1275 -> 0 | S75: ='Verdichtung LE'!$E1075 -> 0 | T75: ='Verdichtung LE'!$E1175 -> 0
C76: 63 | D76: Gesamtkosten RD gem. § 15 NRettDG | E76: =E68-E75 -> 0 | H76: ='Verdichtung LE'!$E176 -> 0 | I76: ='Verdichtung LE'!$E276 -> 0 | J76: ='Verdichtung LE'!$E376 -> 0 | K76: ='Verdichtung LE'!$E476 -> 0 | L76: ='Verdichtung LE'!$E576 -> 0 | M76: ='Verdichtung LE'!$E676 -> 0 | N76: ='Verdichtung LE'!$E776 -> 0 | O76: ='Verdichtung LE'!$E876 -> 0 | P76: ='Verdichtung LE'!$E976 -> 0 | Q76: ='Verdichtung LE'!E1376 -> 0 | R76: ='Verdichtung LE'!$E1276 -> 0 | S76: ='Verdichtung LE'!$E1076 -> 0 | T76: ='Verdichtung LE'!$E1176 -> 0
D77: * Gemäß Kostenrichtlinien

Sheet LE-Drucken
C2: =ParameterDatei!D182 -> • Hauptmenu •
C4: Betriebsabrechnungsbogen für den Rettungsdienst in Niedersachsen*)
C5: ="Rettungsdienstbereich "&INDEX(ParameterDatei!C37:C86,ParameterDatei!B9)&" "&INDEX(ParameterDatei!D37:D86,ParameterDatei!B9)&" - für den Berichtszeitraum "&INDEX(ParameterDatei!F9:F26,ParameterDatei!B8) -> 
C6: ="Leistungserbringer "&INDEX(ParameterDatei!C93:C113,ParameterDatei!B114) -> Leistungserbringer LE 01
C7: Zeile | D7: Kostenarten | E7: Summe | F7: US | G7: KZ | H7: Hilfs-Kostenstellen | L7: Sonst-Kst | Q7: A-Kst
G8: =IF(INDEX(ParameterDatei!$E$119:$E$148,ParameterDatei!$B$150)>0,"A","") ->  | H8: RTW | I8: KTW | J8: NEF | K8: MZF | L8: ='Basis-Daten'!D12 -> Sonstige 1 | M8: ='Basis-Daten'!D14 -> Sonstige 2 | N8: ='Basis-Daten'!D16 -> Sonstige 3 | O8: ='Basis-Daten'!D18 -> Sonstige 4 | P8: ='Basis-Daten'!D20 -> Sonstige 5 | Q8: Ausbildug NotfallSan | R8: Verwaltung | S8: LE-ÖEL | T8: LE-GSE
C9: 1 | D9: 2 | E9: 3 | F9: 4 | G9: 5 | H9: 14 | I9: 15 | J9: 16 | K9: 17 | L9: 9 | M9: 10 | N9: 11 | O9: 12 | P9: 13 | Q9: 23 | R9: 18 | S9: 20 | T9: 21
C11: 1 | D11: Personalkosten hauptamtlich | E11: =SUM(H11:T11) -> 0 | F11: 1 | H11: 0 | I11: 0 | J11: 0 | K11: 0 | L11: 0 | M11: 0 | N11: 0 | O11: 0 | P11: 0 | Q11: 0 | R11: 0 | S11: 0 | T11: 0
C12: 2 | D12: Personalkosten nebenamtlich | E12: 0 | F12: 1 | H12: 0 | I12: 0 | J12: 0 | K12: 0 | L12: 0 | M12: 0 | N12: 0 | O12: 0 | P12: 0 | Q12: 0 | R12: 0 | S12: 0 | T12: 0
C13: 3 | D13: Personalkosten ehrenamtlich | E13: 0 | F13: 1 | H13: 0 | I13: 0 | J13: 0 | K13: 0 | L13: 0 | M13: 0 | N13: 0 | O13: 0 | P13: 0 | Q13: 0 | R13: 0 | S13: 0 | T13: 0
C14: 4 | D14: ZDL/FSJ-Aufwand | E14: 0 | F14: 1 | H14: 0 | I14: 0 | J14: 0 | K14: 0 | L14: 0 | M14: 0 | N14: 0 | O14: 0 | P14: 0 | Q14: 0 | R14: 0 | S14: 0 | T14: 0
C15: 5 | D15: Personalkosten Notarzt | E15: 0 | F15: 0 | H15: 0 | I15: 0 | J15: 0 | K15: 0 | L15: 0 | M15: 0 | N15: 0 | O15: 0 | P15: 0 | Q15: 0 | R15: 0 | S15: 0 | T15: 0
C16: 6 | D16: Personalkosten "fiktive Verwaltung" | E16: 0 | F16: 0 | H16: 0 | I16: 0 | J16: 0 | K16: 0 | L16: 0 | M16: 0 | N16: 0 | O16: 0 | P16: 0 | Q16: 0 | R16: 0 | S16: 0 | T16: 0
C17: 7 | D17: Personalkosten Reinigungspersonal | E17: 0 | F17: 2 | H17: 0 | I17: 0 | J17: 0 | K17: 0 | L17: 0 | M17: 0 | N17: 0 | O17: 0 | P17: 0 | Q17: 0 | R17: 0 | S17: 0 | T17: 0
C18: 8 | D18: Summe Personalkosten | E18: =SUM(E11:E17) -> 0 | G18: ZS | H18: 0 | I18: 0 | J18: 0 | K18: 0 | L18: 0 | M18: 0 | N18: 0 | O18: 0 | P18: 0 | Q18: 0 | R18: 0 | S18: 0 | T18: 0
Q19: 0
C20: 9 | D20: Aus- und Fortbildungskosten | E20: =SUM(H20:T20) -> 0 | F20: 1 | H20: 0 | I20: 0 | J20: 0 | K20: 0 | L20: 0 | M20: 0 | N20: 0 | O20: 0 | P20: 0 | Q20: 0 | R20: 0 | S20: 0 | T20: 0
C21: 10 | D21: sonstige Sach-/Nebenkosten Personal | E21: =SUM(H21:T21) -> 0 | F21: 1 | H21: 0 | I21: 0 | J21: 0 | K21: 0 | L21: 0 | M21: 0 | N21: 0 | O21: 0 | P21: 0 | Q21: 0 | R21: 0 | S21: 0 | T21: 0
C22: 11 | D22: Gesamt Personalnebenkosten | E22: =SUM(E20:E21) -> 0 | G22: S | H22: 0 | I22: 0 | J22: 0 | K22: 0 | L22: 0 | M22: 0 | N22: 0 | O22: 0 | P22: 0 | Q22: 0 | R22: 0 | S22: 0 | T22: 0
C23: 12 | D23: Mieten, Pachten | E23: =SUM(H23:T23) -> 0 | F23: 3 | H23: 0 | I23: 0 | J23: 0 | K23: 0 | L23: 0 | M23: 0 | N23: 0 | O23: 0 | P23: 0 | Q23: 0 | R23: 0 | S23: 0 | T23: 0
C24: 13 | D24: Nebenkosten / Energie | E24: =SUM(H24:T24) -> 0 | F24: 2 | H24: 0 | I24: 0 | J24: 0 | K24: 0 | L24: 0 | M24: 0 | N24: 0 | O24: 0 | P24: 0 | Q24: 0 | R24: 0 | S24: 0 | T24: 0
C25: 14 | D25: Reinigung / Fremdreinigung | E25: =SUM(H25:T25) -> 0 | F25: 2 | H25: 0 | I25: 0 | J25: 0 | K25: 0 | L25: 0 | M25: 0 | N25: 0 | O25: 0 | P25: 0 | Q25: 0 | R25: 0 | S25: 0 | T25: 0
C26: 15 | D26: Gebäudeversicherung / Steuer | E26: =SUM(H26:T26) -> 0 | F26: 3 | H26: 0 | I26: 0 | J26: 0 | K26: 0 | L26: 0 | M26: 0 | N26: 0 | O26: 0 | P26: 0 | Q26: 0 | R26: 0 | S26: 0 | T26: 0
C27: 16 | D27: Gesamt Sachkosten Betriebsräume | E27: =SUM(E23:E26) -> 0 | G27: S | H27: 0 | I27: 0 | J27: 0 | K27: 0 | L27: 0 | M27: 0 | N27: 0 | O27: 0 | P27: 0 | Q27: 0 | R27: 0 | S27: 0 | T27: 0
C28: 17 | D28: Grundstücksanlagen | E28: =SUM(H28:T28) -> 0 | F28: 3 | H28: 0 | I28: 0 | J28: 0 | K28: 0 | L28: 0 | M28: 0 | N28: 0 | O28: 0 | P28: 0 | Q28: 0 | R28: 0 | S28: 0 | T28: 0
C29: 18 | D29: Betriebsräume | E29: =SUM(H29:T29) -> 0 | F29: 3 | H29: 0 | I29: 0 | J29: 0 | K29: 0 | L29: 0 | M29: 0 | N29: 0 | O29: 0 | P29: 0 | Q29: 0 | R29: 0 | S29: 0 | T29: 0
C30: 19 | D30: Techn. Betriebsanlagen | E30: =SUM(H30:T30) -> 0 | F30: 3 | H30: 0 | I30: 0 | J30: 0 | K30: 0 | L30: 0 | M30: 0 | N30: 0 | O30: 0 | P30: 0 | Q30: 0 | R30: 0 | S30: 0 | T30: 0
C31: 20 | D31: Gesamt Betriebsanlagen | E31: =SUM(E28:E30) -> 0 | G31: S | H31: 0 | I31: 0 | J31: 0 | K31: 0 | L31: 0 | M31: 0 | N31: 0 | O31: 0 | P31: 0 | Q31: 0 | R31: 0 | S31: 0 | T31: 0
C32: 21 | D32: Betriebsstoffe | E32: =SUM(H32:T32) -> 0 | F32: 4 | H32: 0 | I32: 0 | J32: 0 | K32: 0 | L32: 0 | M32: 0 | N32: 0 | O32: 0 | P32: 0 | Q32: 0 | R32: 0 | S32: 0 | T32: 0
C33: 22 | D33: Reparatur / Wartung KFZ | E33: 0 | F33: 4 | H33: 0 | I33: 0 | J33: 0 | K33: 0 | L33: 0 | M33: 0 | N33: 0 | O33: 0 | P33: 0 | Q33: 0 | R33: 0 | S33: 0 | T33: 0
C34: 23 | D34: Reparatur Unfallschaden | E34: 0 | F34: 4 | H34: 0 | I34: 0 | J34: 0 | K34: 0 | L34: 0 | M34: 0 | N34: 0 | O34: 0 | P34: 0 | Q34: 0 | R34: 0 | S34: 0 | T34: 0
C35: 24 | D35: Versicherung / Steuer KFZ | E35: 0 | F35: 3 | H35: 0 | I35: 0 | J35: 0 | K35: 0 | L35: 0 | M35: 0 | N35: 0 | O35: 0 | P35: 0 | Q35: 0 | R35: 0 | S35: 0 | T35: 0
C36: 25 | D36: Reparaturen KFZ-Funk / Telekomm. | E36: 0 | F36: 5 | H36: 0 | I36: 0 | J36: 0 | K36: 0 | L36: 0 | M36: 0 | N36: 0 | O36: 0 | P36: 0 | Q36: 0 | R36: 0 | S36: 0 | T36: 0
C37: 26 | D37: Miete / Leasing | E37: 0 | F37: 3 | H37: 0 | I37: 0 | J37: 0 | K37: 0 | L37: 0 | M37: 0 | N37: 0 | O37: 0 | P37: 0 | Q37: 0 | R37: 0 | S37: 0 | T37: 0
C38: 27 | D38: Gesamt Fahrzeuge | E38: =SUM(E32:E37) -> 0 | G38: S | H38: 0 | I38: 0 | J38: 0 | K38: 0 | L38: 0 | M38: 0 | N38: 0 | O38: 0 | P38: 0 | Q38: 0 | R38: 0 | S38: 0 | T38: 0
C39: 28 | D39: Schutzbekleidung Beschaffg. / Reinigung | E39: =SUM(H39:T39) -> 0 | F39: 5 | H39: 0 | I39: 0 | J39: 0 | K39: 0 | L39: 0 | M39: 0 | N39: 0 | O39: 0 | P39: 0 | Q39: 0 | R39: 0 | S39: 0 | T39: 0
C40: 29 | D40: Wartung / Reparatur med. Gerät | E40: =SUM(H40:T40) -> 0 | F40: 5 | H40: 0 | I40: 0 | J40: 0 | K40: 0 | L40: 0 | M40: 0 | N40: 0 | O40: 0 | P40: 0 | Q40: 0 | R40: 0 | S40: 0 | T40: 0
C41: 30 | D41: Medikamente / med. Sauerstoff | E41: =SUM(H41:T41) -> 0 | F41: 5 | H41: 0 | I41: 0 | J41: 0 | K41: 0 | L41: 0 | M41: 0 | N41: 0 | O41: 0 | P41: 0 | Q41: 0 | R41: 0 | S41: 0 | T41: 0
C42: 31 | D42: Med. Sachbedarf / Einwegmat. | E42: =SUM(H42:T42) -> 0 | F42: 5 | H42: 0 | I42: 0 | J42: 0 | K42: 0 | L42: 0 | M42: 0 | N42: 0 | O42: 0 | P42: 0 | Q42: 0 | R42: 0 | S42: 0 | T42: 0
C43: 32 | D43: Gesamt Einsatzkosten | E43: =SUM(E39:E42) -> 0 | F43: 5 | G43: S | H43: 0 | I43: 0 | J43: 0 | K43: 0 | L43: 0 | M43: 0 | N43: 0 | O43: 0 | P43: 0 | Q43: 0 | R43: 0 | S43: 0 | T43: 0
C44: 33 | D44: Büro- / Verwaltungsbedarf | E44: =SUM(H44:T44) -> 0 | F44: 5 | H44: 0 | I44: 0 | J44: 0 | K44: 0 | L44: 0 | M44: 0 | N44: 0 | O44: 0 | P44: 0 | Q44: 0 | R44: 0 | S44: 0 | T44: 0
C45: 34 | D45: Telekommunikation | E45: 0 | F45: 5 | H45: 0 | I45: 0 | J45: 0 | K45: 0 | L45: 0 | M45: 0 | N45: 0 | O45: 0 | P45: 0 | Q45: 0 | R45: 0 | S45: 0 | T45: 0
C46: 35 | D46: EDV-Kosten | E46: 0 | F46: 5 | H46: 0 | I46: 0 | J46: 0 | K46: 0 | L46: 0 | M46: 0 | N46: 0 | O46: 0 | P46: 0 | Q46: 0 | R46: 0 | S46: 0 | T46: 0
C47: 36 | D47: Rechts- und Beratungskosten | E47: 0 | F47: 5 | H47: 0 | I47: 0 | J47: 0 | K47: 0 | L47: 0 | M47: 0 | N47: 0 | O47: 0 | P47: 0 | Q47: 0 | R47: 0 | S47: 0 | T47: 0
C48: 37 | D48: Aufklärung | E48: 0 | F48: 5 | H48: 0 | I48: 0 | J48: 0 | K48: 0 | L48: 0 | M48: 0 | N48: 0 | O48: 0 | P48: 0 | Q48: 0 | R48: 0 | S48: 0 | T48: 0
C49: 38 | D49: Inkasso | E49: 0 | F49: 5 | H49: 0 | I49: 0 | J49: 0 | K49: 0 | L49: 0 | M49: 0 | N49: 0 | O49: 0 | P49: 0 | Q49: 0 | R49: 0 | S49: 0 | T49: 0
C50: 39 | D50: Versicherungen (ohne KFZ / Gebäude) | E50: 0 | F50: 5 | H50: 0 | I50: 0 | J50: 0 | K50: 0 | L50: 0 | M50: 0 | N50: 0 | O50: 0 | P50: 0 | Q50: 0 | R50: 0 | S50: 0 | T50: 0
C51: 40 | D51: Sachkosten "fiktive Verwaltung" | E51: 0 | F51: 0 | H51: 0 | I51: 0 | J51: 0 | K51: 0 | L51: 0 | M51: 0 | N51: 0 | O51: 0 | P51: 0 | Q51: 0 | R51: 0 | S51: 0 | T51: 0
C52: 41 | D52: Gesamt Allgemeinkosten | E52: =SUM(E44:E51) -> 0 | G52: S | H52: 0 | I52: 0 | J52: 0 | K52: 0 | L52: 0 | M52: 0 | N52: 0 | O52: 0 | P52: 0 | Q52: 0 | R52: 0 | S52: 0 | T52: 0
C53: 42 | D53: Verzinsung Eigenkapital | E53: =SUM(H53:T53) -> 0 | F53: 2 | H53: 0 | I53: 0 | J53: 0 | K53: 0 | L53: 0 | M53: 0 | N53: 0 | O53: 0 | P53: 0 | Q53: 0 | R53: 0 | S53: 0 | T53: 0
C54: 43 | D54: Zinsen für Fremdkapital | E54: =SUM(H54:T54) -> 0 | F54: 2 | H54: 0 | I54: 0 | J54: 0 | K54: 0 | L54: 0 | M54: 0 | N54: 0 | O54: 0 | P54: 0 | Q54: 0 | R54: 0 | S54: 0 | T54: 0
C55: 44 | D55: Kontokorrentzinsen | E55: =SUM(H55:T55) -> 0 | F55: 2 | H55: 0 | I55: 0 | J55: 0 | K55: 0 | L55: 0 | M55: 0 | N55: 0 | O55: 0 | P55: 0 | Q55: 0 | R55: 0 | S55: 0 | T55: 0
C56: 45 | D56: Gesamt Zinsen | E56: =SUM(E53:E55) -> 0 | G56: S | H56: 0 | I56: 0 | J56: 0 | K56: 0 | L56: 0 | M56: 0 | N56: 0 | O56: 0 | P56: 0 | Q56: 0 | R56: 0 | S56: 0 | T56: 0
C57: 46 | D57: Summe Sachkosten | E57: =SUM(E22+E27+E31+E38+E43+E52+E56) -> 0 | G57: ZS | H57: 0 | I57: 0 | J57: 0 | K57: 0 | L57: 0 | M57: 0 | N57: 0 | O57: 0 | P57: 0 | Q57: 0 | R57: 0 | S57: 0 | T57: 0
Q58: 0
C59: 47 | D59: AfA Außenanlagen | E59: =SUM(H59:T59) -> 0 | F59: 3 | H59: 0 | I59: 0 | J59: 0 | K59: 0 | L59: 0 | M59: 0 | N59: 0 | O59: 0 | P59: 0 | Q59: 0 | R59: 0 | S59: 0 | T59: 0
C60: 48 | D60: AfA Gebäude | E60: 0 | F60: 3 | H60: 0 | I60: 0 | J60: 0 | K60: 0 | L60: 0 | M60: 0 | N60: 0 | O60: 0 | P60: 0 | Q60: 0 | R60: 0 | S60: 0 | T60: 0
C61: 49 | D61: AfA techn. Bauanlagen, Heizung / Klima | E61: 0 | F61: 3 | H61: 0 | I61: 0 | J61: 0 | K61: 0 | L61: 0 | M61: 0 | N61: 0 | O61: 0 | P61: 0 | Q61: 0 | R61: 0 | S61: 0 | T61: 0
C62: 50 | D62: AfA Inventar, Maschinen und Geräte | E62: 0 | F62: 3 | H62: 0 | I62: 0 | J62: 0 | K62: 0 | L62: 0 | M62: 0 | N62: 0 | O62: 0 | P62: 0 | Q62: 0 | R62: 0 | S62: 0 | T62: 0
C63: 51 | D63: AfA Fahrzeuge | E63: 0 | F63: 3 | H63: 0 | I63: 0 | J63: 0 | K63: 0 | L63: 0 | M63: 0 | N63: 0 | O63: 0 | P63: 0 | Q63: 0 | R63: 0 | S63: 0 | T63: 0
C64: 52 | D64: AfA Funk / Kommunikation | E64: 0 | F64: 3 | H64: 0 | I64: 0 | J64: 0 | K64: 0 | L64: 0 | M64: 0 | N64: 0 | O64: 0 | P64: 0 | Q64: 0 | R64: 0 | S64: 0 | T64: 0
C65: 53 | D65: AfA medizinisches Gerät | E65: 0 | F65: 3 | H65: 0 | I65: 0 | J65: 0 | K65: 0 | L65: 0 | M65: 0 | N65: 0 | O65: 0 | P65: 0 | Q65: 0 | R65: 0 | S65: 0 | T65: 0
C66: 54 | D66: AfA für GWG | E66: 0 | F66: 3 | H66: 0 | I66: 0 | J66: 0 | K66: 0 | L66: 0 | M66: 0 | N66: 0 | O66: 0 | P66: 0 | Q66: 0 | R66: 0 | S66: 0 | T66: 0
C67: 55 | D67: Gesamt Abschreibungen (AfA) | E67: =SUM(E59:E66) -> 0 | G67: S | H67: 0 | I67: 0 | J67: 0 | K67: 0 | L67: 0 | M67: 0 | N67: 0 | O67: 0 | P67: 0 | Q67: 0 | R67: 0 | S67: 0 | T67: 0
C68: 56 | D68: Bruttogesamtkosten | E68: =E18+E57+E67 -> 0 | G68: ZS | H68: 0 | I68: 0 | J68: 0 | K68: 0 | L68: 0 | M68: 0 | N68: 0 | O68: 0 | P68: 0 | Q68: 0 | R68: 0 | S68: 0 | T68: 0
Q69: 0
C70: 57 | D70: Zuschüsse / Zuweisungen | E70: =SUM(H70:T70) -> 0 | F70: 2 | H70: 0 | I70: 0 | J70: 0 | K70: 0 | L70: 0 | M70: 0 | N70: 0 | O70: 0 | P70: 0 | Q70: 0 | R70: 0 | S70: 0 | T70: 0
C71: 58 | D71: Finanzerträge | E71: =SUM(H71:T71) -> 0 | F71: 2 | H71: 0 | I71: 0 | J71: 0 | K71: 0 | L71: 0 | M71: 0 | N71: 0 | O71: 0 | P71: 0 | Q71: 0 | R71: 0 | S71: 0 | T71: 0
C72: 59 | D72: Versicherungsleistungen | E72: =SUM(H72:T72) -> 0 | F72: 4 | H72: 0 | I72: 0 | J72: 0 | K72: 0 | L72: 0 | M72: 0 | N72: 0 | O72: 0 | P72: 0 | Q72: 0 | R72: 0 | S72: 0 | T72: 0
C73: 60 | D73: Sonstige Einnahmen | E73: =SUM(H73:T73) -> 0 | F73: 2 | H73: 0 | I73: 0 | J73: 0 | K73: 0 | L73: 0 | M73: 0 | N73: 0 | O73: 0 | P73: 0 | Q73: 0 | R73: 0 | S73: 0 | T73: 0
C74: 61 | D74: Verkaufserlöse aus Anlagenabgang | E74: =SUM(H74:T74) -> 0 | F74: 3 | H74: 0 | I74: 0 | J74: 0 | K74: 0 | L74: 0 | M74: 0 | N74: 0 | O74: 0 | P74: 0 | Q74: 0 | R74: 0 | S74: 0 | T74: 0
C75: 62 | D75: Gesamt Abzüge | E75: =SUM(E70:E74) -> 0 | G75: S | H75: 0 | I75: 0 | J75: 0 | K75: 0 | L75: 0 | M75: 0 | N75: 0 | O75: 0 | P75: 0 | Q75: 0 | R75: 0 | S75: 0 | T75: 0
C76: 63 | D76: Gesamtkosten RD gem. § 15 NRettDG | E76: =E68-E75 -> 0 | H76: 0 | I76: 0 | J76: 0 | K76: 0 | L76: 0 | M76: 0 | N76: 0 | O76: 0 | P76: 0 | Q76: 0 | R76: 0 | S76: 0 | T76: 0
D77: * Gemäß Kostenrichtlinien

Sheet LE-Statistik
B2: =ParameterDatei!D175 -> Drucken • LE BAB • Hauptmenu • RW Statistik • RDB Statistik
C4: Leistungsdaten für den BAB Rettungsdienst in Niedersachsen*)
C5: Leistungserbringer: | K5: =" für den Berichtszeitraum "&INDEX(ParameterDatei!F9:F26,ParameterDatei!F27) -> für den Berichtszeitraum Leerfeld
C7: Zeile | E7: Summe | F7: US | G7: KZ | H7: Hilfs-Kostenstellen | L7: Sonst-Kst
E8: Insgesamt | H8: RTW | I8: KTW | J8: NEF | K8: MZF | L8: ='Basis-Daten'!D12 -> Sonstige 1 | M8: ='Basis-Daten'!D14 -> Sonstige 2 | N8: ='Basis-Daten'!D16 -> Sonstige 3 | O8: ='Basis-Daten'!D18 -> Sonstige 4 | P8: ='Basis-Daten'!D20 -> Sonstige 5
C9: 1 | D9: 2 | E9: 3 | F9: 4 | G9: 5 | H9: 14 | I9: 15 | J9: 16 | K9: 17 | L9: 9 | M9: 10 | N9: 11 | O9: 12 | P9: 13
D11: I. Rettungdienststruktur
C13: 101 | D13: Anzahl Rettungsmittel | E13: =SUM(H13:Q13) -> 0 | F13: 1 | H13: ='Verdichtung LE-STA'!$E113 -> 0 | I13: ='Verdichtung LE-STA'!$E213 -> 0 | J13: ='Verdichtung LE-STA'!$E313 -> 0 | K13: ='Verdichtung LE-STA'!$E413 -> 0 | L13: ='Verdichtung LE-STA'!$E513 -> 0 | M13: ='Verdichtung LE-STA'!$E613 -> 0 | N13: ='Verdichtung LE-STA'!$E713 -> 0 | O13: ='Verdichtung LE-STA'!$E813 -> 0 | P13: ='Verdichtung LE-STA'!$E913 -> 0
C14: 102 | D14: Anteil in % | E14: =SUM(H14:Q14) -> 0 | H14: =IF(H13=0,0,H13/$E13) -> 0 | I14: =IF(I13=0,0,I13/$E13) -> 0 | J14: 0 | K14: 0 | L14: 0 | M14: 0 | N14: 0 | O14: 0 | P14: 0
C16: 103 | D16: ="RM-Vorhaltestunden " -> RM-Vorhaltestunden | E16: =SUM(H16:Q16) -> 0 | F16: 1 | H16: ='Verdichtung LE-STA'!$E114 -> 0 | I16: ='Verdichtung LE-STA'!$E214 -> 0 | J16: ='Verdichtung LE-STA'!$E314 -> 0 | K16: ='Verdichtung LE-STA'!$E414 -> 0 | L16: ='Verdichtung LE-STA'!$E514 -> 0 | M16: ='Verdichtung LE-STA'!$E614 -> 0 | N16: ='Verdichtung LE-STA'!$E714 -> 0 | O16: ='Verdichtung LE-STA'!$E814 -> 0 | P16: ='Verdichtung LE-STA'!$E914 -> 0
C17: 104 | D17: Anteil in % | E17: =SUM(H17:Q17) -> 0 | H17: =IF(H16=0,0,H16/$E16) -> 0 | I17: 0 | J17: 0 | K17: 0 | L17: 0 | M17: 0 | N17: 0 | O17: 0 | P17: 0
C19: 105 | D19: ="Jahresstunden Einsatzpersonal " -> Jahresstunden Einsatzpersonal | E19: =SUM(H19:Q19) -> 0 | H19: ='Verdichtung LE-STA'!$E115 -> 0 | I19: ='Verdichtung LE-STA'!$E215 -> 0 | J19: ='Verdichtung LE-STA'!$E315 -> 0 | K19: ='Verdichtung LE-STA'!$E415 -> 0 | L19: ='Verdichtung LE-STA'!$E515 -> 0 | M19: ='Verdichtung LE-STA'!$E615 -> 0 | N19: ='Verdichtung LE-STA'!$E715 -> 0 | O19: ='Verdichtung LE-STA'!$E815 -> 0 | P19: ='Verdichtung LE-STA'!$E915 -> 0
C20: 106 | D20: Anteil in % | E20: =SUM(H20:Q20) -> 0 | H20: =IF(H19=0,0,H19/$E19) -> 0 | I20: 0 | J20: 0 | K20: 0 | L20: 0 | M20: 0 | N20: 0 | O20: 0 | P20: 0
C22: 107 | D22: ="Jahresstunden Notärzte " -> Jahresstunden Notärzte | E22: =SUM(H22:Q22) -> 0 | H22: ='Verdichtung LE-STA'!$E116 -> 0 | I22: ='Verdichtung LE-STA'!$E216 -> 0 | J22: ='Verdichtung LE-STA'!$E316 -> 0 | K22: ='Verdichtung LE-STA'!$E416 -> 0 | L22: ='Verdichtung LE-STA'!$E516 -> 0 | M22: ='Verdichtung LE-STA'!$E616 -> 0 | N22: ='Verdichtung LE-STA'!$E716 -> 0 | O22: ='Verdichtung LE-STA'!$E816 -> 0 | P22: ='Verdichtung LE-STA'!$E916 -> 0
C23: 108 | D23: Anteil in % | E23: =SUM(H23:Q23) -> 0 | H23: =IF(H22=0,0,H22/$E22) -> 0 | I23: 0 | J23: 0 | K23: 0 | L23: 0 | M23: 0 | N23: 0 | O23: 0 | P23: 0
D26: II. Leistungsdaten
C28: 109 | D28: Gesamteinsätze | E28: =SUM(H28:Q28) -> 0 | H28: ='Verdichtung LE-STA'!$E121 -> 0 | I28: ='Verdichtung LE-STA'!$E221 -> 0 | J28: ='Verdichtung LE-STA'!$E321 -> 0 | K28: ='Verdichtung LE-STA'!$E421 -> 0 | L28: ='Verdichtung LE-STA'!$E521 -> 0 | M28: ='Verdichtung LE-STA'!$E621 -> 0 | N28: ='Verdichtung LE-STA'!$E721 -> 0 | O28: ='Verdichtung LE-STA'!$E821 -> 0 | P28: ='Verdichtung LE-STA'!$E921 -> 0
C29: 110 | D29: Anteil in % | E29: =SUM(H29:Q29) -> 0 | H29: =IF(H28=0,0,H28/$E28) -> 0 | I29: =IF(I28=0,0,I28/$E28) -> 0 | J29: 0 | K29: 0 | L29: 0 | M29: 0 | N29: 0 | O29: 0 | P29: 0
C31: 111 | D31: Davon Fehleinsätze | E31: =SUM(H31:Q31) -> 0 | H31: ='Verdichtung LE-STA'!$E122 -> 0 | I31: ='Verdichtung LE-STA'!$E222 -> 0 | J31: ='Verdichtung LE-STA'!$E322 -> 0 | K31: ='Verdichtung LE-STA'!$E422 -> 0 | L31: ='Verdichtung LE-STA'!$E522 -> 0 | M31: ='Verdichtung LE-STA'!$E622 -> 0 | N31: ='Verdichtung LE-STA'!$E722 -> 0 | O31: ='Verdichtung LE-STA'!$E822 -> 0 | P31: ='Verdichtung LE-STA'!$E922 -> 0
C32: 112 | D32: Anteil in % | E32: =SUM(H32:Q32) -> 0 | H32: =IF(H31=0,0,H31/$E31) -> 0 | I32: =IF(I31=0,0,I31/$E31) -> 0 | J32: 0 | K32: 0 | L32: 0 | M32: 0 | N32: 0 | O32: 0 | P32: 0
C33: 113 | D33: bezogen auf Einsätze insgesamt in % | E33: =IF(E31=0,0,E31/E28) -> 0 | H33: =IF(H31=0,0,H31/H28) -> 0 | I33: 0 | J33: 0 | K33: 0 | L33: 0 | M33: 0 | N33: 0 | O33: 0 | P33: 0
C35: 114 | D35: Einsätze abrechenbar für Entgeltkalk. | E35: =SUM(H35:Q35) -> 0 | H35: ='Verdichtung LE-STA'!E123 -> 0 | I35: ='Verdichtung LE-STA'!$E223 -> 0 | J35: ='Verdichtung LE-STA'!$E323 -> 0 | K35: ='Verdichtung LE-STA'!$E423 -> 0 | L35: ='Verdichtung LE-STA'!$E523 -> 0 | M35: ='Verdichtung LE-STA'!$E623 -> 0 | N35: ='Verdichtung LE-STA'!$E723 -> 0 | O35: ='Verdichtung LE-STA'!$E823 -> 0 | P35: ='Verdichtung LE-STA'!$E923 -> 0
C36: 115 | D36: Aufteilung in % | E36: =SUM(H36:Q36) -> 0 | H36: =IF(H35=0,0,H35/$E35) -> 0 | I36: =IF(I35=0,0,I35/$E35) -> 0 | J36: 0 | K36: 0 | L36: 0 | M36: 0 | N36: 0 | O36: 0 | P36: 0
C37: 116 | D37: bezogen auf Einsätze insgesamt in % | E37: =IF(E35=0,0,E35/E28) -> 0 | H37: =IF(H35=0,0,H35/H28) -> 0 | I37: =IF(I35=0,0,I35/I28) -> 0 | J37: 0 | K37: 0 | L37: 0 | M37: 0 | N37: 0 | O37: 0 | P37: 0
C39: 117 | D39: Gesamteinsätze Nofallrettung | E39: =SUM(H39:Q39) -> 0 | H39: ='Verdichtung LE-STA'!$E124 -> 0 | I39: ='Verdichtung LE-STA'!$E224 -> 0 | J39: ='Verdichtung LE-STA'!$E324 -> 0 | K39: ='Verdichtung LE-STA'!$E424 -> 0 | L39: ='Verdichtung LE-STA'!$E524 -> 0 | M39: ='Verdichtung LE-STA'!$E624 -> 0 | N39: ='Verdichtung LE-STA'!$E724 -> 0 | O39: ='Verdichtung LE-STA'!$E824 -> 0 | P39: ='Verdichtung LE-STA'!$E924 -> 0
C40: 118 | D40: Aufteilung in % | E40: =SUM(H40:Q40) -> 0 | H40: =IF(H39=0,0,H39/$E39) -> 0 | I40: =IF(I39=0,0,I39/$E39) -> 0 | J40: 0 | K40: 0 | L40: 0 | M40: 0 | N40: 0 | O40: 0 | P40: 0
C41: 119 | D41: bezogen auf Einsätze insgesamt in % | E41: =IF(E39=0,0,E39/E28) -> 0 | H41: =IF(H39=0,0,H39/H28) -> 0 | I41: =IF(I39=0,0,I39/I28) -> 0 | J41: 0 | K41: 0 | L41: 0 | M41: 0 | N41: 0 | O41: 0 | P41: 0
C43: 120 | D43: Gesamteinsätze Krankentransport | E43: =SUM(H43:Q43) -> 0 | H43: ='Verdichtung LE-STA'!$E125 -> 0 | I43: ='Verdichtung LE-STA'!$E225 -> 0 | J43: ='Verdichtung LE-STA'!$E325 -> 0 | K43: ='Verdichtung LE-STA'!$E425 -> 0 | L43: ='Verdichtung LE-STA'!$E525 -> 0 | M43: ='Verdichtung LE-STA'!$E625 -> 0 | N43: ='Verdichtung LE-STA'!$E725 -> 0 | O43: ='Verdichtung LE-STA'!$E825 -> 0 | P43: ='Verdichtung LE-STA'!$E925 -> 0
C44: 121 | D44: Aufteilung in % | E44: =SUM(H44:Q44) -> 0 | H44: =IF(H43=0,0,H43/$E43) -> 0 | I44: =IF(I43=0,0,I43/$E43) -> 0 | J44: 0 | K44: 0 | L44: 0 | M44: 0 | N44: 0 | O44: 0 | P44: 0
C45: 122 | D45: bezogen auf Einsätze insgesamt in % | E45: =IF(E43=0,0,E43/E28) -> 0 | H45: =IF(H43=0,0,H43/H28) -> 0 | I45: =IF(I43=0,0,I43/I28) -> 0 | J45: 0 | K45: 0 | L45: 0 | M45: 0 | N45: 0 | O45: 0 | P45: 0
C47: 123 | D47: Gesamteinsätze Notarztdienst | E47: =SUM(H47:Q47) -> 0 | H47: ='Verdichtung LE-STA'!$E126 -> 0 | I47: ='Verdichtung LE-STA'!$E226 -> 0 | J47: ='Verdichtung LE-STA'!$E326 -> 0 | K47: ='Verdichtung LE-STA'!$E426 -> 0 | L47: ='Verdichtung LE-STA'!$E526 -> 0 | M47: ='Verdichtung LE-STA'!$E626 -> 0 | N47: ='Verdichtung LE-STA'!$E726 -> 0 | O47: ='Verdichtung LE-STA'!$E826 -> 0 | P47: ='Verdichtung LE-STA'!$E926 -> 0
C48: 124 | D48: Aufteilung in % | E48: =SUM(H48:Q48) -> 0 | H48: =IF(H47=0,0,H47/$E47) -> 0 | I48: =IF(I47=0,0,I47/$E47) -> 0 | J48: 0 | K48: 0 | L48: 0 | M48: 0 | N48: 0 | O48: 0 | P48: 0
C49: 125 | D49: bezogen auf Einsätze insgesamt in % | E49: =IF(E47=0,0,E47/E28) -> 0 | H49: =IF(H47=0,0,H47/H28) -> 0 | I49: =IF(I47=0,0,I47/I28) -> 0 | J49: 0 | K49: 0 | L49: 0 | M49: 0 | N49: 0 | O49: 0 | P49: 0
C51: 126 | D51: Kilometer insgesamt | E51: =SUM(H51:Q51) -> 0 | H51: ='Verdichtung LE-STA'!$E128 -> 0 | I51: ='Verdichtung LE-STA'!$E228 -> 0 | J51: ='Verdichtung LE-STA'!$E328 -> 0 | K51: ='Verdichtung LE-STA'!$E428 -> 0 | L51: ='Verdichtung LE-STA'!$E528 -> 0 | M51: ='Verdichtung LE-STA'!$E628 -> 0 | N51: ='Verdichtung LE-STA'!$E728 -> 0 | O51: ='Verdichtung LE-STA'!$E828 -> 0 | P51: ='Verdichtung LE-STA'!$E928 -> 0
C52: 127 | D52: Aufteilung in % | E52: =SUM(H52:Q52) -> 0 | H52: =IF(H51=0,0,H51/$E51) -> 0 | I52: 0 | J52: 0 | K52: 0 | L52: 0 | M52: 0 | N52: 0 | O52: 0 | P52: 0
C54: 128 | D54: Kilometer abrechenbar für Entgeltkalk. | E54: =SUM(H54:Q54) -> 0 | H54: ='Verdichtung LE-STA'!$E129 -> 0 | I54: ='Verdichtung LE-STA'!$E229 -> 0 | J54: ='Verdichtung LE-STA'!$E329 -> 0 | K54: ='Verdichtung LE-STA'!$E429 -> 0 | L54: ='Verdichtung LE-STA'!$E529 -> 0 | M54: ='Verdichtung LE-STA'!$E629 -> 0 | N54: ='Verdichtung LE-STA'!$E729 -> 0 | O54: ='Verdichtung LE-STA'!$E829 -> 0 | P54: ='Verdichtung LE-STA'!$E929 -> 0
C55: 129 | D55: Aufteilung in % | E55: =SUM(H55:Q55) -> 0 | H55: =IF(H54=0,0,H54/$E54) -> 0 | I55: =IF(I54=0,0,I54/$E54) -> 0 | J55: 0 | K55: 0 | L55: 0 | M55: 0 | N55: 0 | O55: 0 | P55: 0
C56: 130 | D56: bezogen auf Kilometer insgesamt in % | E56: =IF(E54=0,0,E54/E51) -> 0 | H56: =IF(H54=0,0,H54/H51) -> 0 | I56: =IF(I54=0,0,I54/I51) -> 0 | J56: 0 | K56: 0 | L56: 0 | M56: 0 | N56: 0 | O56: 0 | P56: 0
C58: 131 | D58: Kilometer Notfallrettung | E58: =SUM(H58:Q58) -> 0 | H58: ='Verdichtung LE-STA'!$E130 -> 0 | I58: ='Verdichtung LE-STA'!$E230 -> 0 | J58: ='Verdichtung LE-STA'!$E330 -> 0 | K58: ='Verdichtung LE-STA'!$E430 -> 0 | L58: ='Verdichtung LE-STA'!$E530 -> 0 | M58: ='Verdichtung LE-STA'!$E630 -> 0 | N58: ='Verdichtung LE-STA'!$E730 -> 0 | O58: ='Verdichtung LE-STA'!$E830 -> 0 | P58: ='Verdichtung LE-STA'!$E930 -> 0
C59: 132 | D59: Aufteilung in % | E59: =SUM(H59:Q59) -> 0 | H59: =IF(H58=0,0,H58/$E58) -> 0 | I59: =IF(I58=0,0,I58/$E58) -> 0 | J59: 0 | K59: 0 | L59: 0 | M59: 0 | N59: 0 | O59: 0 | P59: 0
C60: 133 | D60: bezogen auf Kilometer insgesamt in % | E60: =IF(E58=0,0,E58/E51) -> 0 | H60: =IF(H58=0,0,H58/H51) -> 0 | I60: =IF(I58=0,0,I58/I51) -> 0 | J60: 0 | K60: 0 | L60: 0 | M60: 0 | N60: 0 | O60: 0 | P60: 0
C62: 134 | D62: Kilometer Krankentransport | E62: =SUM(H62:Q62) -> 0 | H62: ='Verdichtung LE-STA'!$E131 -> 0 | I62: ='Verdichtung LE-STA'!$E231 -> 0 | J62: ='Verdichtung LE-STA'!$E331 -> 0 | K62: ='Verdichtung LE-STA'!$E431 -> 0 | L62: ='Verdichtung LE-STA'!$E531 -> 0 | M62: ='Verdichtung LE-STA'!$E631 -> 0 | N62: ='Verdichtung LE-STA'!$E731 -> 0 | O62: ='Verdichtung LE-STA'!$E831 -> 0 | P62: ='Verdichtung LE-STA'!$E931 -> 0
C63: 135 | D63: Aufteilung in % | E63: =SUM(H63:Q63) -> 0 | H63: =IF(H62=0,0,H62/$E62) -> 0 | I63: =IF(I62=0,0,I62/$E62) -> 0 | J63: 0 | K63: 0 | L63: 0 | M63: 0 | N63: 0 | O63: 0 | P63: 0
C64: 136 | D64: bezogen auf Kilometer insgesamt in % | E64: =IF(E62=0,0,E62/E51) -> 0 | H64: =IF(H62=0,0,H62/H51) -> 0 | I64: =IF(I62=0,0,I62/I51) -> 0 | J64: 0 | K64: 0 | L64: 0 | M64: 0 | N64: 0 | O64: 0 | P64: 0
C66: 137 | D66: Kilometer Notarztdienst | E66: =SUM(H66:Q66) -> 0 | H66: ='Verdichtung LE-STA'!$E132 -> 0 | I66: ='Verdichtung LE-STA'!$E232 -> 0 | J66: ='Verdichtung LE-STA'!$E332 -> 0 | K66: ='Verdichtung LE-STA'!$E432 -> 0 | L66: ='Verdichtung LE-STA'!$E532 -> 0 | M66: ='Verdichtung LE-STA'!$E632 -> 0 | N66: ='Verdichtung LE-STA'!$E732 -> 0 | O66: ='Verdichtung LE-STA'!$E832 -> 0 | P66: ='Verdichtung LE-STA'!$E932 -> 0
C67: 138 | D67: Aufteilung in % | E67: =SUM(H67:Q67) -> 0 | H67: =IF(H66=0,0,H66/$E66) -> 0 | I67: =IF(I66=0,0,I66/$E66) -> 0 | J67: 0 | K67: 0 | L67: 0 | M67: 0 | N67: 0 | O67: 0 | P67: 0
C68: 139 | D68: bezogen auf Kilometer insgesamt in % | E68: =IF(E66=0,0,E66/E51) -> 0 | H68: =IF(H66=0,0,H66/H51) -> 0 | I68: =IF(I66=0,0,I66/I51) -> 0 | J68: 0 | K68: 0 | L68: 0 | M68: 0 | N68: 0 | O68: 0 | P68: 0
C70: 140 | D70: Einsatzdauer in Minuten ø pro Einsatz | E70: ='Verdichtung LE-STA'!$E34 -> 0 | H70: ='Verdichtung LE-STA'!$E134 -> 0 | I70: ='Verdichtung LE-STA'!$E234 -> 0 | J70: ='Verdichtung LE-STA'!$E334 -> 0 | K70: ='Verdichtung LE-STA'!$E434 -> 0 | L70: ='Verdichtung LE-STA'!$E534 -> 0 | M70: ='Verdichtung LE-STA'!$E634 -> 0 | N70: ='Verdichtung LE-STA'!$E7834 -> 0 | O70: ='Verdichtung LE-STA'!$E934 -> 0 | P70: ='Verdichtung LE-STA'!$E34 -> 0

Sheet LE-S-Drucken
B2: =ParameterDatei!D185 -> • Hauptmenu •
C4: Statistikdaten für den BAB Rettungsdienst in Niedersachsen*)
C5: =" Rettungsdienstbereich "&INDEX(ParameterDatei!C37:C86,ParameterDatei!B9)&" "&INDEX(ParameterDatei!D37:D86,ParameterDatei!B9)&" für den Berichtszeitraum "&INDEX(ParameterDatei!F9:F26,ParameterDatei!B8) -> 
C6: =" Leistungserbringer "&INDEX(ParameterDatei!C93:C113,ParameterDatei!B114) -> Leistungserbringer LE 01
C7: Zeile | E7: Summe | F7: US | G7: KZ | H7: Hilfs-Kostenstellen | L7: Sonst-Kst
E8: Insgesamt | H8: RTW | I8: KTW | J8: NEF | K8: MZF | L8: ='Basis-Daten'!D12 -> Sonstige 1 | M8: ='Basis-Daten'!D14 -> Sonstige 2 | N8: ='Basis-Daten'!D16 -> Sonstige 3 | O8: ='Basis-Daten'!D18 -> Sonstige 4 | P8: ='Basis-Daten'!D20 -> Sonstige 5
C9: 1 | D9: 2 | E9: 3 | F9: 4 | G9: 5 | H9: 14 | I9: 15 | J9: 16 | K9: 17 | L9: 9 | M9: 10 | N9: 11 | O9: 12 | P9: 13
D11: ="I. Rettungdienststruktur " -> I. Rettungdienststruktur
C13: 101 | D13: ="Anzahl Rettungsmittel " -> Anzahl Rettungsmittel | E13: 0 | F13: 1 | H13: 0 | I13: 0 | J13: 0 | K13: 0 | L13: 0 | M13: 0 | N13: 0 | O13: 0 | P13: 0
C14: 102 | D14: Aufteilung in % | E14: 0 | H14: 0 | I14: 0 | J14: 0 | K14: 0 | L14: 0 | M14: 0 | N14: 0 | O14: 0 | P14: 0
C16: 103 | D16: ="RM-Vorhaltestunden " -> RM-Vorhaltestunden | E16: 0 | F16: 1 | H16: 0 | I16: 0 | J16: 0 | K16: 0 | L16: 0 | M16: 0 | N16: 0 | O16: 0 | P16: 0
C17: 104 | D17: Aufteilung in % | E17: 0 | H17: 0 | I17: 0 | J17: 0 | K17: 0 | L17: 0 | M17: 0 | N17: 0 | O17: 0 | P17: 0
C19: 105 | D19: ="Jahresstunden Einsatzpersonal " -> Jahresstunden Einsatzpersonal | E19: 0 | H19: 0 | I19: 0 | J19: 0 | K19: 0 | L19: 0 | M19: 0 | N19: 0 | O19: 0 | P19: 0
C20: 106 | D20: Aufteilung in % | E20: 0 | H20: 0 | I20: 0 | J20: 0 | K20: 0 | L20: 0 | M20: 0 | N20: 0 | O20: 0 | P20: 0
C22: 107 | D22: ="Jahresstunden Notärzte " -> Jahresstunden Notärzte | E22: 0 | H22: 0 | I22: 0 | J22: 0 | K22: 0 | L22: 0 | M22: 0 | N22: 0 | O22: 0 | P22: 0
C23: 108 | D23: Aufteilung in % | E23: 0 | H23: 0 | I23: 0 | J23: 0 | K23: 0 | L23: 0 | M23: 0 | N23: 0 | O23: 0 | P23: 0
D26: ="II. Leistungsdaten " -> II. Leistungsdaten
C28: 109 | D28: Gesamteinsätze | E28: 0 | H28: 0 | I28: 0 | J28: 0 | K28: 0 | L28: 0 | M28: 0 | N28: 0 | O28: 0 | P28: 0
C29: 110 | D29: Aufteilung in % | E29: 0 | H29: 0 | I29: 0 | J29: 0 | K29: 0 | L29: 0 | M29: 0 | N29: 0 | O29: 0 | P29: 0
C31: 111 | D31: Davon Fehleinsätze | E31: 0 | H31: 0 | I31: 0 | J31: 0 | K31: 0 | L31: 0 | M31: 0 | N31: 0 | O31: 0 | P31: 0
C32: 112 | D32: Aufteilung in % | E32: 0 | H32: 0 | I32: 0 | J32: 0 | K32: 0 | L32: 0 | M32: 0 | N32: 0 | O32: 0 | P32: 0
C33: 113 | D33: bezogen auf Einsätze insgesamt in % | E33: 0 | H33: 0 | I33: 0 | J33: 0 | K33: 0 | L33: 0 | M33: 0 | N33: 0 | O33: 0 | P33: 0
C35: 114 | D35: Einsätze abrechenbar für Entgeltkalk. | E35: 0 | H35: 0 | I35: 0 | J35: 0 | K35: 0 | L35: 0 | M35: 0 | N35: 0 | O35: 0 | P35: 0
C36: 115 | D36: Aufteilung in % | E36: 0 | H36: 0 | I36: 0 | J36: 0 | K36: 0 | L36: 0 | M36: 0 | N36: 0 | O36: 0 | P36: 0
C37: 116 | D37: bezogen auf Einsätze insgesamt in % | E37: 0 | H37: 0 | I37: 0 | J37: 0 | K37: 0 | L37: 0 | M37: 0 | N37: 0 | O37: 0 | P37: 0
C39: 117 | D39: Gesamteinsätze Notfallrettung | E39: 0 | H39: 0 | I39: 0 | J39: 0 | K39: 0 | L39: 0 | M39: 0 | N39: 0 | O39: 0 | P39: 0
C40: 118 | D40: Aufteilung in % | E40: 0 | H40: 0 | I40: 0 | J40: 0 | K40: 0 | L40: 0 | M40: 0 | N40: 0 | O40: 0 | P40: 0
C41: 119 | D41: bezogen auf Einsätze insgesamt in % | E41: 0 | H41: 0 | I41: 0 | J41: 0 | K41: 0 | L41: 0 | M41: 0 | N41: 0 | O41: 0 | P41: 0
C43: 120 | D43: Gesamteinsätze Krankentransport | E43: 0 | H43: 0 | I43: 0 | J43: 0 | K43: 0 | L43: 0 | M43: 0 | N43: 0 | O43: 0 | P43: 0
C44: 121 | D44: Aufteilung in % | E44: 0 | H44: 0 | I44: 0 | J44: 0 | K44: 0 | L44: 0 | M44: 0 | N44: 0 | O44: 0 | P44: 0
C45: 122 | D45: bezogen auf Einsätze insgesamt in % | E45: 0 | H45: 0 | I45: 0 | J45: 0 | K45: 0 | L45: 0 | M45: 0 | N45: 0 | O45: 0 | P45: 0
C47: 123 | D47: Gesamteinsätze Notarztdienst | E47: 0 | H47: 0 | I47: 0 | J47: 0 | K47: 0 | L47: 0 | M47: 0 | N47: 0 | O47: 0 | P47: 0
C48: 124 | D48: Aufteilung in % | E48: 0 | H48: 0 | I48: 0 | J48: 0 | K48: 0 | L48: 0 | M48: 0 | N48: 0 | O48: 0 | P48: 0
C49: 125 | D49: bezogen auf Einsätze insgesamt in % | E49: 0 | H49: 0 | I49: 0 | J49: 0 | K49: 0 | L49: 0 | M49: 0 | N49: 0 | O49: 0 | P49: 0
C51: 126 | D51: Kilometer insgesamt | E51: 0 | H51: 0 | I51: 0 | J51: 0 | K51: 0 | L51: 0 | M51: 0 | N51: 0 | O51: 0 | P51: 0
C52: 127 | D52: Aufteilung in % | E52: 0 | H52: 0 | I52: 0 | J52: 0 | K52: 0 | L52: 0 | M52: 0 | N52: 0 | O52: 0 | P52: 0
C54: 128 | D54: Kilometer abrechenbar für Entgeltkalk. | E54: 0 | H54: 0 | I54: 0 | J54: 0 | K54: 0 | L54: 0 | M54: 0 | N54: 0 | O54: 0 | P54: 0
C55: 129 | D55: Aufteilung in % | E55: 0 | H55: 0 | I55: 0 | J55: 0 | K55: 0 | L55: 0 | M55: 0 | N55: 0 | O55: 0 | P55: 0
C56: 130 | D56: bezogen auf Kilometer insgesamt in % | E56: 0 | H56: 0 | I56: 0 | J56: 0 | K56: 0 | L56: 0 | M56: 0 | N56: 0 | O56: 0 | P56: 0
C58: 131 | D58: Kilometer Notfallrettung | E58: 0 | H58: 0 | I58: 0 | J58: 0 | K58: 0 | L58: 0 | M58: 0 | N58: 0 | O58: 0 | P58: 0
C59: 132 | D59: Aufteilung in % | E59: 0 | H59: 0 | I59: 0 | J59: 0 | K59: 0 | L59: 0 | M59: 0 | N59: 0 | O59: 0 | P59: 0
C60: 133 | D60: bezogen auf Kilometer insgesamt in % | E60: 0 | H60: 0 | I60: 0 | J60: 0 | K60: 0 | L60: 0 | M60: 0 | N60: 0 | O60: 0 | P60: 0
C62: 134 | D62: Kilometer Krankentransport | E62: 0 | H62: 0 | I62: 0 | J62: 0 | K62: 0 | L62: 0 | M62: 0 | N62: 0 | O62: 0 | P62: 0
C63: 135 | D63: Aufteilung in % | E63: 0 | H63: 0 | I63: 0 | J63: 0 | K63: 0 | L63: 0 | M63: 0 | N63: 0 | O63: 0 | P63: 0
C64: 136 | D64: bezogen auf Kilometer insgesamt in % | E64: 0 | H64: 0 | I64: 0 | J64: 0 | K64: 0 | L64: 0 | M64: 0 | N64: 0 | O64: 0 | P64: 0
C66: 137 | D66: Kilometer Notarztdienst | E66: 0 | H66: 0 | I66: 0 | J66: 0 | K66: 0 | L66: 0 | M66: 0 | N66: 0 | O66: 0 | P66: 0
C67: 138 | D67: Aufteilung in % | E67: 0 | H67: 0 | I67: 0 | J67: 0 | K67: 0 | L67: 0 | M67: 0 | N67: 0 | O67: 0 | P67: 0
C68: 139 | D68: bezogen auf Kilometer insgesamt in % | E68: 0 | H68: 0 | I68: 0 | J68: 0 | K68: 0 | L68: 0 | M68: 0 | N68: 0 | O68: 0 | P68: 0
C70: 140 | D70: Einsatzdauer in Minuen ø pro Einsatz | E70: 0 | H70: 0 | I70: 0 | J70: 0 | K70: 0 | L70: 0 | M70: 0 | N70: 0 | O70: 0 | P70: 0

Sheet RW-Drucken
C2: =ParameterDatei!D182 -> • Hauptmenu •
C4: Betriebsabrechnungsbogen für den Rettungsdienst in Niedersachsen*)
C5: ="Rettungsdienstbereich "&INDEX(ParameterDatei!C37:C86,ParameterDatei!B9)&" "&INDEX(ParameterDatei!D37:D86,ParameterDatei!B9)&" - für den Berichtszeitraum "&INDEX(ParameterDatei!F9:F26,ParameterDatei!B8) -> 
C6: ="Rettungswache "&INDEX(ParameterDatei!C119:C148,ParameterDatei!B150)&" ("&INDEX(ParameterDatei!C93:C112,INDEX(ParameterDatei!D119:D148,ParameterDatei!B150))&")" -> Rettungswache RW 01 (LE 01)
C7: Zeile | D7: Kostenarten | E7: Summe | F7: US | G7: KZ | H7: Hilfs-Kostenstellen | L7: Sonst-Kst | Q7: A-Kst
H8: RTW | I8: KTW | J8: NEF | K8: MZF | L8: ='Basis-Daten'!D12 -> Sonstige 1 | M8: ='Basis-Daten'!D14 -> Sonstige 2 | N8: ='Basis-Daten'!D16 -> Sonstige 3 | O8: ='Basis-Daten'!D18 -> Sonstige 4 | P8: ='Basis-Daten'!D20 -> Sonstige 5 | Q8: Ausbildung NotfallSan | R8: Verwaltung | S8: LE-ÖEL | T8: LE-GSE
C9: 1 | D9: 2 | E9: 3 | F9: 4 | G9: 5 | H9: 14 | I9: 15 | J9: 16 | K9: 17 | L9: 9 | M9: 10 | N9: 11 | O9: 12 | P9: 13 | Q9: 33 | R9: 18 | S9: 20 | T9: 21
C11: 1 | D11: Personalkosten hauptamtlich | E11: =SUM(H11:T11) -> 0 | F11: 1 | H11: 0 | I11: 0 | J11: 0 | K11: 0 | L11: 0 | M11: 0 | N11: 0 | O11: 0 | P11: 0 | Q11: 0 | R11: 0 | S11: 0 | T11: 0
C12: 2 | D12: Personalkosten nebenamtlich | E12: =SUM(H12:T12) -> 0 | F12: 1 | H12: 0 | I12: 0 | J12: 0 | K12: 0 | L12: 0 | M12: 0 | N12: 0 | O12: 0 | P12: 0 | Q12: 0 | R12: 0 | S12: 0 | T12: 0
C13: 3 | D13: Personalkosten ehrenamtlich | E13: 0 | F13: 1 | H13: 0 | I13: 0 | J13: 0 | K13: 0 | L13: 0 | M13: 0 | N13: 0 | O13: 0 | P13: 0 | Q13: 0 | R13: 0 | S13: 0 | T13: 0
C14: 4 | D14: ZDL/FSJ-Aufwand | E14: 0 | F14: 1 | H14: 0 | I14: 0 | J14: 0 | K14: 0 | L14: 0 | M14: 0 | N14: 0 | O14: 0 | P14: 0 | Q14: 0 | R14: 0 | S14: 0 | T14: 0
C15: 5 | D15: Personalkosten Notarzt | E15: 0 | F15: 0 | H15: 0 | I15: 0 | J15: 0 | K15: 0 | L15: 0 | M15: 0 | N15: 0 | O15: 0 | P15: 0 | Q15: 0 | R15: 0 | S15: 0 | T15: 0
C16: 6 | D16: Personalkosten "fiktive Verwaltung" | E16: 0 | F16: 0 | H16: 0 | I16: 0 | J16: 0 | K16: 0 | L16: 0 | M16: 0 | N16: 0 | O16: 0 | P16: 0 | Q16: 0 | R16: 0 | S16: 0 | T16: 0
C17: 7 | D17: Personalkosten Reinigungspersonal | E17: 0 | F17: 2 | H17: 0 | I17: 0 | J17: 0 | K17: 0 | L17: 0 | M17: 0 | N17: 0 | O17: 0 | P17: 0 | Q17: 0 | R17: 0 | S17: 0 | T17: 0
C18: 8 | D18: Summe Personalkosten | E18: =SUM(E11:E17) -> 0 | G18: ZS | H18: 0 | I18: 0 | J18: 0 | K18: 0 | L18: 0 | M18: 0 | N18: 0 | O18: 0 | P18: 0 | Q18: 0 | R18: 0 | S18: 0 | T18: 0
C20: 9 | D20: Aus- und Fortbildungskosten | E20: =SUM(H20:T20) -> 0 | F20: 1 | H20: 0 | I20: 0 | J20: 0 | K20: 0 | L20: 0 | M20: 0 | N20: 0 | O20: 0 | P20: 0 | Q20: 0 | R20: 0 | S20: 0 | T20: 0
C21: 10 | D21: sonstige Sach-/Nebenkosten Personal | E21: =SUM(H21:T21) -> 0 | F21: 1 | H21: 0 | I21: 0 | J21: 0 | K21: 0 | L21: 0 | M21: 0 | N21: 0 | O21: 0 | P21: 0 | Q21: 0 | R21: 0 | S21: 0 | T21: 0
C22: 11 | D22: Gesamt Personalnebenkosten | E22: =SUM(E20:E21) -> 0 | G22: S | H22: 0 | I22: 0 | J22: 0 | K22: 0 | L22: 0 | M22: 0 | N22: 0 | O22: 0 | P22: 0 | Q22: 0 | R22: 0 | S22: 0 | T22: 0
C23: 12 | D23: Mieten, Pachten | E23: =SUM(H23:T23) -> 0 | F23: 3 | H23: 0 | I23: 0 | J23: 0 | K23: 0 | L23: 0 | M23: 0 | N23: 0 | O23: 0 | P23: 0 | Q23: 0 | R23: 0 | S23: 0 | T23: 0
C24: 13 | D24: Nebenkosten / Energie | E24: =SUM(H24:T24) -> 0 | F24: 2 | H24: 0 | I24: 0 | J24: 0 | K24: 0 | L24: 0 | M24: 0 | N24: 0 | O24: 0 | P24: 0 | Q24: 0 | R24: 0 | S24: 0 | T24: 0
C25: 14 | D25: Reinigung / Fremdreinigung | E25: =SUM(H25:T25) -> 0 | F25: 2 | H25: 0 | I25: 0 | J25: 0 | K25: 0 | L25: 0 | M25: 0 | N25: 0 | O25: 0 | P25: 0 | Q25: 0 | R25: 0 | S25: 0 | T25: 0
